{"text_format":"1","workbook":"xlsx","n_sheets":18,"sheets":["AER only","Instructions","Contents","Business & other details","2.1 Expenditure summary","2.2 Repex","2.3 Augex","2.5 Connections","2.6 Non-network","2.7 Vegetation management","2.8 Maintenance","2.10 Overheads","2.11 Labour","2.12 Input tables","5.2 Asset Age Profile","5.3 MD - Network level","5.4 MD & utilisation-Spatial","Amendments"],"not_rendered":{"charts":0,"images":6,"macros":1,"external_links":1,"defined_names":590,"comments":3,"pivot_tables":0},"unopened":[],"bounds":{"document_bytes":16777216,"sheet_cells":100000,"rows_first":2000,"rows_last":500,"rows_between":2000,"halvings":0,"cell_chars":16384,"cell_head_chars":4096},"cells_cut":0,"cells_raw":0,"read":"whole","date_system":"1900"}

{"sheet":"AER only","index":0,"n_rows":125,"n_cols":40,"rows_kept":125,"cut":false,"hidden":true,"merged":[[103,1,103,8],[48,2,48,3],[48,34,50,34],[51,34,55,34],[59,34,60,34],[65,14,65,15],[65,22,65,25],[47,1,47,5],[47,14,47,21],[47,22,47,26],[0,1,0,11],[3,28,3,38],[4,28,4,31],[4,34,4,38],[46,22,46,26]]}
[null,"Data in these columns used for data validation and database purposes."]
[]
[]
[null,null,null,null,null,null,null,null,null,null,null,null,null,null,null,null,null,null,null,null,null,null,null,null,null,null,null,null,"FOR ELECTRICITY BUSINESSES ONLY"]
[null,null,null,null,null,null,null,null,null,null,null,null,null,null,null,null,null,null,null,null,null,null,null,null,null,null,null,null,"Feeder Types",null,null,null,"TasNetworks (D)","MAIFI flag","Feeder Names"]
[null,null,null,null,null,null,null,null,null,null,null,null,null,null,null,null,null,null,null,null,null,null,null,null,null,null,null,null,"CBD","Urban","Short rural","long rural","EXTRA"]
[null,"dms_TradingName_List","dms_TradingNameFull_List","dms_ABN_List","dms_JurisdictionList","dms_Sector_List","dms_Segment_List","dms_FormControl_List","dms_RPT_List","dms_RPTMonth_List","dms_CRCPlength_List","dms_FRCPlength_List","dms_663_List","dms_DeterminationRef_List","dms_Addr1_List","dms_Addr2_List","dms_Suburb_List","dms_State_List","dms_PostCode_List","dms_PAddr1_List","dms_PAddr2_List","dms_PSuburb_List","dms_PState_List","dms_PPostCode_List","dms_ContactName1_List","dms_ContactPh1_List","dms_ContactEmail_List",null,"dms_CBD_flag","dms_Urban_flag","dms_ShortRural_flag","dms_LongRural_flag","dms_FeederType_5_flag","dms_MAIFI_flag_List","dms_FeederName_1","dms_FeederName_2","dms_FeederName_3","dms_FeederName_4","dms_FeederName_5"]
[null,"ActewAGL Distribution","ActewAGL Distribution",76670568688,"ACT","Electricity","Distribution","Revenue cap","Financial","June",5,5,5,"2014-19 Distribution Determination","40 Bunda Street",null,"CANBERRA","ACT","2600","GPO BOX 366",null,"CANBERRA","ACT",2601,"Robert Walker","02 6248 3847","robert.walker@actewagle.com.au",null,"NO","YES","YES","NO","NO",null,"CBD","Urban","Short rural","Long rural",null,"ActewAGL Distribution"]
[null,"ActewAGL Distribution (Tx Assets)","ActewAGL Distribution (Tx Assets)",76670568688,"ACT","Electricity","Distribution","Revenue cap","Financial","June",5,5,5,"distribution determination","40 Bunda Street",null,"CANBERRA","ACT","2600","GPO BOX 366",null,"CANBERRA","ACT",2601,"Robert Walker","02 6248 3847","robert.walker@actewagle.com.au",null,null,null,null,null,null,null,"CBD","Urban","Short rural","Long rural",null,"ActewAGL Distribution (Tx Assets)"]
[null,"ActewAGL Gas","ActewAGL Gas",76670568688,"ACT","Gas","Distribution","Weighted average price cap","Financial","June",5,5,"x",null,"40 Bunda Street",null,"CANBERRA","ACT","2600","GPO BOX 366",null,"CANBERRA","ACT",2601,"Philip Deamer","02 6248 3438","GasAAReview@actewagl.com.au",null,null,null,null,null,null,null,null,null,null,null,null,"ActewAGL Gas"]
[null,"AGN (Albury)","Australian Gas Networks Limited (reporting data for Albury)",19078551685,"Vic","Gas","Distribution","Weighted average price cap","Calendar","December",5,5,"x",null,"Level 10","81 Flinders Street","ADELAIDE","SA","5000",null,null,null,null,null,null,"08 8227 1500",null,null,null,null,null,null,null,null,"CBD","Urban","Short rural","Long rural",null,"AGN (SA)"]
[null,"AGN (SA)","AGN (SA)",78551685,"SA","Gas","Distribution","Revenue cap","Financial","June",5,5,5,"distribution determination",null,null,null,"SA",null,null,null,null,null,null,null,null,null,null,null,null,null,null,null,null,null,null,null,null,null,"AGN (Victoria)"]
[null,"AGN (Victoria)","Australian Gas Networks Limited (reporting data for Victoria)",19078551685,"Vic","Gas","Distribution","Weighted average price cap","Calendar","December",5,5,"x",null,"Level 10","81 Flinders Street","ADELAIDE","SA","5000",null,null,null,null,null,null,"08 8227 1500",null,null,null,null,null,null,null,null,null,null,null,null,null,"AGN (Albury)"]
[null,"Amadeus","APT Pipelines (NT) Pty Ltd",39009737393,"NT","Gas","Transmission","Weighted average price cap","Financial","June",5,5,"x","n/a","Level 19, HSBC Building","580 George Street","SYDNEY","NSW","2000","Level 19, HSBC Building","580 George Street","SYDNEY","NSW","2000","Alexandra Curran","02 9275 0020","alexandra.curran@apa.com.au",null,null,null,null,null,null,null,null,null,null,null,null,"Amadeus"]
[null,"APA GasNet","APA GasNet Australia (Operations) Pty Ltd",65083009,"Vic","Gas","Transmission","Weighted average price cap","Calendar","December",5,5,"x",null,"Level 19, HSBC Building","580 George Street","SYDNEY","NSW","2000","PO Box R41",null,"ROYAL EXCHANGE","NSW","1225",null,"02 9693 0000",null,null,null,null,null,null,null,null,null,null,null,null,null,"APA GasNet"]
[null,"Ausgrid","Ausgrid",67505337385,"NSW","Electricity","Distribution","Revenue cap","Financial","June",5,5,5,"2014-19 Distribution Determination","570 George St",null,"SYDNEY","NSW",2000,null,null,null,null,null,"John Thomson","(02) 9269 2312","john.thomson@ausgrid.com.au",null,"YES","YES","YES","YES","NO",null,"CBD","Urban","Short rural","Long rural",null,"Ausgrid"]
[null,"Ausgrid (Tx Assets)","Ausgrid (Tx Assets)",67505337385,"NSW","Electricity","Distribution","Revenue cap","Financial","June",5,5,5,"distribution determination",null,null,null,"NSW",null,null,null,null,null,null,null,null,null,null,null,null,null,null,null,null,"CBD","Urban","Short rural","Long rural",null,"Ausgrid (Tx Assets)"]
[null,"AusNet (D)","AusNet Services (D)",91064651118,"Vic","Electricity","Distribution","Revenue cap","Calendar","December",5,5,2,"2016-20 Distribution Determination","Level 32","2 Southbank Boulevard","SOUTHBANK","Vic","3006","Locked Bag 14051",null,"MELBOURNE CITY MAIL CENTRE","VIC",8001,"Hannah Williams","03 9683 4088","hwilliams@powercor.com.au",null,null,"YES","YES","YES","NO",null,"CBD","Urban","Short rural","Long rural",null,"AusNet (D)"]
[null,"AusNet (Gas)","AusNet Gas Services",86015036,"Vic","Gas","Distribution","Weighted average price cap","Calendar","December",5,5,"X",null,null,null,null,null,null,null,null,null,null,null,null,null,null,null,null,null,null,null,null,null,null,null,null,null,null,"AusNet (Gas)"]
[null,"AusNet (T)","AusNet (T)",78079798173,"Vic","Electricity","Transmission","Revenue cap","Financial","March",5,5,2,"transmission determination","Level 32","2 Southbank Boulevard","SOUTHBANK","Vic","3006","Locked Bag 14051",null,"MELBOURNE CITY MAIL CENTRE","Vic","8001","Clare Thompson","03 9695 6670","clare.e.thompson@ausnetservices.com.au",null,null,null,null,null,null,null,"CBD","Urban","Short rural","Long rural",null,"AusNet (T)"]
[null,"Australian Distribution Co.","Australian Distribution Co.",11222333444,"-","Electricity","Distribution","Revenue cap","Financial","June",5,5,2,"distribution determination","123 Straight Street",null,"SYDNEY","NSW","2000","PO Box 123",null,"SYDNEY","NSW",2000,"Bob Smith","02 1234 5678","bob@auselec.net.au",null,null,null,null,null,null,null,"CBD","Urban","Short rural","Long rural",null,"Australian Distribution Co."]
[null,"Australian Distribution Co. (Vic)","Australian Distribution Co. (Victoria)",11222333444,"-","Electricity","Distribution","Revenue cap","Calendar","December",5,5,2,"distribution determination","123 Straight Street",null,"MELBOURNE","Vic","3000","PO Box 123",null,"MELBOURNE","VIC","3000","Bob Smith","02 1234 5678","bob@auselec.net.au",null,null,null,null,null,null,null,"CBD","Urban","Short rural","Long rural",null,"Australian Distribution Co. (Vic)"]
[null,"Australian Transmission Co.","Australian Transmission Co.",11222333444,"-","Electricity","Transmission","Revenue cap","Financial","June",5,5,5,"transmission determination","123 Straight Street",null,"SYDNEY","NSW","2000","PO Box 123",null,"SYDNEY","NSW",2000,"Bob Smith","02 1234 5678","bob@auselec.net.au",null,null,null,null,null,null,null,"CBD","Urban","Short rural","Long rural",null,"Australian Transmission Co."]
[null,"CitiPower","CitiPower",76064651056,"Vic","Electricity","Distribution","Revenue cap","Calendar","December",5,5,2,"2016-20 Distribution Determination","40 Market Street",null,"MELBOURNE","Vic","3000","Locked Bag 14090",null,"MELBOURNE","VIC",8001,"Hannah Williams","03 9683 4088","hwilliams@powercor.com.au",null,"YES","YES","NO","NO","NO",null,"CBD","Urban","Short rural","Long rural",null,"CitiPower"]
[null,"Directlink","Directlink",16779340889,"Qld","Electricity","Transmission","Revenue cap","Financial","June",9,5,5,"transmission determination",null,null,null,"NSW",null,null,null,null,null,null,null,null,null,null,null,null,null,null,null,null,"CBD","Urban","Short rural","Long rural",null,"Directlink"]
[null,"ElectraNet","ElectraNet",41094482416,"SA","Electricity","Transmission","Revenue cap","Financial","June",5,5,5,"transmission determination","52-55 East Terrace","Rymill Park","ADELAIDE","SA","5000","PO Box 7096","Hutt Street Post Office","ADELAIDE","SA",5000,"Bill Jackson","08 8404 7969","jackson.bill@electranet.com.au",null,null,null,null,null,null,null,"CBD","Urban","Short rural","Long rural",null,"ElectraNet"]
[null,"Endeavour Energy","Endeavour Energy",59253130878,"NSW","Electricity","Distribution","Revenue cap","Financial","June",5,5,5,"2014-19 Distribution Determination","51 Huntingwood Drive",null,"HUNTINGWOOD","NSW","2148","PO Box 811",null,"SEVEN HILLS","NSW","1730","Jon Hocking","02 9853 4386 / 0407 348 156","Jon.Hocking@Endeavourenergy.com.au",null,"NO","YES","YES","YES","NO",null,"CBD","Urban","Short rural","Long rural",null,"Endeavour Energy"]
[null,"Energex","Energex",40078849055,"Qld","Electricity","Distribution","Revenue cap","Financial","June",5,5,5,"2015-20 Distribution Determination","26 Reddacliff Street",null,"NEWSTEAD","Qld","4006","26 Reddacliff Street",null,"NEWSTEAD","QLD","4006","Nicola Roscoe","07 3664 5891","nicolaroscoe@energex.com.au",null,"YES","YES","YES","NO","NO",null,"CBD","Urban","Short rural","Long rural",null,"Energex"]
[null,"Ergon Energy","Ergon Energy",50087646062,"Qld","Electricity","Distribution","Revenue cap","Financial","June",5,5,5,"2015-20 Distribution Determination","22 Walker Street",null,"TOWNSVILLE","Qld","4810","Po Box 264",null,"FORTITUDE VALLEY","QLD",4006,"Jenny Doyle, Group Manager Regulatory Affairs","(07) 3851 6416","jenny.doyle@ergon.com.au",null,"NO","YES","YES","YES","NO",null,"CBD","Urban","Short rural","Long rural",null,"Ergon Energy"]
[null,"Essential Energy","Essential Energy",37428185226,"NSW","Electricity","Distribution","Revenue cap","Financial","June",5,5,5,"2014-19 Distribution Determination","8 Buller Street",null,"PORT MACQUARIE","NSW","2444","PO Box 5730",null,"PORT MACQUARIE","NSW","2444","Catherine Waddell","02 6338 3553","catherine.waddell@essentialenergy.com.au",null,null,null,"YES","YES","NO",null,"CBD","Urban","Short rural","Long rural",null,"Essential Energy"]
[null,"Jemena Electricity","Jemena Electricity",82064651083,"Vic","Electricity","Distribution","Revenue cap","Calendar","December",5,5,2,"2016-20 Distribution Determination","Level 16","567 Collins Street","MELBOURNE","VIC","3000","PO Box 16182",null,"MELBOURNE","VIC",8001,"Robert McMillan","03 9173 7000","robert.mcmillan@jemena.com.au",null,null,null,"YES","NO","NO",null,"CBD","Urban","Short rural","Long rural",null,"Jemena Electricity"]
[null,"JGN","Jemena Gas Networks",null,"NSW","Gas","Distribution","Weighted average price cap","Financial","June",5,5,null,null,null,null,null,null,null,null,null,null,null,null,null,null,null,null,null,null,null,null,null,null,null,null,null,null,null,"JGN"]
[null,"Multinet Gas","Multinet Gas (DB No.1) Pty Ltd (ACN 086 026 986), Multinet Gas (DB No.2) Pty Ltd (ACN 086 230 122)",86026986,"Vic","Gas","Distribution","Weighted average price cap","Calendar","December",5,5,"x",null,null,null,null,null,null,null,null,null,null,null,null,null,null,null,null,null,null,null,null,null,null,null,null,null,null,"Multinet Gas"]
[null,"Murraylink","Murraylink",79181207909,"SA","Electricity","Transmission","Revenue cap","Financial","June",5,5,5,"transmission determination",null,null,null,null,null,null,null,null,null,null,null,null,null,null,null,null,null,null,null,null,"CBD","Urban","Short rural","Long rural",null,"Murraylink"]
[null,"Powercor Australia","Powercor Australia",89064651109,"Vic","Electricity","Distribution","Revenue cap","Calendar","December",5,5,2,"2016-20 Distribution Determination","40 Market Street",null,"MELBOURNE","Vic","3000","Locked bag 14090",null,"MELBOURNE","VIC",8001,"Hannah Williams","03 9683 4088","hwilliams@powercor.com.au",null,null,null,"YES","YES","NO",null,"CBD","Urban","Short rural","Long rural",null,"Powercor Australia"]
[null,"Powerlink","Queensland Electricity Transmission Corporation Limited trading as Powerlink Queensland",82078849233,"Qld","Electricity","Transmission","Revenue cap","Financial","June",5,5,5,"transmission determination","33 Harold St",null,"VIRGINIA","Qld","4014","PO Box 1193",null,"VIRGINIA","QLD",4014,"Jennifer Harris","07 3860 2667","jharris@powerlink.com.au",null,null,null,null,null,null,null,"CBD","Urban","Short rural","Long rural",null,"Powerlink"]
[null,"Roma to Brisbane Pipeline","APT Petroleum Pipelines Limited t/a Roma to Brisbane Pipeline","009 737 393","Qld","Gas","Transmission","Revenue cap","Financial","June",5,5,"x","n/a",null,null,null,null,null,null,null,null,null,null,null,null,null,null,null,null,null,null,null,null,"CBD","Urban","Short rural","Long rural",null,"Roma to Brisbane Pipeline"]
[null,"SA Power Networks","SA Power Networks",13332330749,"SA","Electricity","Distribution","Revenue cap","Financial","June",5,5,5,"2015-20 Distribution Determination","1 Anzac Highway",null,"KESWICK","SA","5035","GPO Box 77",null,"ADELAIDE","SA","5000","Damien O'Connor","08 8404 5066","damien.oconnor@sapowernetworks.com.au",null,null,null,"YES","YES","NO",null,"CBD","Urban","Short rural","Long rural",null,"SA Power Networks"]
[null,"TasNetworks (D)","TasNetworks (D)",24167357299,"Tas","Electricity","Distribution","Revenue cap","Financial","June",5,5,5,"distribution determination","1-7 Maria Street",null,"LENAH VALLEY","Tas","7008","PO Box 606",null,"MOONAH","Tas","7009","John Sayers","03 6271 6469","john.sayers@tasnetworks.com.au",null,null,null,"YES","YES","YES",null,"Critical Infrastructure","High density commercial","Urban","High density rural","Low density rural","TasNetworks (D)"]
[null,"TasNetworks (T)","TasNetworks (T)",24167357299,"Tas","Electricity","Transmission","Revenue cap","Financial","March",5,5,5,"transmission determination","1-7 Maria Street",null,"LENAH VALLEY","Tas","7008","PO Box 606",null,"MOONAH","Tas","7009","John Sayers","03 6271 6469","john.sayers@tasnetworks.com.au",null,null,null,null,null,null,null,"CBD","Urban","Short rural","Long rural",null,"TasNetworks (T)"]
[null,"TransGrid","NSW Electricity Networks Operations Pty Ltd trading as TransGrid",609169959,"NSW","Electricity","Transmission","Revenue cap","Financial","June",5,4,5,"transmission determination","180 Thomas Street",null,"SYDNEY","NSW","2000","PO Box A1000",null,"SYDNEY SOUTH","NSW","1235","Garrie Chubb","0408 210 221","garrie.chubb@transgrid.com.au",null,null,null,null,null,null,null,"CBD","Urban","Short rural","Long rural",null,"TransGrid"]
[null,"United Energy","United Energy",70064651029,"Vic","Electricity","Distribution","Revenue cap","Calendar","December",5,5,2,"2016-20 Distribution Determination","Level 3","6 Nexus Court","MULGRAVE","Vic","3149","PO Box 449",null,"MOUNT WAVERLEY","VIC",3170,"Mathew Abraham","03 8846 9758","mathew.abraham@ue.com.au",null,null,null,"YES","NO","NO",null,"CBD","Urban","Short rural","Long rural",null,"United Energy"]
[null,"Western Power (D)","Western Power (D)",18540492861,"WA","Electricity","Distribution","Revenue cap","Financial","June",12,4,"x","distribution determination","363 Wellington Street",null,"PERTH","WA","6000","GPO Box L921",null,"PERTH","WA",6842,"Judy Hunter","08 9326 6239","judy.hunter@westernpower.com.au",null,null,null,"YES","YES","NO","NO","CBD","Urban","Short rural","Long rural",null,"Western Power (D)"]
[null,"Western Power (T)","Western Power (T)",18540492861,"WA","Electricity","Transmission","Revenue cap","Financial","June",12,4,"x","transmission determination","363 Wellington Street",null,"PERTH","WA","6000","GPO Box L921",null,"PERTH","WA",6842,"Judy Hunter","08 9326 6239","judy.hunter@westernpower.com.au",null,null,null,"YES","YES","NO",null,"CBD","Urban","Short rural","Long rural",null,"Western Power (T)"]
[]
[]
[null,null,null,null,null,null,null,null,null,null,null,null,null,null,null,null,null,null,null,null,null,null,"For EB & Reset RINs only"]
[null,"The Reg Year Ending (dms_RYE) must be set to the last year of the regulatory period. For forecast data is is usually (FRCP_y5) for actual it is a single year (CRY). For historical actual data the RYE will need to be set manually in the business details sheet by setting the dms_Multiyear_flag to 1 and putting the correct value in 'dms_Specified_FinalYear. See cells C67:C68",null,null,null,null,{"$f":"IF(dms_RPT=\"financial\",VALUE(LEFT(CRCP_y1,4)-1)&\"-\"&TEXT(VALUE(RIGHT(CRCP_y1,2)-1),\"00\"),VALUE(LEFT(CRCP_y1,4)-1))","v":"2009-10"},null,null,null,null,null,null,"Drop down selector box for CA & Reset RINs.","For CA & Reset RINs only",null,null,null,null,null,null,null,"for DNSP only",null,null,null,null,null,null,null,null,null,null,null,"Reason for interruption","dms_Reason_Interruption_Detailed","dms_Reason_Interruption"]
[null,"dms_Model_List ","DELETE NR 'CRY' IF NOT AN ANNUAL RIN (EB, CA , ARR)",null,"dms_RYE_Formula_Result",null,null,null,null,null,null,null,null,"dms_0203_ProjectType","dms_020303_01_UOM","dms_020501_01_UOM","dms_020501_02_UOM","dms_020501_03_UOM","dms_020501_04_UOM","dms_020603_01_UOM","dms_040102_01_UOM","dms_040102_04_UOM","dms_030601_01_UOM","dms_030601_02_UOM","dms_030701_01_UOM","dms_030702_01_UOM","dms_030703_01_UOM",null,null,null,null,null,null,null,"Animal","Animal impact","Animal"]
[null,"ARR","ANNUAL REPORTING STATEMENT",null,{"$f":"LEFT(dms_SingleYear_FinalYear_Result,2)&RIGHT(dms_SingleYear_FinalYear_Result,2)","v":"2017"},"=LEFT(dms_SingleYear_FinalYear_Result,2)&RIGHT(dms_SingleYear_FinalYear_Result,2)",null,"Formula errors are OK",null,null,null,null,null,"New line on new route - single circuit","Circuit line length in km","0's","0's","0's","0's","0's","0's","days","minutes/customer","minutes/customer","Customer / km","%","km",null,null,null,null,null,null,null,null,"Animal nesting/burrowing, etc and other","Asset failure"]
[null,"CA","CATEGORY ANALYSIS",null,{"$f":"LEFT(dms_SingleYear_FinalYear_Result,2)&RIGHT(dms_SingleYear_FinalYear_Result,2)","v":"2017"},"=LEFT(dms_SingleYear_FinalYear_Result,2)&RIGHT(dms_SingleYear_FinalYear_Result,2)",null,"Formula errors are OK",null,null,null,null,null,"New line on new route - dual circuit","Circuit line length in km","0's","0's","0's","0's","0's","0's","0's","minutes/customer","minutes/customer","MWh/customer","Number of spans",null,null,null,null,null,null,null,null,null,"Other","Other"]
[null,"CPI","CPI",null,null,null,null,null,null,null,null,null,null,"New line on new route - other","Circuit line length in km","MVA added","MVA added","MVA added","MVA added","0's","0's","$0s","interruptions/customer","interruptions/customer","kVA / customer","Number of spans",null,null,null,null,null,null,null,null,"Asset failure","LV","Overloads"]
[null,"EB","ECONOMIC BENCHMARKING",null,{"$f":"LEFT(dms_SingleYear_FinalYear_Result,2)&RIGHT(dms_SingleYear_FinalYear_Result,2)","v":"2017"},"=LEFT(dms_SingleYear_FinalYear_Result,2)&RIGHT(dms_SingleYear_FinalYear_Result,2)",null,"Formula errors are OK",null,null,null,null,null,"Line rebuild over existing route - single circuit","Circuit line length in km","0's","0's","0's","0's","0's","$0s","0's","interruptions/customer","interruptions/customer",null,"Number of spans",null,null,null,null,null,null,null,null,null,"Distribution substation","Planned"]
[null,"PTRM","POST TAX REVENUE MODEL",null,{"$f":"LEFT(dms_MultiYear_FinalYear_Result,2)&RIGHT(dms_MultiYear_FinalYear_Result,2)","v":"2020"},"=LEFT(dms_MultiYear_FinalYear_Result,2)&RIGHT(dms_MultiYear_FinalYear_Result,2)",null,null,null,null,null,null,null,"Line rebuild over existing route - dual circuit","Number","total spend $0s","total spend $0s","total spend $0s","total spend $0s","(per cent)",null,null,null,null,null,"Number of spans",null,null,null,null,null,null,null,null,null,"HV","Network business"]
[null,"Reset","REGULATORY REPORTING STATEMENT",null,{"$f":"LEFT(dms_MultiYear_FinalYear_Result,2)&RIGHT(dms_MultiYear_FinalYear_Result,2)","v":"2020"},"=LEFT(dms_MultiYear_FinalYear_Result,2)&RIGHT(dms_MultiYear_FinalYear_Result,2)",null,"Formula errors are OK",null,null,null,null,null,"Reconductor - Single circuit","Number","net circuit km added","net circuit km added","net circuit km added","net circuit km added",null,null,null,null,null,null,"Years",null,null,null,null,null,null,null,null,null,"Zone substation","Third party"]
[null,"RFM","ROLL FORWARD MODEL",null,{"$f":"LEFT(dms_CRCP_FinalYear_Result,2)&RIGHT(dms_CRCP_FinalYear_Result,2)","v":"2017"},"=LEFT(dms_CRCP_FinalYear_Result,2)&RIGHT(dms_CRCP_FinalYear_Result,2)",null,null,null,null,null,null,null,"Reconductor - Dual circuit","Number","total spend $0s","total spend $0s","total spend $0s","total spend $0s",null,null,null,null,null,null,"Years",null,null,null,null,null,null,null,null,null,"Subtransmission","Unknown"]
[null,"WACC","WEIGHTED AVERAGE COST OF CAPITAL",null,{"$f":"LEFT(dms_MultiYear_FinalYear_Result,2)&RIGHT(dms_MultiYear_FinalYear_Result,2)","v":"2020"},"=LEFT(dms_MultiYear_FinalYear_Result,2)&RIGHT(dms_MultiYear_FinalYear_Result,2)",null,null,null,null,null,null,null,"Other",null,"net circuit km added","net circuit km added","net circuit km added","net circuit km added",null,null,null,null,null,null,"Trees",null,null,null,null,null,null,null,null,"Other","insert description of 'other'","Vegetation"]
[null,null,null,null,null,null,null,null,null,null,null,null,null,null,null,"total spend $0s","total spend $0s","total spend $0s","total spend $0s",null,null,null,null,null,null,"Trees",null,null,null,null,null,null,null,null,"Overloads","-","Weather"]
[null,"dms_DataQuality_List",null,null,null,null,null,null,null,null,null,null,null,null,null,"0's",null,"$0s",null,null,null,null,null,null,null,"Defects",null,null,null,null,null,null,null,null,"Planned","-","2 - STPIS Exclusion (3.3)(a)"]
[null,"Actual",null,null,null,null,null,null,null,null,null,null,null,null,null,"0's",null,null,null,null,null,null,null,null,null,"Defects",null,null,null,null,null,null,null,null,"Network business","Network error","3 - STPIS Exclusion (3.3)(a)"]
[null,"Estimate",null,null,null,null,null,null,null,null,null,null,null,null,null,"0's",null,null,null,null,null,null,null,null,null,"Spans",null,null,null,null,null,null,null,null,null,"Switching and protection error","4 - STPIS Exclusion (3.3)(a)"]
[null,"Consolidated",null,null,null,null,null,null,null,null,null,null,null,null,null,"$0s",null,null,null,null,null,null,null,null,null,"km",null,null,null,null,null,null,null,null,"Third party","Fire","5 - STPIS Exclusion (3.3)(a)"]
[null,"Recast",null,null,null,null,null,null,null,null,null,null,null,null,null,null,null,null,null,null,null,null,null,null,null,"Spans",null,null,null,"",null,null,null,null,null,"Other","6 - STPIS Exclusion (3.3)(a)"]
[null,"Public",null,null,null,null,null,null,null,null,null,null,null,null,null,null,null,null,null,null,null,null,null,null,null,null,null,null,null,null,null,null,null,null,null,"Dig-in","7 - STPIS Exclusion (3.3)(a)"]
[null,null,null,null,null,null,null,null,null,null,null,null,null,null,null,null,null,null,null,null,null,null,null,null,null,null,null,null,null,null,null,null,null,null,null,"Unauthorised access"]
[null,"For all files either AER or business needs to be able to specify the type of submission","For PTRM & RFM templates we must provide a choice in case they change their form of control - otherwise it is drawn from the business specific lookup table above.",null,null,null,null,null,null,null,null,null,null,null,"For PTRM files - this field set the text for the named range \"DMS_Xfactor\" which in all cases is simply the text \"x factors\" - this saves putting in each old gas PTRM file ",null,null,null,null,null,null,null,"for TNSP only",null,null,null,null,null,null,null,null,null,null,null,null,"Vehicle impact"]
[null,"dms_SourceList","dms_FormControl_Choices",null,null,null,null,null,null,null,null,null,null,null,"DMS_Xfactor",null,null,null,null,null,null,null,"dms_030601_01_UOM",null,"dms_030701_01_UOM","dms_030702_01_UOM",null,null,null,null,null,null,null,null,"Unknown","Unknown"]
[null,"After appeal","Revenue cap",null,null,null,null,null,null,null,null,null,null,null,"x factors",null,null,null,null,null,null,null,"%",null,"Number of spans","km",null,null,null,null,null,null,null,null,"Vegetation","Blow-in/Fall-in - NSP responsibility"]
[null,"Draft decision","Revenue yield",null,null,null,null,null,null,null,null,null,null,null,null,null,null,null,null,null,null,null,"number",null,"Years","%",null,null,null,null,null,null,null,null,null,"Grow-in - NSP responsibility"]
[null,"Final decision","Weighted average price cap",null,null,null,null,null,null,null,null,null,null,null,null,null,null,null,null,null,null,null,"number",null,"Trees","km",null,null,null,null,null,null,null,null,null,"Blow-in/Fall-in - Other responsible party"]
[null,"PTRM update 1",null,null,null,null,null,null,null,null,null,null,null,null,null,null,null,null,null,null,null,null,"%",null,"Defects","number",null,null,null,null,null,null,null,null,null,"Grow-in - Other responsible party"]
[null,"PTRM update 2",null,null,null,null,null,null,null,null,null,null,null,null,null,null,null,null,null,null,null,null,"number",null,"Number of spans",null,null,null,null,null,null,null,null,null,"Weather"]
[null,"PTRM update 3",null,null,null,null,null,null,null,null,null,null,null,null,null,null,null,null,null,null,null,null,"number",null,"km",null,null,null,null,null,null,null,null,null,"2 - STPIS Exclusion (3.3)(a)"]
[null,"PTRM update 4",null,null,null,null,null,null,null,null,null,null,null,null,null,null,null,null,null,null,null,null,"%",null,"km",null,null,null,null,null,null,null,null,null,"3 - STPIS Exclusion (3.3)(a)"]
[null,"PTRM update 5",null,null,null,null,null,null,null,null,null,null,null,null,null,null,null,null,null,null,null,null,"number",null,"Number of spans",null,null,null,null,null,null,null,null,null,"4 - STPIS Exclusion (3.3)(a)"]
[null,"PTRM update 6",null,null,null,null,null,null,null,null,null,null,null,null,null,null,null,null,null,null,null,null,"number",null,null,null,null,null,null,null,null,null,null,null,"5 - STPIS Exclusion (3.3)(a)"]
[null,"PTRM update 7",null,null,null,null,null,null,null,null,null,null,null,null,null,null,null,null,null,null,null,null,"%",null,null,null,null,null,null,null,null,null,null,null,"6 - STPIS Exclusion (3.3)(a)"]
[null,"Regulatory proposal",null,null,null,null,null,null,null,null,null,null,null,null,null,null,null,null,null,null,null,null,"number",null,null,null,null,null,null,null,null,null,null,null,"7 - STPIS Exclusion (3.3)(a)"]
[null,"Reporting",null,null,null,null,null,null,null,null,null,null,null,null,null,null,null,null,null,null,null,null,"%"]
[null,"Revised regulatory proposal",null,null,null,null,null,null,null,null,null,null,null,null,null,null,null,null,null,null,null,null,"number"]
[null,null,null,null,null,null,null,null,null,null,null,null,null,null,null,null,null,null,null,null,null,null,"%"]
[null,null,null,null,null,null,null,null,null,null,null,null,null,null,null,null,null,null,null,null,null,null,"number"]
[]
[]
[]
[null,"These are indeces and lookup values for various dates. All step from the value placed in FRCP_y1 on the business and other details worksheet",null,null,null,null,null,null,null,null,null,"These date tables are currently used in the Recast templates to provide column headings and conditional formatting"]
[null,"dms_FRCPlength_Num_List","dms_FinalYear_List","dms_CRCPlength_Num_List","dms_CFinalYear_List","dms_FRCP_years",null,"dms_CRCP_years",null,"dms_CRCP_index",null,"CRY from input cell on business sheet","CRY - financial","dms_FinYears","CRY calendar","dms_CalYears"]
[null,1,"dms_FRCP_y1",1,"CRCP_y1",{"$f":"FRCP_y1","v":"2015-16"},"dms_FRCP_y1",{"$f":"IF(dms_RPT=\"financial\",VALUE(LEFT(dms_FRCP_y1,4)-1)&\"-\"&TEXT(VALUE(MID(dms_FRCP_y1,3,2)),\"00\"),VALUE(LEFT(dms_FRCP_y1,4)-1))","v":"2014-15"},"dms_CRCP_yZ",1,null,{"$f":"CRY","v":"2016-17"},{"$f":"VALUE(LEFT(CRY,4))&\"-\"&TEXT(MID(CRY,3,2)+1,\"00\")","v":"2016-17"},"dms_CRYf_y1",{"$f":"VALUE(LEFT(CRY,4)+1)","v":2017},"dms_CRYc_y1"]
[null,2,"dms_FRCP_y2",2,"CRCP_y2",{"$f":"IF(dms_RPT=\"financial\",VALUE(LEFT(dms_FRCP_y1,4)+1)&\"-\"&TEXT(VALUE(RIGHT(dms_FRCP_y1,2)+1),\"00\"),VALUE(LEFT(dms_FRCP_y1,4)+1))","v":"2016-17"},"dms_FRCP_y2",{"$f":"IF(dms_RPT=\"financial\",VALUE(LEFT(dms_CRCP_yZ,4)-1)&\"-\"&TEXT(VALUE(MID(dms_CRCP_yZ,3,2)),\"00\"),VALUE(LEFT(dms_CRCP_yZ,4)-1))","v":"2013-14"},"dms_CRCP_yY",2,null,null,{"$f":"VALUE(LEFT(dms_CRYf_y1,4)+1)&\"-\"&TEXT(MID(dms_CRYf_y1,3,2)+2,\"00\")","v":"2017-18"},"dms_CRYf_y2",{"$f":"VALUE(LEFT(dms_CRYc_y1,4)+1)","v":2018},"dms_CRYc_y2"]
[null,3,"dms_FRCP_y3",3,"CRCP_y3",{"$f":"IF(dms_RPT=\"financial\",VALUE(LEFT(dms_FRCP_y2,4)+1)&\"-\"&TEXT(VALUE(RIGHT(dms_FRCP_y2,2)+1),\"00\"),VALUE(LEFT(dms_FRCP_y2,4)+1))","v":"2017-18"},"dms_FRCP_y3",{"$f":"IF(dms_RPT=\"financial\",VALUE(LEFT(dms_CRCP_yY,4)-1)&\"-\"&TEXT(VALUE(MID(dms_CRCP_yY,3,2)),\"00\"),VALUE(LEFT(dms_CRCP_yY,4)-1))","v":"2012-13"},"dms_CRCP_yX",3,null,null,{"$f":"VALUE(LEFT(dms_CRYf_y2,4)+1)&\"-\"&TEXT(MID(dms_CRYf_y2,3,2)+2,\"00\")","v":"2018-19"},"dms_CRYf_y3",{"$f":"VALUE(LEFT(dms_CRYc_y2,4)+1)","v":2019},"dms_CRYc_y3"]
[null,4,"dms_FRCP_y4",4,"CRCP_y4",{"$f":"IF(dms_RPT=\"financial\",VALUE(LEFT(dms_FRCP_y3,4)+1)&\"-\"&TEXT(VALUE(RIGHT(dms_FRCP_y3,2)+1),\"00\"),VALUE(LEFT(dms_FRCP_y3,4)+1))","v":"2018-19"},"dms_FRCP_y4",{"$f":"IF(dms_RPT=\"financial\",VALUE(LEFT(dms_CRCP_yX,4)-1)&\"-\"&TEXT(VALUE(MID(dms_CRCP_yX,3,2)),\"00\"),VALUE(LEFT(dms_CRCP_yX,4)-1))","v":"2011-12"},"dms_CRCP_yW",4,null,null,{"$f":"VALUE(LEFT(dms_CRYf_y3,4)+1)&\"-\"&TEXT(MID(dms_CRYf_y3,3,2)+2,\"00\")","v":"2019-20"},"dms_CRYf_y4",{"$f":"VALUE(LEFT(dms_CRYc_y3,4)+1)","v":2020},"dms_CRYc_y4"]
[null,5,"dms_FRCP_y5",5,"CRCP_y5",{"$f":"IF(dms_RPT=\"financial\",VALUE(LEFT(dms_FRCP_y4,4)+1)&\"-\"&TEXT(VALUE(RIGHT(dms_FRCP_y4,2)+1),\"00\"),VALUE(LEFT(dms_FRCP_y4,4)+1))","v":"2019-20"},"dms_FRCP_y5",{"$f":"IF(dms_RPT=\"financial\",VALUE(LEFT(dms_CRCP_yW,4)-1)&\"-\"&TEXT(VALUE(MID(dms_CRCP_yW,3,2)),\"00\"),VALUE(LEFT(dms_CRCP_yW,4)-1))","v":"2010-11"},"dms_CRCP_yV",5,null,null,{"$f":"VALUE(LEFT(dms_CRYf_y4,4)+1)&\"-\"&TEXT(MID(dms_CRYf_y4,3,2)+2,\"00\")","v":"2020-21"},"dms_CRYf_y5",{"$f":"VALUE(LEFT(dms_CRYc_y4,4)+1)","v":2021},"dms_CRYc_y5"]
[null,6,"dms_FRCP_y6",6,"CRCP_y6",{"$f":"IF(dms_RPT=\"financial\",VALUE(LEFT(dms_FRCP_y5,4)+1)&\"-\"&TEXT(VALUE(RIGHT(dms_FRCP_y5,2)+1),\"00\"),VALUE(LEFT(dms_FRCP_y5,4)+1))","v":"2020-21"},"dms_FRCP_y6",{"$f":"IF(dms_RPT=\"financial\",VALUE(LEFT(dms_CRCP_yV,4)-1)&\"-\"&TEXT(VALUE(MID(dms_CRCP_yV,3,2)),\"00\"),VALUE(LEFT(dms_CRCP_yV,4)-1))","v":"2009-10"},"dms_CRCP_yU",6,null,null,{"$f":"VALUE(LEFT(dms_CRYf_y5,4)+1)&\"-\"&TEXT(MID(dms_CRYf_y5,3,2)+2,\"00\")","v":"2021-22"},"dms_CRYf_y6",{"$f":"VALUE(LEFT(dms_CRYc_y5,4)+1)","v":2022},"dms_CRYc_y6"]
[null,7,"dms_FRCP_y7",7,"CRCP_y7",{"$f":"IF(dms_RPT=\"financial\",VALUE(LEFT(dms_FRCP_y6,4)+1)&\"-\"&TEXT(VALUE(RIGHT(dms_FRCP_y6,2)+1),\"00\"),VALUE(LEFT(dms_FRCP_y6,4)+1))","v":"2021-22"},"dms_FRCP_y7",{"$f":"IF(dms_RPT=\"financial\",VALUE(LEFT(dms_CRCP_yU,4)-1)&\"-\"&TEXT(VALUE(MID(dms_CRCP_yU,3,2)),\"00\"),VALUE(LEFT(dms_CRCP_yU,4)-1))","v":"2008-09"},"dms_CRCP_yT",7,null,null,{"$f":"VALUE(LEFT(dms_CRYf_y6,4)+1)&\"-\"&TEXT(MID(dms_CRYf_y6,3,2)+2,\"00\")","v":"2022-23"},"dms_CRYf_y7",{"$f":"VALUE(LEFT(dms_CRYc_y6,4)+1)","v":2023},"dms_CRYc_y7"]
[null,8,"dms_FRCP_y8",8,"CRCP_y8",{"$f":"IF(dms_RPT=\"financial\",VALUE(LEFT(dms_FRCP_y7,4)+1)&\"-\"&TEXT(VALUE(RIGHT(dms_FRCP_y7,2)+1),\"00\"),VALUE(LEFT(dms_FRCP_y7,4)+1))","v":"2022-23"},"dms_FRCP_y8",{"$f":"IF(dms_RPT=\"financial\",VALUE(LEFT(dms_CRCP_yT,4)-1)&\"-\"&TEXT(VALUE(MID(dms_CRCP_yT,3,2)),\"00\"),VALUE(LEFT(dms_CRCP_yT,4)-1))","v":"2007-08"},"dms_CRCP_yS",8,null,null,{"$f":"VALUE(LEFT(dms_CRYf_y7,4)+1)&\"-\"&TEXT(MID(dms_CRYf_y7,3,2)+2,\"00\")","v":"2023-24"},"dms_CRYf_y8",{"$f":"VALUE(LEFT(dms_CRYc_y7,4)+1)","v":2024},"dms_CRYc_y8"]
[null,9,"dms_FRCP_y9",9,"CRCP_y9",{"$f":"IF(dms_RPT=\"financial\",VALUE(LEFT(dms_FRCP_y8,4)+1)&\"-\"&TEXT(VALUE(RIGHT(dms_FRCP_y8,2)+1),\"00\"),VALUE(LEFT(dms_FRCP_y8,4)+1))","v":"2023-24"},"dms_FRCP_y9",{"$f":"IF(dms_RPT=\"financial\",VALUE(LEFT(dms_CRCP_yS,4)-1)&\"-\"&TEXT(VALUE(MID(dms_CRCP_yS,3,2)),\"00\"),VALUE(LEFT(dms_CRCP_yS,4)-1))","v":"2006-07"},"dms_CRCP_yR",9,null,null,{"$f":"VALUE(LEFT(dms_CRYf_y8,4)+1)&\"-\"&TEXT(MID(dms_CRYf_y8,3,2)+2,\"00\")","v":"2024-25"},"dms_CRYf_y9",{"$f":"VALUE(LEFT(dms_CRYc_y8,4)+1)","v":2025},"dms_CRYc_y9"]
[null,10,"dms_FRCP_y10",10,"CRCP_y10",{"$f":"IF(dms_RPT=\"financial\",VALUE(LEFT(dms_FRCP_y9,4)+1)&\"-\"&TEXT(VALUE(RIGHT(dms_FRCP_y9,2)+1),\"00\"),VALUE(LEFT(dms_FRCP_y9,4)+1))","v":"2024-25"},"dms_FRCP_y10",{"$f":"IF(dms_RPT=\"financial\",VALUE(LEFT(dms_CRCP_yR,4)-1)&\"-\"&TEXT(VALUE(MID(dms_CRCP_yR,3,2)),\"00\"),VALUE(LEFT(dms_CRCP_yR,4)-1))","v":"2005-06"},"dms_CRCP_yQ",10,null,null,{"$f":"VALUE(LEFT(dms_CRYf_y9,4)+1)&\"-\"&TEXT(MID(dms_CRYf_y9,3,2)+2,\"00\")","v":"2025-26"},"dms_CRYf_y10",{"$f":"VALUE(LEFT(dms_CRYc_y9,4)+1)","v":2026},"dms_CRYc_y10"]
[null,11,"dms_FRCP_y11",11,"CRCP_y11",{"$f":"IF(dms_RPT=\"financial\",VALUE(LEFT(dms_FRCP_y10,4)+1)&\"-\"&TEXT(VALUE(RIGHT(dms_FRCP_y10,2)+1),\"00\"),VALUE(LEFT(dms_FRCP_y10,4)+1))","v":"2025-26"},"dms_FRCP_y11",{"$f":"IF(dms_RPT=\"financial\",VALUE(LEFT(dms_CRCP_yQ,4)-1)&\"-\"&TEXT(VALUE(MID(dms_CRCP_yQ,3,2)),\"00\"),VALUE(LEFT(dms_CRCP_yQ,4)-1))","v":"2004-05"},"dms_CRCP_yP",11,null,null,{"$f":"VALUE(LEFT(dms_CRYf_y10,4)+1)&\"-\"&TEXT(MID(dms_CRYf_y10,3,2)+2,\"00\")","v":"2026-27"},"dms_CRYf_y11",{"$f":"VALUE(LEFT(dms_CRYc_y10,4)+1)","v":2027},"dms_CRYc_y11"]
[null,12,"dms_FRCP_y12",12,"CRCP_y12",{"$f":"IF(dms_RPT=\"financial\",VALUE(LEFT(dms_FRCP_y11,4)+1)&\"-\"&TEXT(VALUE(RIGHT(dms_FRCP_y11,2)+1),\"00\"),VALUE(LEFT(dms_FRCP_y11,4)+1))","v":"2026-27"},"dms_FRCP_y12",{"$f":"IF(dms_RPT=\"financial\",VALUE(LEFT(dms_CRCP_yP,4)-1)&\"-\"&TEXT(VALUE(MID(dms_CRCP_yP,3,2)),\"00\"),VALUE(LEFT(dms_CRCP_yP,4)-1))","v":"2003-04"},"dms_CRCP_yO",12,null,null,{"$f":"VALUE(LEFT(dms_CRYf_y11,4)+1)&\"-\"&TEXT(MID(dms_CRYf_y11,3,2)+2,\"00\")","v":"2027-28"},"dms_CRYf_y12",{"$f":"VALUE(LEFT(dms_CRYc_y11,4)+1)","v":2028},"dms_CRYc_y12"]
[null,13,"dms_FRCP_y13",13,"CRCP_y13",{"$f":"IF(dms_RPT=\"financial\",VALUE(LEFT(dms_FRCP_y12,4)+1)&\"-\"&TEXT(VALUE(RIGHT(dms_FRCP_y12,2)+1),\"00\"),VALUE(LEFT(dms_FRCP_y12,4)+1))","v":"2027-28"},"dms_FRCP_y13",{"$f":"IF(dms_RPT=\"financial\",VALUE(LEFT(dms_CRCP_yO,4)-1)&\"-\"&TEXT(VALUE(MID(dms_CRCP_yO,3,2)),\"00\"),VALUE(LEFT(dms_CRCP_yO,4)-1))","v":"2002-03"},"dms_CRCP_yN",13,null,null,{"$f":"VALUE(LEFT(dms_CRYf_y12,4)+1)&\"-\"&TEXT(MID(dms_CRYf_y12,3,2)+2,\"00\")","v":"2028-29"},"dms_CRYf_y13",{"$f":"VALUE(LEFT(dms_CRYc_y12,4)+1)","v":2029},"dms_CRYc_y13"]
[null,14,"dms_FRCP_y14",14,"CRCP_y14",{"$f":"IF(dms_RPT=\"financial\",VALUE(LEFT(dms_FRCP_y13,4)+1)&\"-\"&TEXT(VALUE(RIGHT(dms_FRCP_y13,2)+1),\"00\"),VALUE(LEFT(dms_FRCP_y13,4)+1))","v":"2028-29"},"dms_FRCP_y14",{"$f":"IF(dms_RPT=\"financial\",VALUE(LEFT(dms_CRCP_yN,4)-1)&\"-\"&TEXT(VALUE(MID(dms_CRCP_yN,3,2)),\"00\"),VALUE(LEFT(dms_CRCP_yN,4)-1))","v":"2001-02"},"dms_CRCP_yM",14,null,null,{"$f":"VALUE(LEFT(dms_CRYf_y13,4)+1)&\"-\"&TEXT(MID(dms_CRYf_y13,3,2)+2,\"00\")","v":"2029-30"},"dms_CRYf_y14",{"$f":"VALUE(LEFT(dms_CRYc_y13,4)+1)","v":2030},"dms_CRYc_y14"]
[null,15,"dms_FRCP_y15",15,"CRCP_y15",{"$f":"IF(dms_RPT=\"financial\",VALUE(LEFT(dms_FRCP_y14,4)+1)&\"-\"&TEXT(VALUE(RIGHT(dms_FRCP_y14,2)+1),\"00\"),VALUE(LEFT(dms_FRCP_y14,4)+1))","v":"2029-30"},"dms_FRCP_y15",{"$f":"IF(dms_RPT=\"financial\",VALUE(LEFT(dms_CRCP_yM,4)-1)&\"-\"&TEXT(VALUE(MID(dms_CRCP_yM,3,2)),\"00\"),VALUE(LEFT(dms_CRCP_yM,4)-1))","v":"2000-01"},"dms_CRCP_yL",15,null,null,{"$f":"VALUE(LEFT(dms_CRYf_y14,4)+1)&\"-\"&TEXT(MID(dms_CRYf_y14,3,2)+2,\"00\")","v":"2030-31"},"dms_CRYf_y15",{"$f":"VALUE(LEFT(dms_CRYc_y14,4)+1)","v":2031},"dms_CRYc_y15"]
[null,null,null,null,null,null,null,null,null,null,null,null,{"$f":"VALUE(LEFT(dms_CRYf_y15,4)+1)&\"-\"&TEXT(MID(dms_CRYf_y15,3,2)+2,\"00\")","v":"2031-32"},"dms_CRYf_y16",{"$f":"VALUE(LEFT(dms_CRYc_y15,4)+1)","v":2032},"dms_CRYc_y16"]
[null,"These are drop down lists for businesses to select the correct FRCP_y1 on the business and other details worksheet.\nThis also populates the column headings in the worksheets",null,null,null,null,null,null,null,null,null,null,{"$f":"VALUE(LEFT(dms_CRYf_y16,4)+1)&\"-\"&TEXT(MID(dms_CRYf_y16,3,2)+2,\"00\")","v":"2032-33"},"dms_CRYf_y17",{"$f":"VALUE(LEFT(dms_CRYc_y16,4)+1)","v":2033},"dms_CRYc_y17"]
[null,"dms_RCP_fyear_list","dms_CRY_ListF","dms_CRY_ListC","dms_RCP_cyear_list","dms_FRCP_fyear_list","dms_FRCP_ListF","dms_FRCP_ListC","dms_FRCP_cyear_list",null,null,null,{"$f":"VALUE(LEFT(dms_CRYf_y17,4)+1)&\"-\"&TEXT(MID(dms_CRYf_y17,3,2)+2,\"00\")","v":"2033-34"},"dms_CRYf_y18",{"$f":"VALUE(LEFT(dms_CRYc_y17,4)+1)","v":2034},"dms_CRYc_y18"]
[null,"dms_fy1","2006-07",2007,"dms_cy1","dms_frcp_fy1","2016-17","2017","dms_crcp_cy1",null,null,null,{"$f":"VALUE(LEFT(dms_CRYf_y18,4)+1)&\"-\"&TEXT(MID(dms_CRYf_y18,3,2)+2,\"00\")","v":"2034-35"},"dms_CRYf_y19",{"$f":"VALUE(LEFT(dms_CRYc_y18,4)+1)","v":2035},"dms_CRYc_y19"]
[null,"dms_fy2","2007-08","2008","dms_cy2","dms_frcp_fy2","2017-18","2018","dms_crcp_cy2",null,null,null,{"$f":"VALUE(LEFT(dms_CRYf_y19,4)+1)&\"-\"&TEXT(MID(dms_CRYf_y19,3,2)+2,\"00\")","v":"2035-36"},"dms_CRYf_y20",{"$f":"VALUE(LEFT(dms_CRYc_y19,4)+1)","v":2036},"dms_CRYc_y20"]
[null,"dms_fy3","2008-09","2009","dms_cy3","dms_frcp_fy3","2018-19","2019","dms_crcp_cy3"]
[null,"dms_fy4","2009-10","2010","dms_cy4","dms_frcp_fy4","2019-20","2020","dms_crcp_cy4"]
[null,"dms_fy5","2010-11","2011","dms_cy5","dms_frcp_fy5","2020-21","2021","dms_crcp_cy5"]
[null,"dms_fy6","2011-12","2012","dms_cy6","dms_frcp_fy6","2021-22","2022","dms_crcp_cy6"]
[null,"dms_fy7","2012-13","2013","dms_cy7","dms_frcp_fy7","2022-23","2023","dms_crcp_cy7"]
[null,"dms_fy8","2013-14","2014","dms_cy8","dms_frcp_fy8","2023-24","2024","dms_crcp_cy8"]
[null,"dms_fy9","2014-15","2015","dms_cy9","dms_frcp_fy9","2024-25","2025","dms_crcp_cy9"]
[null,"dms_fy10","2015-16","2016","dms_cy10","dms_frcp_fy10","2025-26","2026","dms_crcp_cy10"]
[null,"dms_fy11","2016-17","2017","dms_cy11","dms_frcp_fy11","2026-27","2027","dms_crcp_cy11"]
[null,"dms_fy12","2017-18","2018","dms_cy12","dms_frcp_fy12","2027-28","2028","dms_crcp_cy12"]
[null,"dms_fy13","2018-19",2019,"dms_cy13","dms_frcp_fy13","2028-29","2029","dms_crcp_cy13"]
[null,"dms_fy14","2019-20","2020","dms_cy14","dms_frcp_fy14","2029-30","2030","dms_crcp_cy14"]
[null,"dms_fy15","2019-20","2020","dms_cy15","dms_frcp_fy15","2030-31","2031","dms_crcp_cy15"]
[null,"dms_fy16","2020-21","2021","dms_cy16"]
[null,"dms_fy17","2021-22","2022","dms_cy17"]
[null,"dms_fy18","2022-23","2023","dms_cy18"]
[null,"dms_fy19","2023-24","2024","dms_cy19"]
[null,"dms_fy20","2024-25","2025","dms_cy20"]

{"sheet":"Instructions","index":1,"n_rows":27,"n_cols":4,"rows_kept":27,"cut":false,"hidden":false,"merged":[[25,2,25,3],[26,2,26,4],[8,2,8,4],[10,2,10,4],[12,2,12,4],[20,2,20,4],[22,2,22,4],[24,2,24,4],[7,2,7,3],[1,1,1,5],[2,1,2,5],[3,2,3,4],[4,2,4,4],[5,2,5,4]]}
[]
[null,"Transmission Network Service Provider"]
[null,"Historical Reporting RIN Template"]
[null,null,"This template is to be used by Powerlink to fulfil its reporting obligations to the AER."]
[null,null,"INSTRUCTIONS"]
[null,null,"Complete the Business & other details worksheet before entering data or values in any other worksheets. The Business & other details worksheet is linked to other worksheets within the workbook and automatically generates certain column headings and conditional formatting."]
[]
[null,null,"Identifying CONFIDENTIAL INFORMATION:\n\nPlease use the macro at the top of each \nworksheet to identify confidential information. \n\n"]
[null,null,"-Do this by selecting the cell or cells that contain confidential information and then run the Mark selection CONFIDENTIAL macro. This will format the cells a specific colour that is identified by the AER's database which in turn marks that information as confidential.\n\n-To reverse this, select the cell or cells and run the Return selection to NON-CONFIDENTIAL macro."]
[]
[null,null,"UNITS OF MEASURE\n\nAll amounts are to be unrounded and reported on a one for one basis: that is 1000 is to be entered as '1000'. Applicable units of measure may be identified in the table column headings or row descriptors.\n\n\n"]
[]
[null,null,"COLOUR CODING OF INPUT / NON-INPUT CELLS:"]
[null,null,null,"Yellow = Input cell (mandatory)"]
[null,null,null,"Darker yellow = input cell (mandatory)"]
[null,null,null,"Orange = input cell (if data available)"]
[null,null,null,"Grey = Not applicable/No inputs required"]
[null,null,null,". \nPLEASE DO NOT ENTER TEXT into cells that are to contain numeric data."]
[]
[]
[null,null,"WORKSHEET NAVIGATION\n\nMany tables in the worksheets have been \"grouped\" to allow for easy navigation. To ungroup or group data use the outline symbols in the left margin of excel (for Row groupings) or above the columns (for column groupings). \n\n\n\n"]
[]
[null,null,"RETURNING COMPLETED RESPONSES\n\nPlease return four (4) files to the AER: \n1. A confidential version which must contain a complete set of all responses with confidential information marked using the Mark selected cells CONFIDENTIAL macro and which has been completed using the locked template file provided by the AER. \n\n2. An actual and an estimate version with confidential information marked using the Mark selection CONFIDENTIAL macro and which has been completed using the locked template file provided by the AER.\n\n3. A public version with confidential information either removed completely or aggregated in some form together with writtten consent to disclose the public version of the response.\n\n\nUse the drop down box on the Business and other details worksheet to identify the file as either confidential ('consolidated') or public. "]
[]
[null,null,"SUBMITTING AMENDED DATA TO THE AER\n\nIf an NSP wishes to correct data previously submitted to the AER it should resubmit that data using the original completed submission as the starting point. Please make any necessary changes to the data. Data that is not being amended should be left unchanged. \n\nNSPs must identify the reason for the amendments in the Amendment Reason box on the  Business and other details worksheet. NSPs may provide further details regarding any amendments in the Amendments worksheet. \n\n."]
[null,null,"NSP may use Amended Data macro \nto highlight cells that contain amended data.\nNB: if data is also CONFIDENTIAL, re-apply \nthe Confidentiality macro after applying the \nAmended macro"]
[null,null,"Please resubmit two (2) files - a confidential version and a public version of the amended submission to the AER"]

{"sheet":"Contents","index":2,"n_rows":26,"n_cols":12,"rows_kept":26,"cut":false,"hidden":false,"merged":[]}
[null,"REGULATORY REPORTING STATEMENT"]
[null,{"$f":"INDEX(dms_TradingNameFull_List,MATCH(dms_TradingName,dms_TradingName_List))","v":"ElectraNet"}]
[null,{"$f":"CONCATENATE((LOOKUP(dms_Model,dms_Model_List,dms_Worksheet_List))&\" \"&CRY)","v":"CATEGORY ANALYSIS 2016-17"}]
[null,"CONTENTS"]
[]
[]
[null,null,null,null,"1. Business details",null,null,null,null,null,null,"2. Expenditure"]
[]
[]
[]
[]
[]
[]
[]
[]
[]
[]
[]
[]
[]
[]
[]
[]
[]
[]
[null,null,null,null,"4. Network information",null,null,null,null,null,null,"5. Network information"]

{"sheet":"Business & other details","index":3,"n_rows":88,"n_cols":27,"rows_kept":88,"cut":false,"hidden":false,"merged":[[54,0,87,0],[82,4,82,8],[24,2,24,3],[24,4,24,7],[32,1,32,8],[49,2,49,3],[51,2,51,8],[23,4,23,7],[7,1,7,8],[11,1,11,8],[13,2,13,4],[14,2,14,4],[17,2,17,3],[17,4,17,7],[18,4,18,7],[19,2,19,3],[19,4,19,7],[22,2,22,3],[22,4,22,7]]}
[null,"REGULATORY REPORTING STATEMENT"]
[null,{"$f":"INDEX(dms_TradingNameFull_List,MATCH(dms_TradingName,dms_TradingName_List))","v":"ElectraNet"}]
[null,{"$f":"CONCATENATE((LOOKUP(dms_Model,dms_Model_List,dms_Worksheet_List))&\" \"&CRY)","v":"CATEGORY ANALYSIS 2016-17"}]
[null,"BUSINESS & OTHER DETAILS"]
[]
[]
[null,"Instructions"]
[null,"Complete the following business details regulatory template before entering data or values in any other regulatory template. This regulatory template is linked to other cells within the spreadsheet and automatically generates column headings."]
[]
[null,"SUBMISSION PARTICULARS INPUT SHEETS"]
[]
[null,"ENTITY DETAILS"]
[]
[null,"Short name","ElectraNet"]
[null,"ACN / ABN",{"$f":"INDEX(dms_ABN_List,MATCH(dms_TradingName,dms_TradingName_List))","v":41094482416}]
[]
[]
[null,"Business address","Address 1",null,{"$f":"INDEX(dms_Addr1_List,MATCH(dms_TradingName,dms_TradingName_List))","v":"52-55 East Terrace"}]
[null,null,null,"Address 2",{"$f":"IF(ISBLANK(INDEX(dms_Addr2_List,MATCH(dms_TradingName,dms_TradingName_List))),\"\",INDEX(dms_Addr2_List,MATCH(dms_TradingName,dms_TradingName_List)))","v":"Rymill Park"}]
[null,null,"Suburb",null,{"$f":"INDEX(dms_Suburb_List,MATCH(dms_TradingName,dms_TradingName_List))","v":"ADELAIDE"}]
[null,null,null,"State",{"$f":"INDEX(dms_State_List,MATCH(dms_TradingName,dms_TradingName_List))","v":"SA"},"p/code",{"$f":"INDEX(dms_PostCode_List,MATCH(dms_TradingName,dms_TradingName_List))","v":"5000"}]
[]
[null,"Postal address","Address 1",null,{"$f":"INDEX(dms_PAddr1_List,MATCH(dms_TradingName,dms_TradingName_List))","v":"PO Box 7096"}]
[null,null,null,"Address 2",{"$f":"IF(ISBLANK(INDEX(dms_PAddr2_List,MATCH(dms_TradingName,dms_TradingName_List))),\"\",INDEX(dms_PAddr2_List,MATCH(dms_TradingName,dms_TradingName_List)))","v":"Hutt Street Post Office"}]
[null,null,"Suburb",null,{"$f":"INDEX(dms_PSuburb_List,MATCH(dms_TradingName,dms_TradingName_List))","v":"ADELAIDE"}]
[null,null,null,"State",{"$f":"INDEX(dms_PState_List,MATCH(dms_TradingName,dms_TradingName_List))","v":"SA"},"p/code",{"$f":"INDEX(dms_PPostCode_List,MATCH(dms_TradingName,dms_TradingName_List))","v":5000}]
[]
[]
[null,"Contact name/s",{"$f":"INDEX(dms_ContactName1_List,MATCH(dms_TradingName,dms_TradingName_List))","v":"Bill Jackson"}]
[null,"Contact phone/s",{"$f":"INDEX(dms_ContactPh1_List,MATCH(dms_TradingName,dms_TradingName_List))","v":"08 8404 7969"},null,null,null,null,null,null,null,null,null,null,null,null,null,null,null,null,null,null,null,null,null,null,null,"Tom Hallam"]
[null,"Contact email address/s",{"$f":"INDEX(dms_ContactEmail_List,MATCH(dms_TradingName,dms_TradingName_List))","v":"jackson.bill@electranet.com.au"},null,null,null,null,null,null,null,null,null,null,null,null,null,null,null,null,null,null,null,null,null,null,null,"Tom Hallam"]
[]
[null,"REGULATORY CONTROL PERIODS"]
[]
[null,"Forthcoming regulatory control period","2015-16",{"$f":"dms_FRCP_y2","v":"2016-17"},{"$f":"dms_FRCP_y3","v":"2017-18"},{"$f":"dms_FRCP_y4","v":"2018-19"},{"$f":"dms_FRCP_y5","v":"2019-20"},{"$f":"dms_FRCP_y6","v":"2020-21"},{"$f":"IF(dms_RPT=\"financial\",VALUE(LEFT(FRCP_y6,4)+1)&\"-\"&VALUE(MID(FRCP_y6,3,2)+2),VALUE(LEFT(FRCP_y6,4)+1))","v":"2021-22"}]
[]
[]
[null,"Current regulatory control period",{"$f":"dms_CRCP_FirstYear_Result","v":"2010-11"},{"$f":"IF(dms_RPT=\"financial\",VALUE(LEFT(CRCP_y1,4)+1)&\"-\"&TEXT(VALUE(RIGHT(CRCP_y1,2)+1),\"0#\"),VALUE(LEFT(CRCP_y1,4)+1))","v":"2011-12"},{"$f":"IF(dms_RPT=\"financial\",VALUE(LEFT(CRCP_y2,4)+1)&\"-\"&TEXT(VALUE(RIGHT(CRCP_y2,2)+1),\"0#\"),VALUE(LEFT(CRCP_y2,4)+1))","v":"2012-13"},{"$f":"IF(dms_RPT=\"financial\",VALUE(LEFT(CRCP_y3,4)+1)&\"-\"&TEXT(VALUE(RIGHT(CRCP_y3,2)+1),\"0#\"),VALUE(LEFT(CRCP_y3,4)+1))","v":"2013-14"},{"$f":"IF(dms_RPT=\"financial\",VALUE(LEFT(CRCP_y4,4)+1)&\"-\"&TEXT(VALUE(RIGHT(CRCP_y4,2)+1),\"0#\"),VALUE(LEFT(CRCP_y4,4)+1))","v":"2014-15"},{"$f":"IF(dms_RPT=\"financial\",VALUE(LEFT(CRCP_y5,4)+1)&\"-\"&TEXT(VALUE(RIGHT(CRCP_y5,2)+1),\"0#\"),VALUE(LEFT(CRCP_y5,4)+1))","v":"2015-16"}]
[]
[]
[null,"Previous regulatory control period",{"$f":"IF(dms_RPT=\"financial\",VALUE(LEFT(PRCP_y2,4)-1)&\"-\"&TEXT(VALUE(MID(PRCP_y2,3,2)),\"0#\"),VALUE(LEFT(PRCP_y2,4)-1))","v":"2005-06"},{"$f":"IF(dms_RPT=\"financial\",VALUE(LEFT(PRCP_y3,4)-1)&\"-\"&TEXT(VALUE(MID(PRCP_y3,3,2)),\"0#\"),VALUE(LEFT(PRCP_y3,4)-1))","v":"2006-07"},{"$f":"IF(dms_RPT=\"financial\",VALUE(LEFT(PRCP_y4,4)-1)&\"-\"&TEXT(VALUE(MID(PRCP_y4,3,2)),\"0#\"),VALUE(LEFT(PRCP_y4,4)-1))","v":"2007-08"},{"$f":"IF(dms_RPT=\"financial\",VALUE(LEFT(PRCP_y5,4)-1)&\"-\"&TEXT(VALUE(RIGHT(PRCP_y5,2)-1),\"0#\"),VALUE(LEFT(PRCP_y5,4)-1))","v":"2008-09"},{"$f":"IF(dms_RPT=\"financial\",VALUE(LEFT(CRCP_y1,4)-1)&\"-\"&TEXT(VALUE(RIGHT(CRCP_y1,2)-1),\"0#\"),VALUE(LEFT(CRCP_y1,4)-1))","v":"2009-10"}]
[]
[]
[null,"Current regulatory year","2016-17","CRY"]
[]
[]
[null,null,"DELETE NR 'CRY' IF NOT AN ANNUAL RIN (EB, CA , ARR)"]
[null,null,"APPLY NR 'CRY' IF AN ANNUAL RIN (EB, CA , ARR)"]
[]
[null,"Source","Reporting",null,"Please select the correct submission type from the dropdown list."]
[null,"Data quality (actual, estimate, public, consolidated)","Consolidated"]
[null,"Amended RIN submission - amendment reason"]
[null,"Submission Date","2017-10-31","dms_SubmissionDate","Please enter date this file submitted to AER (dd/mm/yyyy)"]
[null,"EBSS - First application of scheme in forthcoming period?","No"]
["HIDE THESE ROWS","Sector",{"$f":"INDEX(dms_Sector_List,MATCH(dms_TradingName,dms_TradingName_List))","v":"Electricity"},"dms_Sector","=INDEX(dms_Sector_List,MATCH(dms_TradingName,dms_TradingName_List))"]
[null,"Segment",{"$f":"INDEX(dms_Segment_List,MATCH(dms_TradingName,dms_TradingName_List))","v":"Transmission"},"dms_Segment","=INDEX(dms_Segment_List,MATCH(dms_TradingName,dms_TradingName_List))"]
[null,"Regulatory Year Ending",{"$f":"IF(dms_MultiYear_Flag=1,LEFT(dms_Specified_FinalYear,2)&RIGHT(dms_Specified_FinalYear,2),INDEX(dms_RYE_Formula_Result,MATCH(dms_Model,dms_Model_List)))","v":"2017"},"dms_RYE","=IF(dms_MultiYear_Flag=1,LEFT(dms_Specified_FinalYear,2)&RIGHT(dms_Specified_FinalYear,2),INDEX(dms_RYE_Formula_Result,MATCH(dms_Model,dms_Model_List)))"]
[null,"Reporting Period Type",{"$f":"INDEX(dms_RPT_List,MATCH(dms_TradingName,dms_TradingName_List))","v":"Financial"},"dms_RPT","=INDEX(dms_RPT_List,MATCH(dms_TradingName,dms_TradingName_List))"]
[null,"Model or RIN Type","CA","dms_Model","Drop down selection"]
[null,"Security Classification","Public","dms_Classification","Always Public"]
[null,"Template - version no.",5,"dms_TemplateNumber"]
[null,"Dollar $ real month",{"$f":"INDEX(dms_RPTMonth_List,MATCH(dms_TradingName,dms_TradingName_List))","v":"June"},"dms_RPTMonth","=INDEX(dms_RPTMonth_List,MATCH(dms_TradingName,dms_TradingName_List))"]
[null,"Dollar $ real  (the last month before the FRCP_y1)",{"$f":"IF(SUM(dms_SingleYear_Model)>0,CONCATENATE(dms_RPTMonth)&\" \"&VALUE((LEFT(CRY,2))&RIGHT(CRY,2)),CONCATENATE(dms_RPTMonth)&\" \"&VALUE((LEFT(dms_CRCP_FinalYear_Result,2))&RIGHT(dms_CRCP_FinalYear_Result,2)))","v":"June 2017"},"dms_DollarReal","=IF(SUM(dms_SingleYear_Model)>0,CONCATENATE(dms_RPTMonth)&\" \"&VALUE((LEFT(CRY,2))&RIGHT(CRY,2)),CONCATENATE(dms_RPTMonth)&\" \"&VALUE((LEFT(dms_CRCP_FinalYear_Result,2))&RIGHT(dms_CRCP_FinalYear_Result,2)))"]
[null,"Form of control",{"$f":"INDEX(dms_FormControl_List,MATCH(dms_TradingName,dms_TradingName_List))","v":"Revenue cap"},"dms_FormControl","=INDEX(dms_FormControl_List,MATCH(dms_TradingName,dms_TradingName_List))"]
[null,"RIN response - version no.",1,"dms_RINversion"]
[null,"Jurisdiction",{"$f":"INDEX(dms_JurisdictionList,MATCH(dms_TradingName,dms_TradingName_List))","v":"SA"},"dms_Jurisdiction","=INDEX(dms_JurisdictionList,MATCH(dms_TradingName,dms_TradingName_List))"]
[null,"Backcast Multiyear EB, CA or ARR?",0,"dms_MultiYear_Flag","1=y, 0-n"]
[null,null,2013,"dms_Specified_FinalYear","The result here is returned to dms_CRCP_FinalYear_Result if dms_MultiYear_Flag is set to 1"]
[null,"Single Year Model T/F",{"$f":"IF(dms_Model=\"EB\",1,0)","v":0},"dms_EB"]
[null,null,{"$f":"IF(dms_Model=\"CA\",1,0)","v":1},"dms_CA","=dms_SingleYear_Model"]
[null,null,{"$f":"IF(dms_Model=\"ARR\",1,0)","v":0},"dms_ARR"]
[null,"Single Year Final Year Reference","CRY","dms_SingleYear_FinalYear_Ref","This is the reference for EB, CA & ARR RINs"]
[null,"Single Year Final Year Result",{"$f":"INDIRECT(dms_SingleYear_FinalYear_Ref)","v":"2016-17"},"dms_SingleYear_FinalYear_Result","=INDIRECT(dms_SingleYear_FinalYear_Ref)",null,null,null,"Formula errors OK"]
[null,"FRCP length in years",{"$f":"INDEX(dms_FRCPlength_List,MATCH(dms_TradingName,dms_TradingName_List))","v":5},"dms_FRCPlength_Num","=INDEX(dms_FRCPlength_List,MATCH(dms_TradingName,dms_TradingName_List))"]
[null,"Multi Year Final Year Reference",{"$f":"INDEX(dms_FinalYear_List,MATCH(dms_FRCPlength_Num,dms_FRCPlength_Num_List))","v":"dms_FRCP_y5"},"dms_MultiYear_FinalYear_Ref","=INDEX(dms_FinalYear_List,MATCH(dms_FRCPlength_Num,dms_FRCPlength_Num_List))"]
[null,"Multi Year Final Year Result",{"$f":"IF(dms_MultiYear_Flag=0,INDIRECT(dms_MultiYear_FinalYear_Ref),dms_Specified_FinalYear)","v":"2019-20"},"dms_MultiYear_FinalYear_Result","=IF(dms_MultiYear_Flag=0,INDIRECT(dms_MultiYear_FinalYear_Ref),dms_Specified_FinalYear)",null,null,null,"Formula errors OK"]
[null,"CRCP length in years",{"$f":"INDEX(dms_CRCPlength_List,MATCH(dms_TradingName,dms_TradingName_List))","v":5},"dms_CRCPlength_Num","=INDEX(dms_CRCPlength_List,MATCH(dms_TradingName,dms_TradingName_List))"]
[null,"CRCP Final Year Reference",{"$f":"INDEX(dms_CFinalYear_List,MATCH(dms_CRCPlength_Num,dms_CRCPlength_Num_List))","v":"CRCP_y5"},"dms_CRCP_FinalYear_Ref","=INDEX(dms_CFinalYear_List,MATCH(dms_CRCPlength_Num,dms_CRCPlength_Num_List))"]
[null,"CRCP First Year Result",{"$f":"INDEX(dms_CRCP_years,MATCH(dms_CRCPlength_Num,dms_CRCP_index))","v":"2010-11"},"dms_CRCP_FirstYear_Result","=INDEX(dms_CRCP_years,MATCH(dms_CRCPlength_Num,dms_CRCP_index))"]
[null,"CRCP Final Year Result",{"$f":"IF(dms_MultiYear_Flag=0,(IF(SUM(dms_SingleYear_Model)>0,CRY,dms_CRCP_yZ)),dms_Specified_FinalYear)","v":"2016-17"},"dms_CRCP_FinalYear_Result","=IF(dms_MultiYear_Flag=0,(IF(SUM(dms_SingleYear_Model)>0,CRY,dms_CRCP_yZ)),dms_Specified_FinalYear)"]
[null,"Table 6.6.3 - Public lighting repair - no. business days",{"$f":"INDEX(dms_663_List,MATCH(dms_TradingName,dms_TradingName_List))","v":5},"dms_663"]
[null,"Distribution Determination Reference",{"$f":"INDEX(dms_DeterminationRef_List,MATCH(dms_TradingName,dms_TradingName_List))","v":"transmission determination"}]
[null,"Backcast templates only - unit of measure ","$0s","dms_Backcast_UOM","If the cover sheet is for Backcast data ensure to apply dms_Backcast_UOM named range to this field. Otherwise, do not apply this named range."]
[null,"EB/CA Unit of Measure for Monetary Values","$0s","dms_dollar_nom_UOM","If the cover sheet is attached to an EB files make sure this field is set"]
[]
[null,"discard this record?","NO","dms_DISCARD","If record is to be discarded from DB set this flag to YES"]
[]
[null,"USES NAMED RANGES FLAG","yes","dms_Defined_Names_Used"]

{"sheet":"2.1 Expenditure summary","index":4,"n_rows":59,"n_cols":3,"rows_kept":59,"cut":false,"hidden":false,"merged":[]}
[null,"REGULATORY REPORTING STATEMENT"]
[null,{"$f":"INDEX(dms_TradingNameFull_List,MATCH(dms_TradingName,dms_TradingName_List))","v":"ElectraNet"}]
[null,{"$f":"CONCATENATE((LOOKUP(dms_Model,dms_Model_List,dms_Worksheet_List))&\" \"&CRY)","v":"CATEGORY ANALYSIS 2016-17"}]
[null,"2.1 EXPENDITURE SUMMARY AND RECONCILIATION"]
[]
[null,"There are TWO tables on this worksheet. Each has been grouped for ease of navigation. See the Instructions sheet on how to group or ungroup tables. "]
[]
[null,"2.1.1 - PRESCRIBED TRANSMISSION SERVICES CAPEX (as incurred)"]
[null,null,"Actual \n($0's)"]
[null,null,{"$f":"CRY","v":"2016-17"}]
[null,"Replacement expenditure",105402994.99238932]
[null,"Connections",3440087.0742347953]
[null,"Augmentation Expenditure",19285427.84704724]
[null,"Non-network",11950656.282682445]
[null,"Capitalised network overheads",9932533.6299999598]
[null,"Capitalised corporate overheads",283295.48957204551]
[]
[]
[]
[]
[]
[]
[]
[]
[]
[]
[]
[]
[]
[]
[]
[null,"balancing item",-1060.736306976527]
[null,"TOTAL  CAPEX",{"$f":"+SUM(C11:C32)","v":150293934.57961884}]
[]
[null,"2.1.2 - PRESCRIBED TRANSMISSION SERVICE OPEX "]
[null,null,"Actual \n($0's)"]
[null,null,{"$f":"CRY","v":"2016-17"}]
[null,"Vegetation management",2186824.5284611075]
[null,"Maintenance",40987887.100000009]
[null,"Non-network",8990972.064835079]
[null,"Network overheads",25012866.142974935]
[null,"Corporate overheads",26883935.618092764]
[]
[]
[]
[]
[]
[]
[]
[]
[]
[]
[]
[]
[]
[]
[]
[null,"balancing item",-14422852.056556379]
[null,"TOTAL OPEX",{"$f":"SUM(C38:C58)","v":89639633.397807524}]

{"sheet":"2.2 Repex","index":5,"n_rows":249,"n_cols":6,"rows_kept":249,"cut":false,"hidden":false,"merged":[[167,1,178,1],[84,1,119,1],[10,1,24,1],[25,1,39,1],[40,1,61,1],[62,1,83,1],[120,1,144,1],[145,1,166,1]]}
[null,"REGULATORY REPORTING STATEMENT"]
[null,{"$f":"INDEX(dms_TradingNameFull_List,MATCH(dms_TradingName,dms_TradingName_List))","v":"ElectraNet"}]
[null,{"$f":"CONCATENATE((LOOKUP(dms_Model,dms_Model_List,dms_Worksheet_List))&\" \"&CRY)","v":"CATEGORY ANALYSIS 2016-17"}]
[null,"2.2 REPEX"]
[]
[null,"There are TWO tables (with three sub-tables each) on this worksheet. Each table has been grouped (and sub-grouped) for ease of navigation. See the Instructions sheet on how to group or ungroup data."]
[]
[null,"2.2.1 - REPLACEMENT EXPENDITURE, VOLUMES AND ASSET FAILURES BY ASSET CATEGORY"]
[null,null,null,"EXPENDITURE ($0's)","ASSET REPLACEMENTS ","ASSET FAILURES  "]
[null,"ASSET GROUP","ASSET CATEGORY",{"$f":"CRY","v":"2016-17"},{"$f":"CRY","v":"2016-17"},{"$f":"CRY","v":"2016-17"}]
[null,"TRANSMISSION TOWERS\nHighest operating voltage; Circuit configuration","< = 33 kV ; Single Circuit",0,0,0]
[null,null,"> 33 kV & < = 66 kV ; Single Circuit",0,0,0]
[null,null,"> 66 kV & < = 132 kV ; Single Circuit",1623848.74,12,0]
[null,null,"> 132 kV & < = 275 kV ; Single Circuit",0,0,0]
[null,null,"> 275 kV & < = 330 kV ; Single Circuit",0,0,0]
[null,null,"> 330 kV & < = 500 kV ; Single Circuit",0,0,0]
[null,null,"> 500 kV ; Single Circuit",0,0,0]
[null,null,"< = 33 kV ; Multiple Circuit",0,0,0]
[null,null,"> 33 kV & < = 66 kV ; Multiple Circuit",0,0,0]
[null,null,"> 66 kV & < = 132 kV ; Multiple Circuit",0,0,0]
[null,null,"> 132 kV & < = 275 kV ; Multiple Circuit",0,0,0]
[null,null,"> 275 kV & < = 330 kV ; Multiple Circuit",0,0,0]
[null,null,"> 330 kV & < = 500 kV ; Multiple Circuit",0,0,0]
[null,null,"> 500 kV ; Multiple Circuit",0,0,0]
[null,null,"Other",0,0,0]
[null,"TRANSMISSION TOWER SUPPORT STRUCTURES BY:\nHighest operating voltage; Circuit configuration","< = 33 kV ; Single Circuit",0,0,0]
[null,null,"> 33 kV & < = 66 kV ; Single Circuit",0,0,0]
[null,null,"> 66 kV & < = 132 kV ; Single Circuit",4620424.2699999996,108,0]
[null,null,"> 132 kV & < = 275 kV ; Single Circuit",0,0,0]
[null,null,"> 275 kV & < = 330 kV ; Single Circuit",0,0,0]
[null,null,"> 330 kV & < = 500 kV ; Single Circuit",0,0,0]
[null,null,"> 500 kV ; Single Circuit",0,0,0]
[null,null,"< = 33 kV ; Multiple Circuit",0,0,0]
[null,null,"> 33 kV & < = 66 kV ; Multiple Circuit",0,0,0]
[null,null,"> 66 kV & < = 132 kV ; Multiple Circuit",0,0,0]
[null,null,"> 132 kV & < = 275 kV ; Multiple Circuit",0,0,0]
[null,null,"> 275 kV & < = 330 kV ; Multiple Circuit",0,0,0]
[null,null,"> 330 kV & < = 500 kV ; Multiple Circuit",0,0,0]
[null,null,"> 500 kV ; Multiple Circuit",0,0,0]
[null,null,"Other",0,0,0]
[null,"CONDUCTORS BY: \nVoltage; Maximum continuous rating","< = 33 kV ; < = 100 MVA",0,0,0]
[null,null,"< = 33 kV ; > 100 MVA & < = 400 MVA",0,0,0]
[null,null,"< = 33 kV ; > 400 MVA",0,0,0]
[null,null,"> 33 kV & < = 66 kV ; < = 100 MVA",0,0,0]
[null,null,"> 33 kV & < = 66 kV ; > 100 MVA & < = 400 MVA",0,0,0]
[null,null,"> 33 kV & < = 66 kV ; > 400 MVA",0,0,0]
[null,null,"> 66 kV & < = 132 kV ; < = 100 MVA",0,0,0]
[null,null,"> 66 kV & < = 132 kV ; > 100 MVA & < = 400 MVA",2343821.96,3.6,0]
[null,null,"> 66 kV & < = 132 kV ; > 400 MVA",0,0,0]
[null,null,"> 132 kV & < = 275 kV ; < = 200 MVA",0,0,0]
[null,null,"> 132 kV & < = 275 kV ; > 200 MVA & < = 600 MVA",0,0,0]
[null,null,"> 132 kV & < = 275 kV ; > 600 MVA",0,0,0]
[null,null,"> 275 kV & < = 330 kV ; < = 800 MVA",0,0,0]
[null,null,"> 275 kV & < = 330 kV ; > 800 MVA & < = 1200 MVA",0,0,0]
[null,null,"> 275 kV & < = 330 kV ; > 1200 MVA",0,0,0]
[null,null,"> 330 kV & < = 500 kV ; < = 1000 MVA",0,0,0]
[null,null,"> 330 kV & < = 500 kV ; > 1000 MVA & < = 1500 MVA",0,0,0]
[null,null,"> 330 kV & < = 500 kV ; > 1500 MVA",0,0,0]
[null,null,"> 500 kV ; < = 2000 MVA",0,0,0]
[null,null,"> 500 kV ; > 2000 MVA & < = 3000 MVA"]
[null,null,"> 500 kV ; > 3000 MVA",0,0,0]
[null,null,"Other",0,0,0]
[null,"TRANSMISSION CABLES BY: \nHighest operating voltage; Insulation type","< = 33 kV ; Oil Filled",0,0,0]
[null,null,"> 33 kV & < = 66 kV ; Oil Filled",0,0,0]
[null,null,"> 66 kV & < = 132 kV ; Oil Filled",0,0,0]
[null,null,"> 132 kV & < = 275 kV ; Oil Filled",0,0,0]
[null,null,"> 275 kV & < = 330 kV ; Oil Filled",0,0,0]
[null,null,"> 330 kV & < = 500 kV ; Oil Filled",0,0,0]
[null,null,"> 500 kV ; Oil Filled",0,0,0]
[null,null,"< = 33 kV ; XLPE Insulated",0,0,0]
[null,null,"> 33 kV & < = 66 kV ; XLPE Insulated",0,0,0]
[null,null,"> 66 kV & < = 132 kV ; XLPE Insulated",0,0,0]
[null,null,"> 132 kV & < = 275 kV ; XLPE Insulated",0,0,0]
[null,null,"> 275 kV & < = 330 kV ; XLPE Insulated",0,0,0]
[null,null,"> 330 kV & < = 500 kV ; XLPE Insulated",0,0,0]
[null,null,"> 500 kV ; XLPE Insulated",0,0,0]
[null,null,"< = 33 kV ; Other Insulated",0,0,0]
[null,null,"> 33 kV & < = 66 kV ; Other Insulated",0,0,0]
[null,null,"> 66 kV & < = 132 kV ; Other Insulated",0,0,0]
[null,null,"> 132 kV & < = 275 kV ; Other Insulated",0,0,0]
[null,null,"> 275 kV & < = 330 kV ; Other Insulated",0,0,0]
[null,null,"> 330 kV & < = 500 kV ; Other Insulated",0,0,0]
[null,null,"> 500 kV ; Other Insulated",0,0,0]
[null,null,"Other",0,0,0]
[null,"SUBSTATION SWITCHBAYS BY: \nHighest operating voltage; Switch type","< = 33 kV ; Air Insulated circuit Breaker",687433.56,4,0]
[null,null,"> 33 kV & < = 66 kV ; Air Insulated circuit Breaker",0,0,0]
[null,null,"> 66 kV & < = 132 kV ; Air Insulated circuit Breaker",3455732.32,13,0]
[null,null,"> 132 kV & < = 275 kV ; Air Insulated circuit Breaker",0,0,0]
[null,null,"> 275 kV & < = 330 kV ; Air Insulated circuit Breaker",0,0,0]
[null,null,"> 330 kV & < = 500 kV ; Air Insulated circuit Breaker",0,0,0]
[null,null,"> 500 kV ; Air Insulated circuit Breaker",0,0,0]
[null,null,"< = 33 kV ; Air Insulated Isolators / Earth Switch",0,0,0]
[null,null,"> 33 kV & < = 66 kV ; Air Insulated Isolators / Earth Switch",0,0,0]
[null,null,"> 66 kV & < = 132 kV ; Air Insulated Isolators / Earth Switch",4635334.1500000004,35,0]
[null,null,"> 132 kV & < = 275 kV ; Air Insulated Isolators / Earth Switch",35163.08,1,0]
[null,null,"> 275 kV & < = 330 kV ; Air Insulated Isolators / Earth Switch",0,0,0]
[null,null,"> 330 kV & < = 500 kV ; Air Insulated Isolators / Earth Switch",0,0,0]
[null,null,"> 500 kV ; Air Insulated Isolators / Earth Switch",0,0,0]
[null,null,"< = 33 kV ; VT",546031.35999999999,4.333333333333333,0]
[null,null,"> 33 kV & < = 66 kV ; VT",48819.97,3.6666666666666665,0]
[null,null,"> 66 kV & < = 132 kV ; VT",1827508.95,9.3333333333333339,0]
[null,null,"> 132 kV & < = 275 kV ; VT",235678.52,4.666666666666667,0]
[null,null,"> 275 kV & < = 330 kV ; VT",0,0,0]
[null,null,"> 330 kV & < = 500 kV ; VT",0,0,0]
[null,null,"> 500 kV ; VT",0,0,0]
[null,null,"< = 33 kV ; CT",1013018.3200000001,7,0]
[null,null,"> 33 kV & < = 66 kV ; CT",0,0,0]
[null,null,"> 66 kV & < = 132 kV ; CT",4053650.96,15,0]
[null,null,"> 132 kV & < = 275 kV ; CT",768961.39,9.3333333333333339,0]
[null,null,"> 275 kV & < = 330 kV ; CT",0,0,0]
[null,null,"> 330 kV & < = 500 kV ; CT",0,0,0]
[null,null,"> 500 kV ; CT",0,0,0]
[null,null,"< = 33 kV ; GIS Module",0,0,0]
[null,null,"> 33 kV & < = 66 kV ; GIS Module",0,0,0]
[null,null,"> 66 kV & < = 132 kV ; GIS Module",0,0,0]
[null,null,"> 132 kV & < = 275 kV ; GIS Module",0,0,0]
[null,null,"> 275 kV & < = 330 kV ; GIS Module",0,0,0]
[null,null,"> 330 kV & < = 500 kV ; GIS Module",0,0,0]
[null,null,"> 500 kV ; GIS Module",0,0,0]
[null,null,"Other",0,0,0]
[null,"SUBSTATION POWER TRANSFORMERS BY: \nHighest operating voltage;  Ampere rating","< = 33 kV ; < = 10 MVA",0,0,0]
[null,null,"< = 33 kV ; > 10 MVA & < = 30 MVA",0,0,0]
[null,null,"< = 33 kV ; > 30 MVA",0,0,0]
[null,null,"> 33 kV & < = 66 kV ; < = 10 MVA",0,0,0]
[null,null,"> 33 kV & < = 66 kV ; > 10 MVA & < = 30 MVA",0,0,0]
[null,null,"> 33 kV & < = 66 kV ; > 30 MVA",0,0,0]
[null,null,"> 66 kV & < = 132 kV ; < = 30 MVA",2718140.4,2,0]
[null,null,"> 66 kV & < = 132 kV ; > 30 MVA & < = 60 MVA",0,0,0]
[null,null,"> 66 kV & < = 132 kV ; > 60 MVA",11086806.789999999,2,0]
[null,null,"> 132 kV & < = 220 kV ; < = 50 MVA",0,0,0]
[null,null,"> 132 kV & < = 220 kV ; > 50 MVA & < = 100 MVA",0,0,0]
[null,null,"> 132 kV & < = 220 kV ; > 100 MVA",0,0,0]
[null,null,"> 220 kV & < = 275 kV ; < = 50 MVA",0,0,0]
[null,null,"> 220 kV & < = 275 kV ; > 50 MVA & < = 100 MVA",0,0,0]
[null,null,"> 220 kV & < = 275 kV ; > 100 MVA",0,0,0]
[null,null,"> 275 kV & < = 330 kV ; < = 100 MVA",0,0,0]
[null,null,"> 275 kV & < = 330 kV ; > 100 MVA & < = 250 MVA",0,0,0]
[null,null,"> 275 kV & < = 330 kV ; > 250 MVA",0,0,0]
[null,null,"> 330 kV & < = 500 kV ; < = 150 MVA",0,0,0]
[null,null,"> 330 kV & < = 500 kV ; > 150 MVA & < = 300 MVA",0,0,0]
[null,null,"> 330 kV & < = 500 kV ; > 300 MVA",0,0,0]
[null,null,"> 500 kV ; < = 1000 MVA",0,0,0]
[null,null,"> 500 kV ; > 1000 MVA & < = 1500 MVA",0,0,0]
[null,null,"> 500 kV ; > 1500 MVA",0,0,0]
[null,null,"Other",0,0,0]
[null,"SUBSTATION REACTIVE PLANT BY: \nHighest operating voltage; Function","< = 33 kV ; SVCS",0,0,0]
[null,null,"> 33 kV & < = 66 kV ; SVCS",0,0,0]
[null,null,"> 66 kV & < = 132 kV ; SVCS",0,0,0]
[null,null,"> 132 kV & < = 275 kV ; SVCS",0,0,0]
[null,null,"> 275 kV & < = 330 kV ; SVCS",0,0,0]
[null,null,"> 330 kV & < = 500 kV ; SVCS",0,0,0]
[null,null,"> 500 kV ; SVCS",0,0,0]
[null,null,"< = 33 kV ; Capacitors",0,0,0]
[null,null,"> 33 kV & < = 66 kV ; Capacitors",0,0,0]
[null,null,"> 66 kV & < = 132 kV ; Capacitors",2143889.59,2,0]
[null,null,"> 132 kV & < = 275 kV ; Capacitors",0,0,0]
[null,null,"> 275 kV & < = 330 kV ; Capacitors",0,0,0]
[null,null,"> 330 kV & < = 500 kV ; Capacitors",0,0,0]
[null,null,"> 500 kV ; Capacitors",0,0,0]
[null,null,"< = 33 kV ; Oil Filled Reactors",0,0,0]
[null,null,"> 33 kV & < = 66 kV ; Oil Filled Reactors",0,0,0]
[null,null,"> 66 kV & < = 132 kV ; Oil Filled Reactors",0,0,0]
[null,null,"> 132 kV & < = 275 kV ; Oil Filled Reactors",0,0,0]
[null,null,"> 275 kV & < = 330 kV ; Oil Filled Reactors",0,0,0]
[null,null,"> 330 kV & < = 500 kV ; Oil Filled Reactors",0,0,0]
[null,null,"> 500 kV ; Oil Filled Reactors",0,0,0]
[null,null,"Other",0,0,0]
[null,"SCADA, NETWORK CONTROL AND PROTECTION SYSTEMS BY:\nFunction","Communications Network Assets",0,0,0]
[null,null,"Master Station Assets",0,0,0]
[null,null,"Control equipment / systems",0,0,0]
[null,null,"Infrastructure: protection and control",0,0,0]
[null,null,"Metering systems",0,0,0]
[null,null,"OPGW",0,0,0]
[null,null,"Protection schemes / systems",0,0,0]
[null,null,"Site establishment",19030552.573688541,3,0]
[null,null,"Station SCADA and control systems",0,0,0]
[null,null,"Telecommunications Network / Systems",0,0,0]
[null,null,"Total secondary systems",17118686.598273657,3,0]
[null,null,"Other",4108277.1519312407,4,0]
[null,"OTHER BY: \nTNSP defined","TRANSMISSION TOWER SUPPORT STRUCUTRE BY: HIGHEST OPERATING VOLTAGE; CIRCUIT CONFIGURATION \n>132 kV & < = 275 kV; Insulator Strings ",148218.4,296,0]
[null,null,"SCADA, NETWORK CONTROL AND PROTECTION SYSTEMS BY: FUNCTION \nTelecommunications",5249224.4159829589,2,0]
[null,null,null,null,null,0]
[]
[]
[]
[]
[]
[]
[]
[]
[]
[]
[]
[]
[]
[]
[]
[]
[]
[]
[]
[]
[]
[]
[]
[]
[]
[]
[]
[]
[null,"2.2.2 - SELECTED ASSET CHARACTERISTICS"]
[null,null,null,"ASSET VOLUMES CURRENTLY IN COMMISSION","ASSET REPLACEMENTS "]
[null,"ASSET GROUP","ASSET CATEGORY",{"$f":"CRY","v":"2016-17"},{"$f":"CRY","v":"2016-17"}]
[null,"CONDUCTORS BY: \nCONDUCTOR LENGTH MATERIAL TYPE","AAAC",46.103072000000026,0]
[null,null,"AAC",0.4,0]
[null,null,"ACAR",0,0]
[null,null,"ACSR",5390.8,0]
[null,null,"HD Cu",36.700000000000003,0]
[null,null,"Undefined ",18.3,0]
[]
[]
[]
[]
[]
[]
[]
[]
[]
[]
[]
[]
[]
[]
[]
[]
[]
[]
[]
[]
[]
[]
[]
[]
[]
[]
[]
[null,"SUBSTATION REACTIVE PLANT BY:\nREACTIVE CAPACITY","Total MVAr by SVCs",320,0]
[null,null,"Total MVAr by Capacitors",1110.5999999999999,0]
[null,null,"Total MVAr by Oil Filled Reactors",364.8,0]

{"sheet":"2.3 Augex","index":6,"n_rows":212,"n_cols":35,"rows_kept":212,"cut":false,"hidden":false,"merged":[[139,3,141,3],[139,6,141,6],[139,5,141,5],[139,4,141,4],[139,7,140,10],[140,16,140,17],[140,20,141,20],[138,11,138,24],[28,2,34,2],[28,3,34,3],[28,4,34,4],[28,5,34,5],[28,6,34,6],[28,7,34,7],[60,2,66,2],[60,3,66,3],[60,4,66,4],[60,5,66,5],[60,6,66,6],[60,7,66,7],[60,8,66,8],[52,8,58,8],[52,9,58,9],[52,10,58,10],[92,4,98,4],[92,5,98,5],[92,6,98,6],[10,18,10,21],[9,11,9,24],[10,23,10,24],[11,20,11,21],[20,6,26,6],[20,7,26,7],[20,8,26,8],[20,9,26,9],[20,10,26,10],[92,7,98,7],[92,8,98,8],[5,1,5,3],[9,32,9,33],[10,1,11,1],[10,2,11,2],[10,3,11,3],[10,4,11,4],[10,5,11,5],[10,6,11,6],[10,7,10,8],[10,9,10,10],[10,11,10,14],[9,1,9,10],[9,25,9,26],[9,27,11,27],[9,28,11,28],[9,29,9,31],[10,15,10,17],[11,25,11,26],[11,29,11,31],[11,32,11,33],[12,1,18,1],[12,2,18,2],[20,1,26,1],[20,2,26,2],[20,3,26,3],[20,4,26,4],[20,5,26,5],[12,9,18,9],[12,10,18,10],[12,3,18,3],[12,4,18,4],[12,5,18,5],[12,6,18,6],[12,7,18,7],[12,8,18,8],[12,33,18,33],[12,27,18,27],[12,28,18,28],[20,29,26,29],[20,30,26,30],[20,31,26,31],[12,25,18,25],[12,26,18,26],[12,29,18,29],[12,30,18,30],[12,31,18,31],[12,32,18,32],[20,26,26,26],[20,25,26,25],[20,28,26,28],[28,30,34,30],[28,31,34,31],[28,32,34,32],[28,33,34,33],[28,27,34,27],[28,28,34,28],[20,32,26,32],[20,33,26,33],[20,27,26,27],[28,29,34,29],[36,1,42,1],[36,2,42,2],[36,3,42,3],[36,4,42,4],[36,5,42,5],[28,9,34,9],[28,10,34,10],[28,25,34,25],[28,26,34,26],[28,1,34,1],[28,8,34,8],[36,32,42,32],[36,33,42,33],[36,27,42,27],[36,28,42,28],[36,29,42,29],[36,30,42,30],[36,31,42,31],[44,2,50,2],[44,3,50,3],[44,4,50,4],[44,5,50,5],[44,6,50,6],[44,7,50,7],[44,8,50,8],[36,26,42,26],[36,6,42,6],[36,7,42,7],[36,8,42,8],[36,9,42,9],[36,10,42,10],[36,25,42,25],[44,29,50,29],[44,30,50,30],[44,31,50,31],[44,32,50,32],[44,33,50,33],[52,1,58,1],[52,2,58,2],[52,3,58,3],[52,4,58,4],[52,5,58,5],[44,9,50,9],[44,10,50,10],[44,25,50,25],[44,26,50,26],[44,27,50,27],[44,28,50,28],[52,32,58,32],[52,33,58,33],[52,27,58,27],[52,28,58,28],[52,29,58,29],[52,30,58,30],[52,31,58,31],[44,1,50,1],[52,26,58,26],[52,6,58,6],[52,7,58,7],[52,25,58,25],[60,29,66,29],[60,30,66,30],[60,31,66,31],[60,32,66,32],[60,33,66,33],[68,1,74,1],[68,2,74,2],[68,3,74,3],[68,4,74,4],[68,5,74,5],[60,9,66,9],[60,10,66,10],[60,25,66,25],[60,26,66,26],[60,27,66,27],[60,28,66,28],[68,32,74,32],[68,33,74,33],[68,27,74,27],[68,28,74,28],[68,29,74,29],[68,30,74,30],[68,31,74,31],[60,1,66,1],[76,2,82,2],[76,3,82,3],[76,4,82,4],[76,5,82,5],[76,6,82,6],[76,7,82,7],[76,8,82,8],[68,26,74,26],[68,6,74,6],[68,7,74,7],[68,8,74,8],[68,9,74,9],[68,10,74,10],[68,25,74,25],[76,29,82,29],[76,30,82,30],[76,31,82,31],[76,32,82,32],[76,33,82,33],[84,1,90,1],[84,2,90,2],[84,3,90,3],[84,4,90,4],[84,5,90,5],[76,9,82,9],[76,10,82,10],[76,25,82,25],[76,26,82,26],[76,27,82,27],[76,28,82,28],[84,32,90,32],[84,33,90,33],[84,27,90,27],[84,28,90,28],[84,29,90,29],[84,30,90,30],[84,31,90,31],[76,1,82,1],[84,26,90,26],[84,6,90,6],[84,7,90,7],[84,8,90,8],[84,9,90,9],[84,10,90,10],[84,25,90,25],[92,29,98,29],[92,30,98,30],[92,31,98,31],[92,32,98,32],[92,33,98,33],[100,1,106,1],[100,2,106,2],[100,3,106,3],[100,4,106,4],[100,5,106,5],[92,9,98,9],[92,10,98,10],[92,25,98,25],[92,26,98,26],[92,27,98,27],[92,28,98,28],[100,32,106,32],[100,33,106,33],[100,27,106,27],[100,28,106,28],[100,29,106,29],[100,30,106,30],[100,31,106,31],[92,1,98,1],[92,2,98,2],[92,3,98,3],[108,2,114,2],[108,3,114,3],[108,4,114,4],[108,5,114,5],[108,6,114,6],[108,7,114,7],[108,8,114,8],[100,26,106,26],[100,6,106,6],[100,7,106,7],[100,8,106,8],[100,9,106,9],[100,10,106,10],[100,25,106,25],[108,29,114,29],[108,30,114,30],[108,31,114,31],[108,32,114,32],[108,33,114,33],[116,1,122,1],[116,2,122,2],[116,3,122,3],[116,4,122,4],[116,5,122,5],[108,9,114,9],[108,10,114,10],[108,25,114,25],[108,26,114,26],[108,27,114,27],[108,28,114,28],[116,32,122,32],[116,33,122,33],[116,27,122,27],[116,28,122,28],[116,29,122,29],[116,30,122,30],[116,31,122,31],[108,1,114,1],[124,1,130,1],[124,2,130,2],[124,3,130,3],[124,4,130,4],[124,5,130,5],[124,6,130,6],[124,7,130,7],[124,8,130,8],[116,26,122,26],[116,6,122,6],[116,7,122,7],[116,8,122,8],[116,9,122,9],[116,10,122,10],[116,25,122,25],[124,29,130,29],[124,30,130,30],[124,31,130,31],[124,32,130,32],[124,33,130,33],[132,3,132,10],[124,9,130,9],[124,10,130,10],[124,25,130,25],[124,26,130,26],[124,27,130,27],[124,28,130,28],[139,1,141,1],[133,3,133,10],[138,1,138,10],[138,32,138,33],[138,27,141,27],[141,29,141,31],[141,32,141,33],[139,29,140,29],[139,30,140,30],[139,31,140,31],[139,32,140,32],[139,33,140,33],[138,28,141,28],[138,29,138,31],[140,21,141,21],[138,25,138,26],[139,25,140,25],[139,26,140,26],[141,25,141,26],[139,23,140,24],[139,22,140,22],[140,18,140,19],[139,11,140,14],[139,15,139,21],[158,29,164,29],[158,30,164,30],[150,27,156,27],[150,28,156,28],[150,29,156,29],[150,30,156,30],[150,31,156,31],[142,33,148,33],[142,28,148,28],[142,29,148,29],[142,30,148,30],[142,31,148,31],[142,32,148,32],[158,31,164,31],[158,32,164,32],[158,33,164,33],[150,32,156,32],[150,33,156,33],[174,29,180,29],[174,30,180,30],[174,31,180,31],[174,32,180,32],[182,29,188,29],[182,30,188,30],[166,32,172,32],[166,33,172,33],[174,1,180,1],[166,27,172,27],[166,28,172,28],[166,29,172,29],[166,30,172,30],[166,31,172,31],[166,1,172,1],[174,33,180,33],[190,31,196,31],[190,32,196,32],[190,33,196,33],[190,27,196,27],[190,28,196,28],[190,29,196,29],[190,30,196,30],[182,31,188,31],[182,32,188,32],[182,33,188,33],[182,27,188,27],[142,4,148,4],[150,4,156,4],[158,4,164,4],[166,4,172,4],[174,4,180,4],[182,4,188,4],[190,4,196,4],[190,1,196,1],[182,28,188,28],[158,1,164,1],[142,27,148,27],[150,1,156,1],[142,1,148,1],[158,27,164,27],[158,28,164,28],[182,1,188,1],[174,27,180,27],[174,28,180,28]]}
[null,"REGULATORY REPORTING STATEMENT"]
[null,{"$f":"INDEX(dms_TradingNameFull_List,MATCH(dms_TradingName,dms_TradingName_List))","v":"ElectraNet"}]
[null,{"$f":"CONCATENATE((LOOKUP(dms_Model,dms_Model_List,dms_Worksheet_List))&\" \"&CRY)","v":"CATEGORY ANALYSIS 2016-17"}]
[null,"2.3 AUGEX PROJECTS"]
[]
[null,"There are THREE tables on this worksheet - each has been 'grouped' for easy navigation. Both ROWS and COLUMNS have been grouped.  See the Instructions sheet on how to group or ungroup tables. "]
[]
[null,"2.3.1 - AUGEX ASSET DATA - SUBSTATIONS"]
[null,"NOTE: TNSP MUST PROVIDE EXPENDITURE INFORMATION ON A PROJECT CLOSE BASIS."]
[null,"SUBSTATION AND PROJECT SUMMARY",null,null,null,null,null,null,null,null,null,"PLANT AND EQUIPMENT EXPENDITURE AND VOLUME",null,null,null,null,null,null,null,null,null,null,null,null,null,"OTHER EXPENDITURE",null,"TOTAL DIRECT EXPENDITURE\n($0's)","YEARS INCURRED","RELATED PARTY CONTRACTS",null,null,"LAND AND EASEMENTS"]
[null,"SUBSTATION ID","SUBSTATION TYPE","PROJECT ID","PROJECT TYPE","PROJECT TRIGGER","VOLTAGE (KV)","SUBSTATION RATING\nNORMAL CYCLIC\n(MVA)",null,"SUBSTATION RATING\nN-1 EMERGENCY\n(MVA)",null,"TRANSFORMERS",null,null,null,"SWITCHGEAR",null,null,"REACTIVE PLANT",null,null,null,"OTHER PLANT ITEM","INSTALLATION (LABOUR)",null,"CIVIL WORKS","OTHER DIRECT",null,null,"RELATED PARTY MARGINS","TOTAL","ALL NON RELATED PARTYCONTRACTS","LAND PURCHASES","EASEMENTS","Comments"]
[null,null,null,null,null,null,null,"PRE","POST","PRE","POST","Units Added","MVA Added","OLTC INCLUDED?","Expenditure ($0's)","Insulation","Units Added","Expenditure\n($0's)","Plant Type","Units Added","Expenditure\n($0's)",null,"Expenditure\n($0's)","Volume","Expenditure\n($0's)","Expenditure ($0's)",null,null,null,"Expenditure ($0's)",null,null,"Expenditure\n($0's)"]
[null,"Ardrossan West T282","Terminal station",10615,"Capacity upgrade","Demand growth",132,20,50,10,25,2,50,"Yes",1045412,"Air","3 132kV Circuit Breakers",121486.86000000002,"Capacitor",1,175059,null,null,null,283104,1452607,18756855.974434875,null,null,null,null,null,null,null,"'2008, 2009, 2010, 2011, 2012, 2013, 2014, 2015, 2016, 2017"]
[null,null,null,null,null,null,null,null,null,null,null,null,null,null,null,"Air","2 33kV Circuit Breakers",47998]
[null,null,null,null,null,null,null,null,null,null,null,null,null,null,null,"Air","8 132kV Disconnectors with ES",156744]
[null,null,null,null,null,null,null,null,null,null,null,null,null,null,null,null,null,null,null,null,null,null,384162.28]
[]
[]
[]
[null,"Project Totals",null,null,null,null,null,null,null,null,null,{"$f":"SUM(L13:L19)","v":2},{"$f":"SUM(M13:M19)","v":50},null,{"$f":"SUM(O13:O19)","v":1045412},null,{"$f":"SUM(Q13:Q19)","v":0},{"$f":"SUM(R13:R19)","v":326228.86},null,{"$f":"SUM(T13:T19)","v":1},{"$f":"SUM(U13:U19)","v":175059},null,{"$f":"SUM(W13:W19)","v":384162.28},{"$f":"SUM(X13:X19)","v":0},{"$f":"SUM(Y13:Y19)","v":283104},{"$f":"SUM(Z13)","v":1452607},{"$f":"SUM(AA13)","v":18756855.974434875},{"$f":"O20+R20+U20+W20+SUM(Y20:AA20)","v":22423429.114434876},null,{"$f":"SUM(AD13)","v":0},{"$f":"SUM(AE13)","v":0},{"$f":"SUM(AF13)","v":0},{"$f":"SUM(AG13)","v":0},{"$f":"SUM(AH13)","v":0}]
[null,"<Enter substation ID>",null,null,null,null,""]
[]
[]
[]
[]
[]
[]
[null,"Project Totals",null,null,null,null,null,null,null,null,null,{"$f":"SUM(L21:L27)","v":0},{"$f":"SUM(M21:M27)","v":0},null,{"$f":"SUM(O21:O27)","v":0},null,{"$f":"SUM(Q21:Q27)","v":0},{"$f":"SUM(R21:R27)","v":0},null,{"$f":"SUM(T21:T27)","v":0},{"$f":"SUM(U21:U27)","v":0},null,{"$f":"SUM(W21:W27)","v":0},{"$f":"SUM(X21:X27)","v":0},{"$f":"SUM(Y21:Y27)","v":0},{"$f":"SUM(Z21)","v":0},{"$f":"SUM(AA21)","v":0},{"$f":"O28+R28+U28+W28+SUM(Y28:AA28)","v":0},null,{"$f":"SUM(AD21)","v":0},{"$f":"SUM(AE21)","v":0},{"$f":"SUM(AF21)","v":0},{"$f":"SUM(AG21)","v":0},{"$f":"SUM(AH21)","v":0}]
[null,"<Enter substation ID>",null,null,null,null,""]
[]
[]
[]
[]
[]
[]
[null,"Project Totals",null,null,null,null,null,null,null,null,null,{"$f":"SUM(L29:L35)","v":0},{"$f":"SUM(M29:M35)","v":0},null,{"$f":"SUM(O29:O35)","v":0},null,{"$f":"SUM(Q29:Q35)","v":0},{"$f":"SUM(R29:R35)","v":0},null,{"$f":"SUM(T29:T35)","v":0},{"$f":"SUM(U29:U35)","v":0},null,{"$f":"SUM(W29:W35)","v":0},{"$f":"SUM(X29:X35)","v":0},{"$f":"SUM(Y29:Y35)","v":0},{"$f":"SUM(Z29)","v":0},{"$f":"SUM(AA29)","v":0},{"$f":"O36+R36+U36+W36+SUM(Y36:AA36)","v":0},null,{"$f":"SUM(AD29)","v":0},{"$f":"SUM(AE29)","v":0},{"$f":"SUM(AF29)","v":0},{"$f":"SUM(AG29)","v":0},{"$f":"SUM(AH29)","v":0}]
[null,"<Enter substation ID>",null,null,null,null,""]
[]
[]
[]
[]
[]
[]
[null,"Project Totals",null,null,null,null,null,null,null,null,null,{"$f":"SUM(L37:L43)","v":0},{"$f":"SUM(M37:M43)","v":0},null,{"$f":"SUM(O37:O43)","v":0},null,{"$f":"SUM(Q37:Q43)","v":0},{"$f":"SUM(R37:R43)","v":0},null,{"$f":"SUM(T37:T43)","v":0},{"$f":"SUM(U37:U43)","v":0},null,{"$f":"SUM(W37:W43)","v":0},{"$f":"SUM(X37:X43)","v":0},{"$f":"SUM(Y37:Y43)","v":0},{"$f":"SUM(Z37)","v":0},{"$f":"SUM(AA37)","v":0},{"$f":"O44+R44+U44+W44+SUM(Y44:AA44)","v":0},null,{"$f":"SUM(AD37)","v":0},{"$f":"SUM(AE37)","v":0},{"$f":"SUM(AF37)","v":0},{"$f":"SUM(AG37)","v":0},{"$f":"SUM(AH37)","v":0}]
[null,"<Enter substation ID>",null,null,null,null,""]
[]
[]
[]
[]
[]
[]
[null,"Project Totals",null,null,null,null,null,null,null,null,null,{"$f":"SUM(L45:L51)","v":0},{"$f":"SUM(M45:M51)","v":0},null,{"$f":"SUM(O45:O51)","v":0},null,{"$f":"SUM(Q45:Q51)","v":0},{"$f":"SUM(R45:R51)","v":0},null,{"$f":"SUM(T45:T51)","v":0},{"$f":"SUM(U45:U51)","v":0},null,{"$f":"SUM(W45:W51)","v":0},{"$f":"SUM(X45:X51)","v":0},{"$f":"SUM(Y45:Y51)","v":0},{"$f":"SUM(Z45)","v":0},{"$f":"SUM(AA45)","v":0},{"$f":"O52+R52+U52+W52+SUM(Y52:AA52)","v":0},null,{"$f":"SUM(AD45)","v":0},{"$f":"SUM(AE45)","v":0},{"$f":"SUM(AF45)","v":0},{"$f":"SUM(AG45)","v":0},{"$f":"SUM(AH45)","v":0}]
[null,"<Enter substation ID>",null,null,null,null,""]
[]
[]
[]
[]
[]
[]
[null,"Project Totals",null,null,null,null,null,null,null,null,null,{"$f":"SUM(L53:L59)","v":0},{"$f":"SUM(M53:M59)","v":0},null,{"$f":"SUM(O53:O59)","v":0},null,{"$f":"SUM(Q53:Q59)","v":0},{"$f":"SUM(R53:R59)","v":0},null,{"$f":"SUM(T53:T59)","v":0},{"$f":"SUM(U53:U59)","v":0},null,{"$f":"SUM(W53:W59)","v":0},{"$f":"SUM(X53:X59)","v":0},{"$f":"SUM(Y53:Y59)","v":0},{"$f":"SUM(Z53)","v":0},{"$f":"SUM(AA53)","v":0},{"$f":"O60+R60+U60+W60+SUM(Y60:AA60)","v":0},null,{"$f":"SUM(AD53)","v":0},{"$f":"SUM(AE53)","v":0},{"$f":"SUM(AF53)","v":0},{"$f":"SUM(AG53)","v":0},{"$f":"SUM(AH53)","v":0}]
[null,"<Enter substation ID>",null,null,null,null,""]
[]
[]
[]
[]
[]
[]
[null,"Project Totals",null,null,null,null,null,null,null,null,null,{"$f":"SUM(L61:L67)","v":0},{"$f":"SUM(M61:M67)","v":0},null,{"$f":"SUM(O61:O67)","v":0},null,{"$f":"SUM(Q61:Q67)","v":0},{"$f":"SUM(R61:R67)","v":0},null,{"$f":"SUM(T61:T67)","v":0},{"$f":"SUM(U61:U67)","v":0},null,{"$f":"SUM(W61:W67)","v":0},{"$f":"SUM(X61:X67)","v":0},{"$f":"SUM(Y61:Y67)","v":0},{"$f":"SUM(Z61)","v":0},{"$f":"SUM(AA61)","v":0},{"$f":"O68+R68+U68+W68+SUM(Y68:AA68)","v":0},null,{"$f":"SUM(AD61)","v":0},{"$f":"SUM(AE61)","v":0},{"$f":"SUM(AF61)","v":0},{"$f":"SUM(AG61)","v":0},{"$f":"SUM(AH61)","v":0}]
[null,"<Enter substation ID>",null,null,null,null,""]
[]
[]
[]
[]
[]
[]
[null,"Project Totals",null,null,null,null,null,null,null,null,null,{"$f":"SUM(L69:L75)","v":0},{"$f":"SUM(M69:M75)","v":0},null,{"$f":"SUM(O69:O75)","v":0},null,{"$f":"SUM(Q69:Q75)","v":0},{"$f":"SUM(R69:R75)","v":0},null,{"$f":"SUM(T69:T75)","v":0},{"$f":"SUM(U69:U75)","v":0},null,{"$f":"SUM(W69:W75)","v":0},{"$f":"SUM(X69:X75)","v":0},{"$f":"SUM(Y69:Y75)","v":0},{"$f":"SUM(Z69)","v":0},{"$f":"SUM(AA69)","v":0},{"$f":"O76+R76+U76+W76+SUM(Y76:AA76)","v":0},null,{"$f":"SUM(AD69)","v":0},{"$f":"SUM(AE69)","v":0},{"$f":"SUM(AF69)","v":0},{"$f":"SUM(AG69)","v":0},{"$f":"SUM(AH69)","v":0}]
[null,"<Enter substation ID>",null,null,null,null,""]
[]
[]
[]
[]
[]
[]
[null,"Project Totals",null,null,null,null,null,null,null,null,null,{"$f":"SUM(L77:L83)","v":0},{"$f":"SUM(M77:M83)","v":0},null,{"$f":"SUM(O77:O83)","v":0},null,{"$f":"SUM(Q77:Q83)","v":0},{"$f":"SUM(R77:R83)","v":0},null,{"$f":"SUM(T77:T83)","v":0},{"$f":"SUM(U77:U83)","v":0},null,{"$f":"SUM(W77:W83)","v":0},{"$f":"SUM(X77:X83)","v":0},{"$f":"SUM(Y77:Y83)","v":0},{"$f":"SUM(Z77)","v":0},{"$f":"SUM(AA77)","v":0},{"$f":"O84+R84+U84+W84+SUM(Y84:AA84)","v":0},null,{"$f":"SUM(AD77)","v":0},{"$f":"SUM(AE77)","v":0},{"$f":"SUM(AF77)","v":0},{"$f":"SUM(AG77)","v":0},{"$f":"SUM(AH77)","v":0}]
[null,"<Enter substation ID>",null,null,null,null,""]
[]
[]
[]
[]
[]
[]
[null,"Project Totals",null,null,null,null,null,null,null,null,null,{"$f":"SUM(L85:L91)","v":0},{"$f":"SUM(M85:M91)","v":0},null,{"$f":"SUM(O85:O91)","v":0},null,{"$f":"SUM(Q85:Q91)","v":0},{"$f":"SUM(R85:R91)","v":0},null,{"$f":"SUM(T85:T91)","v":0},{"$f":"SUM(U85:U91)","v":0},null,{"$f":"SUM(W85:W91)","v":0},{"$f":"SUM(X85:X91)","v":0},{"$f":"SUM(Y85:Y91)","v":0},{"$f":"SUM(Z85)","v":0},{"$f":"SUM(AA85)","v":0},{"$f":"O92+R92+U92+W92+SUM(Y92:AA92)","v":0},null,{"$f":"SUM(AD85)","v":0},{"$f":"SUM(AE85)","v":0},{"$f":"SUM(AF85)","v":0},{"$f":"SUM(AG85)","v":0},{"$f":"SUM(AH85)","v":0}]
[null,"<Enter substation ID>",null,null,null,null,""]
[]
[]
[]
[]
[]
[]
[null,"Project Totals",null,null,null,null,null,null,null,null,null,{"$f":"SUM(L93:L99)","v":0},{"$f":"SUM(M93:M99)","v":0},null,{"$f":"SUM(O93:O99)","v":0},null,{"$f":"SUM(Q93:Q99)","v":0},{"$f":"SUM(R93:R99)","v":0},null,{"$f":"SUM(T93:T99)","v":0},{"$f":"SUM(U93:U99)","v":0},null,{"$f":"SUM(W93:W99)","v":0},{"$f":"SUM(X93:X99)","v":0},{"$f":"SUM(Y93:Y99)","v":0},{"$f":"SUM(Z93)","v":0},{"$f":"SUM(AA93)","v":0},{"$f":"O100+R100+U100+W100+SUM(Y100:AA100)","v":0},null,{"$f":"SUM(AD93)","v":0},{"$f":"SUM(AE93)","v":0},{"$f":"SUM(AF93)","v":0},{"$f":"SUM(AG93)","v":0},{"$f":"SUM(AH93)","v":0}]
[null,"<Enter substation ID>",null,null,null,null,""]
[]
[]
[]
[]
[]
[]
[null,"Project Totals",null,null,null,null,null,null,null,null,null,{"$f":"SUM(L101:L107)","v":0},{"$f":"SUM(M101:M107)","v":0},null,{"$f":"SUM(O101:O107)","v":0},null,{"$f":"SUM(Q101:Q107)","v":0},{"$f":"SUM(R101:R107)","v":0},null,{"$f":"SUM(T101:T107)","v":0},{"$f":"SUM(U101:U107)","v":0},null,{"$f":"SUM(W101:W107)","v":0},{"$f":"SUM(X101:X107)","v":0},{"$f":"SUM(Y101:Y107)","v":0},{"$f":"SUM(Z101)","v":0},{"$f":"SUM(AA101)","v":0},{"$f":"O108+R108+U108+W108+SUM(Y108:AA108)","v":0},null,{"$f":"SUM(AD101)","v":0},{"$f":"SUM(AE101)","v":0},{"$f":"SUM(AF101)","v":0},{"$f":"SUM(AG101)","v":0},{"$f":"SUM(AH101)","v":0}]
[null,"<Enter substation ID>",null,null,null,null,""]
[]
[]
[]
[]
[]
[]
[null,"Project Totals",null,null,null,null,null,null,null,null,null,{"$f":"SUM(L109:L115)","v":0},{"$f":"SUM(M109:M115)","v":0},null,{"$f":"SUM(O109:O115)","v":0},null,{"$f":"SUM(Q109:Q115)","v":0},{"$f":"SUM(R109:R115)","v":0},null,{"$f":"SUM(T109:T115)","v":0},{"$f":"SUM(U109:U115)","v":0},null,{"$f":"SUM(W109:W115)","v":0},{"$f":"SUM(X109:X115)","v":0},{"$f":"SUM(Y109:Y115)","v":0},{"$f":"SUM(Z109)","v":0},{"$f":"SUM(AA109)","v":0},{"$f":"O116+R116+U116+W116+SUM(Y116:AA116)","v":0},null,{"$f":"SUM(AD109)","v":0},{"$f":"SUM(AE109)","v":0},{"$f":"SUM(AF109)","v":0},{"$f":"SUM(AG109)","v":0},{"$f":"SUM(AH109)","v":0}]
[null,"<Enter substation ID>",null,null,null,null,""]
[]
[]
[]
[]
[]
[]
[null,"Project Totals",null,null,null,null,null,null,null,null,null,{"$f":"SUM(L117:L123)","v":0},{"$f":"SUM(M117:M123)","v":0},null,{"$f":"SUM(O117:O123)","v":0},null,{"$f":"SUM(Q117:Q123)","v":0},{"$f":"SUM(R117:R123)","v":0},null,{"$f":"SUM(T117:T123)","v":0},{"$f":"SUM(U117:U123)","v":0},null,{"$f":"SUM(W117:W123)","v":0},{"$f":"SUM(X117:X123)","v":0},{"$f":"SUM(Y117:Y123)","v":0},{"$f":"SUM(Z117)","v":0},{"$f":"SUM(AA117)","v":0},{"$f":"O124+R124+U124+W124+SUM(Y124:AA124)","v":0},null,{"$f":"SUM(AD117)","v":0},{"$f":"SUM(AE117)","v":0},{"$f":"SUM(AF117)","v":0},{"$f":"SUM(AG117)","v":0},{"$f":"SUM(AH117)","v":0}]
[null,"<Enter substation ID>",null,null,null,null,""]
[]
[]
[]
[]
[]
[]
[null,"Project Totals",null,null,null,null,null,null,null,null,null,{"$f":"SUM(L125:L131)","v":0},{"$f":"SUM(M125:M131)","v":0},null,{"$f":"SUM(O125:O131)","v":0},null,{"$f":"SUM(Q125:Q131)","v":0},{"$f":"SUM(R125:R131)","v":0},null,{"$f":"SUM(T125:T131)","v":0},{"$f":"SUM(U125:U131)","v":0},null,{"$f":"SUM(W125:W131)","v":0},{"$f":"SUM(X125:X131)","v":0},{"$f":"SUM(Y125:Y131)","v":0},{"$f":"SUM(Z125)","v":0},{"$f":"SUM(AA125)","v":0},{"$f":"O132+R132+U132+W132+SUM(Y132:AA132)","v":0},null,{"$f":"SUM(AD125)","v":0},{"$f":"SUM(AE125)","v":0},{"$f":"SUM(AF125)","v":0},{"$f":"SUM(AG125)","v":0},{"$f":"SUM(AH125)","v":0}]
[null,null,null,"Non material projects",null,null,null,null,null,null,null,null,null,null,null,null,null,null,null,null,null,null,null,null,null,null,null,37317,2016]
[null,null,null,"Non material projects",null,null,null,null,null,null,null,null,null,null,null,null,null,null,null,null,null,null,null,null,null,null,null,49674,2017]
[]
[]
[null,"2.3.2 - AUGEX ASSET DATA - LINES"]
[null,"NOTE: TNSP MUST PROVIDE EXPENDITURE INFORMATION ON A PROJECT CLOSE BASIS."]
[null,"LINE AND PROJECT SUMMARY",null,null,null,null,null,null,null,null,null,"PLANT AND EQUIPMENT EXPENDITURE AND VOLUME",null,null,null,null,null,null,null,null,null,null,null,null,null,"OTHER EXPENDITURE",null,"TOTAL DIRECT EXPENDITURE ($0's)","YEARS INCURRED","ALL RELATED PARTY CONTRACTS",null,null,"LAND AND EASEMENTS"]
[null,"LINE ID",null,"PROJECT ID","PROJECT TYPE","PROJECT TRIGGER","VOLTAGE (KV)","ROUTE LINE LENGTH ADDED",null,null,null,"TOWERS/POLES (INCLUDING STRUCTURES, AND CIVIL WORKS)",null,null,null,"LINES AND CABLES",null,null,null,null,null,null,"OTHER PLANT ITEM","INSTALLATION (LABOUR)",null,"CIVIL WORKS","OTHER DIRECT",null,null,"RELATED PARTY MARGINS","TOTAL","ALL NON RELATED PARTYCONTRACTS","LAND PURCHASES","EASEMENTS"]
[null,null,null,null,null,null,null,null,null,null,null,null,null,null,null,"Type","Rating (MVA)",null,"N-1 Emergency Rating (MVA)",null,"Circuit KM Added","Expenditure\n($0's)"]
[null,null,null,null,null,null,null,"KM ADDED",null,null,null,"Configuration","Towers/Poles Added","Towers/Poles Upgraded","Expenditure\n($0's)",null,"PRE","POST","PRE","POST",null,null,"Expenditure ($0's)","Volume","Expenditure\n($0's)","Expenditure ($0's)",null,null,null,"Expenditure ($0's)",null,null,"Expenditure\n($0's)"]
[null,"<Enter line ID>"]
[]
[]
[]
[]
[]
[]
[null,"Project Totals",null,null,null,null,null,null,null,null,null,null,{"$f":"SUM(M143:M149)","v":0},{"$f":"SUM(N143:N149)","v":0},{"$f":"SUM(O143:O149)","v":0},null,null,null,null,null,{"$f":"SUM(U143:U149)","v":0},0,0,0,0,0,0,{"$f":"O150+R150+U150+W150+SUM(Y150:AA150)","v":0},null,{"$f":"SUM(AD143:AD149)","v":0},{"$f":"SUM(AE143:AE149)","v":0},{"$f":"SUM(AF143:AF149)","v":0},{"$f":"SUM(AG143:AG149)","v":0},{"$f":"SUM(AH143:AH149)","v":0}]
[null,"<Enter line ID>"]
[]
[]
[]
[]
[]
[]
[null,"Project Totals",null,null,null,null,null,null,null,null,null,null,{"$f":"SUM(M151:M157)","v":0},{"$f":"SUM(N151:N157)","v":0},{"$f":"SUM(O151:O157)","v":0},null,null,null,null,null,{"$f":"SUM(U151:U157)","v":0},{"$f":"SUM(V151:V157)","v":0},{"$f":"SUM(W151:W157)","v":0},0,0,0,0,{"$f":"O158+R158+U158+W158+SUM(Y158:AA158)","v":0},null,{"$f":"SUM(AD151:AD157)","v":0},{"$f":"SUM(AE151:AE157)","v":0},{"$f":"SUM(AF151:AF157)","v":0},{"$f":"SUM(AG151:AG157)","v":0},{"$f":"SUM(AH151:AH157)","v":0}]
[null,"<Enter line ID>"]
[]
[]
[]
[]
[]
[]
[null,"Project Totals",null,null,null,null,null,null,null,null,null,null,{"$f":"SUM(M159:M165)","v":0},{"$f":"SUM(N159:N165)","v":0},{"$f":"SUM(O159:O165)","v":0},null,null,null,null,null,{"$f":"SUM(U159:U165)","v":0},{"$f":"SUM(V159:V165)","v":0},{"$f":"SUM(W159:W165)","v":0},0,0,0,0,{"$f":"O166+R166+U166+W166+SUM(Y166:AA166)","v":0},null,{"$f":"SUM(AD159:AD165)","v":0},{"$f":"SUM(AE159:AE165)","v":0},{"$f":"SUM(AF159:AF165)","v":0},{"$f":"SUM(AG159:AG165)","v":0},{"$f":"SUM(AH159:AH165)","v":0}]
[null,"<Enter line ID>"]
[]
[]
[]
[]
[]
[]
[null,"Project Totals",null,null,null,null,null,null,null,null,null,null,{"$f":"SUM(M167:M173)","v":0},{"$f":"SUM(N167:N173)","v":0},{"$f":"SUM(O167:O173)","v":0},null,null,null,null,null,{"$f":"SUM(U167:U173)","v":0},{"$f":"SUM(V167:V173)","v":0},{"$f":"SUM(W167:W173)","v":0},0,0,0,0,{"$f":"O174+R174+U174+W174+SUM(Y174:AA174)","v":0},null,{"$f":"SUM(AD167:AD173)","v":0},{"$f":"SUM(AE167:AE173)","v":0},{"$f":"SUM(AF167:AF173)","v":0},{"$f":"SUM(AG167:AG173)","v":0},{"$f":"SUM(AH167:AH173)","v":0}]
[null,"<Enter line ID>"]
[]
[]
[]
[]
[]
[]
[null,"Project Totals",null,null,null,null,null,null,null,null,null,null,{"$f":"SUM(M175:M181)","v":0},{"$f":"SUM(N175:N181)","v":0},{"$f":"SUM(O175:O181)","v":0},null,null,null,null,null,{"$f":"SUM(U175:U181)","v":0},{"$f":"SUM(V175:V181)","v":0},{"$f":"SUM(W175:W181)","v":0},0,0,0,0,{"$f":"O182+R182+U182+W182+SUM(Y182:AA182)","v":0},null,{"$f":"SUM(AD175:AD181)","v":0},{"$f":"SUM(AE175:AE181)","v":0},{"$f":"SUM(AF175:AF181)","v":0},{"$f":"SUM(AG175:AG181)","v":0},{"$f":"SUM(AH175:AH181)","v":0}]
[null,"<Enter line ID>"]
[]
[]
[]
[]
[]
[]
[null,"Project Totals",null,null,null,null,null,null,null,null,null,null,{"$f":"SUM(M183:M189)","v":0},{"$f":"SUM(N183:N189)","v":0},{"$f":"SUM(O183:O189)","v":0},null,null,null,null,null,{"$f":"SUM(U183:U189)","v":0},{"$f":"SUM(V183:V189)","v":0},{"$f":"SUM(W183:W189)","v":0},0,0,0,0,{"$f":"O190+R190+U190+W190+SUM(Y190:AA190)","v":0},null,{"$f":"SUM(AD183:AD189)","v":0},{"$f":"SUM(AE183:AE189)","v":0},{"$f":"SUM(AF183:AF189)","v":0},{"$f":"SUM(AG183:AG189)","v":0},{"$f":"SUM(AH183:AH189)","v":0}]
[null,"<Enter line ID>"]
[]
[]
[]
[]
[]
[]
[null,"Project Totals",null,null,null,null,null,null,null,null,null,null,{"$f":"SUM(M191:M197)","v":0},{"$f":"SUM(N191:N197)","v":0},{"$f":"SUM(O191:O197)","v":0},null,null,null,null,null,{"$f":"SUM(U191:U197)","v":0},{"$f":"SUM(V191:V197)","v":0},{"$f":"SUM(W191:W197)","v":0},0,0,0,0,{"$f":"O198+R198+U198+W198+SUM(Y198:AA198)","v":0},null,{"$f":"SUM(AD191:AD197)","v":0},{"$f":"SUM(AE191:AE197)","v":0},{"$f":"SUM(AF191:AF197)","v":0},{"$f":"SUM(AG191:AG197)","v":0},{"$f":"SUM(AH191:AH197)","v":0}]
[null,null,null,"Non material projects",null,null,null,null,null,null,null,null,null,null,null,null,null,null,null,null,null,null,null,null,null,null,null,340602,2015]
[null,null,null,"Non material projects",null,null,null,null,null,null,null,null,null,null,null,null,null,null,null,null,null,null,null,null,null,null,null,2584091,2016]
[null,null,null,"Non material projects",null,null,null,null,null,null,null,null,null,null,null,null,null,null,null,null,null,null,null,null,null,null,null,1335504,2017]
[]
[]
[]
[null,"2.3.4 - AUGEX - TOTAL EXPENDITURE"]
[]
[null,null,"EXPENDITURE\n($0's)"]
[null,"AUGMENTATION CAPEX (as incurred)",{"$f":"CRY","v":"2016-17"}]
[null,"Substations",6247910.4329053219]
[null,"Lines",4365088.8648098493]
[null,"Other assets",8676325.5457061268]
[null,"Total augmentation capex",{"$f":"SUM(C209:C211)","v":19289324.843421299}]

{"sheet":"2.5 Connections","index":7,"n_rows":91,"n_cols":6,"rows_kept":91,"cut":false,"hidden":false,"merged":[]}
[null,"REGULATORY REPORTING STATEMENT"]
[null,{"$f":"INDEX(dms_TradingNameFull_List,MATCH(dms_TradingName,dms_TradingName_List))","v":"ElectraNet"}]
[null,{"$f":"CONCATENATE((LOOKUP(dms_Model,dms_Model_List,dms_Worksheet_List))&\" \"&CRY)","v":"CATEGORY ANALYSIS 2016-17"}]
[null,"2.5 CONNECTIONS EXPENDITURE"]
[]
[null,"There are TWO tables on this worksheet. Each has been grouped (or sub-grouped).  See the Instructions sheet on how to group or ungroup data."]
[]
[null,"2.5.1 - EXPENDITURE ON CONNECTION PROJECTS"]
[null,null,"EXPENDITURE \n($0's)"]
[null,"CONNECTION PROJECT",{"$f":"CRY","v":"2016-17"}]
[null,"DIRECT MATERIALS EXPENDITURE"]
[null,"EC.11209 Munno Para New 275_66 kV Connection Point",4678499.0300000021]
[]
[]
[]
[]
[]
[]
[]
[]
[]
[]
[]
[]
[]
[]
[]
[]
[]
[]
[]
[]
[]
[]
[]
[]
[null,"DIRECT LABOUR EXPENDITURE"]
[null,{"$f":"IF(ISBLANK(B12),\"\",B12)","v":"EC.11209 Munno Para New 275_66 kV Connection Point"},3695915.7771644373]
[null,{"$f":"IF(ISBLANK(B13),\"\",B13)","v":""}]
[null,""]
[null,""]
[null,""]
[null,""]
[null,""]
[null,""]
[null,""]
[null,""]
[null,""]
[null,""]
[null,""]
[null,""]
[null,""]
[null,""]
[null,""]
[null,""]
[null,""]
[null,""]
[null,""]
[null,""]
[null,""]
[null,""]
[]
[]
[]
[]
[null,"2.5.2 - DESCRIPTION OF CONNECTION PROJECTS"]
[null,null,"CONNECTION RATING (MVA)","CONNECTION \nVOLTAGE (KV)","UNDERGROUND / OVERHEAD","YEAR CONNECTION PROJECT COMPLETED "]
[null,{"$f":"IF(ISBLANK(B12),\"\",B12)","v":"EC.11209 Munno Para New 275_66 kV Connection Point"},225,275,"Overhead",2017]
[null,""]
[null,""]
[null,""]
[null,""]
[null,""]
[null,""]
[null,""]
[null,""]
[null,""]
[null,""]
[null,""]
[null,""]
[null,""]
[null,""]
[null,""]
[null,""]
[null,""]
[null,""]
[null,""]
[null,""]
[null,""]
[null,""]
[null,""]

{"sheet":"2.6 Non-network","index":8,"n_rows":93,"n_cols":5,"rows_kept":93,"cut":false,"hidden":false,"merged":[[78,1,82,1],[83,1,87,1],[88,1,92,1],[5,1,5,2],[68,1,72,1],[60,2,60,3],[61,2,61,3],[62,2,62,3],[73,1,77,1]]}
[null,"REGULATORY REPORTING STATEMENT"]
[null,{"$f":"INDEX(dms_TradingNameFull_List,MATCH(dms_TradingName,dms_TradingName_List))","v":"ElectraNet"}]
[null,{"$f":"CONCATENATE((LOOKUP(dms_Model,dms_Model_List,dms_Worksheet_List))&\" \"&CRY)","v":"CATEGORY ANALYSIS 2016-17"}]
[null,"2.6 NON NETWORK EXPENDITURE"]
[]
[null,"There are THREE tables on this worksheet - each has been 'grouped' (and sub-grouped) for easy navigation. See the Instructions sheet on how to group or ungroup tables. "]
[]
[null,"2.6.1 - NON-NETWORK EXPENDITURE"]
[null,null,null,null,"EXPENDITURE\n($0's)"]
[null,"SERVICE SUBCATEGORY","ASSET CATEGORY",null,{"$f":"CRY","v":"2016-17"}]
[null,"OPEX"]
[null,"IT & COMMUNICATIONS","Client device expenditure",null,253625.36999999997]
[null,null,"Recurrent expenditure",null,6414745.8999999994]
[null,null,"Non-recurrent expenditure"]
[null,"MOTOR VEHICLES","Car",null,107017.32000000007]
[null,null,"Light commercial vehicle"]
[null,null,"Elevated work platform (LCV)  "]
[null,null,"Elevated work platform (HCV)"]
[null,null,"Heavy commercial vehicle"]
[null,"BUILDINGS AND PROPERTY","Total buildings and property expenditure",null,2215583.4748350782]
[null,"OTHER","Other expenditure"]
[null,"OTHER - DNSP nominated"]
[]
[]
[]
[]
[]
[]
[]
[]
[]
[]
[null,"CAPEX"]
[null,"IT & COMMUNICATIONS","Client device expenditure",null,3733222.1910000001]
[null,null,"Recurrent expenditure",null,3273867.2230000002]
[null,null,"Non-recurrent expenditure",null,1269603.76]
[null,"MOTOR VEHICLES","Car",null,212128.2]
[null,null,"Light commercial vehicle"]
[null,null,"Elevated work platform (LCV)  "]
[null,null,"Elevated work platform (HCV)"]
[null,null,"Heavy commercial vehicle"]
[null,"BUILDINGS AND PROPERTY","Total buildings and property expenditure",null,393757.65299999999]
[null,"OTHER","Other expenditure"]
[null,"OTHER - DNSP nominated","Plant and equipment",null,39388.184000000001]
[]
[]
[]
[]
[]
[]
[]
[]
[]
[]
[]
[]
[]
[null,"2.6.2 - ANNUAL DESCRIPTOR METRICS - IT & COMMUNICATIONS EXPENDITURE"]
[null,null,null,null,"VOLUMES\n(0's)"]
[null,"NON-NETWORK CATEGORY","DESCRIPTOR METRIC",null,{"$f":"CRY","v":"2016-17"}]
[null,"IT & COMMUNICATIONS","Employee numbers",null,260.5]
[null,null,"User numbers",null,313.68599999999998]
[null,null,"Number of devices",null,588.62633976833979]
[]
[]
[null,"2.6.3 - ANNUAL DESCRIPTOR METRICS - MOTOR VEHICLES"]
[null,null,null,null,"VOLUMES / %"]
[null,"ASSET CATEGORY","DESCRIPTOR METRIC","UNITS",{"$f":"CRY","v":"2016-17"}]
[null,"CAR","Average kilometres travelled","0's",24.556608365019009]
[null,null,"Number purchased","0's",15.583333333333334]
[null,null,"Number leased","0's",6.333333333333333]
[null,null,"Number in fleet","0's",21.916666666666668]
[null,null,"Proportion of total fleet expenditure allocated as regulatory expenditure","(per cent)",0.94199999999999995]
[null,"LIGHT COMMERCIAL VEHICLE","Average kilometres travelled","0's",0]
[null,null,"Number purchased","0's",0]
[null,null,"Number leased","0's",0]
[null,null,"Number in fleet","0's",0]
[null,null,"Proportion of total fleet expenditure allocated as regulatory expenditure","(per cent)",0]
[null,"ELEVATED WORK PLATFORM (LCV) ","Average kilometres travelled","0's",0]
[null,null,"Number purchased","0's",0]
[null,null,"Number leased","0's",0]
[null,null,"Number in fleet","0's",0]
[null,null,"Proportion of total fleet expenditure allocated as regulatory expenditure","(per cent)",0]
[null,"ELEVATED WORK PLATFORM (HCV)","Average kilometres travelled","0's",0]
[null,null,"Number purchased","0's",0]
[null,null,"Number leased","0's",0]
[null,null,"Number in fleet","0's",0]
[null,null,"Proportion of total fleet expenditure allocated as regulatory expenditure","(per cent)",0]
[null,"HEAVY COMMERCIAL VEHICLE ","Average kilometres travelled","0's",0]
[null,null,"Number purchased","0's",0]
[null,null,"Number leased","0's",0]
[null,null,"Number in fleet","0's",0]
[null,null,"Proportion of total fleet expenditure allocated as regulatory expenditure","(per cent)",0]

{"sheet":"2.7 Vegetation management","index":9,"n_rows":158,"n_cols":5,"rows_kept":158,"cut":false,"hidden":false,"merged":[[5,1,5,2],[149,1,149,3]]}
[null,"REGULATORY REPORTING STATEMENT"]
[null,{"$f":"INDEX(dms_TradingNameFull_List,MATCH(dms_TradingName,dms_TradingName_List))","v":"ElectraNet"}]
[null,{"$f":"CONCATENATE((LOOKUP(dms_Model,dms_Model_List,dms_Worksheet_List))&\" \"&CRY)","v":"CATEGORY ANALYSIS 2016-17"}]
[null,"2.7 VEGETATION MANAGEMENT"]
[]
[null,"There are THREE tables on this worksheet. Each has been 'grouped' for easy navigation. See the Instructions sheet on how to group or ungroup data."]
[]
[null,"2.7.1 - DESCRIPTOR METRICS BY ZONE"]
[null,null,null,null,"VOLUMES"]
[null,"ZONES","ASSET / ENVIRONMENTAL FACTOR","UNITS",{"$f":"CRY","v":"2016-17"}]
[null,"HBFRA (High Bushfire Risk Area)","Route line length within zone","km",1015]
[null,null,"Number of maintenance spans","0's",353]
[null,null,"Total length of maintenance spans","km",122.38509999999999]
[null,null,"Average number of trees per maintenance span","0's",20.100000000000001]
[null,null,"Length of vegetation corridors","km",1015]
[null,null,"Average width of vegetation corridors","metres",93.148498782796864]
[null,null,"Average frequency of cutting cycle","years",1]
[null,"BFRA (Bushfire Risk Area)","Route line length within zone","km",2629]
[null,null,"Number of maintenance spans","0's",328]
[null,null,"Total length of maintenance spans","km",110.66719999999999]
[null,null,"Average number of trees per maintenance span","0's",13.9]
[null,null,"Length of vegetation corridors","km",2629]
[null,null,"Average width of vegetation corridors","metres",91.213631284916204]
[null,null,"Average frequency of cutting cycle","years",1]
[null,"NBFRA (Non Bushfire Risk Area)","Route line length within zone","km",891.7]
[null,null,"Number of maintenance spans","0's",539]
[null,null,"Total length of maintenance spans","km",183.04440000000002]
[null,null,"Average number of trees per maintenance span","0's",11.3]
[null,null,"Length of vegetation corridors","km",891.7]
[null,null,"Average width of vegetation corridors","metres",30.315090673575128]
[null,null,"Average frequency of cutting cycle","years",3]
[null,"ZONE 4","Route line length within zone","km"]
[null,null,"Number of maintenance spans","0's"]
[null,null,"Total length of maintenance spans","km"]
[null,null,"Average number of trees per maintenance span","0's"]
[null,null,"Length of vegetation corridors","km"]
[null,null,"Average width of vegetation corridors","metres"]
[null,null,"Average frequency of cutting cycle","years"]
[null,"ZONE 5","Route line length within zone","km"]
[null,null,"Number of maintenance spans","0's"]
[null,null,"Total length of maintenance spans","km"]
[null,null,"Average number of trees per maintenance span","0's"]
[null,null,"Length of vegetation corridors","km"]
[null,null,"Average width of vegetation corridors","metres"]
[null,null,"Average frequency of cutting cycle","years"]
[null,"ZONE 6","Route line length within zone","km"]
[null,null,"Number of maintenance spans","0's"]
[null,null,"Total length of maintenance spans","km"]
[null,null,"Average number of trees per maintenance span","0's"]
[null,null,"Length of vegetation corridors","km"]
[null,null,"Average width of vegetation corridors","metres"]
[null,null,"Average frequency of cutting cycle","years"]
[null,"ZONE 7","Route line length within zone","km"]
[null,null,"Number of maintenance spans","0's"]
[null,null,"Total length of maintenance spans","km"]
[null,null,"Average number of trees per maintenance span","0's"]
[null,null,"Length of vegetation corridors","km"]
[null,null,"Average width of vegetation corridors","metres"]
[null,null,"Average frequency of cutting cycle","years"]
[null,"ZONE 8","Route line length within zone","km"]
[null,null,"Number of maintenance spans","0's"]
[null,null,"Total length of maintenance spans","km"]
[null,null,"Average number of trees per maintenance span","0's"]
[null,null,"Length of vegetation corridors","km"]
[null,null,"Average width of vegetation corridors","metres"]
[null,null,"Average frequency of cutting cycle","years"]
[null,"ZONE 9","Route line length within zone","km"]
[null,null,"Number of maintenance spans","0's"]
[null,null,"Total length of maintenance spans","km"]
[null,null,"Average number of trees per maintenance span","0's"]
[null,null,"Length of vegetation corridors","km"]
[null,null,"Average width of vegetation corridors","metres"]
[null,null,"Average frequency of cutting cycle","years"]
[null,"ZONE 10","Route line length within zone","km"]
[null,null,"Number of maintenance spans","0's"]
[null,null,"Total length of maintenance spans","km"]
[null,null,"Average number of trees per maintenance span","0's"]
[null,null,"Length of vegetation corridors","km"]
[null,null,"Average width of vegetation corridors","metres"]
[null,null,"Average frequency of cutting cycle","years"]
[]
[]
[null,"2.7.2 - EXPENDITURE METRICS BY ZONE"]
[null,null,null,null,"EXPENDITURE\n($0's)"]
[null,"ZONES","SERVICE SUBCATEGORY",null,{"$f":"CRY","v":"2016-17"}]
[null,{"$f":"B11","v":"HBFRA (High Bushfire Risk Area)"},"Tree trimming"]
[null,null,"Vegetation corridor clearance "]
[null,null,"Inspection "]
[null,null,"Audit "]
[null,null,"Contractor liaison expenditure "]
[null,null,"Other vegetation management expenditure"]
[null,{"$f":"B18","v":"BFRA (Bushfire Risk Area)"},"Tree trimming"]
[null,null,"Vegetation corridor clearance "]
[null,null,"Inspection "]
[null,null,"Audit "]
[null,null,"Contractor liaison expenditure "]
[null,null,"Other vegetation management expenditure"]
[null,{"$f":"B25","v":"NBFRA (Non Bushfire Risk Area)"},"Tree trimming"]
[null,null,"Vegetation corridor clearance "]
[null,null,"Inspection "]
[null,null,"Audit "]
[null,null,"Contractor liaison expenditure "]
[null,null,"Other vegetation management expenditure"]
[null,{"$f":"B32","v":"ZONE 4"},"Tree trimming"]
[null,null,"Vegetation corridor clearance "]
[null,null,"Inspection "]
[null,null,"Audit "]
[null,null,"Contractor liaison expenditure "]
[null,null,"Other vegetation management expenditure"]
[null,{"$f":"B39","v":"ZONE 5"},"Tree trimming"]
[null,null,"Vegetation corridor clearance "]
[null,null,"Inspection "]
[null,null,"Audit "]
[null,null,"Contractor liaison expenditure "]
[null,null,"Other vegetation management expenditure"]
[null,{"$f":"B46","v":"ZONE 6"},"Tree trimming"]
[null,null,"Vegetation corridor clearance "]
[null,null,"Inspection "]
[null,null,"Audit "]
[null,null,"Contractor liaison expenditure "]
[null,null,"Other vegetation management expenditure"]
[null,{"$f":"B53","v":"ZONE 7"},"Tree trimming"]
[null,null,"Vegetation corridor clearance "]
[null,null,"Inspection "]
[null,null,"Audit "]
[null,null,"Contractor liaison expenditure "]
[null,null,"Other vegetation management expenditure"]
[null,{"$f":"B60","v":"ZONE 8"},"Tree trimming"]
[null,null,"Vegetation corridor clearance "]
[null,null,"Inspection "]
[null,null,"Audit "]
[null,null,"Contractor liaison expenditure "]
[null,null,"Other vegetation management expenditure"]
[null,{"$f":"B67","v":"ZONE 9"},"Tree trimming"]
[null,null,"Vegetation corridor clearance "]
[null,null,"Inspection "]
[null,null,"Audit "]
[null,null,"Contractor liaison expenditure "]
[null,null,"Other vegetation management expenditure"]
[null,{"$f":"B74","v":"ZONE 10"},"Tree trimming"]
[null,null,"Vegetation corridor clearance "]
[null,null,"Inspection "]
[null,null,"Audit "]
[null,null,"Contractor liaison expenditure "]
[null,null,"Other vegetation management expenditure"]
[]
[]
[null,"2.7.3 - DESCRIPTOR METRICS ACROSS ALL ZONES - UNPLANNED VEGETATION EVENTS"]
[null,null,null,null,"VOLUMES\n(0's)"]
[null,"DESCRIPTOR METRIC",null,null,{"$f":"CRY","v":"2016-17"}]
[null,"Number of fire starts caused by vegetation grow-ins (NSP responsibility)",null,"",0]
[null,"Number of fire starts caused by vegetation blow-ins and fall-ins (NSP responsibility)",null,"",0]
[null,"Number of outages caused by vegetation grow-ins (NSP responsibility)",null,"",0]
[null,"Number of outages caused by vegetation blow-ins and fall-ins (NSP responsibility)",null,"",0]
[null,"Number of fire starts caused by vegetation grow-ins (other party responsibility)",null,"",0]
[null,"Number of fire starts caused by vegetation blow-ins and fall-ins (other party responsibility)",null,"",0]
[null,"Number of outages caused by vegetation grow-ins (other party responsibility)",null,"",0]
[null,"Number of outages caused by vegetation blow-ins and fall-ins (other party responsibility)",null,"",0]

{"sheet":"2.8 Maintenance","index":10,"n_rows":81,"n_cols":10,"rows_kept":81,"cut":false,"hidden":false,"merged":[[5,1,5,2],[8,5,8,6],[8,7,9,7],[8,8,10,8],[8,9,10,9],[9,1,10,1],[9,2,10,2],[9,4,10,4],[9,3,10,3],[46,5,46,6],[15,1,17,1],[53,1,55,1],[47,1,48,1],[11,1,14,1],[49,1,52,1],[47,2,48,4]]}
[null,"REGULATORY REPORTING STATEMENT"]
[null,{"$f":"INDEX(dms_TradingNameFull_List,MATCH(dms_TradingName,dms_TradingName_List))","v":"ElectraNet"}]
[null,{"$f":"CONCATENATE((LOOKUP(dms_Model,dms_Model_List,dms_Worksheet_List))&\" \"&CRY)","v":"CATEGORY ANALYSIS 2016-17"}]
[null,"2.8 MAINTENANCE"]
[]
[null,"There are TWO tables on this worksheet. Each has been 'grouped' for easy navigation. See the Instructions sheet on how to group or ungroup data."]
[]
[null,"2.8.1 - DESCRIPTOR METRICS FOR ROUTINE AND NON-ROUTINE MAINTENANCE"]
[null,null,null,null,null,"ASSET QUANTITY",null,"AVERAGE AGE OF ASSET GROUP ","INSPECTION CYCLE \n(YEARS)","MAINTENANCE CYCLE \n(YEARS)"]
[null,"MAINTENANCE ACTIVITY","MAINTENANCE ASSET CATEGORY","MEASURE \n/ ASSET QUANTITY","UNITS","AT YEAR END","INSPECTED/ MAINTAINED"]
[null,null,null,null,null,{"$f":"CRY","v":"2016-17"},{"$f":"CRY","v":"2016-17"},{"$f":"CRY","v":"2016-17"}]
[null,"Transmission lines maintenance","Transmission towers","Number of towers","0's",13.257,13.257,45.2,0.5,"Nil. Cond mon.&corr mtce"]
[null,null,"Transmission tower support structures","Number of towers","0's",58.956000000000003,58.956000000000003,43.342044728434502,0.5,"Nil. Cond mon.&corr mtce"]
[null,null,"Conductors","Route length","km",5.4923700000000002,5.4923700000000002,43.7,0.5,"Nil. Cond mon.&corr mtce"]
[null,null,"Transmission cables","Route length","km",2.7E-2,2.7E-2,13.4,0.02,"Nil. Cond mon.&corr mtce"]
[null,"Substations equipment & property maintenance","Substation switchbays (incl. Reactive plant)","Number of switchbays","0's",1.4670000000000001,1.4670000000000001,24.9,0.25,6]
[null,null,"Substation power transformers","Number of transformers","0's",0.13900000000000001,0.13900000000000001,28.2,0.25,6]
[null,null,"Substation property","Number of substation properties maintained","0's",7.8E-2,7.8E-2,38.4,0.25,0.5]
[null,"SCADA & network control maintenance","SCADA & network control maintenance","Number of Comms Sites","0's",121,121,28.9,0.5,"Nil. Cond mon.&corr mtce"]
[null,"Protection systems maintenance","Protection systems maintenance","Number of Protection Systems","0's",1391,1391,13,0.25,4]
[null,"Other maintenance activity ","Right of way (Row Maintenance)","Length (Route KM)","km",4536,4536,43.7,0.5,3]
[]
[]
[]
[]
[]
[]
[]
[]
[]
[]
[]
[]
[]
[]
[]
[]
[]
[]
[]
[]
[]
[]
[]
[]
[null,"2.8.2 - COST METRICS FOR ROUTINE AND NON-ROUTINE MAINTENANCE"]
[null,null,null,null,null,"DIRECT EXPENDITURE\n($0's)"]
[null,"ASSET CATEGORIES","ASSET SUBCATEGORIES",null,null," ROUTINE MAINTENANCE","NON-ROUTINE MAINTENANCE"]
[null,null,null,null,null,{"$f":"CRY","v":"2016-17"},{"$f":"CRY","v":"2016-17"}]
[null,"Transmission lines maintenance","Transmission towers",null,null,1562206.7935996205,9570469.9385714624]
[null,null,"Transmission tower support structures",null,null,1454450.0905011678,3463140.6388111305]
[null,null,"Conductors",null,null,453582.38279229478,1816430.6389303135]
[null,null,"Transmission cables",null,null,461082.6331069165,17138.983687092703]
[null,"Substations equipment & property maintenance","Substation switchbays (incl. Reactive plant)",null,null,1695642.8516198865,3019848.5343423737]
[null,null,"Substation power transformers",null,null,786941.53091543633,1660064.3025820693]
[null,null,"Substation property",null,null,3418355.2074646768,3360762.4830755573]
[null,"SCADA & network control maintenance","SCADA & network control maintenance",null,null,2099512.6800000002,488261.72]
[null,"Protection systems maintenance","Protection systems maintenance",null,null,2384134.4900000002,1236963.26]
[null,"Other maintenance activity ",{"$f":"IF(ISBLANK(C21),\"\",C21)","v":"Right of way (Row Maintenance)"},{"$f":"IF(ISBLANK(D21),\"\",D21)","v":"Length (Route KM)"},"km",1945579,93318.94]
[null,null,{"$f":"IF(ISBLANK(C22),\"\",C22)","v":""},"",""]
[null,null,"","",""]
[null,null,"","",""]
[null,null,"","",""]
[null,null,"","",""]
[null,null,"","",""]
[null,null,"","",""]
[null,null,"","",""]
[null,null,"","",""]
[null,null,"","",""]
[null,null,"","",""]
[null,null,"","",""]
[null,null,"","",""]
[null,null,"","",""]
[null,null,"","",""]
[null,null,"","",""]
[null,null,"","",""]
[null,null,"","",""]
[null,null,"","",""]
[null,null,"","",""]
[null,null,"","",""]
[null,null,"","",""]

{"sheet":"2.10 Overheads","index":11,"n_rows":129,"n_cols":4,"rows_kept":129,"cut":false,"hidden":false,"merged":[[6,1,6,2],[66,1,66,3],[42,1,42,3],[14,1,14,3],[43,1,63,1],[175,60,175,69],[175,71,175,80],[177,34,177,35],[175,16,175,25],[175,27,175,36],[175,38,175,47],[175,49,175,58],[177,16,177,20],[177,21,177,22],[177,23,177,24],[177,27,177,31],[177,32,177,33],[177,76,177,77],[177,78,177,79],[177,38,177,42],[177,60,177,64],[177,65,177,66],[177,67,177,68],[177,71,177,75],[177,45,177,46],[177,49,177,53],[177,54,177,55],[177,56,177,57],[205,15,205,22],[205,24,205,31],[205,33,205,40],[205,42,205,49],[177,43,177,44],[205,51,205,58],[101,1,101,3],[9,1,9,2],[208,56,208,57],[208,7,208,10],[208,11,208,12],[208,15,208,19],[208,20,208,21],[208,24,208,28],[208,29,208,30],[208,33,208,37],[208,38,208,39],[208,42,208,46],[208,47,208,48],[208,51,208,55],[205,7,205,13]]}
[null,"REGULATORY REPORTING STATEMENT"]
[null,{"$f":"INDEX(dms_TradingNameFull_List,MATCH(dms_TradingName,dms_TradingName_List))","v":"ElectraNet"}]
[null,{"$f":"CONCATENATE((LOOKUP(dms_Model,dms_Model_List,dms_Worksheet_List))&\" \"&CRY)","v":"CATEGORY ANALYSIS 2016-17"}]
[null,"2.10 OVERHEADS"]
[]
[]
[null,"There are TWO tables on this worksheet. Each has been 'grouped' (and sub-grouped) for easy navigation. See the Instructions sheet on how to group or ungroup data."]
[]
[null,"Instructions"]
[null,"Enter each expenditure category currently reported under annual Information Guidelines."]
[]
[null,"2.10.1 - NETWORK OVERHEADS EXPENDITURE"]
[null,null,null,"EXPENDITURE\n($0's)"]
[null,null,null,{"$f":"CRY","v":"2016-17"}]
[null,"MAINTENANCE SUPPORT"]
[null,"Prescribed Services","Total",6989004.9640675178]
[]
[]
[]
[]
[]
[]
[]
[]
[]
[]
[]
[]
[]
[]
[]
[]
[]
[]
[]
[]
[]
[]
[]
[]
[null,"Negotiated Services","Total",55316.77100024269]
[null,"Unregulated Services","Total",164430.58434126759]
[null,"NETWORK MONITORING AND CONTROL"]
[null,"Prescribed Services","Total",6754319.9464298021]
[]
[]
[]
[]
[]
[]
[]
[]
[]
[]
[]
[]
[]
[]
[]
[]
[]
[]
[]
[]
[null,"Negotiated Services","Total",-235.78999999999996]
[null,"Unregulated Services","Total",21200.99000000002]
[null,"ASEET MANAGEMENT SUPPORT"]
[null,"Prescribed Services","Total",11269541.232477617]
[]
[]
[]
[]
[]
[]
[]
[]
[]
[]
[]
[]
[]
[]
[]
[]
[]
[]
[]
[]
[]
[]
[]
[]
[]
[null,"Negotiated Services","Total",-404.93000000000006]
[null,"Unregulated Services","Total",1308001.8099999991]
[]
[]
[]
[null,"2.10.2 - CORPORATE OVERHEADS EXPENDITURE"]
[null,null,null,"EXPENDITURE\n($0's)"]
[null,null,null,{"$f":"CRY","v":"2016-17"}]
[null,"CORPORATE OVERHEADS"]
[null,"Prescribed Services","Total",26883935.618092764]
[]
[]
[]
[]
[]
[]
[]
[]
[]
[]
[]
[]
[]
[]
[]
[]
[]
[]
[]
[]
[]
[]
[]
[]
[null,"Negotiated Services","Total",4.0000000000873115E-2]
[null,"Unregulated Services","Total",19483.340000000084]

{"sheet":"2.11 Labour","index":12,"n_rows":54,"n_cols":7,"rows_kept":54,"cut":false,"hidden":false,"merged":[[5,1,5,2],[33,3,33,4],[33,5,33,6],[8,5,9,5],[8,6,9,6],[8,3,9,3],[8,4,9,4]]}
[null,"REGULATORY REPORTING STATEMENT"]
[null,{"$f":"INDEX(dms_TradingNameFull_List,MATCH(dms_TradingName,dms_TradingName_List))","v":"ElectraNet"}]
[null,{"$f":"CONCATENATE((LOOKUP(dms_Model,dms_Model_List,dms_Worksheet_List))&\" \"&CRY)","v":"CATEGORY ANALYSIS 2016-17"}]
[null,"2.11 LABOUR"]
[]
[null,"There are TWO tables on this worksheet. Each table has been 'grouped' (and sub-grouped) for easy navigation.  See the Instructions sheet on how to group or ungroup data."]
[]
[null,"2.11.1 - COST METRICS PER ANNUM"]
[null,null,null,"ASL \n(0's)","TOTAL LABOUR EXPENDITURE \n($0's)","AVERAGE PRODUCTIVE WORK HOURS \nPER ASL \n(0's)","STAND-DOWN OCCURENCES \nPER ASL\n(0's)"]
[]
[null,null,null,{"$f":"CRY","v":"2016-17"},{"$f":"CRY","v":"2016-17"},{"$f":"CRY","v":"2016-17"},{"$f":"CRY","v":"2016-17"}]
[null,"CORPORATE OVERHEADS","Executive manager",6.6164003831417624,2547102.8004613421,1947.7917377606614,0]
[null,null,"Senior manager",4.1212499999999999,1228669.1193025364,2139.5207764634515,0]
[null,null,"Manager",17.860402937420176,3609531.8316853764,1701.8140296930042,0]
[null,null,"Professional",45.713131864623236,7459192.6437811637,1682.6079500666242,0]
[null,null,"Semi professional",11.838977969348658,1493823.1135756138,1815.2041712572704,0]
[null,null,"Support staff",15.397099297573435,1702919.0828158185,1682.551985884953,0]
[null,null,"Intern, junior staff, apprentice",0,0,0,0]
[null,"NETWORK OVERHEADS","Executive manager",null,null,null,0]
[null,null,"Senior manager",0,0,0,0]
[null,null,"Manager",19.441583333333334,4032448.796169953,1711.0239046156353,0]
[null,null,"Professional",153.8346002554278,29102152.91861096,1616.4579333070174,0]
[null,null,"Semi professional",5.1315622605363993,718420.77415032999,1569.7461301303572,0]
[null,null,"Support staff",5.2584999999999997,577572.40944697254,1490.8909384805554,0]
[null,null,"Intern, junior staff, apprentice",0,0,0,0]
[null,"TOTAL DIRECT NETWORK LABOUR","Skilled electrical worker"]
[null,null,"Skilled non electical worker"]
[null,null,"Apprentice"]
[null,null,"Unskilled worker"]
[]
[]
[null,"2.11.2 - DESCRIPTOR METRICS"]
[null,"AVERAGE PRODUCTIVE WORK HOURS PER ASL"]
[null,null,null,"ORDINARY TIME (0's)",null,"OVERTIME (0's)"]
[null,null,null,"PER ASL","HOURLY RATE \nPER ASL","PER ASL","HOURLY RATE \nPER ASL"]
[null,null,null,{"$f":"CRY","v":"2016-17"},{"$f":"CRY","v":"2016-17"},{"$f":"CRY","v":"2016-17"},{"$f":"CRY","v":"2016-17"}]
[null,"CORPORATE OVERHEADS","Executive manager",1947.7917377606614,197.64333610824724,0,0]
[null,null,"Senior manager",2139.5207764634515,139.34438551772456,0,0]
[null,null,"Manager",1700.2183210127544,118.77299018906591,1.5957086802497775,98.309233513157906]
[null,null,"Professional",1681.7438657567375,96.991058405874242,0.86408430988664131,69.252688274050641]
[null,null,"Semi professional",1795.0166178536933,69.063401647504705,20.187553403577201,109.39566333734308]
[null,null,"Support staff",1675.4077830793417,65.845476994219297,7.1442028056113056,39.468210659999997]
[null,null,"Intern, junior staff, apprentice",0,0,0,0]
[null,"NETWORK OVERHEADS","Executive manager",0,0,0,0]
[null,null,"Senior manager",0,0,0,0]
[null,null,"Manager",1711.0239046156353,121.22191853435635,0,0]
[null,null,"Professional",1603.0818787875307,116.84589066264232,13.376054519486408,139.40366383714829]
[null,null,"Semi professional",1529.8460003833982,88.447874189934396,39.900129746958889,117.51276103663004]
[null,null,"Support staff",1490.8909384805554,73.671359713128766,0,0]
[null,null,"Intern, junior staff, apprentice",0,0,0,0]
[null,"TOTAL DIRECT NETWORK LABOUR","Skilled electrical worker"]
[null,null,"Skilled non electical worker"]
[null,null,"Apprentice"]
[null,null,"Unskilled worker"]

{"sheet":"2.12 Input tables","index":13,"n_rows":83,"n_cols":9,"rows_kept":83,"cut":false,"hidden":false,"merged":[[9,1,28,1],[29,1,46,1]]}
[null,"REGULATORY REPORTING STATEMENT"]
[null,{"$f":"INDEX(dms_TradingNameFull_List,MATCH(dms_TradingName,dms_TradingName_List))","v":"ElectraNet"}]
[null,{"$f":"CONCATENATE((LOOKUP(dms_Model,dms_Model_List,dms_Worksheet_List))&\" \"&CRY)","v":"CATEGORY ANALYSIS 2016-17"}]
[null,"2.12 INPUT TABLES"]
[]
[]
[null,"2.12  INPUT TABLES"]
[null,null,null,"DIRECT MATERIAL EXPENDITURE ($0's)","DIRECT LABOUR EXPENDITURE ($0's)","CONTRACT \nEXPENDITURE ($0's)","OTHER \nEXPENDITURE ($0's)","RELATED PARTY CONTRACT \nEXPENDITURE ($0's)","RELATED PARTY CONTRACT MARGIN"]
[null,null,null,{"$f":"CRY","v":"2016-17"},"2016-17","2016-17","2016-17","2016-17","2016-17"]
[null,"VEGETATION MANAGEMENT",{"$f":"'2.7 Vegetation management'!B11","v":"HBFRA (High Bushfire Risk Area)"},null,33103,456265.054809622]
[null,null,{"$f":"'2.7 Vegetation management'!B18","v":"BFRA (Bushfire Risk Area)"},null,85742,1181793.9202901428]
[null,null,{"$f":"'2.7 Vegetation management'!B25","v":"NBFRA (Non Bushfire Risk Area)"},null,29082,400838.9649002364]
[null,null,{"$f":"'2.7 Vegetation management'!B32","v":"ZONE 4"}]
[null,null,{"$f":"'2.7 Vegetation management'!B39","v":"ZONE 5"}]
[null,null,{"$f":"'2.7 Vegetation management'!B46","v":"ZONE 6"}]
[null,null,{"$f":"'2.7 Vegetation management'!B53","v":"ZONE 7"}]
[null,null,{"$f":"'2.7 Vegetation management'!B60","v":"ZONE 8"}]
[null,null,{"$f":"'2.7 Vegetation management'!B67","v":"ZONE 9"}]
[null,null,{"$f":"'2.7 Vegetation management'!B74","v":"ZONE 10"}]
[]
[]
[]
[]
[]
[]
[]
[]
[]
[]
[null,"ROUTINE MAINTENANCE","Transmission Lines Maintenance",null,20914.527283821539,3910407.3727161782]
[null,null,"Substations Equipment & Propoerty Maintenance",null,31392.840676627799,5869546.7493233718]
[null,null,"SCADA & Network Control Maintenance",null,11169.35126288928,2088343.3287371108]
[null,null,"Protection Systems Maintenance",null,12683.531674016558,2371450.9583259835]
[]
[]
[]
[]
[]
[]
[]
[]
[]
[]
[]
[]
[]
[]
[null,"NON-ROUTINE MAINTENANCE","Transmission Lines Maintenance",null,79092.998607053887,14788086.801392946]
[null,null,"Substations Equipment & Propoerty Maintenance",null,42776.177488923124,7997899.1425110772]
[null,null,"Scada & Network Control Maintenance",null,2597.5392817834727,485664.18071821681]
[null,null,"Protection Systems Maintenance",null,6580.6114351396263,1230382.6485648609]
[]
[]
[]
[]
[]
[]
[]
[]
[]
[]
[]
[]
[null,"OVERHEADS","Network Overheads",null,17812469.662512004,null,7200396.4804629311]
[null,null,"Corporate Overheads",null,11386717.451787788,null,15497218.166304976,920000]
[null,"AUGMENTATION","Subtransmission Substations, Switching Stations , Zone Substations",923446.2191278484,751645.83454989037,4347341.7510000002,149548.53899999999]
[null,null,"Subtransmission Lines",1541827.6070502298,744812.08316087979,1884824.111,178583.959]
[null,null,"HV Feeders",0,0]
[null,null,"Other Assets",1351340.5772033669,852190.85379275295,6341711.4630000005,218154.84899999999]
[null,"CONNECTIONS","All New Customer Connections",766812.33499999996,439604.68899514549,2179129.6502396502,54540.4]
[null,"REPLACEMENT","Transmission Towers",1249791.5777937982,116837.85879958505,1086267.4461198435]
[null,null,"Transmission Tower Support Structures",11358079.59486446,1063948.4029656542,9871975.7226392031]
[null,null,"Conductors",1803917.3669298531,168640.79287166029,1567890.7955558538]
[null,null,"Transmission Cables",226941.72887901668,21572.977157964095,197248.41855839771]
[null,null,"Substation Switchbays",10700627.730261829,2902368.6683273069,9300545.5973303765]
[null,null,"Substation Power Transformers",3055212.2500968217,925605.74226688757,2655464.8528878917]
[null,null,"Substation Reactive Plant",782918.10666761745,207359.53552632203,680480.2235522283]
[null,null,"SCADA network control and protection systems",8591052.7421744298,3355898.381569759,7466989.7665628232]
[null,null,"Other ",12179451.756157577,3280028.3266884801,10585878.629183689]
[null,"NON-NETWORK EXPENDITURE","IT and communications",null,5178700.7406579675,null,12121833.746445633]
[null,null,"Motor Vehicles",null,18198.122687288665,null,347801.90456733096]
[null,null,"Buildings And Property",null,314067.01721998228,null,2961026.8159393212]
[null,null,"Other",null,0,null,0]

{"sheet":"5.2 Asset Age Profile","index":14,"n_rows":181,"n_cols":112,"rows_kept":181,"cut":false,"hidden":false,"merged":[[5,1,5,2],[8,3,8,4],[25,1,39,1],[40,1,61,1],[62,1,83,1],[179,1,204,1],[84,1,119,1],[120,1,144,1],[145,1,166,1],[167,1,178,1]]}
[null,"REGULATORY REPORTING STATEMENT"]
[null,{"$f":"INDEX(dms_TradingNameFull_List,MATCH(dms_TradingName,dms_TradingName_List))","v":"ElectraNet"}]
[null,{"$f":"CONCATENATE((LOOKUP(dms_Model,dms_Model_List,dms_Worksheet_List))&\" \"&CRY)","v":"CATEGORY ANALYSIS 2016-17"}]
[null,"5.2 ASSET AGE PROFILE"]
[null,"."]
[null,"There is ONE table on this worksheet. Both ROWS and COLUMNS have been 'grouped' for easy navigation. See the Instructions sheet on how to group or ungroup data."]
[]
[null,"TABLE 5.2.1 - ASSET AGE PROFILE"]
[null,null,null,"ECONOMIC LIFE (YEARS)",null,"INSTALLED ASSETS -˃ QUANTITY CURRENTLY IN COMMISSION BY YEAR"]
[null,"ASSET GROUP","ASSET CATEGORY","MEAN ","STANDARD DEVIATION ",{"$f":"CRY","v":"2016-17"},{"$f":"IF(dms_RPT=\"financial\",(VALUE(LEFT(F10,4)-1)&\"-\"&MID(F10,3,2)),VALUE(LEFT(F10,4)-1))","v":"2015-16"},{"$f":"IF(dms_RPT=\"financial\",(VALUE(LEFT(G10,4)-1)&\"-\"&MID(G10,3,2)),VALUE(LEFT(G10,4)-1))","v":"2014-15"},"2013-14","2012-13","2011-12","2010-11","2009-10","2008-09","2007-08","2006-07","2005-06","2004-05","2003-04","2002-03","2001-02","2000-01","1999-00","1998-99","1997-98","1996-97","1995-96","1994-95","1993-94","1992-93","1991-92","1990-91","1989-90","1988-89","1987-88","1986-87","1985-86","1984-85",{"$f":"IF(dms_RPT=\"financial\",(VALUE(LEFT(AL10,4)-1)&\"-\"&MID(AL10,3,2)),VALUE(LEFT(AL10,4)-1))","v":"1983-84"},"1982-83","1981-82","1980-81","1979-80","1978-79","1977-78","1976-77","1975-76","1974-75","1973-74","1972-73","1971-72","1970-71","1969-70","1968-69","1967-68","1966-67","1965-66","1964-65","1963-64","1962-63","1961-62","1960-61","1959-60","1958-59","1957-58","1956-57","1955-56","1954-55","1953-54","1952-53",{"$f":"IF(dms_RPT=\"financial\",(VALUE(LEFT(BR10,4)-1)&\"-\"&MID(BR10,3,2)),VALUE(LEFT(BR10,4)-1))","v":"1951-52"},"1950-51","1949-50","1948-49","1947-48","1946-47","1945-46","1944-45","1943-44","1942-43","1941-42","1940-41","1939-40","1938-39","1937-38","1936-37","1935-36","1934-35","1933-34","1932-33","1931-32","1930-31","1929-30","1928-29","1927-28","1926-27","1925-26","1924-25","1923-24","1922-23","1921-22","1920-21",{"$f":"IF(dms_RPT=\"financial\",(VALUE(LEFT(CX10,4)-1)&\"-\"&MID(CX10,3,2)),VALUE(LEFT(CX10,4)-1))","v":"1919-20"},"1918-19","1917-18",{"$f":"IF(dms_RPT=\"financial\",(VALUE(LEFT(DA10,4)-1)&\"-\"&MID(DA10,3,2)),VALUE(LEFT(DA10,4)-1))","v":"1916-17"},{"$f":"IF(dms_RPT=\"financial\",(VALUE(LEFT(DB10,4)-1)&\"-\"&MID(DB10,3,2)),VALUE(LEFT(DB10,4)-1))","v":"1915-16"},{"$f":"IF(dms_RPT=\"financial\",(VALUE(LEFT(DC10,4)-1)&\"-\"&MID(DC10,3,2)),VALUE(LEFT(DC10,4)-1))","v":"1914-15"},{"$f":"IF(dms_RPT=\"financial\",(VALUE(LEFT(DD10,4)-1)&\"-\"&MID(DD10,3,2)),VALUE(LEFT(DD10,4)-1))","v":"1913-14"},{"$f":"IF(dms_RPT=\"financial\",(VALUE(LEFT(DE10,4)-1)&\"-\"&MID(DE10,3,2)),VALUE(LEFT(DE10,4)-1))","v":"1912-13"},{"$f":"IF(dms_RPT=\"financial\",(VALUE(LEFT(DF10,4)-1)&\"-\"&MID(DF10,3,2)),VALUE(LEFT(DF10,4)-1))","v":"1911-12"},{"$f":"IF(dms_RPT=\"financial\",(VALUE(LEFT(DG10,4)-1)&\"-\"&MID(DG10,3,2)),VALUE(LEFT(DG10,4)-1))","v":"1910-11"}]
[null,"TRANSMISSION TOWERS\nHighest operating voltage; Circuit configuration","< = 33 kV; Single Circuit"]
[null,null,"> 33 kV & < = 66 kV ; Single Circuit",55,7.416198487095663,0,0,0,0,0,1,0,0,0,2,0,1,0,0,0,0,14,0,2,0,5,0,0,0,0,0,0,0,0,0,1,0,0,0,0,0,0,0,0,0,0,0,0,0,0,0,0,0,0,0,0,0,0,0,0,0,0,0,0,0,0,0,0,0,0,0,0,0,0,0,0,0,0,0,0,0,0,0,0,0,0,0,0,0,0,0,0,0,0,0,0,0,0,0,0,0,0,0,0,0,0,0,0,0,0,0,0]
[null,null,"> 66 kV & < = 132 kV ; Single Circuit",55,7.416198487095663,5,0,4,7,11,9,7,2,57,257,1,69,7,0,13,0,61,12,0,0,296,29,0,0,289,1,0,0,77,0,175,0,2,0,783,102,7,0,16,3,17,0,0,0,146,0,19,832,102,220,791,0,0,0,288,979,1082,0,0,0,0,0,3,226,718,626,479,0,0,0,0,0,0,0,0,0,0,0,0,0,0,0,0,0,0,0,0,0,0,0,0,0,0,0,0,0,0,0,0,0,0,0,0,0,0,0,0]
[null,null,"> 132 kV & < = 275 kV ; Single Circuit",55,7.416198487095663,21,15,0,0,13,0,2,4,0,2,5,0,0,0,0,0,0,0,6,0,0,2,0,0,1,0,0,0,160,0,4,0,13,6,0,0,5,0,38,0,0,163,9,0,7,0,0,0,30,134,4,0,6,0,1,0,34,1373,52,0,0,0,0,0,0,0,0,0,0,0,0,0,0,0,0,0,0,0,0,0,0,0,0,0,0,0,0,0,0,0,0,0,0,0,0,0,0,0,0,0,0,0,0,0,0,0,0]
[null,null,"> 275 kV & < = 330 kV ; Single Circuit"]
[null,null,"> 330 kV & < = 500 kV  ; Single Circuit"]
[null,null,"> 500 kV  ; Single Circuit"]
[null,null,"< = 33 kV; Multiple Circuit"]
[null,null,"> 33 kV & < = 66 kV ; Multiple Circuit",55,7.416198487095663,0,0,0,0,0,1,0,0,0,12,0,0,0,0,0,0,13,0,5,0,2,5,0,0,0,0,0,0,0,0,14,0,0,0,0,0,0,0,0,0,0,0,0,0,0,0,0,0,0,0,0,0,0,0,0,0,0,0,0,0,0,0,0,0,0,0,0,0,0,0,0,0,0,0,0,0,0,0,0,0,0,0,0,0,0,0,0,0,0,0,0,0,0,0,0,0,0,0,0,0,0,0,0,0,0,0,0]
[null,null,"> 66 kV & < = 132 kV ; Multiple Circuit",55,7.416198487095663,0,1,0,0,0,0,8,4,0,0,0,28,0,0,0,0,20,23,0,0,0,0,0,0,0,0,0,0,0,0,0,0,0,10,0,0,0,16,0,0,0,0,0,0,7,0,0,0,0,1,0,0,0,0,0,0,0,0,0,0,0,0,0,0,2,0,0,0,0,0,0,0,0,0,0,0,0,0,0,0,0,0,0,0,0,0,0,0,0,0,0,0,0,0,0,0,0,0,0,0,0,0,0,0,0,0,0]
[null,null,"> 132 kV & < = 275 kV ; Multiple Circuit",55,7.416198487095663,7,0,0,0,1,0,1,1,0,2,1,17,0,0,0,0,0,15,0,0,0,0,0,0,142,0,0,0,1049,0,50,0,534,8,0,0,34,0,0,0,0,90,0,0,6,0,0,0,0,58,129,0,0,0,0,0,0,0,0,0,0,0,0,0,0,1,0,0,0,0,0,0,0,0,0,0,0,0,0,0,0,0,0,0,0,0,0,0,0,0,0,0,0,0,0,0,0,0,0,0,0,0,0,0,0,0,0]
[null,null,"> 275 kV & < = 330 kV ; Multiple Circuit"]
[null,null,"> 330 kV & < = 500 kV  ; Multiple Circuit"]
[null,null,"> 500 kV  ; Multiple Circuit"]
[null,null,"Other"]
[null,"TRANSMISSION TOWER SUPPORT STRUCTURES BY:\nHighest operating voltage; Circuit configuration","< = 33 kV; Single Circuit"]
[null,null,"> 33 kV & < = 66 kV ; Single Circuit"]
[null,null,"> 66 kV & < = 132 kV ; Single Circuit"]
[null,null,"> 132 kV & < = 275 kV ; Single Circuit"]
[null,null,"> 275 kV & < = 330 kV ; Single Circuit"]
[null,null,"> 330 kV & < = 500 kV  ; Single Circuit"]
[null,null,"> 500 kV  ; Single Circuit"]
[null,null,"< = 33 kV; Multiple Circuit"]
[null,null,"> 33 kV & < = 66 kV ; Multiple Circuit"]
[null,null,"> 66 kV & < = 132 kV ; Multiple Circuit"]
[null,null,"> 132 kV & < = 275 kV ; Multiple Circuit"]
[null,null,"> 275 kV & < = 330 kV ; Multiple Circuit"]
[null,null,"> 330 kV & < = 500 kV  ; Multiple Circuit"]
[null,null,"> 500 kV  ; Multiple Circuit"]
[null,null,"Other"]
[null,"CONDUCTORS BY: \nVoltage; Maximum continuous rating","< = 33 kV ; < = 100 MVA"]
[null,null,"< = 33 kV ; > 100 MVA & < = 400 MVA"]
[null,null,"< = 33 kV ; > 400 MVA"]
[null,null,"> 33 kV & < = 66 kV  ; < = 100 MVA",55,7.416198487095663,0,0,0,0,0,0,0,0,0,0,0,0,0,0,0,0,0,0,0,0,0,0,0,0,0,0,0,0,0,0,0,0,0,0,0,0,0,0,0,0,0,0,0,0,0,0,0,0,0,0,0,0,0,0,0,0,0,0,0,0,0,0,0,0,0,0,0,0,0,0,0,0,0,0,0,0,0,0,0,0,0,0,0,0,0,0,0,0,0,0,0,0,0,0,0,0,0,0,0,0,0,0,0,0,0,0,0]
[null,null,"> 33 kV & < = 66 kV  ; > 100 MVA & < = 400 MVA",55,7.416198487095663,0,0,0,0,0,0,0,0,0,0,1.1259999999999999,0,0,0,0,0,2.641,0,0,0,2.3489999999999998,0,0,0,0,0,0,0,0,0,4.1566000000000001,0,0,0,0,0,0,0,0,0,0,0,0,0,0,0,0,0,0,0,0,3.0960000000000001,0,0,0,0,0,0,0,0,0,0,0,0,0,0,0,0,0,0,0,0,0,0,0,0,0,0,0,0,0,0,0,0,0,0,0,0,0,0,0,0,0,0,0,0,0,0,0,0,0,0,0,0,0,0,0]
[null,null,"> 33 kV & < = 66 kV  ; > 400 MVA"]
[null,null,"> 66 kV & < = 132 kV  ; < = 100 MVA",55,7.416198487095663,0,0,0,0,0,0,0,0,0,0,0,0,0,0,0,0,0,0,0,0,0,0,0,0,0,0,0,0,0,0,0,0,0.72709999999999997,5.2460000000000004,0,0,0,6.8,0,0,4.5961999999999996,0,0,0,0,0,0,0,0,0,70.777000000000001,0,0,0,0,301.27750000000003,232.56399999999999,0,0,0,0,0,0,4.1556999999999995,16.7881,0,23.640999999999998,26.154,0,0,0,0,0,0,0,0,0,0,0,0,0,0,0,0,0,0,0,0,0,0,0,0,0,0,0,0,0,0,0,0,0,0,0,0,0,0,0]
[null,null,"> 66 kV & < = 132 kV  ; > 100 MVA & < = 400 MVA",55,7.416198487095663,0,0,0,0,0,0,0.19490000000000002,0,0,42.158112000000003,24.146139000000002,0,0.51900000000000002,0,0,0,10.877599999999999,0,7.4409999999999998,0,0,2.6461000000000001,80.585399999999993,0,90.566299999999984,9.9480000000000004,0,0,20.719599999999996,0,37.274999999999999,0,0,1.534,213.2149,0,0,13.135999999999999,0,0.85399999999999998,0,0,0,0,47.377500000000005,0,10.122999999999999,351.38469999999995,26.543919999999996,87.133399999999995,0,262.955555,0,0,118.4284,47.305100000000003,0,180.42349999999999,5.5716000000000001,0,0,0,0.33600000000000002,0,93.270240000000015,143.4008,245.14260000000002,6.8789999999999996,0,0,0,0,0,0,0,0,0,0,0,0,0,0,0,0,0,0,0,0,0,0,0,0,0,0,0,0,0,0,0,0,0,0,0,0,0,0,0]
[null,null,"> 66 kV & < = 132 kV  ; > 400 MVA"]
[null,null,"> 132 kV & < = 275 kV  ; < = 200 MVA"]
[null,null,"> 132 kV & < = 275 kV  ; > 200 MVA & < = 600 MVA",55,7.416198487095663,0,0,0,0,0,1.745665,0,0,0,0,0,14.152559999999992,0,0,0,0,0,8.0030000000000001,0,0,0,0,0,0,0,0,0,0,0,0,0,0,5.2315000000000005,5.5330000000000004,0,0,0,0,9.8759999999999994,0,0,0.84283999999999537,0,0,0,0,0,0,153.79449999999997,12.2776,0,0,0,0,0,0,0,376.951528,0,0,0,0,0,0,0,0,0,0,0,0,0,0,0,0,0,0,0,0,0,0,0,0,0,0,0,0,0,0,0,0,0,0,0,0,0,0,0,0,0,0,0,0,0,0,0,0,0]
[null,null,"> 132 kV & < = 275 kV  ; > 600 MVA",55,7.416198487095663,0,0,0,0,0,0,0,0,0,0,0,0,0,0,0,0,0,0,10.993,0,0,0,0,0,122.1468,0,0,640.59859999999992,200.47781999999998,0,32.094000000000001,0,640.93129999999996,0,0,0,23.545069999999999,0,0,0,0,63.1,0,0,21.797999999999998,0,0,0,5.8076450000000008,129.14586,113.1116,0,0,0,0,0,0,0,19.463000000000001,0,0,0,0,0,0,0,0,0,0,0,0,0,0,0,0,0,0,0,0,0,0,0,0,0,0,0,0,0,0,0,0,0,0,0,0,0,0,0,0,0,0,0,0,0,0,0,0]
[null,null,"> 275 kV & < = 330 kV  ; < = 800 MVA"]
[null,null,"> 275 kV & < = 330 kV  ; > 800 MVA & < = 1200 MVA"]
[null,null,"> 275 kV & < = 330 kV  ; > 1200 MVA"]
[null,null,"> 330 kV & < = 500 kV   ; < = 1000 MVA"]
[null,null,"> 330 kV & < = 500 kV   ; > 1000 MVA & < = 1500 MVA"]
[null,null,"> 330 kV & < = 500 kV   ; > 1500 MVA"]
[null,null,"> 500 kV   ; < = 2000 MVA"]
[null,null,"> 500 kV   ; > 2000 MVA & < = 3000 MVA"]
[null,null,"> 500 kV   ; > 3000 MVA"]
[null,null,"Other"]
[null,"TRANSMISSION CABLES BY: \nHighest operating voltage; Insulation type","< = 33 kV; Oil Filled"]
[null,null,"> 33 kV & < = 66 kV ; Oil Filled"]
[null,null,"> 66 kV & < = 132 kV ; Oil Filled"]
[null,null,"> 132 kV & < = 275 kV ; Oil Filled",40,6.324555320336759,0,0,0,0,0,0,0,0,0,0,0,0,0,0,0,0,0,0,0,0,0,0,0,0,0,0,0,0,0,0,0,0,0,7.9,0,0,0,0,0,0,0,0,0,0,0,0,0,0,0,0,0,0,0,0,0,0,0,0,0,0,0,0,0,0,0,0,0,0,0,0,0,0,0,0,0,0,0,0,0,0,0,0,0,0,0,0,0,0,0,0,0,0,0,0,0,0,0,0,0,0,0,0,0,0,0,0,0]
[null,null,"> 275 kV & < = 330 kV ; Oil Filled"]
[null,null,"> 330 kV & < = 500 kV  ; Oil Filled"]
[null,null,"> 500 kV  ; Oil Filled"]
[null,null,"< = 33 kV; XLPE Insulated"]
[null,null,"> 33 kV & < = 66 kV ; XLPE Insulated",40,6.324555320336759,0,0,0,0,0.3,0,0,0,0,0,0.6,0,0,0,0,0,0,0,0,0,0,0,0,0,0,0,0,0,0,0,0,0,0,0,0,0,0,0,0,0,0,0,0,0,0,0,0,0,0,0,0,0,0,0,0,0,0,0,0,0,0,0,0,0,0,0,0,0,0,0,0,0,0,0,0,0,0,0,0,0,0,0,0,0,0,0,0,0,0,0,0,0,0,0,0,0,0,0,0,0,0,0,0,0,0,0,0]
[null,null,"> 66 kV & < = 132 kV ; XLPE Insulated"]
[null,null,"> 132 kV & < = 275 kV ; XLPE Insulated",40,6.324555320336759,0,0,0,0,0,18.399999999999999,0,0,0,0,0,0,0,0,0,0,0,0,0,0,0,0,0,0,0,0,0,0,0,0,0,0,0,0,0,0,0,0,0,0,0,0,0,0,0,0,0,0,0,0,0,0,0,0,0,0,0,0,0,0,0,0,0,0,0,0,0,0,0,0,0,0,0,0,0,0,0,0,0,0,0,0,0,0,0,0,0,0,0,0,0,0,0,0,0,0,0,0,0,0,0,0,0,0,0,0,0]
[null,null,"> 275 kV & < = 330 kV ; XLPE Insulated"]
[null,null,"> 330 kV & < = 500 kV  ; XLPE Insulated"]
[null,null,"> 500 kV  ; XLPE Insulated"]
[null,null,"< = 33 kV; Other Insulated"]
[null,null,"> 33 kV & < = 66 kV ; Other Insulated"]
[null,null,"> 66 kV & < = 132 kV ; Other Insulated"]
[null,null,"> 132 kV & < = 275 kV ; Other Insulated"]
[null,null,"> 275 kV & < = 330 kV ; Other Insulated"]
[null,null,"> 330 kV & < = 500 kV  ; Other Insulated"]
[null,null,"> 500 kV  ; Other Insulated"]
[null,null,"Other"]
[null,"SUBSTATION SWITCHBAYS BY: \nHighest operating voltage; Switch type","< = 33 kV; Air Insulated circuit Breaker",42,6.4807406984078604,4,0,0,3,7,1,6,6,2,0,0,6,6,4,7,2,4,0,2,0,0,0,0,0,0,1,2,0,0,2,0,0,0,0,0,2,0,0,0,0,0,0,0,2,0,0,0,0,0,0,0,0,1,0,0,0,0,0,0,4,0,0,0,0,0,0,0,0,0,0,0,0,0,0,0,0,0,0,0,0,0,0,0,0,0,0,0,0,0,0,0,0,0,0,0,0,0,0,0,0,0,0,0,0,0,0,0]
[null,null,"> 33 kV & < = 66 kV ; Air Insulated circuit Breaker",42,6.4807406984078604,0,2,0,0,1,8,2,0,0,1,0,2,2,0,2,3,8,2,0,23,0,0,0,0,1,0,0,0,2,0,0,0,2,1,0,0,0,0,0,0,1,0,0,0,0,0,0,1,1,1,0,0,1,0,0,0,0,0,0,0,0,0,0,0,0,0,0,0,0,0,0,0,0,0,0,0,0,0,0,0,0,0,0,0,0,0,0,0,0,0,0,0,0,0,0,0,0,0,0,0,0,0,0,0,0,0,0]
[null,null,"> 66 kV & < = 132 kV ; Air Insulated circuit Breaker",42,6.4807406984078604,9,9,1,19,13,14,8,12,2,3,8,11,14,2,9,8,11,8,5,0,0,0,0,0,1,1,4,3,0,3,1,1,2,0,3,9,0,0,0,2,0,0,0,0,0,1,0,0,0,1,1,0,0,0,0,0,0,0,0,0,0,0,0,0,0,0,0,0,0,0,0,0,0,0,0,0,0,0,0,0,0,0,0,0,0,0,0,0,0,0,0,0,0,0,0,0,0,0,0,0,0,0,0,0,0,0,0]
[null,null,"> 132 kV & < = 275 kV ; Air Insulated circuit Breaker",42,6.4807406984078604,3,7,0,5,4,9,4,3,1,19,13,10,11,6,3,4,3,9,1,0,0,0,3,0,3,1,0,0,0,18,7,2,0,4,5,4,6,0,3,7,0,0,0,0,0,0,0,0,0,0,0,0,0,0,0,0,0,0,0,0,0,0,0,0,0,0,0,0,0,0,0,0,0,0,0,0,0,0,0,0,0,0,0,0,0,0,0,0,0,0,0,0,0,0,0,0,0,0,0,0,0,0,0,0,0,0,0]
[null,null,"> 275 kV & < = 330 kV ; Air Insulated circuit Breaker"]
[null,null,"> 330 kV & < = 500 kV  ; Air Insulated circuit Breaker"]
[null,null,"> 500 kV  ; Air Insulated circuit Breaker"]
[null,null,"< = 33 kV; Air Insulated Isolators / Earth Switch",44.8,6.6932802122726045,5,10,0,0,0,0,2,1,0,0,0,0,0,0,0,0,0,0,0,0,0,0,0,0,0,0,0,0,1,1,0,0,0,0,0,4,0,0,0,0,0,0,0,3,0,9,4,3,1,2,2,0,3,2,0,0,0,0,0,0,0,0,0,0,0,0,0,0,0,0,0,0,0,0,0,0,0,0,0,0,0,0,0,0,0,0,0,0,0,0,0,0,0,0,0,0,0,0,0,0,0,0,0,0,0,0,0]
[null,null,"> 33 kV & < = 66 kV ; Air Insulated Isolators / Earth Switch",44.8,6.6932802122726045,0,0,0,0,0,2,0,0,0,1,0,5,1,2,0,5,0,8,0,22,0,0,0,0,0,0,0,0,0,0,0,8,0,0,1,0,0,0,0,0,0,0,0,0,0,3,17,0,12,3,0,13,0,0,0,0,0,0,0,0,0,0,0,0,0,0,0,0,0,0,0,0,0,0,0,0,0,0,0,0,0,0,0,0,0,0,0,0,0,0,0,0,0,0,0,0,0,0,0,0,0,0,0,0,0,0,0]
[null,null,"> 66 kV & < = 132 kV ; Air Insulated Isolators / Earth Switch",44.8,6.6932802122726045,7,10,0,33,37,14,10,29,6,7,1,26,48,10,9,19,0,4,12,0,0,0,0,3,0,0,17,0,1,7,8,17,3,1,14,11,8,0,3,0,10,0,0,13,21,18,32,30,13,3,3,9,14,1,10,0,0,0,0,0,0,0,0,1,0,0,0,0,0,0,0,0,0,0,0,0,0,0,0,0,0,0,0,0,0,0,0,0,0,0,0,0,0,0,0,0,0,0,0,0,0,0,0,0,0,0,0]
[null,null,"> 132 kV & < = 275 kV ; Air Insulated Isolators / Earth Switch",44.8,6.6932802122726045,16,9,0,20,5,13,11,3,1,42,0,26,9,1,0,0,2,26,0,0,0,0,1,0,3,0,3,0,4,24,18,0,0,11,17,0,28,0,5,9,0,0,3,8,0,11,0,0,2,27,16,53,0,0,0,0,0,0,0,0,0,0,0,0,14,0,0,0,0,0,0,0,0,0,0,0,0,0,0,0,0,0,0,0,0,0,0,0,0,0,0,0,0,0,0,0,0,0,0,0,0,0,0,0,0,0,0]
[null,null,"> 275 kV & < = 330 kV ; Air Insulated Isolators / Earth Switch"]
[null,null,"> 330 kV & < = 500 kV  ; Air Insulated Isolators / Earth Switch"]
[null,null,"> 500 kV  ; Air Insulated Isolators / Earth Switch"]
[null,null,"< = 33 kV; VT",39,6.2449979983983983,4.333333333333333,3,1.3333333333333333,1.6666666666666667,7,2,4,2,2,0,0,2.6666666666666665,1,0.66666666666666663,1.3333333333333333,0,0,0.33333333333333331,0,0,2,2.6666666666666665,0,0,0,0,0,0,0.33333333333333331,0,0.33333333333333331,0,0,0,0,0,0,0,0.33333333333333331,0.33333333333333331,2.3333333333333335,0.66666666666666663,0,0,0,0.66666666666666663,0.33333333333333331,0,0.66666666666666663,0,2,0.33333333333333331,1,1,0,0,0,0,0,0,0,0,0,0,0,0,0,0,0,0,0,0,0,0,0,0,0,0,0,0,0,0,0,0,0,0,0,0,0,0,0,0,0,0,0,0,0,0,0,0,0,0,0,0,0,0,0]
[null,null,"> 33 kV & < = 66 kV ; VT",39,6.2449979983983983,1,1,6,3,0,4,1.3333333333333333,0,1,4,0,3,1,0.33333333333333331,0,3,2,1,1,3,0,0.33333333333333331,0,0,0,0,0,0,0,0,2,0,0,1,0,0,0,0,2.3333333333333335,0,0,0,0.66666666666666663,0,2.6666666666666665,0,1.3333333333333333,0,4.666666666666667,0,0,0,2,0,0,0,0,0,2,0,0,0,0,0,0,0,0,0,0,0,0,0,0,0,0,0,0,0,0,0,0,0,0,0,0,0,0,0,0,0,0,0,0,0,0,0,0,0,0,0,0,0,0,0,0,0,0]
[null,null,"> 66 kV & < = 132 kV ; VT",39,6.2449979983983983,0,3.3333333333333335,0.66666666666666663,14.333333333333334,8,3.3333333333333335,8.6666666666666661,8,2.3333333333333335,8.3333333333333339,1.6666666666666667,8,6,3.6666666666666665,0,4.666666666666667,0,2.6666666666666665,2,1,2.3333333333333335,0.33333333333333331,0,0,0,4,1,0,0,2,1.3333333333333333,1,1,1,7.666666666666667,0.66666666666666663,1.6666666666666667,0.66666666666666663,0,0,0,0,0,0,2,4,0,0,0,2,0,0,0,0,0,0,0,0,0,0,0,0,0,0,0,0,0,0,0,0,0,0,0,0,0,0,0,0,0,0,0,0,0,0,0,0,0,0,0,0,0,0,0,0,0,0,0,0,0,0,0,0,0,0,0,0,0]
[null,null,"> 132 kV & < = 275 kV ; VT",39,6.2449979983983983,6.333333333333333,6,6,6.333333333333333,2,12.666666666666666,3,3.6666666666666665,4.333333333333333,12.333333333333334,2,11,0,0,0,0,0,2,0,0.66666666666666663,1.3333333333333333,0,0,0,0,2,0,2,0,10.333333333333334,0,0,0,0,0.66666666666666663,5.333333333333333,0,0,0,0.33333333333333331,0,0,0,0,2,0,0,0,0,0,0,0,0,0,0,0,0.33333333333333331,3,0,1,0,0,0,0,0,0,0,0,0,0,0,0,0,0,0,0,0,0,0,0,0,0,0,0,0,0,0,0,0,0,0,0,0,0,0,0,0,0,0,0,0,0,0,0,0,0,0]
[null,null,"> 275 kV & < = 330 kV ; VT"]
[null,null,"> 330 kV & < = 500 kV  ; VT"]
[null,null,"> 500 kV  ; VT"]
[null,null,"< = 33 kV; CT",39,6.2449979983983983,10,9.6666666666666661,1,4,7,0,4,2,2,0,1,7,6,5.666666666666667,5.333333333333333,2.6666666666666665,0,2,1,0,3,0,0,0,0,0,0,0,0.66666666666666663,0,0,0,2,0,0,0,1,1,0,0.33333333333333331,0,0.66666666666666663,0,0,0,0,0,0,0.66666666666666663,0,0.66666666666666663,0,3,1,0,0,0,0,0,0,0,0,0,0,0,0,0,0,0,0,0,0,0,0,0,0,0,0,0,0,0,0,0,0,0,0,0,0,0,0,0,0,0,0,0,0,0,0,0,0,0,0,0,0,0,0,0]
[null,null,"> 33 kV & < = 66 kV ; CT",39,6.2449979983983983,3,1,1,5,1,16,3.3333333333333335,1,0,1,0,10,3,0.66666666666666663,2,3.3333333333333335,0,3,2,25,0,2,0,0,0,0,0,17.666666666666668,0,0,0,0,0,3,0.66666666666666663,2,0,0,1,3,0,0,0,0,0,3,0,0,0,0,0,0,0,0,0,0,0,0,0,0,0,0,0,0,0,0,0,0,0,0,0,0,0,0,0,0,0,0,0,0,0,0,0,0,0,0,0,0,0,0,0,0,0,0,0,0,0,0,0,0,0,0,0,0,0,0,0]
[null,null,"> 66 kV & < = 132 kV ; CT",39,6.2449979983983983,1.6666666666666667,3.6666666666666665,2.3333333333333335,20.666666666666668,12.333333333333334,12.666666666666666,9.6666666666666661,13.333333333333334,3,4,9,16.666666666666668,15.666666666666666,3,13.666666666666666,12.666666666666666,7.333333333333333,5,5,0,2,0,0,0,0,3,1,4,0,0,0,4,1,2,4.666666666666667,4.666666666666667,0,0,2,0,0,0,0,0,0,2,0,0,0,0,0,0,0,0,0,0,0,0,0,0,0,0,0,0,0,0,0,0,0,0,0,0,0,0,0,0,0,0,0,0,0,0,0,0,0,0,0,0,0,0,0,0,0,0,0,0,0,0,0,0,0,0,0,0,0,0,0]
[null,null,"> 132 kV & < = 275 kV ; CT",39,6.2449979983983983,3,12,12,5,2,17,3,2,0,28.333333333333332,26,17,12,1,1,0,1.6666666666666667,13.666666666666666,0,1,0,0.33333333333333331,1,0,0.33333333333333331,0,1,6.666666666666667,1,10.333333333333334,13.666666666666666,18,1.6666666666666667,0,0,3,0,2,0,0,0,0,0,4,2,1,0,0,0,0.33333333333333331,0,2,0,0,0,0,0,8,0,0,0,0,0,0,0,0,0,0,0,0,0,0,0,0,0,0,0,0,0,0,0,0,0,0,0,0,0,0,0,0,0,0,0,0,0,0,0,0,0,0,0,0,0,0,0,0,0]
[null,null,"> 275 kV & < = 330 kV ; CT"]
[null,null,"> 330 kV & < = 500 kV  ; CT"]
[null,null,"> 500 kV  ; CT"]
[null,null,"< = 33 kV; GIS Module"]
[null,null,"> 33 kV & < = 66 kV ; GIS Module"]
[null,null,"> 66 kV & < = 132 kV ; GIS Module",44.8,6.6932802122726045,0,0,0,0,3,0,17,0,0,0,0,0,0,0,0,0,0,0,0,0,0,0,0,0,0,0,0,0,0,0,0,0,0,0,0,0,0,0,0,0,0,0,0,0,0,0,0,0,0,0,0,0,0,0,0,0,0,0,0,0,0,0,0,0,0,0,0,0,0,0,0,0,0,0,0,0,0,0,0,0,0,0,0,0,0,0,0,0,0,0,0,0,0,0,0,0,0,0,0,0,0,0,0,0,0,0,0]
[null,null,"> 132 kV & < = 275 kV ; GIS Module",44.8,6.6932802122726045,0,0,0,0,0,17,0,0,0,0,0,0,0,0,0,0,0,0,0,0,0,0,0,0,0,0,0,7,0,1,10,0,0,0,3,0,0,0,0,0,0,0,0,0,0,0,0,0,0,0,0,0,0,0,0,0,0,0,0,0,0,0,0,0,0,0,0,0,0,0,0,0,0,0,0,0,0,0,0,0,0,0,0,0,0,0,0,0,0,0,0,0,0,0,0,0,0,0,0,0,0,0,0,0,0,0,0]
[null,null,"> 275 kV & < = 330 kV ; GIS Module"]
[null,null,"> 330 kV & < = 500 kV  ; GIS Module"]
[null,null,"> 500 kV  ; GIS Module"]
[null,null,"Other"]
[null,"SUBSTATION POWER TRANSFORMERS BY: \nHighest operating voltage;  Ampere rating","< = 33 kV ; < = 10 MVA"]
[null,null,"< = 33 kV ; > 10 MVA & < =  30 MVA"]
[null,null,"< = 33 kV ; > 30 MVA"]
[null,null,"> 33 kV & < = 66 kV  ; < = 10 MVA"]
[null,null,"> 33 kV & < = 66 kV  ; > 10 MVA & < =  30 MVA"]
[null,null,"> 33 kV & < = 66 kV  ; > 30 MVA"]
[null,null,"> 66 kV & < = 132 kV  ; < = 30 MVA",44.8,6.6932802122726045,3,4,2,0,1,1,0,3,3,1,0,0,2,1,0,2,0,0,2,0,0,0,0,0,0,2,0,0,1,0,0,1,0,0,3,0,0,0,0,3,0,0,0,0,2,0,1,6,0,0,1,16,0,0,3,3,3,0,0,0,0,0,0,1,1,0,0,0,0,0,0,0,0,0,0,0,0,0,0,0,0,0,0,0,0,0,0,0,0,0,0,0,0,0,0,0,0,0,0,0,0,0,0,0,0,0,0]
[null,null,"> 66 kV & < = 132 kV  ; > 30 MVA & < =  60 MVA",44.8,6.6932802122726045,0,0,0,0,0,0,4,2,0,0,0,2,3,2,2,1,2,1,1,0,0,0,0,0,0,0,0,0,0,0,0,0,0,0,0,0,1,0,0,0,0,0,0,0,0,2,0,0,0,0,0,0,0,0,0,0,0,0,0,0,0,0,0,0,0,0,0,0,0,0,0,0,0,0,0,0,0,0,0,0,0,0,0,0,0,0,0,0,0,0,0,0,0,0,0,0,0,0,0,0,0,0,0,0,0,0,0]
[null,null,"> 66 kV & < = 132 kV  ; > 60 MVA",44.8,6.6932802122726045,0,0,0,0,2,0,0,0,0,0,0,0,0,0,0,0,0,0,0,0,0,0,0,0,0,0,0,0,0,0,0,0,0,0,0,0,0,0,0,0,0,0,0,0,0,0,1,1,0,0,0,0,0,0,0,0,0,0,0,0,0,0,0,0,0,0,0,0,0,0,0,0,0,0,0,0,0,0,0,0,0,0,0,0,0,0,0,0,0,0,0,0,0,0,0,0,0,0,0,0,0,0,0,0,0,0,0]
[null,null,"> 132 kV & < = 220 kV  ; < = 50 MVA"]
[null,null,"> 132 kV & < = 220 kV  ; > 50 MVA & < =  100 MVA"]
[null,null,"> 132 kV & < = 220 kV  ; > 100 MVA"]
[null,null,"> 220 kV & < = 275 kV  ; < = 50 MVA",44.8,6.6932802122726045,0,0,0,0]
[null,null,"> 220 kV & < = 275 kV  ; > 50 MVA & < =  100 MVA",44.8,6.6932802122726045,0,0,0,0,0,0,0,0,0,0,0,0,0,0,0,0,0,0,0,0,0,0,0,0,0,0,0,0,2,2,0,0,0,0,0,0,0,0,0,0,0,0,0,0,0,0,0,0,0,0,0,0,0,0,0,0,0,0,0,0,0,0,0,0,0,0,0,0,0,0,0,0,0,0,0,0,0,0,0,0,0,0,0,0,0,0,0,0,0,0,0,0,0,0,0,0,0,0,0,0,0,0,0,0,0,0,0]
[null,null,"> 220 kV & < = 275 kV  ; > 100 MVA",44.8,6.6932802122726045,0,1,0,2,0,2,1,1,0,2,0,0,3,2,0,1,1,1,0,0,0,0,1,1,0,0,1,0,0,0,1,2,1,0,1,2,1,1,0,2,0,0,0,0,1,0,0,0,1,2,1,4,0,0,0,0,0,0,0,0,0,0,0,0,0,0,0,0,0,0,0,0,0,0,0,0,0,0,0,0,0,0,0,0,0,0,0,0,0,0,0,0,0,0,0,0,0,0,0,0,0,0,0,0,0,0,0]
[null,null,"> 275 kV & < = 330 kV  ; < = 100 MVA"]
[null,null,"> 275 kV & < = 330 kV  ; > 100 MVA & < =  250 MVA"]
[null,null,"> 275 kV & < = 330 kV  ; > 250 MVA"]
[null,null,"> 330 kV & < = 500 kV   ; < = 150 MVA"]
[null,null,"> 330 kV & < = 500 kV   ; > 150 MVA & < =  300 MVA"]
[null,null,"> 330 kV & < = 500 kV   ; > 300 MVA"]
[null,null,"> 500 kV   ; < = 1000 MVA"]
[null,null,"> 500 kV   ; > 1000 MVA & < =  1500 MVA"]
[null,null,"> 500 kV   ; > 1500 MVA"]
[null,null,"Other"]
[null,"SUBSTATION REACTIVE PLANT BY: \nHighest operating voltage; Function","< = 33 kV;  SVCS"]
[null,null,"> 33 kV & < = 66 kV ;  SVCS"]
[null,null,"> 66 kV & < = 132 kV ;  SVCS"]
[null,null,"> 132 kV & < = 275 kV ;  SVCS",null,null,null,null,null,null,null,null,null,null,null,null,null,null,null,null,null,null,null,null,null,null,null,null,null,null,null,null,null,null,2,2]
[null,null,"> 275 kV & < = 330 kV ;  SVCS"]
[null,null,"> 330 kV & < = 500 kV  ;  SVCS"]
[null,null,"> 500 kV  ;  SVCS"]
[null,null,"< = 33 kV;  Capacitors",44.8,6.6932802122726045,0,0,0,0,0,0,4,0,0,0,0,0,0,0,0,0,0,0,0,0,0,0,0,0,0,0,0,0,0,4,1,0,0,1,0,0,0,0,0,0,3,2,1,1,2,0,2,1,0,0,0,0,0,0,0,0,0,0,0,0,0,0,0,0,0,0,0,0,0,0,0,0,0,0,0,0,0,0,0,0,0,0,0,0,0,0,0,0,0,0,0,0,0,0,0,0,0,0,0,0,0,0,0,0,0,0,0]
[null,null,"> 33 kV & < = 66 kV ;  Capacitors",44.8,6.6932802122726045,0,0,0,0,0,0,0,0,0,0,0,0,0,0,0,0,0,0,0,4,0,0,0,0,0,0,0,0,0,0,0,0,0,0,0,2,0,0,0,0,0,0,0,0,0,0,0,0,0,0,0,0,0,0,0,0,0,0,0,0,0,0,0,0,0,0,0,0,0,0,0,0,0,0,0,0,0,0,0,0,0,0,0,0,0,0,0,0,0,0,0,0,0,0,0,0,0,0,0,0,0,0,0,0,0,0,0]
[null,null,"> 66 kV & < = 132 kV ;  Capacitors",44.8,6.6932802122726045,0,0,0,1,4,0,0,0,0,0,0,0,0,1,0,2,0,0,0,0,0,0,0,0,0,0,0,0,0,0,0,0,0,0,0,0,0,0,0,0,0,0,0,0,0,0,0,0,0,0,0,0,0,0,0,0,0,0,0,0,0,0,0,0,0,0,0,0,0,0,0,0,0,0,0,0,0,0,0,0,0,0,0,0,0,0,0,0,0,0,0,0,0,0,0,0,0,0,0,0,0,0,0,0,0,0,0]
[null,null,"> 132 kV & < = 275 kV ;  Capacitors",44.8,6.6932802122726045,0,0,0,0,1,0,0,0,0,0,0,0,1,0,0,0,1,1,0,0,0,0,0,0,0,0,0,0,1,2,0,0,0,0,0,0,0,0,0,0,0,0,0,0,0,0,0,0,0,0,0,0,0,0,0,0,0,0,0,0,0,0,0,0,0,0,0,0,0,0,0,0,0,0,0,0,0,0,0,0,0,0,0,0,0,0,0,0,0,0,0,0,0,0,0,0,0,0,0,0,0,0,0,0,0,0,0]
[null,null,"> 275 kV & < = 330 kV ;  Capacitors",44.8,6.6932802122726045]
[null,null,"> 330 kV & < = 500 kV  ;  Capacitors",44.8,6.6932802122726045]
[null,null,"> 500 kV  ;  Capacitors",44.8,6.6932802122726045]
[null,null,"< = 33 kV;  Oil Filled Reactors",44.8,6.6932802122726045,0,0,0,1,1,0,0,0,0,0,0,0,0,0,0,0,0,0,0,0,0,0,0,0,0,0,0,0,0,0,0,0,0,0,0,0,0,0,0,0,0,0,0,0,0,0,0,0,0,0,0,0,4,0,0,0,0,0,0,0,0,0,0,0,0,0,0,0,0,0,0,0,0,0,0,0,0,0,0,0,0,0,0,0,0,0,0,0,0,0,0,0,0,0,0,0,0,0,0,0,0,0,0,0,0,0,0]
[null,null,"> 33 kV & < = 66 kV ;  Oil Filled Reactors",44.8,6.6932802122726045,0,0,0,0,0,0,0,0,0,0,0,0,0,0,0,0,0,0,0,0,0,0,0,0,0,0,0,0,0,0,0,0,0,0,0,0,0,0,0,0,0,0,0,0,0,0,0,0,0,0,0,0,0,0,0,0,0,0,0,0,0,0,0,0,0,0,0,0,0,0,0,0,0,0,0,0,0,0,0,0,0,0,0,0,0,0,0,0,0,0,0,0,0,0,0,0,0,0,0,0,0,0,0,0,0,0,0]
[null,null,"> 66 kV & < = 132 kV ;  Oil Filled Reactors",44.8,6.6932802122726045,0,0,0,0,0,0,0,0,0,0,0,0,0,0,0,0,0,0,0,0,0,0,0,0,0,0,0,0,0,0,0,0,0,0,0,0,0,0,0,0,0,0,0,0,0,0,0,0,0,0,0,0,0,0,0,0,0,0,0,0,0,0,0,0,0,0,0,0,0,0,0,0,0,0,0,0,0,0,0,0,0,0,0,0,0,0,0,0,0,0,0,0,0,0,0,0,0,0,0,0,0,0,0,0,0,0,0]
[null,null,"> 132 kV & < = 275 kV ;  Oil Filled Reactors",44.8,6.6932802122726045,0,1,0,0,1,3,0,1,0,0,0,0,0,0,0,0,0,0,0,0,0,0,0,0,0,0,0,0,0,4,0,0,0,0,0,0,0,0,0,0,0,0,0,0,0,0,0,0,0,0,0,0,0,0,0,0,0,0,0,0,0,0,0,0,0,0,0,0,0,0,0,0,0,0,0,0,0,0,0,0,0,0,0,0,0,0,0,0,0,0,0,0,0,0,0,0,0,0,0,0,0,0,0,0,0,0,0]
[null,null,"> 275 kV & < = 330 kV ;  Oil Filled Reactors",44.8,6.6932802122726045]
[null,null,"> 330 kV & < = 500 kV  ;  Oil Filled Reactors",44.8,6.6932802122726045]
[null,null,"> 500 kV  ;  Oil Filled Reactors",44.8,6.6932802122726045]
[null,null,"Other"]
[null,"SCADA, NETWORK CONTROL AND PROTECTION SYSTEMS BY:\nFunction","Communications Network Assets"]
[null,null,"Master Station Assets"]
[null,null,"Control equipment / systems"]
[null,null,"Infrastructure: protection and control"]
[null,null,"Metering systems"]
[null,null,"OPGW",27,5.196152422706632,93.516999999999996,0,19.463000000000001,229.01291000000001,22.730091999999999,73.656999999999996,78.078294999999983,225.72490000000002,3.48,42.158866000000025,0,32.860254000000005,67.013600000000011,0,0,3.8029999999999999,3.613,3.698,1.6359999999999999,0.61499999999999999,0,0,0,0,0,0,0,0,0,0,0,0,0,0,0,0,0,0,0,0,0,0,0,0,0,0,0,0,0,0,0,0,0,0,0,0,0,0,0,0,0,0,0,0,0,0,0,0,0,0,0,0,0,0,0,0,0,0,0,0,0,0,0,0,0,0,0,0,0,0,0,0,0,0,0,0,0,0,0,0,0,0,0,0,0,0,0]
[null,null,"Protection schemes / systems"]
[null,null,"Site establishment",55,7.416198487095663,1,1,0,0,1,2,2,0,0,1,0,1,0,1,0,1,0,1,1,1,0,0,0,1,0,1,1,1,2,0,2,1,0,1,2,2,1,1,3,2,4,1,0,2,1,1,3,2,5,2,2,3,5,3,1,0,2,1,1,0,1,0,0,1,2,0,0,0,0,0,0,0,0,0,0,0,0,0,0,0,0,0,0,0,0,0,0,0,0,0,0,0,0,0,0,0,0,0,0,0,0,0,0,0,0,0,0]
[null,null,"Station SCADA and control systems"]
[null,null,"Telecommunications Network / Systems"]
[null,null,"Total secondary systems",15,3.872983346207417,67,73,26,206,86,55,64,52,16,87,15,119,52,113,16,27,8,31,9,25,0,0,0,0,0,0,0,11,12,12,8,7,19,1,55,5,1,0,16,6,18,2,0,29,1,3,2,8,12,3,2,0,3,2,0,0,0,3,0,0,0,0,0,0,0,0,0,0,0,0,0,0,0,0,0,0,0,0,0,0,0,0,0,0,0,0,0,0,0,0,0,0,0,0,0,0,0,0,0,0,0,0,0,0,0,0,0]
[null,null,"Other"]
[null,"OTHER BY: \nTNSP defined"]
[null,null,"SCADA, NETWORK CONTROL AND PROTECTION SYSTEMS BY: FUNCTION \nTelecommunications",15,3.872983346207417,1,4,3,1,2,5,2,3,6,4,1,4,0,1,0,6,1,2,1,1,0,0,1,1,0,1,1,2,4,2,5,1,0,1,2,2,1,1,3,2,4,1,0,2,1,1,3,2,5,2,2,3,5,3,1,0,2,1,1,0,1,0,0,1,2,0,0,0,0,0,0,0,0,0,0,0,0,0,0,0,0,0,0,0,0,0,0,0,0,0,0,0,0,0,0,0,0,0,0,0,0,0,0,0,0,0,0]

{"sheet":"5.3 MD - Network level","index":15,"n_rows":15,"n_cols":4,"rows_kept":15,"cut":false,"hidden":false,"merged":[]}
[null,"REGULATORY REPORTING STATEMENT"]
[null,{"$f":"INDEX(dms_TradingNameFull_List,MATCH(dms_TradingName,dms_TradingName_List))","v":"ElectraNet"}]
[null,{"$f":"CONCATENATE((LOOKUP(dms_Model,dms_Model_List,dms_Worksheet_List))&\" \"&CRY)","v":"CATEGORY ANALYSIS 2016-17"}]
[null,"5.3 MAXIMUM DEMAND AT NETWORK LEVEL"]
[]
[]
[null,"5.3.1 - RAW AND WEATHER CORRECTED COINCIDENT MD AT NETWORK LEVEL \n(Summed at transmission connection point)"]
[null,null,"UNIT",{"$f":"CRY","v":"2016-17"}]
[null,"Raw network coincident MD","MW",2955.0151501099999]
[null,"Date MD occurred",null,"2017-02-08"]
[null,"Half hour time period MD occurred",null,"18:30:00"]
[null,"Winter/summer peaking",null,"Summer"]
[null,"Embedded generation","MW",221.48249997100001]
[null,"Weather corrected (10% POE) network coincident MD","MW",3137.117807355]
[null,"Weather corrected (50% POE) network coincident MD","MW",2800.9920220819999]

{"sheet":"5.4 MD & utilisation-Spatial","index":16,"n_rows":4431,"n_cols":6,"rows_kept":4431,"cut":false,"hidden":false,"merged":[[5,1,5,2],[4425,2,4426,2],[4425,3,4426,3],[4427,2,4428,2],[4427,3,4428,3],[4429,2,4430,2],[4429,3,4430,3],[4419,2,4420,2],[4419,3,4420,3],[4421,2,4422,2],[4421,3,4422,3],[4423,2,4424,2],[4423,3,4424,3],[4413,2,4414,2],[4413,3,4414,3],[4415,2,4416,2],[4415,3,4416,3],[4417,2,4418,2],[4417,3,4418,3],[4407,2,4408,2],[4407,3,4408,3],[4409,2,4410,2],[4409,3,4410,3],[4411,2,4412,2],[4411,3,4412,3],[4401,2,4402,2],[4401,3,4402,3],[4403,2,4404,2],[4403,3,4404,3],[4405,2,4406,2],[4405,3,4406,3],[4395,2,4396,2],[4395,3,4396,3],[4397,2,4398,2],[4397,3,4398,3],[4399,2,4400,2],[4399,3,4400,3],[4389,2,4390,2],[4389,3,4390,3],[4391,2,4392,2],[4391,3,4392,3],[4393,2,4394,2],[4393,3,4394,3],[4383,2,4384,2],[4383,3,4384,3],[4385,2,4386,2],[4385,3,4386,3],[4387,2,4388,2],[4387,3,4388,3],[4377,2,4378,2],[4377,3,4378,3],[4379,2,4380,2],[4379,3,4380,3],[4381,2,4382,2],[4381,3,4382,3],[4371,2,4372,2],[4371,3,4372,3],[4373,2,4374,2],[4373,3,4374,3],[4375,2,4376,2],[4375,3,4376,3],[4365,2,4366,2],[4365,3,4366,3],[4367,2,4368,2],[4367,3,4368,3],[4369,2,4370,2],[4369,3,4370,3],[4359,2,4360,2],[4359,3,4360,3],[4361,2,4362,2],[4361,3,4362,3],[4363,2,4364,2],[4363,3,4364,3],[4353,2,4354,2],[4353,3,4354,3],[4355,2,4356,2],[4355,3,4356,3],[4357,2,4358,2],[4357,3,4358,3],[4347,2,4348,2],[4347,3,4348,3],[4349,2,4350,2],[4349,3,4350,3],[4351,2,4352,2],[4351,3,4352,3],[4341,2,4342,2],[4341,3,4342,3],[4343,2,4344,2],[4343,3,4344,3],[4345,2,4346,2],[4345,3,4346,3],[4335,2,4336,2],[4335,3,4336,3],[4337,2,4338,2],[4337,3,4338,3],[4339,2,4340,2],[4339,3,4340,3],[4329,2,4330,2],[4329,3,4330,3],[4331,2,4332,2],[4331,3,4332,3],[4333,2,4334,2],[4333,3,4334,3],[4323,2,4324,2],[4323,3,4324,3],[4325,2,4326,2],[4325,3,4326,3],[4327,2,4328,2],[4327,3,4328,3],[4317,2,4318,2],[4317,3,4318,3],[4319,2,4320,2],[4319,3,4320,3],[4321,2,4322,2],[4321,3,4322,3],[4311,2,4312,2],[4311,3,4312,3],[4313,2,4314,2],[4313,3,4314,3],[4315,2,4316,2],[4315,3,4316,3],[4305,2,4306,2],[4305,3,4306,3],[4307,2,4308,2],[4307,3,4308,3],[4309,2,4310,2],[4309,3,4310,3],[4299,2,4300,2],[4299,3,4300,3],[4301,2,4302,2],[4301,3,4302,3],[4303,2,4304,2],[4303,3,4304,3],[4293,2,4294,2],[4293,3,4294,3],[4295,2,4296,2],[4295,3,4296,3],[4297,2,4298,2],[4297,3,4298,3],[4287,2,4288,2],[4287,3,4288,3],[4289,2,4290,2],[4289,3,4290,3],[4291,2,4292,2],[4291,3,4292,3],[4281,2,4282,2],[4281,3,4282,3],[4283,2,4284,2],[4283,3,4284,3],[4285,2,4286,2],[4285,3,4286,3],[4275,2,4276,2],[4275,3,4276,3],[4277,2,4278,2],[4277,3,4278,3],[4279,2,4280,2],[4279,3,4280,3],[4269,2,4270,2],[4269,3,4270,3],[4271,2,4272,2],[4271,3,4272,3],[4273,2,4274,2],[4273,3,4274,3],[4263,2,4264,2],[4263,3,4264,3],[4265,2,4266,2],[4265,3,4266,3],[4267,2,4268,2],[4267,3,4268,3],[4257,2,4258,2],[4257,3,4258,3],[4259,2,4260,2],[4259,3,4260,3],[4261,2,4262,2],[4261,3,4262,3],[4251,2,4252,2],[4251,3,4252,3],[4253,2,4254,2],[4253,3,4254,3],[4255,2,4256,2],[4255,3,4256,3],[4245,2,4246,2],[4245,3,4246,3],[4247,2,4248,2],[4247,3,4248,3],[4249,2,4250,2],[4249,3,4250,3],[4239,2,4240,2],[4239,3,4240,3],[4241,2,4242,2],[4241,3,4242,3],[4243,2,4244,2],[4243,3,4244,3],[4233,2,4234,2],[4233,3,4234,3],[4235,2,4236,2],[4235,3,4236,3],[4237,2,4238,2],[4237,3,4238,3],[4227,2,4228,2],[4227,3,4228,3],[4229,2,4230,2],[4229,3,4230,3],[4231,2,4232,2],[4231,3,4232,3],[4221,2,4222,2],[4221,3,4222,3],[4223,2,4224,2],[4223,3,4224,3],[4225,2,4226,2],[4225,3,4226,3],[4215,2,4216,2],[4215,3,4216,3],[4217,2,4218,2],[4217,3,4218,3],[4219,2,4220,2],[4219,3,4220,3],[4209,2,4210,2],[4209,3,4210,3],[4211,2,4212,2],[4211,3,4212,3],[4213,2,4214,2],[4213,3,4214,3],[4203,2,4204,2],[4203,3,4204,3],[4205,2,4206,2],[4205,3,4206,3],[4207,2,4208,2],[4207,3,4208,3],[4197,2,4198,2],[4197,3,4198,3],[4199,2,4200,2],[4199,3,4200,3],[4201,2,4202,2],[4201,3,4202,3],[4191,2,4192,2],[4191,3,4192,3],[4193,2,4194,2],[4193,3,4194,3],[4195,2,4196,2],[4195,3,4196,3],[4185,2,4186,2],[4185,3,4186,3],[4187,2,4188,2],[4187,3,4188,3],[4189,2,4190,2],[4189,3,4190,3],[4179,2,4180,2],[4179,3,4180,3],[4181,2,4182,2],[4181,3,4182,3],[4183,2,4184,2],[4183,3,4184,3],[4173,2,4174,2],[4173,3,4174,3],[4175,2,4176,2],[4175,3,4176,3],[4177,2,4178,2],[4177,3,4178,3],[4167,2,4168,2],[4167,3,4168,3],[4169,2,4170,2],[4169,3,4170,3],[4171,2,4172,2],[4171,3,4172,3],[4161,2,4162,2],[4161,3,4162,3],[4163,2,4164,2],[4163,3,4164,3],[4165,2,4166,2],[4165,3,4166,3],[4155,2,4156,2],[4155,3,4156,3],[4157,2,4158,2],[4157,3,4158,3],[4159,2,4160,2],[4159,3,4160,3],[4149,2,4150,2],[4149,3,4150,3],[4151,2,4152,2],[4151,3,4152,3],[4153,2,4154,2],[4153,3,4154,3],[4143,2,4144,2],[4143,3,4144,3],[4145,2,4146,2],[4145,3,4146,3],[4147,2,4148,2],[4147,3,4148,3],[4137,2,4138,2],[4137,3,4138,3],[4139,2,4140,2],[4139,3,4140,3],[4141,2,4142,2],[4141,3,4142,3],[4131,2,4132,2],[4131,3,4132,3],[4133,2,4134,2],[4133,3,4134,3],[4135,2,4136,2],[4135,3,4136,3],[4125,2,4126,2],[4125,3,4126,3],[4127,2,4128,2],[4127,3,4128,3],[4129,2,4130,2],[4129,3,4130,3],[4119,2,4120,2],[4119,3,4120,3],[4121,2,4122,2],[4121,3,4122,3],[4123,2,4124,2],[4123,3,4124,3],[4113,2,4114,2],[4113,3,4114,3],[4115,2,4116,2],[4115,3,4116,3],[4117,2,4118,2],[4117,3,4118,3],[4107,2,4108,2],[4107,3,4108,3],[4109,2,4110,2],[4109,3,4110,3],[4111,2,4112,2],[4111,3,4112,3],[4101,2,4102,2],[4101,3,4102,3],[4103,2,4104,2],[4103,3,4104,3],[4105,2,4106,2],[4105,3,4106,3],[4095,2,4096,2],[4095,3,4096,3],[4097,2,4098,2],[4097,3,4098,3],[4099,2,4100,2],[4099,3,4100,3],[4089,2,4090,2],[4089,3,4090,3],[4091,2,4092,2],[4091,3,4092,3],[4093,2,4094,2],[4093,3,4094,3],[4083,2,4084,2],[4083,3,4084,3],[4085,2,4086,2],[4085,3,4086,3],[4087,2,4088,2],[4087,3,4088,3],[4077,2,4078,2],[4077,3,4078,3],[4079,2,4080,2],[4079,3,4080,3],[4081,2,4082,2],[4081,3,4082,3],[4071,2,4072,2],[4071,3,4072,3],[4073,2,4074,2],[4073,3,4074,3],[4075,2,4076,2],[4075,3,4076,3],[4065,2,4066,2],[4065,3,4066,3],[4067,2,4068,2],[4067,3,4068,3],[4069,2,4070,2],[4069,3,4070,3],[4059,2,4060,2],[4059,3,4060,3],[4061,2,4062,2],[4061,3,4062,3],[4063,2,4064,2],[4063,3,4064,3],[4053,2,4054,2],[4053,3,4054,3],[4055,2,4056,2],[4055,3,4056,3],[4057,2,4058,2],[4057,3,4058,3],[4047,2,4048,2],[4047,3,4048,3],[4049,2,4050,2],[4049,3,4050,3],[4051,2,4052,2],[4051,3,4052,3],[4041,2,4042,2],[4041,3,4042,3],[4043,2,4044,2],[4043,3,4044,3],[4045,2,4046,2],[4045,3,4046,3],[4035,2,4036,2],[4035,3,4036,3],[4037,2,4038,2],[4037,3,4038,3],[4039,2,4040,2],[4039,3,4040,3],[4029,2,4030,2],[4029,3,4030,3],[4031,2,4032,2],[4031,3,4032,3],[4033,2,4034,2],[4033,3,4034,3],[4023,2,4024,2],[4023,3,4024,3],[4025,2,4026,2],[4025,3,4026,3],[4027,2,4028,2],[4027,3,4028,3],[4017,2,4018,2],[4017,3,4018,3],[4019,2,4020,2],[4019,3,4020,3],[4021,2,4022,2],[4021,3,4022,3],[4011,2,4012,2],[4011,3,4012,3],[4013,2,4014,2],[4013,3,4014,3],[4015,2,4016,2],[4015,3,4016,3],[4005,2,4006,2],[4005,3,4006,3],[4007,2,4008,2],[4007,3,4008,3],[4009,2,4010,2],[4009,3,4010,3],[3999,2,4000,2],[3999,3,4000,3],[4001,2,4002,2],[4001,3,4002,3],[4003,2,4004,2],[4003,3,4004,3],[3993,2,3994,2],[3993,3,3994,3],[3995,2,3996,2],[3995,3,3996,3],[3997,2,3998,2],[3997,3,3998,3],[3987,2,3988,2],[3987,3,3988,3],[3989,2,3990,2],[3989,3,3990,3],[3991,2,3992,2],[3991,3,3992,3],[3981,2,3982,2],[3981,3,3982,3],[3983,2,3984,2],[3983,3,3984,3],[3985,2,3986,2],[3985,3,3986,3],[3975,2,3976,2],[3975,3,3976,3],[3977,2,3978,2],[3977,3,3978,3],[3979,2,3980,2],[3979,3,3980,3],[3969,2,3970,2],[3969,3,3970,3],[3971,2,3972,2],[3971,3,3972,3],[3973,2,3974,2],[3973,3,3974,3],[3963,2,3964,2],[3963,3,3964,3],[3965,2,3966,2],[3965,3,3966,3],[3967,2,3968,2],[3967,3,3968,3],[3957,2,3958,2],[3957,3,3958,3],[3959,2,3960,2],[3959,3,3960,3],[3961,2,3962,2],[3961,3,3962,3],[3951,2,3952,2],[3951,3,3952,3],[3953,2,3954,2],[3953,3,3954,3],[3955,2,3956,2],[3955,3,3956,3],[3945,2,3946,2],[3945,3,3946,3],[3947,2,3948,2],[3947,3,3948,3],[3949,2,3950,2],[3949,3,3950,3],[3939,2,3940,2],[3939,3,3940,3],[3941,2,3942,2],[3941,3,3942,3],[3943,2,3944,2],[3943,3,3944,3],[3933,2,3934,2],[3933,3,3934,3],[3935,2,3936,2],[3935,3,3936,3],[3937,2,3938,2],[3937,3,3938,3],[3927,2,3928,2],[3927,3,3928,3],[3929,2,3930,2],[3929,3,3930,3],[3931,2,3932,2],[3931,3,3932,3],[3921,2,3922,2],[3921,3,3922,3],[3923,2,3924,2],[3923,3,3924,3],[3925,2,3926,2],[3925,3,3926,3],[3915,2,3916,2],[3915,3,3916,3],[3917,2,3918,2],[3917,3,3918,3],[3919,2,3920,2],[3919,3,3920,3],[3909,2,3910,2],[3909,3,3910,3],[3911,2,3912,2],[3911,3,3912,3],[3913,2,3914,2],[3913,3,3914,3],[3903,2,3904,2],[3903,3,3904,3],[3905,2,3906,2],[3905,3,3906,3],[3907,2,3908,2],[3907,3,3908,3],[3897,2,3898,2],[3897,3,3898,3],[3899,2,3900,2],[3899,3,3900,3],[3901,2,3902,2],[3901,3,3902,3],[3891,2,3892,2],[3891,3,3892,3],[3893,2,3894,2],[3893,3,3894,3],[3895,2,3896,2],[3895,3,3896,3],[3885,2,3886,2],[3885,3,3886,3],[3887,2,3888,2],[3887,3,3888,3],[3889,2,3890,2],[3889,3,3890,3],[3879,2,3880,2],[3879,3,3880,3],[3881,2,3882,2],[3881,3,3882,3],[3883,2,3884,2],[3883,3,3884,3],[3873,2,3874,2],[3873,3,3874,3],[3875,2,3876,2],[3875,3,3876,3],[3877,2,3878,2],[3877,3,3878,3],[3867,2,3868,2],[3867,3,3868,3],[3869,2,3870,2],[3869,3,3870,3],[3871,2,3872,2],[3871,3,3872,3],[3861,2,3862,2],[3861,3,3862,3],[3863,2,3864,2],[3863,3,3864,3],[3865,2,3866,2],[3865,3,3866,3],[3855,2,3856,2],[3855,3,3856,3],[3857,2,3858,2],[3857,3,3858,3],[3859,2,3860,2],[3859,3,3860,3],[3849,2,3850,2],[3849,3,3850,3],[3851,2,3852,2],[3851,3,3852,3],[3853,2,3854,2],[3853,3,3854,3],[3843,2,3844,2],[3843,3,3844,3],[3845,2,3846,2],[3845,3,3846,3],[3847,2,3848,2],[3847,3,3848,3],[3837,2,3838,2],[3837,3,3838,3],[3839,2,3840,2],[3839,3,3840,3],[3841,2,3842,2],[3841,3,3842,3],[3831,2,3832,2],[3831,3,3832,3],[3833,2,3834,2],[3833,3,3834,3],[3835,2,3836,2],[3835,3,3836,3],[3825,2,3826,2],[3825,3,3826,3],[3827,2,3828,2],[3827,3,3828,3],[3829,2,3830,2],[3829,3,3830,3],[3819,2,3820,2],[3819,3,3820,3],[3821,2,3822,2],[3821,3,3822,3],[3823,2,3824,2],[3823,3,3824,3],[3813,2,3814,2],[3813,3,3814,3],[3815,2,3816,2],[3815,3,3816,3],[3817,2,3818,2],[3817,3,3818,3],[3807,2,3808,2],[3807,3,3808,3],[3809,2,3810,2],[3809,3,3810,3],[3811,2,3812,2],[3811,3,3812,3],[3801,2,3802,2],[3801,3,3802,3],[3803,2,3804,2],[3803,3,3804,3],[3805,2,3806,2],[3805,3,3806,3],[3795,2,3796,2],[3795,3,3796,3],[3797,2,3798,2],[3797,3,3798,3],[3799,2,3800,2],[3799,3,3800,3],[3789,2,3790,2],[3789,3,3790,3],[3791,2,3792,2],[3791,3,3792,3],[3793,2,3794,2],[3793,3,3794,3],[3783,2,3784,2],[3783,3,3784,3],[3785,2,3786,2],[3785,3,3786,3],[3787,2,3788,2],[3787,3,3788,3],[3777,2,3778,2],[3777,3,3778,3],[3779,2,3780,2],[3779,3,3780,3],[3781,2,3782,2],[3781,3,3782,3],[3771,2,3772,2],[3771,3,3772,3],[3773,2,3774,2],[3773,3,3774,3],[3775,2,3776,2],[3775,3,3776,3],[3765,2,3766,2],[3765,3,3766,3],[3767,2,3768,2],[3767,3,3768,3],[3769,2,3770,2],[3769,3,3770,3],[3759,2,3760,2],[3759,3,3760,3],[3761,2,3762,2],[3761,3,3762,3],[3763,2,3764,2],[3763,3,3764,3],[3753,2,3754,2],[3753,3,3754,3],[3755,2,3756,2],[3755,3,3756,3],[3757,2,3758,2],[3757,3,3758,3],[3747,2,3748,2],[3747,3,3748,3],[3749,2,3750,2],[3749,3,3750,3],[3751,2,3752,2],[3751,3,3752,3],[3741,2,3742,2],[3741,3,3742,3],[3743,2,3744,2],[3743,3,3744,3],[3745,2,3746,2],[3745,3,3746,3],[3735,2,3736,2],[3735,3,3736,3],[3737,2,3738,2],[3737,3,3738,3],[3739,2,3740,2],[3739,3,3740,3],[3729,2,3730,2],[3729,3,3730,3],[3731,2,3732,2],[3731,3,3732,3],[3733,2,3734,2],[3733,3,3734,3],[3723,2,3724,2],[3723,3,3724,3],[3725,2,3726,2],[3725,3,3726,3],[3727,2,3728,2],[3727,3,3728,3],[3717,2,3718,2],[3717,3,3718,3],[3719,2,3720,2],[3719,3,3720,3],[3721,2,3722,2],[3721,3,3722,3],[3711,2,3712,2],[3711,3,3712,3],[3713,2,3714,2],[3713,3,3714,3],[3715,2,3716,2],[3715,3,3716,3],[3705,2,3706,2],[3705,3,3706,3],[3707,2,3708,2],[3707,3,3708,3],[3709,2,3710,2],[3709,3,3710,3],[3699,2,3700,2],[3699,3,3700,3],[3701,2,3702,2],[3701,3,3702,3],[3703,2,3704,2],[3703,3,3704,3],[3693,2,3694,2],[3693,3,3694,3],[3695,2,3696,2],[3695,3,3696,3],[3697,2,3698,2],[3697,3,3698,3],[3687,2,3688,2],[3687,3,3688,3],[3689,2,3690,2],[3689,3,3690,3],[3691,2,3692,2],[3691,3,3692,3],[3681,2,3682,2],[3681,3,3682,3],[3683,2,3684,2],[3683,3,3684,3],[3685,2,3686,2],[3685,3,3686,3],[3675,2,3676,2],[3675,3,3676,3],[3677,2,3678,2],[3677,3,3678,3],[3679,2,3680,2],[3679,3,3680,3],[3669,2,3670,2],[3669,3,3670,3],[3671,2,3672,2],[3671,3,3672,3],[3673,2,3674,2],[3673,3,3674,3],[3663,2,3664,2],[3663,3,3664,3],[3665,2,3666,2],[3665,3,3666,3],[3667,2,3668,2],[3667,3,3668,3],[3657,2,3658,2],[3657,3,3658,3],[3659,2,3660,2],[3659,3,3660,3],[3661,2,3662,2],[3661,3,3662,3],[3651,2,3652,2],[3651,3,3652,3],[3653,2,3654,2],[3653,3,3654,3],[3655,2,3656,2],[3655,3,3656,3],[3645,2,3646,2],[3645,3,3646,3],[3647,2,3648,2],[3647,3,3648,3],[3649,2,3650,2],[3649,3,3650,3],[3639,2,3640,2],[3639,3,3640,3],[3641,2,3642,2],[3641,3,3642,3],[3643,2,3644,2],[3643,3,3644,3],[3633,2,3634,2],[3633,3,3634,3],[3635,2,3636,2],[3635,3,3636,3],[3637,2,3638,2],[3637,3,3638,3],[3627,2,3628,2],[3627,3,3628,3],[3629,2,3630,2],[3629,3,3630,3],[3631,2,3632,2],[3631,3,3632,3],[3621,2,3622,2],[3621,3,3622,3],[3623,2,3624,2],[3623,3,3624,3],[3625,2,3626,2],[3625,3,3626,3],[3615,2,3616,2],[3615,3,3616,3],[3617,2,3618,2],[3617,3,3618,3],[3619,2,3620,2],[3619,3,3620,3],[3609,2,3610,2],[3609,3,3610,3],[3611,2,3612,2],[3611,3,3612,3],[3613,2,3614,2],[3613,3,3614,3],[3603,2,3604,2],[3603,3,3604,3],[3605,2,3606,2],[3605,3,3606,3],[3607,2,3608,2],[3607,3,3608,3],[3597,2,3598,2],[3597,3,3598,3],[3599,2,3600,2],[3599,3,3600,3],[3601,2,3602,2],[3601,3,3602,3],[3591,2,3592,2],[3591,3,3592,3],[3593,2,3594,2],[3593,3,3594,3],[3595,2,3596,2],[3595,3,3596,3],[3585,2,3586,2],[3585,3,3586,3],[3587,2,3588,2],[3587,3,3588,3],[3589,2,3590,2],[3589,3,3590,3],[3579,2,3580,2],[3579,3,3580,3],[3581,2,3582,2],[3581,3,3582,3],[3583,2,3584,2],[3583,3,3584,3],[3573,2,3574,2],[3573,3,3574,3],[3575,2,3576,2],[3575,3,3576,3],[3577,2,3578,2],[3577,3,3578,3],[3567,2,3568,2],[3567,3,3568,3],[3569,2,3570,2],[3569,3,3570,3],[3571,2,3572,2],[3571,3,3572,3],[3561,2,3562,2],[3561,3,3562,3],[3563,2,3564,2],[3563,3,3564,3],[3565,2,3566,2],[3565,3,3566,3],[3555,2,3556,2],[3555,3,3556,3],[3557,2,3558,2],[3557,3,3558,3],[3559,2,3560,2],[3559,3,3560,3],[3549,2,3550,2],[3549,3,3550,3],[3551,2,3552,2],[3551,3,3552,3],[3553,2,3554,2],[3553,3,3554,3],[3543,2,3544,2],[3543,3,3544,3],[3545,2,3546,2],[3545,3,3546,3],[3547,2,3548,2],[3547,3,3548,3],[3537,2,3538,2],[3537,3,3538,3],[3539,2,3540,2],[3539,3,3540,3],[3541,2,3542,2],[3541,3,3542,3],[3531,2,3532,2],[3531,3,3532,3],[3533,2,3534,2],[3533,3,3534,3],[3535,2,3536,2],[3535,3,3536,3],[3525,2,3526,2],[3525,3,3526,3],[3527,2,3528,2],[3527,3,3528,3],[3529,2,3530,2],[3529,3,3530,3],[3519,2,3520,2],[3519,3,3520,3],[3521,2,3522,2],[3521,3,3522,3],[3523,2,3524,2],[3523,3,3524,3],[3513,2,3514,2],[3513,3,3514,3],[3515,2,3516,2],[3515,3,3516,3],[3517,2,3518,2],[3517,3,3518,3],[3507,2,3508,2],[3507,3,3508,3],[3509,2,3510,2],[3509,3,3510,3],[3511,2,3512,2],[3511,3,3512,3],[3501,2,3502,2],[3501,3,3502,3],[3503,2,3504,2],[3503,3,3504,3],[3505,2,3506,2],[3505,3,3506,3],[3495,2,3496,2],[3495,3,3496,3],[3497,2,3498,2],[3497,3,3498,3],[3499,2,3500,2],[3499,3,3500,3],[3489,2,3490,2],[3489,3,3490,3],[3491,2,3492,2],[3491,3,3492,3],[3493,2,3494,2],[3493,3,3494,3],[3483,2,3484,2],[3483,3,3484,3],[3485,2,3486,2],[3485,3,3486,3],[3487,2,3488,2],[3487,3,3488,3],[3477,2,3478,2],[3477,3,3478,3],[3479,2,3480,2],[3479,3,3480,3],[3481,2,3482,2],[3481,3,3482,3],[3471,2,3472,2],[3471,3,3472,3],[3473,2,3474,2],[3473,3,3474,3],[3475,2,3476,2],[3475,3,3476,3],[3465,2,3466,2],[3465,3,3466,3],[3467,2,3468,2],[3467,3,3468,3],[3469,2,3470,2],[3469,3,3470,3],[3459,2,3460,2],[3459,3,3460,3],[3461,2,3462,2],[3461,3,3462,3],[3463,2,3464,2],[3463,3,3464,3],[3453,2,3454,2],[3453,3,3454,3],[3455,2,3456,2],[3455,3,3456,3],[3457,2,3458,2],[3457,3,3458,3],[3447,2,3448,2],[3447,3,3448,3],[3449,2,3450,2],[3449,3,3450,3],[3451,2,3452,2],[3451,3,3452,3],[3441,2,3442,2],[3441,3,3442,3],[3443,2,3444,2],[3443,3,3444,3],[3445,2,3446,2],[3445,3,3446,3],[3435,2,3436,2],[3435,3,3436,3],[3437,2,3438,2],[3437,3,3438,3],[3439,2,3440,2],[3439,3,3440,3],[3429,2,3430,2],[3429,3,3430,3],[3431,2,3432,2]],"merged_total":4624,"flags":["merged_cut"]}
[null,"REGULATORY REPORTING STATEMENT"]
[null,{"$f":"INDEX(dms_TradingNameFull_List,MATCH(dms_TradingName,dms_TradingName_List))","v":"ElectraNet"}]
[null,{"$f":"CONCATENATE((LOOKUP(dms_Model,dms_Model_List,dms_Worksheet_List))&\" \"&CRY)","v":"CATEGORY ANALYSIS 2016-17"}]
[null,"5.4 MAXIMUM DEMAND AND UTILISATION AT SPATIAL LEVEL"]
[]
[null,"There is ONE table on this worksheet. It has been sub-grouped into blocks of approximately 1000 rows for ease of navigation. See the Instructions sheet on how to group or ungroup data."]
[]
[null,"TABLE 5.4.1 NON-COINCIDENT & COINCIDENT MAXIMUM DEMAND"]
[null,"CONNECTION POINT","FORECASTING ELEMENTS","UNIT","MAX DEMAND",{"$f":"CRY","v":"2016-17"}]
[null,"ACR","Connection Point Rating","MVA","Non-Coincident",600]
[null,null,null,null,"Coincident",600]
[null,null,"Raw Adjusted MD","MW","Non-Coincident",331.55409129999998]
[null,null,null,null,"Coincident",319.45826599999998]
[null,null,"Raw Adjusted MD","MVA","Non-Coincident",335.19295349999999]
[null,null,null,null,"Coincident",324.45206330000002]
[null,null,"Date MD occurred",null,"Non-Coincident","2017-02-09"]
[null,null,null,null,"Coincident","2017-02-08"]
[null,null,"Half hour time period MD occurred",null,"Non-Coincident","19:00:00"]
[null,null,null,null,"Coincident","18:30:00"]
[null,null,"Winter/Summer Peaking",null,"Non-Coincident","Summer"]
[null,null,null,null,"Coincident","Summer"]
[null,null,"Adjustments - Embedded generation","MW","Non-Coincident",0.30389959900000002]
[null,null,null,null,"Coincident",0.27310057399999998]
[null,null,"Weather Corrected MD 10% POE","MW","Non-Coincident",341.54436040000002]
[null,null,null,null,"Coincident",328.61909059999999]
[null,null,"Weather Corrected MD 10% POE","MVA","Non-Coincident",345.31778079999998]
[null,null,null,null,"Coincident",333.86966869999998]
[null,null,"Weather Corrected MD 50% POE","MW","Non-Coincident",305.10270989999998]
[null,null,null,null,"Coincident",293.58601090000002]
[null,null,"Weather Corrected MD 50% POE","MVA","Non-Coincident",308.47193879999998]
[null,null,null,null,"Coincident",298.26962789999999]
[null,"Angas Creek","Connection Point Rating","MVA","Non-Coincident",56.6]
[null,null,null,null,"Coincident",56.6]
[null,null,"Raw Adjusted MD","MW","Non-Coincident",16.556784]
[null,null,null,null,"Coincident",15.038294]
[null,null,"Raw Adjusted MD","MVA","Non-Coincident",17.086058000000001]
[null,null,null,null,"Coincident",15.424064]
[null,null,"Date MD occurred",null,"Non-Coincident","2017-02-10"]
[null,null,null,null,"Coincident","2017-02-08"]
[null,null,"Half hour time period MD occurred",null,"Non-Coincident","19:00:00"]
[null,null,null,null,"Coincident","18:30:00"]
[null,null,"Winter/Summer Peaking",null,"Non-Coincident","Summer"]
[null,null,null,null,"Coincident","Summer"]
[null,null,"Adjustments - Embedded generation","MW","Non-Coincident",1.8178571670000001]
[null,null,null,null,"Coincident",1.887329418]
[null,null,"Weather Corrected MD 10% POE","MW","Non-Coincident",17.432156249999998]
[null,null,null,null,"Coincident",15.8333823]
[null,null,"Weather Corrected MD 10% POE","MVA","Non-Coincident",17.98941344]
[null,null,null,null,"Coincident",16.23954831]
[null,null,"Weather Corrected MD 50% POE","MW","Non-Coincident",15.61046539]
[null,null,null,null,"Coincident",14.178766120000001]
[null,null,"Weather Corrected MD 50% POE","MVA","Non-Coincident",16.109488240000001]
[null,null,null,null,"Coincident",14.54248707]
[null,"Ardrossan West","Connection Point Rating","MVA","Non-Coincident",50]
[null,null,null,null,"Coincident",50]
[null,null,"Raw Adjusted MD","MW","Non-Coincident",10.542]
[null,null,null,null,"Coincident",9.1699000000000002]
[null,null,"Raw Adjusted MD","MVA","Non-Coincident",10.74494887]
[null,null,null,null,"Coincident",9.3182295530000001]
[null,null,"Date MD occurred",null,"Non-Coincident","2017-01-07"]
[null,null,null,null,"Coincident","2017-02-08"]
[null,null,"Half hour time period MD occurred",null,"Non-Coincident","16:30:00"]
[null,null,null,null,"Coincident","18:30:00"]
[null,null,"Winter/Summer Peaking",null,"Non-Coincident","Summer"]
[null,null,null,null,"Coincident","Summer"]
[null,null,"Adjustments - Embedded generation","MW","Non-Coincident",1.9273753870000001]
[null,null,null,null,"Coincident",1.3073442669999999]
[null,null,"Weather Corrected MD 10% POE","MW","Non-Coincident",8.8419771730000001]
[null,null,null,null,"Coincident",7.6911446100000003]
[null,null,"Weather Corrected MD 10% POE","MVA","Non-Coincident",9.0121981259999995]
[null,null,null,null,"Coincident",7.8155542589999998]
[null,null,"Weather Corrected MD 50% POE","MW","Non-Coincident",8.0699605759999997]
[null,null,null,null,"Coincident",7.0196102720000004]
[null,null,"Weather Corrected MD 50% POE","MVA","Non-Coincident",8.2253190840000006]
[null,null,null,null,"Coincident",7.1331573830000004]
[null,"Back Callington","Connection Point Rating","MVA","Non-Coincident"]
[null,null,null,null,"Coincident"]
[null,null,"Raw Adjusted MD","MW","Non-Coincident"]
[null,null,null,null,"Coincident"]
[null,null,"Raw Adjusted MD","MVA","Non-Coincident"]
[null,null,null,null,"Coincident"]
[null,null,"Date MD occurred",null,"Non-Coincident"]
[null,null,null,null,"Coincident"]
[null,null,"Half hour time period MD occurred",null,"Non-Coincident"]
[null,null,null,null,"Coincident"]
[null,null,"Winter/Summer Peaking",null,"Non-Coincident"]
[null,null,null,null,"Coincident"]
[null,null,"Adjustments - Embedded generation","MW","Non-Coincident"]
[null,null,null,null,"Coincident"]
[null,null,"Weather Corrected MD 10% POE","MW","Non-Coincident"]
[null,null,null,null,"Coincident"]
[null,null,"Weather Corrected MD 10% POE","MVA","Non-Coincident"]
[null,null,null,null,"Coincident"]
[null,null,"Weather Corrected MD 50% POE","MW","Non-Coincident"]
[null,null,null,null,"Coincident"]
[null,null,"Weather Corrected MD 50% POE","MVA","Non-Coincident"]
[null,null,null,null,"Coincident"]
[null,"Baroota","Connection Point Rating","MVA","Non-Coincident",11.8]
[null,null,null,null,"Coincident",11.8]
[null,null,"Raw Adjusted MD","MW","Non-Coincident",8.2371999999999996]
[null,null,null,null,"Coincident",7.4630000000000001]
[null,null,"Raw Adjusted MD","MVA","Non-Coincident",8.2587263330000003]
[null,null,null,null,"Coincident",7.4789249120000001]
[null,null,"Date MD occurred",null,"Non-Coincident","2017-02-09"]
[null,null,null,null,"Coincident","2017-02-08"]
[null,null,"Half hour time period MD occurred",null,"Non-Coincident","19:30:00"]
[null,null,null,null,"Coincident","18:30:00"]
[null,null,"Winter/Summer Peaking",null,"Non-Coincident","Summer"]
[null,null,null,null,"Coincident","Summer"]
[null,null,"Adjustments - Embedded generation","MW","Non-Coincident",0.501946106]
[null,null,null,null,"Coincident",0.78327064899999999]
[null,null,"Weather Corrected MD 10% POE","MW","Non-Coincident",8.2448025820000002]
[null,null,null,null,"Coincident",7.4698880289999998]
[null,null,"Weather Corrected MD 10% POE","MVA","Non-Coincident",8.2663487829999998]
[null,null,null,null,"Coincident",7.485827639]
[null,null,"Weather Corrected MD 50% POE","MW","Non-Coincident",7.4697942490000004]
[null,null,null,null,"Coincident",6.7677213719999996]
[null,null,"Weather Corrected MD 50% POE","MVA","Non-Coincident",7.4893151160000002]
[null,null,null,null,"Coincident",6.7821626640000003]
[null,"Berri","Connection Point Rating","MVA","Non-Coincident",200.1]
[null,null,null,null,"Coincident",200.1]
[null,null,"Raw Adjusted MD","MW","Non-Coincident",85.547799999999995]
[null,null,null,null,"Coincident",76.216800000000006]
[null,null,"Raw Adjusted MD","MVA","Non-Coincident",88.134175639999995]
[null,null,null,null,"Coincident",77.880621149999996]
[null,null,"Date MD occurred",null,"Non-Coincident","2017-02-09"]
[null,null,null,null,"Coincident","2017-02-08"]
[null,null,"Half hour time period MD occurred",null,"Non-Coincident","19:30:00"]
[null,null,null,null,"Coincident","18:30:00"]
[null,null,"Winter/Summer Peaking",null,"Non-Coincident","Summer"]
[null,null,null,null,"Coincident","Summer"]
[null,null,"Adjustments - Embedded generation","MW","Non-Coincident",3.408202046]
[null,null,null,null,"Coincident",5.3183889530000004]
[null,null,"Weather Corrected MD 10% POE","MW","Non-Coincident",90.697809879999994]
[null,null,null,null,"Coincident",80.805080160000003]
[null,null,"Weather Corrected MD 10% POE","MVA","Non-Coincident",93.439886310000006]
[null,null,null,null,"Coincident",82.569063970000002]
[null,null,"Weather Corrected MD 50% POE","MW","Non-Coincident",83.470022940000007]
[null,null,null,null,"Coincident",74.365653409999993]
[null,null,"Weather Corrected MD 50% POE","MVA","Non-Coincident",85.993580919999999]
[null,null,null,null,"Coincident",75.989063819999998]
[null,"Blanche","Connection Point Rating","MVA","Non-Coincident",134.80000000000001]
[null,null,null,null,"Coincident",134.80000000000001]
[null,null,"Raw Adjusted MD","MW","Non-Coincident",35.913600000000002]
[null,null,null,null,"Coincident",35.638300000000001]
[null,null,"Raw Adjusted MD","MVA","Non-Coincident",38.112208950000003]
[null,null,null,null,"Coincident",37.599328139999997]
[null,null,"Date MD occurred",null,"Non-Coincident","2017-02-08"]
[null,null,null,null,"Coincident","2017-02-08"]
[null,null,"Half hour time period MD occurred",null,"Non-Coincident","18:00:00"]
[null,null,null,null,"Coincident","18:30:00"]
[null,null,"Winter/Summer Peaking",null,"Non-Coincident","Summer"]
[null,null,null,null,"Coincident","Summer"]
[null,null,"Adjustments - Embedded generation","MW","Non-Coincident",1.97921551]
[null,null,null,null,"Coincident",1.532498301]
[null,null,"Weather Corrected MD 10% POE","MW","Non-Coincident",34.965827470000001]
[null,null,null,null,"Coincident",34.697792730000003]
[null,null,"Weather Corrected MD 10% POE","MVA","Non-Coincident",37.106414360000002]
[null,null,null,null,"Coincident",36.607068650000002]
[null,null,"Weather Corrected MD 50% POE","MW","Non-Coincident",33.1523489]
[null,null,null,null,"Coincident",32.8982156]
[null,null,"Weather Corrected MD 50% POE","MVA","Non-Coincident",35.18191573]
[null,null,null,null,"Coincident",34.708468240000002]
[null,"Brinkworth","Connection Point Rating","MVA","Non-Coincident",24.6]
[null,null,null,null,"Coincident",24.6]
[null,null,"Raw Adjusted MD","MW","Non-Coincident",4.6211000000000002]
[null,null,null,null,"Coincident",4.2363]
[null,null,"Raw Adjusted MD","MVA","Non-Coincident",4.6237866480000003]
[null,null,null,null,"Coincident",4.244965595]
[null,null,"Date MD occurred",null,"Non-Coincident","2017-02-10"]
[null,null,null,null,"Coincident","2017-02-08"]
[null,null,"Half hour time period MD occurred",null,"Non-Coincident","19:30:00"]
[null,null,null,null,"Coincident","18:30:00"]
[null,null,"Winter/Summer Peaking",null,"Non-Coincident","Summer"]
[null,null,null,null,"Coincident","Summer"]
[null,null,"Adjustments - Embedded generation","MW","Non-Coincident",0.27325846999999998]
[null,null,null,null,"Coincident",0.41826301500000002]
[null,null,"Weather Corrected MD 10% POE","MW","Non-Coincident",4.5826774459999999]
[null,null,null,null,"Coincident",4.2010769010000004]
[null,null,"Weather Corrected MD 10% POE","MVA","Non-Coincident",4.585341756]
[null,null,null,null,"Coincident",4.2096704440000003]
[null,null,"Weather Corrected MD 50% POE","MW","Non-Coincident",4.134178468]
[null,null,null,null,"Coincident",3.78992453]
[null,null,"Weather Corrected MD 50% POE","MVA","Non-Coincident",4.1365820270000002]
[null,null,null,null,"Coincident",3.7976770379999998]
[null,"Bungama Rural","Connection Point Rating","MVA","Non-Coincident",64]
[null,null,null,null,"Coincident",64]
[null,null,"Raw Adjusted MD","MW","Non-Coincident",18.284959709999999]
[null,null,null,null,"Coincident",17.157185479999999]
[null,null,"Raw Adjusted MD","MVA","Non-Coincident",19.059741689999999]
[null,null,null,null,"Coincident",17.902275849999999]
[null,null,"Date MD occurred",null,"Non-Coincident","2017-02-08"]
[null,null,null,null,"Coincident","2017-02-08"]
[null,null,"Half hour time period MD occurred",null,"Non-Coincident","20:00:00"]
[null,null,null,null,"Coincident","18:30:00"]
[null,null,"Winter/Summer Peaking",null,"Non-Coincident","Summer"]
[null,null,null,null,"Coincident","Summer"]
[null,null,"Adjustments - Embedded generation","MW","Non-Coincident",0]
[null,null,null,null,"Coincident",1.127660653]
[null,null,"Weather Corrected MD 10% POE","MW","Non-Coincident",12.37649897]
[null,null,null,null,"Coincident",11.613144999999999]
[null,null,"Weather Corrected MD 10% POE","MVA","Non-Coincident",12.900923880000001]
[null,null,null,null,"Coincident",12.11747261]
[null,null,"Weather Corrected MD 50% POE","MW","Non-Coincident",11.99618407]
[null,null,null,null,"Coincident",11.256287049999999]
[null,null,"Weather Corrected MD 50% POE","MVA","Non-Coincident",12.504494040000001]
[null,null,null,null,"Coincident",11.745117280000001]
[null,"Bungama Industrial","Connection Point Rating","MVA","Non-Coincident",64]
[null,null,null,null,"Coincident",64]
[null,null,"Raw Adjusted MD","MW","Non-Coincident",18.26413397]
[null,null,null,null,"Coincident",17.137644219999999]
[null,null,"Raw Adjusted MD","MVA","Non-Coincident",19.038033510000002]
[null,null,null,null,"Coincident",17.881885960000002]
[null,null,"Date MD occurred",null,"Non-Coincident","2017-02-08"]
[null,null,null,null,"Coincident","2017-02-08"]
[null,null,"Half hour time period MD occurred",null,"Non-Coincident","20:00:00"]
[null,null,null,null,"Coincident","18:30:00"]
[null,null,"Winter/Summer Peaking",null,"Non-Coincident","Summer"]
[null,null,null,null,"Coincident","Summer"]
[null,null,"Adjustments - Embedded generation","MW","Non-Coincident",0]
[null,null,null,null,"Coincident",1.1263762980000001]
[null,null,"Weather Corrected MD 10% POE","MW","Non-Coincident",12.36240269]
[null,null,null,null,"Coincident",11.599918150000001]
[null,null,"Weather Corrected MD 10% POE","MVA","Non-Coincident",12.88623031]
[null,null,null,null,"Coincident",12.10367136]
[null,null,"Weather Corrected MD 50% POE","MW","Non-Coincident",11.98252096]
[null,null,null,null,"Coincident",11.24346665]
[null,null,"Weather Corrected MD 50% POE","MVA","Non-Coincident",12.49025198]
[null,null,null,null,"Coincident",11.73174013]
[null,"Clare North","Connection Point Rating","MVA","Non-Coincident",50]
[null,null,null,null,"Coincident",50]
[null,null,"Raw Adjusted MD","MW","Non-Coincident",12.039778]
[null,null,null,null,"Coincident",10.582722]
[null,null,"Raw Adjusted MD","MVA","Non-Coincident",12.753091]
[null,null,null,null,"Coincident",11.201453000000001]
[null,null,"Date MD occurred",null,"Non-Coincident","2017-02-09"]
[null,null,null,null,"Coincident","2017-02-08"]
[null,null,"Half hour time period MD occurred",null,"Non-Coincident","19:30:00"]
[null,null,null,null,"Coincident","18:30:00"]
[null,null,"Winter/Summer Peaking",null,"Non-Coincident","Summer"]
[null,null,null,null,"Coincident","Summer"]
[null,null,"Adjustments - Embedded generation","MW","Non-Coincident",0.5802718]
[null,null,null,null,"Coincident",0.90549535699999995]
[null,null,"Weather Corrected MD 10% POE","MW","Non-Coincident",12.25897851]
[null,null,null,null,"Coincident",10.77539483]
[null,null,"Weather Corrected MD 10% POE","MVA","Non-Coincident",12.985278340000001]
[null,null,null,null,"Coincident",11.40539066]
[null,null,"Weather Corrected MD 50% POE","MW","Non-Coincident",11.11577439]
[null,null,null,null,"Coincident",9.7705414650000009]
[null,null,"Weather Corrected MD 50% POE","MVA","Non-Coincident",11.77434354]
[null,null,null,null,"Coincident",10.341787399999999]
[null,"Dalrymple","Connection Point Rating","MVA","Non-Coincident",62]
[null,null,null,null,"Coincident",62]
[null,null,"Raw Adjusted MD","MW","Non-Coincident",7.0262000000000002]
[null,null,null,null,"Coincident",5.7572999999999999]
[null,null,"Raw Adjusted MD","MVA","Non-Coincident",7.0282514530000002]
[null,null,null,null,"Coincident",5.7606319179999996]
[null,null,"Date MD occurred",null,"Non-Coincident","2017-01-01"]
[null,null,null,null,"Coincident","2017-02-08"]
[null,null,"Half hour time period MD occurred",null,"Non-Coincident","00:30:00"]
[null,null,null,null,"Coincident","18:30:00"]
[null,null,"Winter/Summer Peaking",null,"Non-Coincident","Summer"]
[null,null,null,null,"Coincident","Summer"]
[null,null,"Adjustments - Embedded generation","MW","Non-Coincident",0]
[null,null,null,null,"Coincident",0.84443716000000002]
[null,null,"Weather Corrected MD 10% POE","MW","Non-Coincident",5.9481549620000003]
[null,null,null,null,"Coincident",4.8739450289999997]
[null,null,"Weather Corrected MD 10% POE","MVA","Non-Coincident",5.9498916550000001]
[null,null,null,null,"Coincident",4.8767657240000002]
[null,null,"Weather Corrected MD 50% POE","MW","Non-Coincident",5.4516390259999996]
[null,null,null,null,"Coincident",4.4670976290000004]
[null,null,"Weather Corrected MD 50% POE","MVA","Non-Coincident",5.4532307510000004]
[null,null,null,null,"Coincident",4.4696828699999998]
[null,"Davenport - Olympic Dam West 275 kV","Connection Point Rating","MVA","Non-Coincident"]
[null,null,null,null,"Coincident"]
[null,null,"Raw Adjusted MD","MW","Non-Coincident"]
[null,null,null,null,"Coincident"]
[null,null,"Raw Adjusted MD","MVA","Non-Coincident"]
[null,null,null,null,"Coincident"]
[null,null,"Date MD occurred",null,"Non-Coincident"]
[null,null,null,null,"Coincident"]
[null,null,"Half hour time period MD occurred",null,"Non-Coincident"]
[null,null,null,null,"Coincident"]
[null,null,"Winter/Summer Peaking",null,"Non-Coincident"]
[null,null,null,null,"Coincident"]
[null,null,"Adjustments - Embedded generation","MW","Non-Coincident"]
[null,null,null,null,"Coincident"]
[null,null,"Weather Corrected MD 10% POE","MW","Non-Coincident"]
[null,null,null,null,"Coincident"]
[null,null,"Weather Corrected MD 10% POE","MVA","Non-Coincident"]
[null,null,null,null,"Coincident"]
[null,null,"Weather Corrected MD 50% POE","MW","Non-Coincident"]
[null,null,null,null,"Coincident"]
[null,null,"Weather Corrected MD 50% POE","MVA","Non-Coincident"]
[null,null,null,null,"Coincident"]
[null,"Dorrien","Connection Point Rating","MVA","Non-Coincident",216]
[null,null,null,null,"Coincident",216]
[null,null,"Raw Adjusted MD","MW","Non-Coincident",57.138672]
[null,null,null,null,"Coincident",52.239635999999997]
[null,null,"Raw Adjusted MD","MVA","Non-Coincident",58.713568240000001]
[null,null,null,null,"Coincident",53.417123230000001]
[null,null,"Date MD occurred",null,"Non-Coincident","2017-02-09"]
[null,null,null,null,"Coincident","2017-02-08"]
[null,null,"Half hour time period MD occurred",null,"Non-Coincident","19:00:00"]
[null,null,null,null,"Coincident","18:30:00"]
[null,null,"Winter/Summer Peaking",null,"Non-Coincident","Summer"]
[null,null,null,null,"Coincident","Summer"]
[null,null,"Adjustments - Embedded generation","MW","Non-Coincident",3.223071376]
[null,null,null,null,"Coincident",42.671432699999997]
[null,null,"Weather Corrected MD 10% POE","MW","Non-Coincident",63.749877419999997]
[null,null,null,null,"Coincident",58.284000570000003]
[null,null,"Weather Corrected MD 10% POE","MVA","Non-Coincident",65.506996349999994]
[null,null,null,null,"Coincident",59.597728459999999]
[null,null,"Weather Corrected MD 50% POE","MW","Non-Coincident",58.068696449999997]
[null,null,null,null,"Coincident",53.0899207]
[null,null,"Weather Corrected MD 50% POE","MVA","Non-Coincident",59.669226680000001]
[null,null,null,null,"Coincident",54.286573449999999]
[null,"Dry Creek Exit","Connection Point Rating","MVA","Non-Coincident"]
[null,null,null,null,"Coincident"]
[null,null,"Raw Adjusted MD","MW","Non-Coincident",91.526070000000004]
[null,null,null,null,"Coincident",0]
[null,null,"Raw Adjusted MD","MVA","Non-Coincident",91.526070000000004]
[null,null,null,null,"Coincident",0]
[null,null,"Date MD occurred",null,"Non-Coincident","2016-07-07"]
[null,null,null,null,"Coincident","2017-02-08"]
[null,null,"Half hour time period MD occurred",null,"Non-Coincident","18:30:00"]
[null,null,null,null,"Coincident","18:30:00"]
[null,null,"Winter/Summer Peaking",null,"Non-Coincident","Winter"]
[null,null,null,null,"Coincident","Summer"]
[null,null,"Adjustments - Embedded generation","MW","Non-Coincident",0]
[null,null,null,null,"Coincident",0]
[null,null,"Weather Corrected MD 10% POE","MW","Non-Coincident",0]
[null,null,null,null,"Coincident",0]
[null,null,"Weather Corrected MD 10% POE","MVA","Non-Coincident",0]
[null,null,null,null,"Coincident",0]
[null,null,"Weather Corrected MD 50% POE","MW","Non-Coincident",0]
[null,null,null,null,"Coincident",0]
[null,null,"Weather Corrected MD 50% POE","MVA","Non-Coincident",0]
[null,null,null,null,"Coincident",0]
[null,"East Terrace","Connection Point Rating","MVA","Non-Coincident",250]
[null,null,null,null,"Coincident",250]
[null,null,"Raw Adjusted MD","MW","Non-Coincident",89.621727640000003]
[null,null,null,null,"Coincident",83.820089550000006]
[null,null,"Raw Adjusted MD","MVA","Non-Coincident",90.741006249999998]
[null,null,null,null,"Coincident",85.748862160000002]
[null,null,"Date MD occurred",null,"Non-Coincident","2017-02-09"]
[null,null,null,null,"Coincident","2017-02-08"]
[null,null,"Half hour time period MD occurred",null,"Non-Coincident","17:30:00"]
[null,null,null,null,"Coincident","18:30:00"]
[null,null,"Winter/Summer Peaking",null,"Non-Coincident","Summer"]
[null,null,null,null,"Coincident","Summer"]
[null,null,"Adjustments - Embedded generation","MW","Non-Coincident",7.2445292930000003]
[null,null,null,null,"Coincident",4.2985637270000003]
[null,null,"Weather Corrected MD 10% POE","MW","Non-Coincident",97.758034879999997]
[null,null,null,null,"Coincident",91.429695170000002]
[null,null,"Weather Corrected MD 10% POE","MVA","Non-Coincident",98.978927179999999]
[null,null,null,null,"Coincident",93.533571370000004]
[null,null,"Weather Corrected MD 50% POE","MW","Non-Coincident",86.982852109999996]
[null,null,null,null,"Coincident",81.352040919999993]
[null,null,"Weather Corrected MD 50% POE","MVA","Non-Coincident",88.069174020000005]
[null,null,null,null,"Coincident",83.2240216]
[null,"Happy Valley","Connection Point Rating","MVA","Non-Coincident",540]
[null,null,null,null,"Coincident",540]
[null,null,"Raw Adjusted MD","MW","Non-Coincident",232.65181329999999]
[null,null,null,null,"Coincident",229.54350439999999]
[null,null,"Raw Adjusted MD","MVA","Non-Coincident",234.9169847]
[null,null,null,null,"Coincident",231.8177584]
[null,null,"Date MD occurred",null,"Non-Coincident","2017-02-08"]
[null,null,null,null,"Coincident","2017-02-08"]
[null,null,"Half hour time period MD occurred",null,"Non-Coincident","19:00:00"]
[null,null,null,null,"Coincident","18:30:00"]
[null,null,"Winter/Summer Peaking",null,"Non-Coincident","Summer"]
[null,null,null,null,"Coincident","Summer"]
[null,null,"Adjustments - Embedded generation","MW","Non-Coincident",11.460318900000001]
[null,null,null,null,"Coincident",16.896026519999999]
[null,null,"Weather Corrected MD 10% POE","MW","Non-Coincident",228.11346219999999]
[null,null,null,null,"Coincident",225.06578719999999]
[null,null,"Weather Corrected MD 10% POE","MVA","Non-Coincident",230.33444679999999]
[null,null,null,null,"Coincident",227.29567729999999]
[null,null,"Weather Corrected MD 50% POE","MW","Non-Coincident",204.5068832]
[null,null,null,null,"Coincident",201.7746003]
[null,null,"Weather Corrected MD 50% POE","MVA","Non-Coincident",206.4980267]
[null,null,null,null,"Coincident",203.7737276]
[null,"Hummocks","Connection Point Rating","MVA","Non-Coincident",50]
[null,null,null,null,"Coincident",50]
[null,null,"Raw Adjusted MD","MW","Non-Coincident",13.7006]
[null,null,null,null,"Coincident",13.3597]
[null,null,"Raw Adjusted MD","MVA","Non-Coincident",14.178081410000001]
[null,null,null,null,"Coincident",13.873946569999999]
[null,null,"Date MD occurred",null,"Non-Coincident","2017-02-08"]
[null,null,null,null,"Coincident","2017-02-08"]
[null,null,"Half hour time period MD occurred",null,"Non-Coincident","19:30:00"]
[null,null,null,null,"Coincident","18:30:00"]
[null,null,"Winter/Summer Peaking",null,"Non-Coincident","Summer"]
[null,null,null,null,"Coincident","Summer"]
[null,null,"Adjustments - Embedded generation","MW","Non-Coincident",0.24046300300000001]
[null,null,null,null,"Coincident",0.73682408399999999]
[null,null,"Weather Corrected MD 10% POE","MW","Non-Coincident",14.494927150000001]
[null,null,null,null,"Coincident",14.1342626]
[null,null,"Weather Corrected MD 10% POE","MVA","Non-Coincident",15.00009176]
[null,null,null,null,"Coincident",14.67832392]
[null,null,"Weather Corrected MD 50% POE","MW","Non-Coincident",13.38342761]
[null,null,null,null,"Coincident",13.050419529999999]
[null,null,"Weather Corrected MD 50% POE","MVA","Non-Coincident",13.849855209999999]
[null,null,null,null,"Coincident",13.552761159999999]
[null,"Kadina East","Connection Point Rating","MVA","Non-Coincident",120]
[null,null,null,null,"Coincident",120]
[null,null,"Raw Adjusted MD","MW","Non-Coincident",24.397099999999998]
[null,null,null,null,"Coincident",23.1953]
[null,null,"Raw Adjusted MD","MVA","Non-Coincident",25.748961349999998]
[null,null,null,null,"Coincident",24.460490879999998]
[null,null,"Date MD occurred",null,"Non-Coincident","2017-01-06"]
[null,null,null,null,"Coincident","2017-02-08"]
[null,null,"Half hour time period MD occurred",null,"Non-Coincident","19:30:00"]
[null,null,null,null,"Coincident","18:30:00"]
[null,null,"Winter/Summer Peaking",null,"Non-Coincident","Summer"]
[null,null,null,null,"Coincident","Summer"]
[null,null,"Adjustments - Embedded generation","MW","Non-Coincident",1.814364249]
[null,null,null,null,"Coincident",2.4722892679999999]
[null,null,"Weather Corrected MD 10% POE","MW","Non-Coincident",26.34205291]
[null,null,null,null,"Coincident",25.04444462]
[null,null,"Weather Corrected MD 10% POE","MVA","Non-Coincident",27.801685540000001]
[null,null,null,null,"Coincident",26.410497360000001]
[null,null,"Weather Corrected MD 50% POE","MW","Non-Coincident",23.305197159999999]
[null,null,null,null,"Coincident",22.157184239999999]
[null,null,"Weather Corrected MD 50% POE","MVA","Non-Coincident",24.59655536]
[null,null,null,null,"Coincident",23.365750949999999]
[null,"Kanmantoo","Connection Point Rating","MVA","Non-Coincident",3]
[null,null,null,null,"Coincident",3]
[null,null,"Raw Adjusted MD","MW","Non-Coincident",1.0693999999999999]
[null,null,null,null,"Coincident",1.0286]
[null,null,"Raw Adjusted MD","MVA","Non-Coincident",1.18328298]
[null,null,null,null,"Coincident",1.150143956]
[null,null,"Date MD occurred",null,"Non-Coincident","2017-02-08"]
[null,null,null,null,"Coincident","2017-02-08"]
[null,null,"Half hour time period MD occurred",null,"Non-Coincident","19:00:00"]
[null,null,null,null,"Coincident","18:30:00"]
[null,null,"Winter/Summer Peaking",null,"Non-Coincident","Summer"]
[null,null,null,null,"Coincident","Summer"]
[null,null,"Adjustments - Embedded generation","MW","Non-Coincident",0.127185364]
[null,null,null,null,"Coincident",0.18751025199999999]
[null,null,"Weather Corrected MD 10% POE","MW","Non-Coincident",1.449846185]
[null,null,null,null,"Coincident",1.354247921]
[null,null,"Weather Corrected MD 10% POE","MVA","Non-Coincident",1.4870971449999999]
[null,null,null,null,"Coincident",1.3907065620000001]
[null,null,"Weather Corrected MD 50% POE","MW","Non-Coincident",1.31443132]
[null,null,null,null,"Coincident",1.227761884]
[null,null,"Weather Corrected MD 50% POE","MVA","Non-Coincident",1.348203061]
[null,null,null,null,"Coincident",1.2608153070000001]
[null,"Keith","Connection Point Rating","MVA","Non-Coincident",67.099999999999994]
[null,null,null,null,"Coincident",67.099999999999994]
[null,null,"Raw Adjusted MD","MW","Non-Coincident",19.5001]
[null,null,null,null,"Coincident",18.664200000000001]
[null,null,"Raw Adjusted MD","MVA","Non-Coincident",19.56959745]
[null,null,null,null,"Coincident",18.668483689999999]
[null,null,"Date MD occurred",null,"Non-Coincident","2017-02-08"]
[null,null,null,null,"Coincident","2017-02-08"]
[null,null,"Half hour time period MD occurred",null,"Non-Coincident","21:30:00"]
[null,null,null,null,"Coincident","18:30:00"]
[null,null,"Winter/Summer Peaking",null,"Non-Coincident","Summer"]
[null,null,null,null,"Coincident","Summer"]
[null,null,"Adjustments - Embedded generation","MW","Non-Coincident",0]
[null,null,null,null,"Coincident",1.03524459]
[null,null,"Weather Corrected MD 10% POE","MW","Non-Coincident",20.9]
[null,null,null,null,"Coincident",19.98855622]
[null,null,"Weather Corrected MD 10% POE","MVA","Non-Coincident",21]
[null,null,null,null,"Coincident",19.993143870000001]
[null,null,"Weather Corrected MD 50% POE","MW","Non-Coincident",19.102623009999999]
[null,null,null,null,"Coincident",18.283761439999999]
[null,null,"Weather Corrected MD 50% POE","MVA","Non-Coincident",19.170703870000001]
[null,null,null,null,"Coincident",18.287957810000002]
[null,"Kilburn","Connection Point Rating","MVA","Non-Coincident",353]
[null,null,null,null,"Coincident",353]
[null,null,"Raw Adjusted MD","MW","Non-Coincident",66.161092629999999]
[null,null,null,null,"Coincident",63.92055981]
[null,null,"Raw Adjusted MD","MVA","Non-Coincident",66.274802210000004]
[null,null,null,null,"Coincident",63.984970019999999]
[null,null,"Date MD occurred",null,"Non-Coincident","2017-02-09"]
[null,null,null,null,"Coincident","2017-02-08"]
[null,null,"Half hour time period MD occurred",null,"Non-Coincident","19:00:00"]
[null,null,null,null,"Coincident","18:30:00"]
[null,null,"Winter/Summer Peaking",null,"Non-Coincident","Summer"]
[null,null,null,null,"Coincident","Summer"]
[null,null,"Adjustments - Embedded generation","MW","Non-Coincident",2.8538268269999998]
[null,null,null,null,"Coincident",3.020608921]
[null,null,"Weather Corrected MD 10% POE","MW","Non-Coincident",72.177219010000002]
[null,null,null,null,"Coincident",69.732951200000002]
[null,null,"Weather Corrected MD 10% POE","MVA","Non-Coincident",72.301268359999995]
[null,null,null,null,"Coincident",69.803218349999995]
[null,null,"Weather Corrected MD 50% POE","MW","Non-Coincident",65.850705379999994]
[null,null,null,null,"Coincident",63.620683769999999]
[null,null,"Weather Corrected MD 50% POE","MVA","Non-Coincident",65.963881499999999]
[null,null,null,null,"Coincident",63.68479181]
[null,"Kincraig","Connection Point Rating","MVA","Non-Coincident",56.1]
[null,null,null,null,"Coincident",56.1]
[null,null,"Raw Adjusted MD","MW","Non-Coincident",19.0166]
[null,null,null,null,"Coincident",18.347100000000001]
[null,null,"Raw Adjusted MD","MVA","Non-Coincident",19.749321800000001]
[null,null,null,null,"Coincident",19.012791679999999]
[null,null,"Date MD occurred",null,"Non-Coincident","2017-02-08"]
[null,null,null,null,"Coincident","2017-02-08"]
[null,null,"Half hour time period MD occurred",null,"Non-Coincident","19:30:00"]
[null,null,null,null,"Coincident","18:30:00"]
[null,null,"Winter/Summer Peaking",null,"Non-Coincident","Summer"]
[null,null,null,null,"Coincident","Summer"]
[null,null,"Adjustments - Embedded generation","MW","Non-Coincident",0.45556934199999999]
[null,null,null,null,"Coincident",1.395950558]
[null,null,"Weather Corrected MD 10% POE","MW","Non-Coincident",19.796654929999999]
[null,null,null,null,"Coincident",19.09969225]
[null,null,"Weather Corrected MD 10% POE","MVA","Non-Coincident",20.559432749999999]
[null,null,null,null,"Coincident",19.792690390000001]
[null,null,"Weather Corrected MD 50% POE","MW","Non-Coincident",17.90712649]
[null,null,null,null,"Coincident",17.27668671]
[null,null,"Weather Corrected MD 50% POE","MVA","Non-Coincident",18.597099570000001]
[null,null,null,null,"Coincident",17.903540360000001]
[null,"Lefevre","Connection Point Rating","MVA","Non-Coincident"]
[null,null,null,null,"Coincident"]
[null,null,"Raw Adjusted MD","MW","Non-Coincident",29.60002566]
[null,null,null,null,"Coincident",28.597626420000001]
[null,null,"Raw Adjusted MD","MVA","Non-Coincident",29.650898560000002]
[null,null,null,null,"Coincident",28.626443120000001]
[null,null,"Date MD occurred",null,"Non-Coincident","2017-02-09"]
[null,null,null,null,"Coincident","2017-02-08"]
[null,null,"Half hour time period MD occurred",null,"Non-Coincident","19:00:00"]
[null,null,null,null,"Coincident","18:30:00"]
[null,null,"Winter/Summer Peaking",null,"Non-Coincident","Summer"]
[null,null,null,null,"Coincident","Summer"]
[null,null,"Adjustments - Embedded generation","MW","Non-Coincident",1.276782834]
[null,null,null,null,"Coincident",1.3514000150000001]
[null,null,"Weather Corrected MD 10% POE","MW","Non-Coincident",32.291599939999998]
[null,null,null,null,"Coincident",31.19805105]
[null,null,"Weather Corrected MD 10% POE","MVA","Non-Coincident",32.347098780000003]
[null,null,null,null,"Coincident",31.22948809]
[null,null,"Weather Corrected MD 50% POE","MW","Non-Coincident",29.461160509999999]
[null,null,null,null,"Coincident",28.463463910000002]
[null,null,"Weather Corrected MD 50% POE","MVA","Non-Coincident",29.511794739999999]
[null,null,null,null,"Coincident",28.492145409999999]
[null,"Leigh Creek Coalfield","Connection Point Rating","MVA","Non-Coincident"]
[null,null,null,null,"Coincident"]
[null,null,"Raw Adjusted MD","MW","Non-Coincident"]
[null,null,null,null,"Coincident"]
[null,null,"Raw Adjusted MD","MVA","Non-Coincident"]
[null,null,null,null,"Coincident"]
[null,null,"Date MD occurred",null,"Non-Coincident"]
[null,null,null,null,"Coincident"]
[null,null,"Half hour time period MD occurred",null,"Non-Coincident"]
[null,null,null,null,"Coincident"]
[null,null,"Winter/Summer Peaking",null,"Non-Coincident"]
[null,null,null,null,"Coincident"]
[null,null,"Adjustments - Embedded generation","MW","Non-Coincident"]
[null,null,null,null,"Coincident"]
[null,null,"Weather Corrected MD 10% POE","MW","Non-Coincident"]
[null,null,null,null,"Coincident"]
[null,null,"Weather Corrected MD 10% POE","MVA","Non-Coincident"]
[null,null,null,null,"Coincident"]
[null,null,"Weather Corrected MD 50% POE","MW","Non-Coincident"]
[null,null,null,null,"Coincident"]
[null,null,"Weather Corrected MD 50% POE","MVA","Non-Coincident"]
[null,null,null,null,"Coincident"]
[null,"Leigh Creek South","Connection Point Rating","MVA","Non-Coincident",10]
[null,null,null,null,"Coincident",10]
[null,null,"Raw Adjusted MD","MW","Non-Coincident",1.168288]
[null,null,null,null,"Coincident",1.138652]
[null,null,"Raw Adjusted MD","MVA","Non-Coincident",1.192259]
[null,null,null,null,"Coincident",1.150525]
[null,null,"Date MD occurred",null,"Non-Coincident","2017-02-09"]
[null,null,null,null,"Coincident","2017-02-08"]
[null,null,"Half hour time period MD occurred",null,"Non-Coincident","20:30:00"]
[null,null,null,null,"Coincident","18:30:00"]
[null,null,"Winter/Summer Peaking",null,"Non-Coincident","Summer"]
[null,null,null,null,"Coincident","Summer"]
[null,null,"Adjustments - Embedded generation","MW","Non-Coincident",0]
[null,null,null,null,"Coincident",7.9111486999999994E-2]
[null,null,"Weather Corrected MD 10% POE","MW","Non-Coincident",1.3181780789999999]
[null,null,null,null,"Coincident",1.2847398130000001]
[null,null,"Weather Corrected MD 10% POE","MVA","Non-Coincident",1.345224532]
[null,null,null,null,"Coincident",1.2981361060000001]
[null,null,"Weather Corrected MD 50% POE","MW","Non-Coincident",1.2136224739999999]
[null,null,null,null,"Coincident",1.1828364730000001]
[null,null,"Weather Corrected MD 50% POE","MVA","Non-Coincident",1.238523649]
[null,null,null,null,"Coincident",1.195170195]
[null,"Magill","Connection Point Rating","MVA","Non-Coincident",675]
[null,null,null,null,"Coincident",675]
[null,null,"Raw Adjusted MD","MW","Non-Coincident",230.1723375]
[null,null,null,null,"Coincident",217.8548452]
[null,null,"Raw Adjusted MD","MVA","Non-Coincident",232.90856479999999]
[null,null,null,null,"Coincident",222.2179635]
[null,null,"Date MD occurred",null,"Non-Coincident","2017-02-09"]
[null,null,null,null,"Coincident","2017-02-08"]
[null,null,"Half hour time period MD occurred",null,"Non-Coincident","19:00:00"]
[null,null,null,null,"Coincident","18:30:00"]
[null,null,"Winter/Summer Peaking",null,"Non-Coincident","Summer"]
[null,null,null,null,"Coincident","Summer"]
[null,null,"Adjustments - Embedded generation","MW","Non-Coincident",17.018558030000001]
[null,null,null,null,"Coincident",12.27955047]
[null,null,"Weather Corrected MD 10% POE","MW","Non-Coincident",245.52401800000001]
[null,null,null,null,"Coincident",232.16235889999999]
[null,null,"Weather Corrected MD 10% POE","MVA","Non-Coincident",248.4546704]
[null,null,null,null,"Coincident",236.8673833]
[null,null,"Weather Corrected MD 50% POE","MW","Non-Coincident",218.7936904]
[null,null,null,null,"Coincident",206.90035689999999]
[null,null,"Weather Corrected MD 50% POE","MVA","Non-Coincident",221.40455069999999]
[null,null,null,null,"Coincident",211.0900255]
[null,"Mannum","Connection Point Rating","MVA","Non-Coincident",40]
[null,null,null,null,"Coincident",40]
[null,null,"Raw Adjusted MD","MW","Non-Coincident",12.1891]
[null,null,null,null,"Coincident",9.5637000000000008]
[null,null,"Raw Adjusted MD","MVA","Non-Coincident",12.62665838]
[null,null,null,null,"Coincident",9.7947516409999995]
[null,null,"Date MD occurred",null,"Non-Coincident","2017-01-06"]
[null,null,null,null,"Coincident","2017-02-08"]
[null,null,"Half hour time period MD occurred",null,"Non-Coincident","20:00:00"]
[null,null,null,null,"Coincident","18:30:00"]
[null,null,"Winter/Summer Peaking",null,"Non-Coincident","Summer"]
[null,null,null,null,"Coincident","Summer"]
[null,null,"Adjustments - Embedded generation","MW","Non-Coincident",0.44018986500000001]
[null,null,null,null,"Coincident",1.0398370240000001]
[null,null,"Weather Corrected MD 10% POE","MW","Non-Coincident",11.48288715]
[null,null,null,null,"Coincident",9.0095977410000003]
[null,null,"Weather Corrected MD 10% POE","MVA","Non-Coincident",11.895094240000001]
[null,null,null,null,"Coincident",9.2272626970000005]
[null,null,"Weather Corrected MD 50% POE","MW","Non-Coincident",10.46659195]
[null,null,null,null,"Coincident",8.2122015069999996]
[null,null,"Weather Corrected MD 50% POE","MVA","Non-Coincident",10.842316569999999]
[null,null,null,null,"Coincident",8.4106019829999994]
[null,"Mannum Adelaide #1","Connection Point Rating","MVA","Non-Coincident"]
[null,null,null,null,"Coincident"]
[null,null,"Raw Adjusted MD","MW","Non-Coincident"]
[null,null,null,null,"Coincident"]
[null,null,"Raw Adjusted MD","MVA","Non-Coincident"]
[null,null,null,null,"Coincident"]
[null,null,"Date MD occurred",null,"Non-Coincident"]
[null,null,null,null,"Coincident"]
[null,null,"Half hour time period MD occurred",null,"Non-Coincident"]
[null,null,null,null,"Coincident"]
[null,null,"Winter/Summer Peaking",null,"Non-Coincident"]
[null,null,null,null,"Coincident"]
[null,null,"Adjustments - Embedded generation","MW","Non-Coincident"]
[null,null,null,null,"Coincident"]
[null,null,"Weather Corrected MD 10% POE","MW","Non-Coincident"]
[null,null,null,null,"Coincident"]
[null,null,"Weather Corrected MD 10% POE","MVA","Non-Coincident"]
[null,null,null,null,"Coincident"]
[null,null,"Weather Corrected MD 50% POE","MW","Non-Coincident"]
[null,null,null,null,"Coincident"]
[null,null,"Weather Corrected MD 50% POE","MVA","Non-Coincident"]
[null,null,null,null,"Coincident"]
[null,"Mannum Adelaide #2","Connection Point Rating","MVA","Non-Coincident"]
[null,null,null,null,"Coincident"]
[null,null,"Raw Adjusted MD","MW","Non-Coincident"]
[null,null,null,null,"Coincident"]
[null,null,"Raw Adjusted MD","MVA","Non-Coincident"]
[null,null,null,null,"Coincident"]
[null,null,"Date MD occurred",null,"Non-Coincident"]
[null,null,null,null,"Coincident"]
[null,null,"Half hour time period MD occurred",null,"Non-Coincident"]
[null,null,null,null,"Coincident"]
[null,null,"Winter/Summer Peaking",null,"Non-Coincident"]
[null,null,null,null,"Coincident"]
[null,null,"Adjustments - Embedded generation","MW","Non-Coincident"]
[null,null,null,null,"Coincident"]
[null,null,"Weather Corrected MD 10% POE","MW","Non-Coincident"]
[null,null,null,null,"Coincident"]
[null,null,"Weather Corrected MD 10% POE","MVA","Non-Coincident"]
[null,null,null,null,"Coincident"]
[null,null,"Weather Corrected MD 50% POE","MW","Non-Coincident"]
[null,null,null,null,"Coincident"]
[null,null,"Weather Corrected MD 50% POE","MVA","Non-Coincident"]
[null,null,null,null,"Coincident"]
[null,"Mannum Adelaide #3","Connection Point Rating","MVA","Non-Coincident"]
[null,null,null,null,"Coincident"]
[null,null,"Raw Adjusted MD","MW","Non-Coincident"]
[null,null,null,null,"Coincident"]
[null,null,"Raw Adjusted MD","MVA","Non-Coincident"]
[null,null,null,null,"Coincident"]
[null,null,"Date MD occurred",null,"Non-Coincident"]
[null,null,null,null,"Coincident"]
[null,null,"Half hour time period MD occurred",null,"Non-Coincident"]
[null,null,null,null,"Coincident"]
[null,null,"Winter/Summer Peaking",null,"Non-Coincident"]
[null,null,null,null,"Coincident"]
[null,null,"Adjustments - Embedded generation","MW","Non-Coincident"]
[null,null,null,null,"Coincident"]
[null,null,"Weather Corrected MD 10% POE","MW","Non-Coincident"]
[null,null,null,null,"Coincident"]
[null,null,"Weather Corrected MD 10% POE","MVA","Non-Coincident"]
[null,null,null,null,"Coincident"]
[null,null,"Weather Corrected MD 50% POE","MW","Non-Coincident"]
[null,null,null,null,"Coincident"]
[null,null,"Weather Corrected MD 50% POE","MVA","Non-Coincident"]
[null,null,null,null,"Coincident"]
[null,"Middleback","Connection Point Rating","MVA","Non-Coincident"]
[null,null,null,null,"Coincident"]
[null,null,"Raw Adjusted MD","MW","Non-Coincident"]
[null,null,null,null,"Coincident"]
[null,null,"Raw Adjusted MD","MVA","Non-Coincident"]
[null,null,null,null,"Coincident"]
[null,null,"Date MD occurred",null,"Non-Coincident"]
[null,null,null,null,"Coincident"]
[null,null,"Half hour time period MD occurred",null,"Non-Coincident"]
[null,null,null,null,"Coincident"]
[null,null,"Winter/Summer Peaking",null,"Non-Coincident"]
[null,null,null,null,"Coincident"]
[null,null,"Adjustments - Embedded generation","MW","Non-Coincident"]
[null,null,null,null,"Coincident"]
[null,null,"Weather Corrected MD 10% POE","MW","Non-Coincident"]
[null,null,null,null,"Coincident"]
[null,null,"Weather Corrected MD 10% POE","MVA","Non-Coincident"]
[null,null,null,null,"Coincident"]
[null,null,"Weather Corrected MD 50% POE","MW","Non-Coincident"]
[null,null,null,null,"Coincident"]
[null,null,"Weather Corrected MD 50% POE","MVA","Non-Coincident"]
[null,null,null,null,"Coincident"]
[null,"Middleback 132 kV","Connection Point Rating","MVA","Non-Coincident"]
[null,null,null,null,"Coincident"]
[null,null,"Raw Adjusted MD","MW","Non-Coincident"]
[null,null,null,null,"Coincident"]
[null,null,"Raw Adjusted MD","MVA","Non-Coincident"]
[null,null,null,null,"Coincident"]
[null,null,"Date MD occurred",null,"Non-Coincident"]
[null,null,null,null,"Coincident"]
[null,null,"Half hour time period MD occurred",null,"Non-Coincident"]
[null,null,null,null,"Coincident"]
[null,null,"Winter/Summer Peaking",null,"Non-Coincident"]
[null,null,null,null,"Coincident"]
[null,null,"Adjustments - Embedded generation","MW","Non-Coincident"]
[null,null,null,null,"Coincident"]
[null,null,"Weather Corrected MD 10% POE","MW","Non-Coincident"]
[null,null,null,null,"Coincident"]
[null,null,"Weather Corrected MD 10% POE","MVA","Non-Coincident"]
[null,null,null,null,"Coincident"]
[null,null,"Weather Corrected MD 50% POE","MW","Non-Coincident"]
[null,null,null,null,"Coincident"]
[null,null,"Weather Corrected MD 50% POE","MVA","Non-Coincident"]
[null,null,null,null,"Coincident"]
[null,"Milbrook","Connection Point Rating","MVA","Non-Coincident"]
[null,null,null,null,"Coincident"]
[null,null,"Raw Adjusted MD","MW","Non-Coincident"]
[null,null,null,null,"Coincident"]
[null,null,"Raw Adjusted MD","MVA","Non-Coincident"]
[null,null,null,null,"Coincident"]
[null,null,"Date MD occurred",null,"Non-Coincident"]
[null,null,null,null,"Coincident"]
[null,null,"Half hour time period MD occurred",null,"Non-Coincident"]
[null,null,null,null,"Coincident"]
[null,null,"Winter/Summer Peaking",null,"Non-Coincident"]
[null,null,null,null,"Coincident"]
[null,null,"Adjustments - Embedded generation","MW","Non-Coincident"]
[null,null,null,null,"Coincident"]
[null,null,"Weather Corrected MD 10% POE","MW","Non-Coincident"]
[null,null,null,null,"Coincident"]
[null,null,"Weather Corrected MD 10% POE","MVA","Non-Coincident"]
[null,null,null,null,"Coincident"]
[null,null,"Weather Corrected MD 50% POE","MW","Non-Coincident"]
[null,null,null,null,"Coincident"]
[null,null,"Weather Corrected MD 50% POE","MVA","Non-Coincident"]
[null,null,null,null,"Coincident"]
[null,"Mobilong","Connection Point Rating","MVA","Non-Coincident",151.19999999999999]
[null,null,null,null,"Coincident",151.19999999999999]
[null,null,"Raw Adjusted MD","MW","Non-Coincident",40.714700000000001]
[null,null,null,null,"Coincident",40.714700000000001]
[null,null,"Raw Adjusted MD","MVA","Non-Coincident",43.458645189999999]
[null,null,null,null,"Coincident",43.458645189999999]
[null,null,"Date MD occurred",null,"Non-Coincident","2017-02-08"]
[null,null,null,null,"Coincident","2017-02-08"]
[null,null,"Half hour time period MD occurred",null,"Non-Coincident","18:30:00"]
[null,null,null,null,"Coincident","18:30:00"]
[null,null,"Winter/Summer Peaking",null,"Non-Coincident","Summer"]
[null,null,null,null,"Coincident","Summer"]
[null,null,"Adjustments - Embedded generation","MW","Non-Coincident",2.512289934]
[null,null,null,null,"Coincident",2.512289934]
[null,null,"Weather Corrected MD 10% POE","MW","Non-Coincident",40.212762329999997]
[null,null,null,null,"Coincident",40.212762329999997]
[null,null,"Weather Corrected MD 10% POE","MVA","Non-Coincident",42.922879700000003]
[null,null,null,null,"Coincident",42.922879700000003]
[null,null,"Weather Corrected MD 50% POE","MW","Non-Coincident",37.121035849999998]
[null,null,null,null,"Coincident",37.121035849999998]
[null,null,"Weather Corrected MD 50% POE","MVA","Non-Coincident",39.622787989999999]
[null,null,null,null,"Coincident",39.622787989999999]
[null,"Morgan Whyalla #1","Connection Point Rating","MVA","Non-Coincident"]
[null,null,null,null,"Coincident"]
[null,null,"Raw Adjusted MD","MW","Non-Coincident"]
[null,null,null,null,"Coincident"]
[null,null,"Raw Adjusted MD","MVA","Non-Coincident"]
[null,null,null,null,"Coincident"]
[null,null,"Date MD occurred",null,"Non-Coincident"]
[null,null,null,null,"Coincident"]
[null,null,"Half hour time period MD occurred",null,"Non-Coincident"]
[null,null,null,null,"Coincident"]
[null,null,"Winter/Summer Peaking",null,"Non-Coincident"]
[null,null,null,null,"Coincident"]
[null,null,"Adjustments - Embedded generation","MW","Non-Coincident"]
[null,null,null,null,"Coincident"]
[null,null,"Weather Corrected MD 10% POE","MW","Non-Coincident"]
[null,null,null,null,"Coincident"]
[null,null,"Weather Corrected MD 10% POE","MVA","Non-Coincident"]
[null,null,null,null,"Coincident"]
[null,null,"Weather Corrected MD 50% POE","MW","Non-Coincident"]
[null,null,null,null,"Coincident"]
[null,null,"Weather Corrected MD 50% POE","MVA","Non-Coincident"]
[null,null,null,null,"Coincident"]
[null,"Morgan Whyalla #2","Connection Point Rating","MVA","Non-Coincident"]
[null,null,null,null,"Coincident"]
[null,null,"Raw Adjusted MD","MW","Non-Coincident"]
[null,null,null,null,"Coincident"]
[null,null,"Raw Adjusted MD","MVA","Non-Coincident"]
[null,null,null,null,"Coincident"]
[null,null,"Date MD occurred",null,"Non-Coincident"]
[null,null,null,null,"Coincident"]
[null,null,"Half hour time period MD occurred",null,"Non-Coincident"]
[null,null,null,null,"Coincident"]
[null,null,"Winter/Summer Peaking",null,"Non-Coincident"]
[null,null,null,null,"Coincident"]
[null,null,"Adjustments - Embedded generation","MW","Non-Coincident"]
[null,null,null,null,"Coincident"]
[null,null,"Weather Corrected MD 10% POE","MW","Non-Coincident"]
[null,null,null,null,"Coincident"]
[null,null,"Weather Corrected MD 10% POE","MVA","Non-Coincident"]
[null,null,null,null,"Coincident"]
[null,null,"Weather Corrected MD 50% POE","MW","Non-Coincident"]
[null,null,null,null,"Coincident"]
[null,null,"Weather Corrected MD 50% POE","MVA","Non-Coincident"]
[null,null,null,null,"Coincident"]
[null,"Morgan Whyalla #3","Connection Point Rating","MVA","Non-Coincident"]
[null,null,null,null,"Coincident"]
[null,null,"Raw Adjusted MD","MW","Non-Coincident"]
[null,null,null,null,"Coincident"]
[null,null,"Raw Adjusted MD","MVA","Non-Coincident"]
[null,null,null,null,"Coincident"]
[null,null,"Date MD occurred",null,"Non-Coincident"]
[null,null,null,null,"Coincident"]
[null,null,"Half hour time period MD occurred",null,"Non-Coincident"]
[null,null,null,null,"Coincident"]
[null,null,"Winter/Summer Peaking",null,"Non-Coincident"]
[null,null,null,null,"Coincident"]
[null,null,"Adjustments - Embedded generation","MW","Non-Coincident"]
[null,null,null,null,"Coincident"]
[null,null,"Weather Corrected MD 10% POE","MW","Non-Coincident"]
[null,null,null,null,"Coincident"]
[null,null,"Weather Corrected MD 10% POE","MVA","Non-Coincident"]
[null,null,null,null,"Coincident"]
[null,null,"Weather Corrected MD 50% POE","MW","Non-Coincident"]
[null,null,null,null,"Coincident"]
[null,null,"Weather Corrected MD 50% POE","MVA","Non-Coincident"]
[null,null,null,null,"Coincident"]
[null,"Morgan Whyalla #4","Connection Point Rating","MVA","Non-Coincident"]
[null,null,null,null,"Coincident"]
[null,null,"Raw Adjusted MD","MW","Non-Coincident"]
[null,null,null,null,"Coincident"]
[null,null,"Raw Adjusted MD","MVA","Non-Coincident"]
[null,null,null,null,"Coincident"]
[null,null,"Date MD occurred",null,"Non-Coincident"]
[null,null,null,null,"Coincident"]
[null,null,"Half hour time period MD occurred",null,"Non-Coincident"]
[null,null,null,null,"Coincident"]
[null,null,"Winter/Summer Peaking",null,"Non-Coincident"]
[null,null,null,null,"Coincident"]
[null,null,"Adjustments - Embedded generation","MW","Non-Coincident"]
[null,null,null,null,"Coincident"]
[null,null,"Weather Corrected MD 10% POE","MW","Non-Coincident"]
[null,null,null,null,"Coincident"]
[null,null,"Weather Corrected MD 10% POE","MVA","Non-Coincident"]
[null,null,null,null,"Coincident"]
[null,null,"Weather Corrected MD 50% POE","MW","Non-Coincident"]
[null,null,null,null,"Coincident"]
[null,null,"Weather Corrected MD 50% POE","MVA","Non-Coincident"]
[null,null,null,null,"Coincident"]
[null,"Morphett Vale East","Connection Point Rating","MVA","Non-Coincident",517.6]
[null,null,null,null,"Coincident",517.6]
[null,null,"Raw Adjusted MD","MW","Non-Coincident",202.21182440000001]
[null,null,null,null,"Coincident",199.5102043]
[null,null,"Raw Adjusted MD","MVA","Non-Coincident",204.1806225]
[null,null,null,null,"Coincident",201.48689669999999]
[null,null,"Date MD occurred",null,"Non-Coincident","2017-02-08"]
[null,null,null,null,"Coincident","2017-02-08"]
[null,null,"Half hour time period MD occurred",null,"Non-Coincident","19:00:00"]
[null,null,null,null,"Coincident","18:30:00"]
[null,null,"Winter/Summer Peaking",null,"Non-Coincident","Summer"]
[null,null,null,null,"Coincident","Summer"]
[null,null,"Adjustments - Embedded generation","MW","Non-Coincident",9.9608593639999992]
[null,null,null,null,"Coincident",18.24432547]
[null,null,"Weather Corrected MD 10% POE","MW","Non-Coincident",198.26726780000001]
[null,null,null,null,"Coincident",195.61834830000001]
[null,null,"Weather Corrected MD 10% POE","MVA","Non-Coincident",200.19766050000001]
[null,null,null,null,"Coincident",197.55648120000001]
[null,null,"Weather Corrected MD 50% POE","MW","Non-Coincident",177.74935590000001]
[null,null,null,null,"Coincident",175.37456280000001]
[null,null,"Weather Corrected MD 50% POE","MVA","Non-Coincident",179.4799797]
[null,null,null,null,"Coincident",177.1121259]
[null,"Mt Barker","Connection Point Rating","MVA","Non-Coincident",142.80000000000001]
[null,null,null,null,"Coincident",142.80000000000001]
[null,null,"Raw Adjusted MD","MW","Non-Coincident",31.645575950000001]
[null,null,null,null,"Coincident",31.645575950000001]
[null,null,"Raw Adjusted MD","MVA","Non-Coincident",32.894150490000001]
[null,null,null,null,"Coincident",32.894150490000001]
[null,null,"Date MD occurred",null,"Non-Coincident","2017-02-08"]
[null,null,null,null,"Coincident","2017-02-08"]
[null,null,"Half hour time period MD occurred",null,"Non-Coincident","18:30:00"]
[null,null,null,null,"Coincident","18:30:00"]
[null,null,"Winter/Summer Peaking",null,"Non-Coincident","Summer"]
[null,null,null,null,"Coincident","Summer"]
[null,null,"Adjustments - Embedded generation","MW","Non-Coincident",3.2893407969999999]
[null,null,null,null,"Coincident",3.2893407969999999]
[null,null,"Weather Corrected MD 10% POE","MW","Non-Coincident",29.46890776]
[null,null,null,null,"Coincident",29.46890776]
[null,null,"Weather Corrected MD 10% POE","MVA","Non-Coincident",30.631601960000001]
[null,null,null,null,"Coincident",30.631601960000001]
[null,null,"Weather Corrected MD 50% POE","MW","Non-Coincident",26.71519975]
[null,null,null,null,"Coincident",26.71519975]
[null,null,"Weather Corrected MD 50% POE","MVA","Non-Coincident",27.769246549999998]
[null,null,null,null,"Coincident",27.769246549999998]
[null,"Mt Barker Sth","Connection Point Rating","MVA","Non-Coincident",225]
[null,null,null,null,"Coincident",225]
[null,null,"Raw Adjusted MD","MW","Non-Coincident",56.267924049999998]
[null,null,null,null,"Coincident",56.267924049999998]
[null,null,"Raw Adjusted MD","MVA","Non-Coincident",58.487972020000001]
[null,null,null,null,"Coincident",58.487972020000001]
[null,null,"Date MD occurred",null,"Non-Coincident","2017-02-08"]
[null,null,null,null,"Coincident","2017-02-08"]
[null,null,"Half hour time period MD occurred",null,"Non-Coincident","18:30:00"]
[null,null,null,null,"Coincident","18:30:00"]
[null,null,"Winter/Summer Peaking",null,"Non-Coincident","Summer"]
[null,null,null,null,"Coincident","Summer"]
[null,null,"Adjustments - Embedded generation","MW","Non-Coincident",5.8486651790000002]
[null,null,null,null,"Coincident",5.8486651790000002]
[null,null,"Weather Corrected MD 10% POE","MW","Non-Coincident",52.397664239999997]
[null,null,null,null,"Coincident",52.397664239999997]
[null,null,"Weather Corrected MD 10% POE","MVA","Non-Coincident",54.465011330000003]
[null,null,null,null,"Coincident",54.465011330000003]
[null,null,"Weather Corrected MD 50% POE","MW","Non-Coincident",47.501389539999998]
[null,null,null,null,"Coincident",47.501389539999998]
[null,null,"Weather Corrected MD 50% POE","MVA","Non-Coincident",49.375554360000002]
[null,null,null,null,"Coincident",49.375554360000002]
[null,"Mt Gambier","Connection Point Rating","MVA","Non-Coincident",88]
[null,null,null,null,"Coincident",88]
[null,null,"Raw Adjusted MD","MW","Non-Coincident",20.850200000000001]
[null,null,null,null,"Coincident",20.793700000000001]
[null,null,"Raw Adjusted MD","MVA","Non-Coincident",21.277404669999999]
[null,null,null,null,"Coincident",21.277299450000001]
[null,null,"Date MD occurred",null,"Non-Coincident","2017-02-08"]
[null,null,null,null,"Coincident","2017-02-08"]
[null,null,"Half hour time period MD occurred",null,"Non-Coincident","20:00:00"]
[null,null,null,null,"Coincident","18:30:00"]
[null,null,"Winter/Summer Peaking",null,"Non-Coincident","Summer"]
[null,null,null,null,"Coincident","Summer"]
[null,null,"Adjustments - Embedded generation","MW","Non-Coincident",0]
[null,null,null,null,"Coincident",1.0502809820000001]
[null,null,"Weather Corrected MD 10% POE","MW","Non-Coincident",20.817208099999998]
[null,null,null,null,"Coincident",20.760797499999999]
[null,null,"Weather Corrected MD 10% POE","MVA","Non-Coincident",21.24373679]
[null,null,null,null,"Coincident",21.243631740000001]
[null,null,"Weather Corrected MD 50% POE","MW","Non-Coincident",19.499118849999999]
[null,null,null,null,"Coincident",19.44628002]
[null,null,"Weather Corrected MD 50% POE","MVA","Non-Coincident",19.8986409]
[null,null,null,null,"Coincident",19.898542500000001]
[null,"Mt Gunson","Connection Point Rating","MVA","Non-Coincident",3.4]
[null,null,null,null,"Coincident",3.4]
[null,null,"Raw Adjusted MD","MW","Non-Coincident",0.14710000000000001]
[null,null,null,null,"Coincident",0.1229]
[null,null,"Raw Adjusted MD","MVA","Non-Coincident",0.205780514]
[null,null,null,null,"Coincident",0.202706315]
[null,null,"Date MD occurred",null,"Non-Coincident","2017-01-18"]
[null,null,null,null,"Coincident","2017-02-08"]
[null,null,"Half hour time period MD occurred",null,"Non-Coincident","14:30:00"]
[null,null,null,null,"Coincident","18:30:00"]
[null,null,"Winter/Summer Peaking",null,"Non-Coincident","Summer"]
[null,null,null,null,"Coincident","Summer"]
[null,null,"Adjustments - Embedded generation","MW","Non-Coincident",0]
[null,null,null,null,"Coincident",0]
[null,null,"Weather Corrected MD 10% POE","MW","Non-Coincident",0.17606284999999999]
[null,null,null,null,"Coincident",0.147098058]
[null,null,"Weather Corrected MD 10% POE","MVA","Non-Coincident",0.24629710299999999]
[null,null,null,null,"Coincident",0.24261761700000001]
[null,null,"Weather Corrected MD 50% POE","MW","Non-Coincident",0.15957028700000001]
[null,null,null,null,"Coincident",0.13331875100000001]
[null,null,"Weather Corrected MD 50% POE","MVA","Non-Coincident",0.22322539599999999]
[null,null,null,null,"Coincident",0.219890583]
[null,"Munno Para","Connection Point Rating","MVA","Non-Coincident",292.5]
[null,null,null,null,"Coincident",292.5]
[null,null,"Raw Adjusted MD","MW","Non-Coincident",75.431311059999999]
[null,null,null,null,"Coincident",73.602465559999999]
[null,null,"Raw Adjusted MD","MVA","Non-Coincident",76.389544639999997]
[null,null,null,null,"Coincident",74.326314379999999]
[null,null,"Date MD occurred",null,"Non-Coincident","2017-02-09"]
[null,null,null,null,"Coincident","2017-02-08"]
[null,null,"Half hour time period MD occurred",null,"Non-Coincident","19:00:00"]
[null,null,null,null,"Coincident","18:30:00"]
[null,null,"Winter/Summer Peaking",null,"Non-Coincident","Summer"]
[null,null,null,null,"Coincident","Summer"]
[null,null,"Adjustments - Embedded generation","MW","Non-Coincident",4.6664732720000002]
[null,null,null,null,"Coincident",4.9391892540000004]
[null,null,"Weather Corrected MD 10% POE","MW","Non-Coincident",81.34970328]
[null,null,null,null,"Coincident",79.37736529]
[null,null,"Weather Corrected MD 10% POE","MVA","Non-Coincident",82.383120509999998]
[null,null,null,null,"Coincident",80.158007799999993]
[null,null,"Weather Corrected MD 50% POE","MW","Non-Coincident",74.112684659999999]
[null,null,null,null,"Coincident",72.315809470000005]
[null,null,"Weather Corrected MD 50% POE","MVA","Non-Coincident",75.054167199999995]
[null,null,null,null,"Coincident",73.027004590000004]
[null,"Murray Bridge Hahndorf #1","Connection Point Rating","MVA","Non-Coincident"]
[null,null,null,null,"Coincident"]
[null,null,"Raw Adjusted MD","MW","Non-Coincident"]
[null,null,null,null,"Coincident"]
[null,null,"Raw Adjusted MD","MVA","Non-Coincident"]
[null,null,null,null,"Coincident"]
[null,null,"Date MD occurred",null,"Non-Coincident"]
[null,null,null,null,"Coincident"]
[null,null,"Half hour time period MD occurred",null,"Non-Coincident"]
[null,null,null,null,"Coincident"]
[null,null,"Winter/Summer Peaking",null,"Non-Coincident"]
[null,null,null,null,"Coincident"]
[null,null,"Adjustments - Embedded generation","MW","Non-Coincident"]
[null,null,null,null,"Coincident"]
[null,null,"Weather Corrected MD 10% POE","MW","Non-Coincident"]
[null,null,null,null,"Coincident"]
[null,null,"Weather Corrected MD 10% POE","MVA","Non-Coincident"]
[null,null,null,null,"Coincident"]
[null,null,"Weather Corrected MD 50% POE","MW","Non-Coincident"]
[null,null,null,null,"Coincident"]
[null,null,"Weather Corrected MD 50% POE","MVA","Non-Coincident"]
[null,null,null,null,"Coincident"]
[null,"Murray Bridge Hahndorf #2","Connection Point Rating","MVA","Non-Coincident"]
[null,null,null,null,"Coincident"]
[null,null,"Raw Adjusted MD","MW","Non-Coincident"]
[null,null,null,null,"Coincident"]
[null,null,"Raw Adjusted MD","MVA","Non-Coincident"]
[null,null,null,null,"Coincident"]
[null,null,"Date MD occurred",null,"Non-Coincident"]
[null,null,null,null,"Coincident"]
[null,null,"Half hour time period MD occurred",null,"Non-Coincident"]
[null,null,null,null,"Coincident"]
[null,null,"Winter/Summer Peaking",null,"Non-Coincident"]
[null,null,null,null,"Coincident"]
[null,null,"Adjustments - Embedded generation","MW","Non-Coincident"]
[null,null,null,null,"Coincident"]
[null,null,"Weather Corrected MD 10% POE","MW","Non-Coincident"]
[null,null,null,null,"Coincident"]
[null,null,"Weather Corrected MD 10% POE","MVA","Non-Coincident"]
[null,null,null,null,"Coincident"]
[null,null,"Weather Corrected MD 50% POE","MW","Non-Coincident"]
[null,null,null,null,"Coincident"]
[null,null,"Weather Corrected MD 50% POE","MVA","Non-Coincident"]
[null,null,null,null,"Coincident"]
[null,"Murray Bridge Hahndorf #3","Connection Point Rating","MVA","Non-Coincident"]
[null,null,null,null,"Coincident"]
[null,null,"Raw Adjusted MD","MW","Non-Coincident"]
[null,null,null,null,"Coincident"]
[null,null,"Raw Adjusted MD","MVA","Non-Coincident"]
[null,null,null,null,"Coincident"]
[null,null,"Date MD occurred",null,"Non-Coincident"]
[null,null,null,null,"Coincident"]
[null,null,"Half hour time period MD occurred",null,"Non-Coincident"]
[null,null,null,null,"Coincident"]
[null,null,"Winter/Summer Peaking",null,"Non-Coincident"]
[null,null,null,null,"Coincident"]
[null,null,"Adjustments - Embedded generation","MW","Non-Coincident"]
[null,null,null,null,"Coincident"]
[null,null,"Weather Corrected MD 10% POE","MW","Non-Coincident"]
[null,null,null,null,"Coincident"]
[null,null,"Weather Corrected MD 10% POE","MVA","Non-Coincident"]
[null,null,null,null,"Coincident"]
[null,null,"Weather Corrected MD 50% POE","MW","Non-Coincident"]
[null,null,null,null,"Coincident"]
[null,null,"Weather Corrected MD 50% POE","MVA","Non-Coincident"]
[null,null,null,null,"Coincident"]
[null,"Neuroodla","Connection Point Rating","MVA","Non-Coincident",3.4]
[null,null,null,null,"Coincident",3.4]
[null,null,"Raw Adjusted MD","MW","Non-Coincident",0.92210000000000003]
[null,null,null,null,"Coincident",0.80130000000000001]
[null,null,"Raw Adjusted MD","MVA","Non-Coincident",0.92467054699999995]
[null,null,null,null,"Coincident",0.80830695299999999]
[null,null,"Date MD occurred",null,"Non-Coincident","2017-02-09"]
[null,null,null,null,"Coincident","2017-02-08"]
[null,null,"Half hour time period MD occurred",null,"Non-Coincident","20:00:00"]
[null,null,null,null,"Coincident","18:30:00"]
[null,null,"Winter/Summer Peaking",null,"Non-Coincident","Summer"]
[null,null,null,null,"Coincident","Summer"]
[null,null,"Adjustments - Embedded generation","MW","Non-Coincident",1.8384912E-2]
[null,null,null,null,"Coincident",5.9627141000000002E-2]
[null,null,"Weather Corrected MD 10% POE","MW","Non-Coincident",0.89842122099999999]
[null,null,null,null,"Coincident",0.78072326700000005]
[null,null,"Weather Corrected MD 10% POE","MVA","Non-Coincident",0.90092575900000005]
[null,null,null,null,"Coincident",0.78755028699999996]
[null,null,"Weather Corrected MD 50% POE","MW","Non-Coincident",0.81424976999999998]
[null,null,null,null,"Coincident",0.70757872300000002]
[null,null,"Weather Corrected MD 50% POE","MVA","Non-Coincident",0.81651966099999995]
[null,null,null,null,"Coincident",0.71376613200000005]
[null,"New Osborne","Connection Point Rating","MVA","Non-Coincident"]
[null,null,null,null,"Coincident"]
[null,null,"Raw Adjusted MD","MW","Non-Coincident",245.3843449]
[null,null,null,null,"Coincident",237.0744507]
[null,null,"Raw Adjusted MD","MVA","Non-Coincident",245.80608140000001]
[null,null,null,null,"Coincident",237.3133412]
[null,null,"Date MD occurred",null,"Non-Coincident","2017-02-09"]
[null,null,null,null,"Coincident","2017-02-08"]
[null,null,"Half hour time period MD occurred",null,"Non-Coincident","19:00:00"]
[null,null,null,null,"Coincident","18:30:00"]
[null,null,"Winter/Summer Peaking",null,"Non-Coincident","Summer"]
[null,null,null,null,"Coincident","Summer"]
[null,null,"Adjustments - Embedded generation","MW","Non-Coincident",10.584535389999999]
[null,null,null,null,"Coincident",11.20311216]
[null,null,"Weather Corrected MD 10% POE","MW","Non-Coincident",267.69750770000002]
[null,null,null,null,"Coincident",258.63198249999999]
[null,null,"Weather Corrected MD 10% POE","MVA","Non-Coincident",268.15759329999997]
[null,null,null,null,"Coincident",258.89259570000002]
[null,null,"Weather Corrected MD 50% POE","MW","Non-Coincident",244.23315210000001]
[null,null,null,null,"Coincident",235.96224290000001]
[null,null,"Weather Corrected MD 50% POE","MVA","Non-Coincident",244.65291010000001]
[null,null,null,null,"Coincident",236.2000127]
[null,"North West Bend","Connection Point Rating","MVA","Non-Coincident",73.8]
[null,null,null,null,"Coincident",73.8]
[null,null,"Raw Adjusted MD","MW","Non-Coincident",24.24]
[null,null,null,null,"Coincident",16.682300000000001]
[null,null,"Raw Adjusted MD","MVA","Non-Coincident",25.509550709999999]
[null,null,null,null,"Coincident",17.4995294]
[null,null,"Date MD occurred",null,"Non-Coincident","2017-01-07"]
[null,null,null,null,"Coincident","2017-02-08"]
[null,null,"Half hour time period MD occurred",null,"Non-Coincident","20:00:00"]
[null,null,null,null,"Coincident","18:30:00"]
[null,null,"Winter/Summer Peaking",null,"Non-Coincident","Summer"]
[null,null,null,null,"Coincident","Summer"]
[null,null,"Adjustments - Embedded generation","MW","Non-Coincident",0.39583450100000001]
[null,null,null,null,"Coincident",1.297501193]
[null,null,"Weather Corrected MD 10% POE","MW","Non-Coincident",21.503700469999998]
[null,null,null,null,"Coincident",14.79914119]
[null,null,"Weather Corrected MD 10% POE","MVA","Non-Coincident",22.629939669999999]
[null,null,null,null,"Coincident",15.52411876]
[null,null,"Weather Corrected MD 50% POE","MW","Non-Coincident",19.92340072]
[null,null,null,null,"Coincident",13.71155725]
[null,null,"Weather Corrected MD 50% POE","MVA","Non-Coincident",20.966872970000001]
[null,null,null,null,"Coincident",14.38325646]
[null,"Northfield","Connection Point Rating","MVA","Non-Coincident",675]
[null,null,null,null,"Coincident",675]
[null,null,"Raw Adjusted MD","MW","Non-Coincident",301.09908789999997]
[null,null,null,null,"Coincident",281.60752059999999]
[null,null,"Raw Adjusted MD","MVA","Non-Coincident",304.85949040000003]
[null,null,null,null,"Coincident",288.0875527]
[null,null,"Date MD occurred",null,"Non-Coincident","2017-02-09"]
[null,null,null,null,"Coincident","2017-02-08"]
[null,null,"Half hour time period MD occurred",null,"Non-Coincident","17:30:00"]
[null,null,null,null,"Coincident","18:30:00"]
[null,null,"Winter/Summer Peaking",null,"Non-Coincident","Summer"]
[null,null,null,null,"Coincident","Summer"]
[null,null,"Adjustments - Embedded generation","MW","Non-Coincident",24.339200099999999]
[null,null,null,null,"Coincident",14.441739200000001]
[null,null,"Weather Corrected MD 10% POE","MW","Non-Coincident",328.4343642]
[null,null,null,null,"Coincident",307.17325520000003]
[null,null,"Weather Corrected MD 10% POE","MVA","Non-Coincident",332.53615480000002]
[null,null,null,null,"Coincident",314.24157700000001]
[null,null,"Weather Corrected MD 50% POE","MW","Non-Coincident",292.23334699999998]
[null,null,null,null,"Coincident",273.31570099999999]
[null,null,"Weather Corrected MD 50% POE","MVA","Non-Coincident",295.88302599999997]
[null,null,null,null,"Coincident",279.60493120000001]
[null,"Para","Connection Point Rating","MVA","Non-Coincident",288]
[null,null,null,null,"Coincident",288]
[null,null,"Raw Adjusted MD","MW","Non-Coincident",104.1839317]
[null,null,null,null,"Coincident",101.65797379999999]
[null,null,"Raw Adjusted MD","MVA","Non-Coincident",105.5074211]
[null,null,null,null,"Coincident",102.65773660000001]
[null,null,"Date MD occurred",null,"Non-Coincident","2017-02-09"]
[null,null,null,null,"Coincident","2017-02-08"]
[null,null,"Half hour time period MD occurred",null,"Non-Coincident","19:00:00"]
[null,null,null,null,"Coincident","18:30:00"]
[null,null,"Winter/Summer Peaking",null,"Non-Coincident","Summer"]
[null,null,null,null,"Coincident","Summer"]
[null,null,"Adjustments - Embedded generation","MW","Non-Coincident",6.4452218280000002]
[null,null,null,null,"Coincident",6.8218906520000004]
[null,null,"Weather Corrected MD 10% POE","MW","Non-Coincident",112.3582742]
[null,null,null,null,"Coincident",109.6341279]
[null,null,"Weather Corrected MD 10% POE","MVA","Non-Coincident",113.78560539999999]
[null,null,null,null,"Coincident",110.7123327]
[null,null,"Weather Corrected MD 50% POE","MW","Non-Coincident",102.3626763]
[null,null,null,null,"Coincident",99.880875029999999]
[null,null,"Weather Corrected MD 50% POE","MVA","Non-Coincident",103.66302949999999]
[null,null,null,null,"Coincident",100.8631608]
[null,"Parafield Gardens West","Connection Point Rating","MVA","Non-Coincident",405]
[null,null,null,null,"Coincident",405]
[null,null,"Raw Adjusted MD","MW","Non-Coincident",134.7565573]
[null,null,null,null,"Coincident",131.48936069999999]
[null,null,"Raw Adjusted MD","MVA","Non-Coincident",136.46842280000001]
[null,null,null,null,"Coincident",132.7825024]
[null,null,"Date MD occurred",null,"Non-Coincident","2017-02-09"]
[null,null,null,null,"Coincident","2017-02-08"]
[null,null,"Half hour time period MD occurred",null,"Non-Coincident","19:00:00"]
[null,null,null,null,"Coincident","18:30:00"]
[null,null,"Winter/Summer Peaking",null,"Non-Coincident","Summer"]
[null,null,null,null,"Coincident","Summer"]
[null,null,"Adjustments - Embedded generation","MW","Non-Coincident",8.3365629460000008]
[null,null,null,null,"Coincident",8.8237646969999997]
[null,null,"Weather Corrected MD 10% POE","MW","Non-Coincident",145.3296489]
[null,null,null,null,"Coincident",141.80610569999999]
[null,null,"Weather Corrected MD 10% POE","MVA","Non-Coincident",147.17582849999999]
[null,null,null,null,"Coincident",143.2007083]
[null,null,"Weather Corrected MD 50% POE","MW","Non-Coincident",132.4008571]
[null,null,null,null,"Coincident",129.19077480000001]
[null,null,"Weather Corrected MD 50% POE","MVA","Non-Coincident",134.08279719999999]
[null,null,null,null,"Coincident",130.4613109]
[null,"Penola West","Connection Point Rating","MVA","Non-Coincident",50]
[null,null,null,null,"Coincident",50]
[null,null,"Raw Adjusted MD","MW","Non-Coincident",5.5258000000000003]
[null,null,null,null,"Coincident",5.0317999999999996]
[null,null,"Raw Adjusted MD","MVA","Non-Coincident",5.8079979509999999]
[null,null,null,null,"Coincident",5.2265390839999997]
[null,null,"Date MD occurred",null,"Non-Coincident","2017-03-01"]
[null,null,null,null,"Coincident","2017-02-08"]
[null,null,"Half hour time period MD occurred",null,"Non-Coincident","19:30:00"]
[null,null,null,null,"Coincident","18:30:00"]
[null,null,"Winter/Summer Peaking",null,"Non-Coincident","Summer"]
[null,null,null,null,"Coincident","Summer"]
[null,null,"Adjustments - Embedded generation","MW","Non-Coincident",8.4351266999999994E-2]
[null,null,null,null,"Coincident",0.243039698]
[null,null,"Weather Corrected MD 10% POE","MW","Non-Coincident",6.5262019349999996]
[null,null,null,null,"Coincident",5.9427671819999999]
[null,null,"Weather Corrected MD 10% POE","MVA","Non-Coincident",6.85948957]
[null,null,null,null,"Coincident",6.1727622210000002]
[null,null,"Weather Corrected MD 50% POE","MW","Non-Coincident",5.8009348950000001]
[null,null,null,null,"Coincident",5.2823381600000001]
[null,null,"Weather Corrected MD 50% POE","MVA","Non-Coincident",6.0971837539999996]
[null,null,null,null,"Coincident",5.4867734910000001]
[null,"Pimba - Olympic Dam North","Connection Point Rating","MVA","Non-Coincident"]
[null,null,null,null,"Coincident"]
[null,null,"Raw Adjusted MD","MW","Non-Coincident"]
[null,null,null,null,"Coincident"]
[null,null,"Raw Adjusted MD","MVA","Non-Coincident"]
[null,null,null,null,"Coincident"]
[null,null,"Date MD occurred",null,"Non-Coincident"]
[null,null,null,null,"Coincident"]
[null,null,"Half hour time period MD occurred",null,"Non-Coincident"]
[null,null,null,null,"Coincident"]
[null,null,"Winter/Summer Peaking",null,"Non-Coincident"]
[null,null,null,null,"Coincident"]
[null,null,"Adjustments - Embedded generation","MW","Non-Coincident"]
[null,null,null,null,"Coincident"]
[null,null,"Weather Corrected MD 10% POE","MW","Non-Coincident"]
[null,null,null,null,"Coincident"]
[null,null,"Weather Corrected MD 10% POE","MVA","Non-Coincident"]
[null,null,null,null,"Coincident"]
[null,null,"Weather Corrected MD 50% POE","MW","Non-Coincident"]
[null,null,null,null,"Coincident"]
[null,null,"Weather Corrected MD 50% POE","MVA","Non-Coincident"]
[null,null,null,null,"Coincident"]
[null,"Playford","Connection Point Rating","MVA","Non-Coincident",120]
[null,null,null,null,"Coincident",120]
[null,null,"Raw Adjusted MD","MW","Non-Coincident",31.168184]
[null,null,null,null,"Coincident",29.831499999999998]
[null,null,"Raw Adjusted MD","MVA","Non-Coincident",31.343342]
[null,null,null,null,"Coincident",30.030889999999999]
[null,null,"Date MD occurred",null,"Non-Coincident","2017-02-08"]
[null,null,null,null,"Coincident","2017-02-08"]
[null,null,"Half hour time period MD occurred",null,"Non-Coincident","20:00:00"]
[null,null,null,null,"Coincident","18:30:00"]
[null,null,"Winter/Summer Peaking",null,"Non-Coincident","Summer"]
[null,null,null,null,"Coincident","Summer"]
[null,null,"Adjustments - Embedded generation","MW","Non-Coincident",0]
[null,null,null,null,"Coincident",2.1850302369999999]
[null,null,"Weather Corrected MD 10% POE","MW","Non-Coincident",32.587391400000001]
[null,null,null,null,"Coincident",31.189843029999999]
[null,null,"Weather Corrected MD 10% POE","MVA","Non-Coincident",32.77052501]
[null,null,null,null,"Coincident",31.398312019999999]
[null,null,"Weather Corrected MD 50% POE","MW","Non-Coincident",29.669240840000001]
[null,null,null,null,"Coincident",28.396840770000001]
[null,null,"Weather Corrected MD 50% POE","MVA","Non-Coincident",29.835975130000001]
[null,null,null,null,"Coincident",28.58664169]
[null,"Port Lincoln","Connection Point Rating","MVA","Non-Coincident",101.4]
[null,null,null,null,"Coincident",101.4]
[null,null,"Raw Adjusted MD","MW","Non-Coincident",30.971399999999999]
[null,null,null,null,"Coincident",29.6511]
[null,null,"Raw Adjusted MD","MVA","Non-Coincident",33.884725699999997]
[null,null,null,null,"Coincident",32.635717370000002]
[null,null,"Date MD occurred",null,"Non-Coincident","2017-02-08"]
[null,null,null,null,"Coincident","2017-02-08"]
[null,null,"Half hour time period MD occurred",null,"Non-Coincident","19:30:00"]
[null,null,null,null,"Coincident","18:30:00"]
[null,null,"Winter/Summer Peaking",null,"Non-Coincident","Summer"]
[null,null,null,null,"Coincident","Summer"]
[null,null,"Adjustments - Embedded generation","MW","Non-Coincident",0.95951900599999995]
[null,null,null,null,"Coincident",2.940147568]
[null,null,"Weather Corrected MD 10% POE","MW","Non-Coincident",29.9884284]
[null,null,null,null,"Coincident",28.710032129999998]
[null,null,"Weather Corrected MD 10% POE","MVA","Non-Coincident",32.809290840000003]
[null,null,null,null,"Coincident",31.59992359]
[null,null,"Weather Corrected MD 50% POE","MW","Non-Coincident",27.328051720000001]
[null,null,null,null,"Coincident",26.163066390000001]
[null,null,"Weather Corrected MD 50% POE","MVA","Non-Coincident",29.898665749999999]
[null,null,null,null,"Coincident",28.796585629999999]
[null,"Port Pirie","Connection Point Rating","MVA","Non-Coincident",64]
[null,null,null,null,"Coincident",64]
[null,null,"Raw Adjusted MD","MW","Non-Coincident",22.674906320000002]
[null,null,null,null,"Coincident",21.276370289999999]
[null,null,"Raw Adjusted MD","MVA","Non-Coincident",23.635701919999999]
[null,null,null,null,"Coincident",22.200345760000001]
[null,null,"Date MD occurred",null,"Non-Coincident","2017-02-08"]
[null,null,null,null,"Coincident","2017-02-08"]
[null,null,"Half hour time period MD occurred",null,"Non-Coincident","20:00:00"]
[null,null,null,null,"Coincident","18:30:00"]
[null,null,"Winter/Summer Peaking",null,"Non-Coincident","Summer"]
[null,null,null,null,"Coincident","Summer"]
[null,null,"Adjustments - Embedded generation","MW","Non-Coincident",0]
[null,null,null,null,"Coincident",1.3983951880000001]
[null,null,"Weather Corrected MD 10% POE","MW","Non-Coincident",15.347912109999999]
[null,null,null,null,"Coincident",14.40128822]
[null,null,"Weather Corrected MD 10% POE","MVA","Non-Coincident",15.99824364]
[null,null,null,null,"Coincident",15.026697390000001]
[null,null,"Weather Corrected MD 50% POE","MW","Non-Coincident",14.876289269999999]
[null,null,null,null,"Coincident",13.95875399]
[null,null,"Weather Corrected MD 50% POE","MVA","Non-Coincident",15.5066369]
[null,null,null,null,"Coincident",14.56494509]
[null,"Roseworthy","Connection Point Rating","MVA","Non-Coincident"]
[null,null,null,null,"Coincident"]
[null,null,"Raw Adjusted MD","MW","Non-Coincident"]
[null,null,null,null,"Coincident"]
[null,null,"Raw Adjusted MD","MVA","Non-Coincident"]
[null,null,null,null,"Coincident"]
[null,null,"Date MD occurred",null,"Non-Coincident"]
[null,null,null,null,"Coincident"]
[null,null,"Half hour time period MD occurred",null,"Non-Coincident"]
[null,null,null,null,"Coincident"]
[null,null,"Winter/Summer Peaking",null,"Non-Coincident"]
[null,null,null,null,"Coincident"]
[null,null,"Adjustments - Embedded generation","MW","Non-Coincident"]
[null,null,null,null,"Coincident"]
[null,null,"Weather Corrected MD 10% POE","MW","Non-Coincident"]
[null,null,null,null,"Coincident"]
[null,null,"Weather Corrected MD 10% POE","MVA","Non-Coincident"]
[null,null,null,null,"Coincident"]
[null,null,"Weather Corrected MD 50% POE","MW","Non-Coincident"]
[null,null,null,null,"Coincident"]
[null,null,"Weather Corrected MD 50% POE","MVA","Non-Coincident"]
[null,null,null,null,"Coincident"]
[null,"Snuggery Industrial","Connection Point Rating","MVA","Non-Coincident",86.4]
[null,null,null,null,"Coincident",86.4]
[null,null,"Raw Adjusted MD","MW","Non-Coincident",13.319599999999999]
[null,null,null,null,"Coincident",-7.9348000000000001]
[null,null,"Raw Adjusted MD","MVA","Non-Coincident",13.566772370000001]
[null,null,null,null,"Coincident",8.7462885660000005]
[null,null,"Date MD occurred",null,"Non-Coincident","2017-03-12"]
[null,null,null,null,"Coincident","2017-02-08"]
[null,null,"Half hour time period MD occurred",null,"Non-Coincident","09:30:00"]
[null,null,null,null,"Coincident","18:30:00"]
[null,null,"Winter/Summer Peaking",null,"Non-Coincident","Summer"]
[null,null,null,null,"Coincident","Summer"]
[null,null,"Adjustments - Embedded generation","MW","Non-Coincident",0]
[null,null,null,null,"Coincident",18.533714]
[null,null,"Weather Corrected MD 10% POE","MW","Non-Coincident",6.9316345699999999]
[null,null,null,null,"Coincident",-4.1293382679999997]
[null,null,"Weather Corrected MD 10% POE","MVA","Non-Coincident",7.060265201]
[null,null,null,null,"Coincident",4.5516439069999999]
[null,null,"Weather Corrected MD 50% POE","MW","Non-Coincident",5.490975401]
[null,null,null,null,"Coincident",-3.2711036080000002]
[null,null,"Weather Corrected MD 50% POE","MVA","Non-Coincident",5.5928716600000001]
[null,null,null,null,"Coincident",3.6056379600000001]
[null,"Snuggery Rural","Connection Point Rating","MVA","Non-Coincident",28.8]
[null,null,null,null,"Coincident",28.8]
[null,null,"Raw Adjusted MD","MW","Non-Coincident",13.257860000000001]
[null,null,null,null,"Coincident",11.430324000000001]
[null,null,"Raw Adjusted MD","MVA","Non-Coincident",13.788569000000001]
[null,null,null,null,"Coincident",11.744382]
[null,null,"Date MD occurred",null,"Non-Coincident","2017-01-07"]
[null,null,null,null,"Coincident","2017-02-08"]
[null,null,"Half hour time period MD occurred",null,"Non-Coincident","18:00:00"]
[null,null,null,null,"Coincident","18:30:00"]
[null,null,"Winter/Summer Peaking",null,"Non-Coincident","Summer"]
[null,null,null,null,"Coincident","Summer"]
[null,null,"Adjustments - Embedded generation","MW","Non-Coincident",1.351380681]
[null,null,null,null,"Coincident",1.2435194350000001]
[null,null,"Weather Corrected MD 10% POE","MW","Non-Coincident",10.713979800000001]
[null,null,null,null,"Coincident",9.2371061749999992]
[null,null,"Weather Corrected MD 10% POE","MVA","Non-Coincident",11.142857879999999]
[null,null,null,null,"Coincident",9.4909036249999996]
[null,null,"Weather Corrected MD 50% POE","MW","Non-Coincident",9.9617553720000007]
[null,null,null,null,"Coincident",8.5885724779999997]
[null,null,"Weather Corrected MD 50% POE","MVA","Non-Coincident",10.360522080000001]
[null,null,null,null,"Coincident",8.8245509060000007]
[null,"Stony Point","Connection Point Rating","MVA","Non-Coincident"]
[null,null,null,null,"Coincident"]
[null,null,"Raw Adjusted MD","MW","Non-Coincident"]
[null,null,null,null,"Coincident"]
[null,null,"Raw Adjusted MD","MVA","Non-Coincident"]
[null,null,null,null,"Coincident"]
[null,null,"Date MD occurred",null,"Non-Coincident"]
[null,null,null,null,"Coincident"]
[null,null,"Half hour time period MD occurred",null,"Non-Coincident"]
[null,null,null,null,"Coincident"]
[null,null,"Winter/Summer Peaking",null,"Non-Coincident"]
[null,null,null,null,"Coincident"]
[null,null,"Adjustments - Embedded generation","MW","Non-Coincident"]
[null,null,null,null,"Coincident"]
[null,null,"Weather Corrected MD 10% POE","MW","Non-Coincident"]
[null,null,null,null,"Coincident"]
[null,null,"Weather Corrected MD 10% POE","MVA","Non-Coincident"]
[null,null,null,null,"Coincident"]
[null,null,"Weather Corrected MD 50% POE","MW","Non-Coincident"]
[null,null,null,null,"Coincident"]
[null,null,"Weather Corrected MD 50% POE","MVA","Non-Coincident"]
[null,null,null,null,"Coincident"]
[null,"Stony Point (Whyalla Refiners)","Connection Point Rating","MVA","Non-Coincident",2.8]
[null,null,null,null,"Coincident",2.8]
[null,null,"Raw Adjusted MD","MW","Non-Coincident",0.134048]
[null,null,null,null,"Coincident",4.2360000000000002E-2]
[null,null,"Raw Adjusted MD","MVA","Non-Coincident",0.13822100000000001]
[null,null,null,null,"Coincident",4.2418999999999998E-2]
[null,null,"Date MD occurred",null,"Non-Coincident","2017-01-19"]
[null,null,null,null,"Coincident","2017-02-08"]
[null,null,"Half hour time period MD occurred",null,"Non-Coincident","21:30:00"]
[null,null,null,null,"Coincident","18:30:00"]
[null,null,"Winter/Summer Peaking",null,"Non-Coincident","Summer"]
[null,null,null,null,"Coincident","Summer"]
[null,null,"Adjustments - Embedded generation","MW","Non-Coincident",0]
[null,null,null,null,"Coincident",8.60731E-3]
[null,null,"Weather Corrected MD 10% POE","MW","Non-Coincident",0.13065216099999999]
[null,null,null,null,"Coincident",4.1286893999999998E-2]
[null,null,"Weather Corrected MD 10% POE","MVA","Non-Coincident",0.13471944599999999]
[null,null,null,null,"Coincident",4.1344398999999997E-2]
[null,null,"Weather Corrected MD 50% POE","MW","Non-Coincident",0.122248618]
[null,null,null,null,"Coincident",3.8631322000000003E-2]
[null,null,"Weather Corrected MD 50% POE","MVA","Non-Coincident",0.12605429600000001]
[null,null,null,null,"Coincident",3.8685128999999999E-2]
[null,"Tailem Bend","Connection Point Rating","MVA","Non-Coincident",60]
[null,null,null,null,"Coincident",60]
[null,null,"Raw Adjusted MD","MW","Non-Coincident",19.976199999999999]
[null,null,null,null,"Coincident",19.976199999999999]
[null,null,"Raw Adjusted MD","MVA","Non-Coincident",21.820603160000001]
[null,null,null,null,"Coincident",21.820603160000001]
[null,null,"Date MD occurred",null,"Non-Coincident","2017-02-08"]
[null,null,null,null,"Coincident","2017-02-08"]
[null,null,"Half hour time period MD occurred",null,"Non-Coincident","18:30:00"]
[null,null,null,null,"Coincident","18:30:00"]
[null,null,"Winter/Summer Peaking",null,"Non-Coincident","Summer"]
[null,null,null,null,"Coincident","Summer"]
[null,null,"Adjustments - Embedded generation","MW","Non-Coincident",1.333554793]
[null,null,null,null,"Coincident",1.333554793]
[null,null,"Weather Corrected MD 10% POE","MW","Non-Coincident",20.00835494]
[null,null,null,null,"Coincident",20.00835494]
[null,null,"Weather Corrected MD 10% POE","MVA","Non-Coincident",21.855726969999999]
[null,null,null,null,"Coincident",21.855726969999999]
[null,null,"Weather Corrected MD 50% POE","MW","Non-Coincident",18.337828909999999]
[null,null,null,null,"Coincident",18.337828909999999]
[null,null,"Weather Corrected MD 50% POE","MVA","Non-Coincident",20.030961219999998]
[null,null,null,null,"Coincident",20.030961219999998]
[null,"Templers","Connection Point Rating","MVA","Non-Coincident",147.6]
[null,null,null,null,"Coincident",147.6]
[null,null,"Raw Adjusted MD","MW","Non-Coincident",29.983899999999998]
[null,null,null,null,"Coincident",28.5045]
[null,null,"Raw Adjusted MD","MVA","Non-Coincident",31.319100989999999]
[null,null,null,null,"Coincident",29.826107289999999]
[null,null,"Date MD occurred",null,"Non-Coincident","2017-02-08"]
[null,null,null,null,"Coincident","2017-02-08"]
[null,null,"Half hour time period MD occurred",null,"Non-Coincident","19:30:00"]
[null,null,null,null,"Coincident","18:30:00"]
[null,null,"Winter/Summer Peaking",null,"Non-Coincident","Summer"]
[null,null,null,null,"Coincident","Summer"]
[null,null,"Adjustments - Embedded generation","MW","Non-Coincident",0.88346506599999997]
[null,null,null,null,"Coincident",2.7071039219999999]
[null,null,"Weather Corrected MD 10% POE","MW","Non-Coincident",32.1108555]
[null,null,null,null,"Coincident",30.526511920000001]
[null,null,"Weather Corrected MD 10% POE","MVA","Non-Coincident",33.540771100000001]
[null,null,null,null,"Coincident",31.941869520000001]
[null,null,"Weather Corrected MD 50% POE","MW","Non-Coincident",29.257617620000001]
[null,null,null,null,"Coincident",27.81405225]
[null,null,"Weather Corrected MD 50% POE","MVA","Non-Coincident",30.560476820000002]
[null,null,null,null,"Coincident",29.103647030000001]
[null,"Torrens Island 66 kV","Connection Point Rating","MVA","Non-Coincident"]
[null,null,null,null,"Coincident"]
[null,null,"Raw Adjusted MD","MW","Non-Coincident",82.391536810000005]
[null,null,null,null,"Coincident",79.601363079999999]
[null,null,"Raw Adjusted MD","MVA","Non-Coincident",82.533141290000003]
[null,null,null,null,"Coincident",79.681574220000002]
[null,null,"Date MD occurred",null,"Non-Coincident","2017-02-09"]
[null,null,null,null,"Coincident","2017-02-08"]
[null,null,"Half hour time period MD occurred",null,"Non-Coincident","19:00:00"]
[null,null,null,null,"Coincident","18:30:00"]
[null,null,"Winter/Summer Peaking",null,"Non-Coincident","Summer"]
[null,null,null,null,"Coincident","Summer"]
[null,null,"Adjustments - Embedded generation","MW","Non-Coincident",3.5539192100000001]
[null,null,null,null,"Coincident",3.7616157960000001]
[null,null,"Weather Corrected MD 10% POE","MW","Non-Coincident",89.883521579999993]
[null,null,null,null,"Coincident",86.839633199999994]
[null,null,"Weather Corrected MD 10% POE","MVA","Non-Coincident",90.038002349999999]
[null,null,null,null,"Coincident",86.927138069999998]
[null,null,"Weather Corrected MD 50% POE","MW","Non-Coincident",82.005006280000003]
[null,null,null,null,"Coincident",79.227922340000006]
[null,null,"Weather Corrected MD 50% POE","MVA","Non-Coincident",82.145946429999995]
[null,null,null,null,"Coincident",79.307757179999996]
[null,"Torrens Island House Supplies","Connection Point Rating","MVA","Non-Coincident"]
[null,null,null,null,"Coincident"]
[null,null,"Raw Adjusted MD","MW","Non-Coincident"]
[null,null,null,null,"Coincident"]
[null,null,"Raw Adjusted MD","MVA","Non-Coincident"]
[null,null,null,null,"Coincident"]
[null,null,"Date MD occurred",null,"Non-Coincident"]
[null,null,null,null,"Coincident"]
[null,null,"Half hour time period MD occurred",null,"Non-Coincident"]
[null,null,null,null,"Coincident"]
[null,null,"Winter/Summer Peaking",null,"Non-Coincident"]
[null,null,null,null,"Coincident"]
[null,null,"Adjustments - Embedded generation","MW","Non-Coincident"]
[null,null,null,null,"Coincident"]
[null,null,"Weather Corrected MD 10% POE","MW","Non-Coincident"]
[null,null,null,null,"Coincident"]
[null,null,"Weather Corrected MD 10% POE","MVA","Non-Coincident"]
[null,null,null,null,"Coincident"]
[null,null,"Weather Corrected MD 50% POE","MW","Non-Coincident"]
[null,null,null,null,"Coincident"]
[null,null,"Weather Corrected MD 50% POE","MVA","Non-Coincident"]
[null,null,null,null,"Coincident"]
[null,"Waterloo","Connection Point Rating","MVA","Non-Coincident",54.8]
[null,null,null,null,"Coincident",54.8]
[null,null,"Raw Adjusted MD","MW","Non-Coincident",8.5469860000000004]
[null,null,null,null,"Coincident",7.5926600000000004]
[null,null,"Raw Adjusted MD","MVA","Non-Coincident",8.7338679999999993]
[null,null,null,null,"Coincident",7.7570880000000004]
[null,null,"Date MD occurred",null,"Non-Coincident","2017-02-09"]
[null,null,null,null,"Coincident","2017-02-08"]
[null,null,"Half hour time period MD occurred",null,"Non-Coincident","19:30:00"]
[null,null,null,null,"Coincident","18:30:00"]
[null,null,"Winter/Summer Peaking",null,"Non-Coincident","Summer"]
[null,null,null,null,"Coincident","Summer"]
[null,null,"Adjustments - Embedded generation","MW","Non-Coincident",0.53320314800000002]
[null,null,null,null,"Coincident",0.83204624999999999]
[null,null,"Weather Corrected MD 10% POE","MW","Non-Coincident",8.7568305259999999]
[null,null,null,null,"Coincident",7.7790740339999997]
[null,null,"Weather Corrected MD 10% POE","MVA","Non-Coincident",8.9483008290000008]
[null,null,null,null,"Coincident",7.9475390499999996]
[null,null,"Weather Corrected MD 50% POE","MW","Non-Coincident",7.9321317479999998]
[null,null,null,null,"Coincident",7.0464581820000003]
[null,null,"Weather Corrected MD 50% POE","MVA","Non-Coincident",8.105569805]
[null,null,null,null,"Coincident",7.1990575379999999]
[null,"Whyalla Central","Connection Point Rating","MVA","Non-Coincident",240]
[null,null,null,null,"Coincident",240]
[null,null,"Raw Adjusted MD","MW","Non-Coincident",64.146600000000007]
[null,null,null,null,"Coincident",36.757300000000001]
[null,null,"Raw Adjusted MD","MVA","Non-Coincident",66.881301390000004]
[null,null,null,null,"Coincident",40.236645150000001]
[null,null,"Date MD occurred",null,"Non-Coincident","2016-12-04"]
[null,null,null,null,"Coincident","2017-02-08"]
[null,null,"Half hour time period MD occurred",null,"Non-Coincident","19:30:00"]
[null,null,null,null,"Coincident","18:30:00"]
[null,null,"Winter/Summer Peaking",null,"Non-Coincident","Summer"]
[null,null,null,null,"Coincident","Summer"]
[null,null,"Adjustments - Embedded generation","MW","Non-Coincident",0.57491946500000002]
[null,null,null,null,"Coincident",2.7783066299999999]
[null,null,"Weather Corrected MD 10% POE","MW","Non-Coincident",69.190295480000003]
[null,null,null,null,"Coincident",39.647439589999998]
[null,null,"Weather Corrected MD 10% POE","MVA","Non-Coincident",72.140019980000005]
[null,null,null,null,"Coincident",43.400357409999998]
[null,null,"Weather Corrected MD 50% POE","MW","Non-Coincident",65.085014950000001]
[null,null,null,null,"Coincident",37.295030760000003]
[null,null,"Weather Corrected MD 50% POE","MVA","Non-Coincident",67.859722899999994]
[null,null,null,null,"Coincident",40.825276019999997]
[null,"Whyalla LMF","Connection Point Rating","MVA","Non-Coincident",60.5]
[null,null,null,null,"Coincident",60.5]
[null,null,"Raw Adjusted MD","MW","Non-Coincident",11.3604]
[null,null,null,null,"Coincident",2.7099999999999999E-2]
[null,null,"Raw Adjusted MD","MVA","Non-Coincident",11.429444760000001]
[null,null,null,null,"Coincident",10.28323571]
[null,null,"Date MD occurred",null,"Non-Coincident","2017-03-01"]
[null,null,null,null,"Coincident","2017-02-08"]
[null,null,"Half hour time period MD occurred",null,"Non-Coincident","16:30:00"]
[null,null,null,null,"Coincident","18:30:00"]
[null,null,"Winter/Summer Peaking",null,"Non-Coincident","Summer"]
[null,null,null,null,"Coincident","Summer"]
[null,null,"Adjustments - Embedded generation","MW","Non-Coincident",0]
[null,null,null,null,"Coincident",0]
[null,null,"Weather Corrected MD 10% POE","MW","Non-Coincident",15.06175423]
[null,null,null,null,"Coincident",3.5929504000000001E-2]
[null,null,"Weather Corrected MD 10% POE","MVA","Non-Coincident",15.153294600000001]
[null,null,null,null,"Coincident",13.63363693]
[null,null,"Weather Corrected MD 50% POE","MW","Non-Coincident",13.65387677]
[null,null,null,null,"Coincident",3.2571042000000001E-2]
[null,null,"Weather Corrected MD 50% POE","MVA","Non-Coincident",13.73686052]
[null,null,null,null,"Coincident",12.359250830000001]
[null,"Woomera","Connection Point Rating","MVA","Non-Coincident"]
[null,null,null,null,"Coincident"]
[null,null,"Raw Adjusted MD","MW","Non-Coincident"]
[null,null,null,null,"Coincident"]
[null,null,"Raw Adjusted MD","MVA","Non-Coincident"]
[null,null,null,null,"Coincident"]
[null,null,"Date MD occurred",null,"Non-Coincident"]
[null,null,null,null,"Coincident"]
[null,null,"Half hour time period MD occurred",null,"Non-Coincident"]
[null,null,null,null,"Coincident"]
[null,null,"Winter/Summer Peaking",null,"Non-Coincident"]
[null,null,null,null,"Coincident"]
[null,null,"Adjustments - Embedded generation","MW","Non-Coincident"]
[null,null,null,null,"Coincident"]
[null,null,"Weather Corrected MD 10% POE","MW","Non-Coincident"]
[null,null,null,null,"Coincident"]
[null,null,"Weather Corrected MD 10% POE","MVA","Non-Coincident"]
[null,null,null,null,"Coincident"]
[null,null,"Weather Corrected MD 50% POE","MW","Non-Coincident"]
[null,null,null,null,"Coincident"]
[null,null,"Weather Corrected MD 50% POE","MVA","Non-Coincident"]
[null,null,null,null,"Coincident"]
[null,"Wudinna","Connection Point Rating","MVA","Non-Coincident",58.3]
[null,null,null,null,"Coincident",58.3]
[null,null,"Raw Adjusted MD","MW","Non-Coincident",14.893644]
[null,null,null,null,"Coincident",13.850244]
[null,null,"Raw Adjusted MD","MVA","Non-Coincident",14.90138]
[null,null,null,null,"Coincident",13.851648000000001]
[null,null,"Date MD occurred",null,"Non-Coincident","2017-02-08"]
[null,null,null,null,"Coincident","2017-02-08"]
[null,null,"Half hour time period MD occurred",null,"Non-Coincident","19:30:00"]
[null,null,null,null,"Coincident","18:30:00"]
[null,null,"Winter/Summer Peaking",null,"Non-Coincident","Summer"]
[null,null,null,null,"Coincident","Summer"]
[null,null,"Adjustments - Embedded generation","MW","Non-Coincident",0.38935799999999998]
[null,null,null,null,"Coincident",1.1930664929999999]
[null,null,"Weather Corrected MD 10% POE","MW","Non-Coincident",12.073229769999999]
[null,null,null,null,"Coincident",11.22741877]
[null,null,"Weather Corrected MD 10% POE","MVA","Non-Coincident",12.0795008]
[null,null,null,null,"Coincident",11.228556899999999]
[null,null,"Weather Corrected MD 50% POE","MW","Non-Coincident",11.054645649999999]
[null,null,null,null,"Coincident",10.28019332]
[null,null,"Weather Corrected MD 50% POE","MVA","Non-Coincident",11.060387609999999]
[null,null,null,null,"Coincident",10.281235430000001]
[null,"Yadnarie","Connection Point Rating","MVA","Non-Coincident",46.4]
[null,null,null,null,"Coincident",46.4]
[null,null,"Raw Adjusted MD","MW","Non-Coincident",8.1583000000000006]
[null,null,null,null,"Coincident",7.7039]
[null,null,"Raw Adjusted MD","MVA","Non-Coincident",8.319227455]
[null,null,null,null,"Coincident",7.8938333309999997]
[null,null,"Date MD occurred",null,"Non-Coincident","2017-02-08"]
[null,null,null,null,"Coincident","2017-02-08"]
[null,null,"Half hour time period MD occurred",null,"Non-Coincident","19:30:00"]
[null,null,null,null,"Coincident","18:30:00"]
[null,null,"Winter/Summer Peaking",null,"Non-Coincident","Summer"]
[null,null,null,null,"Coincident","Summer"]
[null,null,"Adjustments - Embedded generation","MW","Non-Coincident",0.26242236899999999]
[null,null,null,null,"Coincident",0.804111731]
[null,null,"Weather Corrected MD 10% POE","MW","Non-Coincident",7.6067983620000001]
[null,null,null,null,"Coincident",7.1831158329999996]
[null,null,"Weather Corrected MD 10% POE","MVA","Non-Coincident",7.7568471099999998]
[null,null,null,null,"Coincident",7.3602096579999996]
[null,null,"Weather Corrected MD 50% POE","MW","Non-Coincident",6.8678769930000003]
[null,null,null,null,"Coincident",6.4853508160000004]
[null,null,"Weather Corrected MD 50% POE","MVA","Non-Coincident",7.0033500650000002]
[null,null,null,null,"Coincident",6.6452418169999996]
[null,"<Enter connection point name>","Connection Point Rating","MVA","Non-Coincident"]
[null,null,null,null,"Coincident"]
[null,null,"Raw Adjusted MD","MW","Non-Coincident"]
[null,null,null,null,"Coincident"]
[null,null,"Raw Adjusted MD","MVA","Non-Coincident"]
[null,null,null,null,"Coincident"]
[null,null,"Date MD occurred",null,"Non-Coincident"]
[null,null,null,null,"Coincident"]
[null,null,"Half hour time period MD occurred",null,"Non-Coincident"]
[null,null,null,null,"Coincident"]
[null,null,"Winter/Summer Peaking",null,"Non-Coincident"]
[null,null,null,null,"Coincident"]
[null,null,"Adjustments - Embedded generation","MW","Non-Coincident"]
[null,null,null,null,"Coincident"]
[null,null,"Weather Corrected MD 10% POE","MW","Non-Coincident"]
[null,null,null,null,"Coincident"]
[null,null,"Weather Corrected MD 10% POE","MVA","Non-Coincident"]
[null,null,null,null,"Coincident"]
[null,null,"Weather Corrected MD 50% POE","MW","Non-Coincident"]
[null,null,null,null,"Coincident"]
[null,null,"Weather Corrected MD 50% POE","MVA","Non-Coincident"]
[null,null,null,null,"Coincident"]
[null,"<Enter connection point name>","Connection Point Rating","MVA","Non-Coincident"]
[null,null,null,null,"Coincident"]
[null,null,"Raw Adjusted MD","MW","Non-Coincident"]
[null,null,null,null,"Coincident"]
[null,null,"Raw Adjusted MD","MVA","Non-Coincident"]
[null,null,null,null,"Coincident"]
[null,null,"Date MD occurred",null,"Non-Coincident"]
[null,null,null,null,"Coincident"]
[null,null,"Half hour time period MD occurred",null,"Non-Coincident"]
[null,null,null,null,"Coincident"]
[null,null,"Winter/Summer Peaking",null,"Non-Coincident"]
[null,null,null,null,"Coincident"]
[null,null,"Adjustments - Embedded generation","MW","Non-Coincident"]
[null,null,null,null,"Coincident"]
[null,null,"Weather Corrected MD 10% POE","MW","Non-Coincident"]
[null,null,null,null,"Coincident"]
[null,null,"Weather Corrected MD 10% POE","MVA","Non-Coincident"]
[null,null,null,null,"Coincident"]
[null,null,"Weather Corrected MD 50% POE","MW","Non-Coincident"]
[null,null,null,null,"Coincident"]
[null,null,"Weather Corrected MD 50% POE","MVA","Non-Coincident"]
[null,null,null,null,"Coincident"]
[null,"<Enter connection point name>","Connection Point Rating","MVA","Non-Coincident"]
[null,null,null,null,"Coincident"]
[null,null,"Raw Adjusted MD","MW","Non-Coincident"]
[null,null,null,null,"Coincident"]
[null,null,"Raw Adjusted MD","MVA","Non-Coincident"]
[null,null,null,null,"Coincident"]
[null,null,"Date MD occurred",null,"Non-Coincident"]
[null,null,null,null,"Coincident"]
[null,null,"Half hour time period MD occurred",null,"Non-Coincident"]
[null,null,null,null,"Coincident"]
[null,null,"Winter/Summer Peaking",null,"Non-Coincident"]
[null,null,null,null,"Coincident"]
[null,null,"Adjustments - Embedded generation","MW","Non-Coincident"]
[null,null,null,null,"Coincident"]
[null,null,"Weather Corrected MD 10% POE","MW","Non-Coincident"]
[null,null,null,null,"Coincident"]
[null,null,"Weather Corrected MD 10% POE","MVA","Non-Coincident"]
[null,null,null,null,"Coincident"]
[null,null,"Weather Corrected MD 50% POE","MW","Non-Coincident"]
[null,null,null,null,"Coincident"]
[null,null,"Weather Corrected MD 50% POE","MVA","Non-Coincident"]
[null,null,null,null,"Coincident"]
[null,"<Enter connection point name>","Connection Point Rating","MVA","Non-Coincident"]
[null,null,null,null,"Coincident"]
[null,null,"Raw Adjusted MD","MW","Non-Coincident"]
[null,null,null,null,"Coincident"]
[null,null,"Raw Adjusted MD","MVA","Non-Coincident"]
[null,null,null,null,"Coincident"]
[null,null,"Date MD occurred",null,"Non-Coincident"]
[null,null,null,null,"Coincident"]
[null,null,"Half hour time period MD occurred",null,"Non-Coincident"]
[null,null,null,null,"Coincident"]
[null,null,"Winter/Summer Peaking",null,"Non-Coincident"]
[null,null,null,null,"Coincident"]
[null,null,"Adjustments - Embedded generation","MW","Non-Coincident"]
[null,null,null,null,"Coincident"]
[null,null,"Weather Corrected MD 10% POE","MW","Non-Coincident"]
[null,null,null,null,"Coincident"]
[null,null,"Weather Corrected MD 10% POE","MVA","Non-Coincident"]
[null,null,null,null,"Coincident"]
[null,null,"Weather Corrected MD 50% POE","MW","Non-Coincident"]
[null,null,null,null,"Coincident"]
[null,null,"Weather Corrected MD 50% POE","MVA","Non-Coincident"]
[null,null,null,null,"Coincident"]
[null,"<Enter connection point name>","Connection Point Rating","MVA","Non-Coincident"]
[null,null,null,null,"Coincident"]
[null,null,"Raw Adjusted MD","MW","Non-Coincident"]
[null,null,null,null,"Coincident"]
[null,null,"Raw Adjusted MD","MVA","Non-Coincident"]
[null,null,null,null,"Coincident"]
[null,null,"Date MD occurred",null,"Non-Coincident"]
[null,null,null,null,"Coincident"]
[null,null,"Half hour time period MD occurred",null,"Non-Coincident"]
[null,null,null,null,"Coincident"]
[null,null,"Winter/Summer Peaking",null,"Non-Coincident"]
[null,null,null,null,"Coincident"]
[null,null,"Adjustments - Embedded generation","MW","Non-Coincident"]
[null,null,null,null,"Coincident"]
[null,null,"Weather Corrected MD 10% POE","MW","Non-Coincident"]
[null,null,null,null,"Coincident"]
[null,null,"Weather Corrected MD 10% POE","MVA","Non-Coincident"]
[null,null,null,null,"Coincident"]
[null,null,"Weather Corrected MD 50% POE","MW","Non-Coincident"]
[null,null,null,null,"Coincident"]
[null,null,"Weather Corrected MD 50% POE","MVA","Non-Coincident"]
[null,null,null,null,"Coincident"]
[null,"<Enter connection point name>","Connection Point Rating","MVA","Non-Coincident"]
[null,null,null,null,"Coincident"]
[null,null,"Raw Adjusted MD","MW","Non-Coincident"]
[null,null,null,null,"Coincident"]
[null,null,"Raw Adjusted MD","MVA","Non-Coincident"]
[null,null,null,null,"Coincident"]
[null,null,"Date MD occurred",null,"Non-Coincident"]
[null,null,null,null,"Coincident"]
[null,null,"Half hour time period MD occurred",null,"Non-Coincident"]
[null,null,null,null,"Coincident"]
[null,null,"Winter/Summer Peaking",null,"Non-Coincident"]
[null,null,null,null,"Coincident"]
[null,null,"Adjustments - Embedded generation","MW","Non-Coincident"]
[null,null,null,null,"Coincident"]
[null,null,"Weather Corrected MD 10% POE","MW","Non-Coincident"]
[null,null,null,null,"Coincident"]
[null,null,"Weather Corrected MD 10% POE","MVA","Non-Coincident"]
[null,null,null,null,"Coincident"]
[null,null,"Weather Corrected MD 50% POE","MW","Non-Coincident"]
[null,null,null,null,"Coincident"]
[null,null,"Weather Corrected MD 50% POE","MVA","Non-Coincident"]
[null,null,null,null,"Coincident"]
[null,"<Enter connection point name>","Connection Point Rating","MVA","Non-Coincident"]
[null,null,null,null,"Coincident"]
[null,null,"Raw Adjusted MD","MW","Non-Coincident"]
[null,null,null,null,"Coincident"]
[null,null,"Raw Adjusted MD","MVA","Non-Coincident"]
[null,null,null,null,"Coincident"]
[null,null,"Date MD occurred",null,"Non-Coincident"]
[null,null,null,null,"Coincident"]
[null,null,"Half hour time period MD occurred",null,"Non-Coincident"]
[null,null,null,null,"Coincident"]
[null,null,"Winter/Summer Peaking",null,"Non-Coincident"]
[null,null,null,null,"Coincident"]
[null,null,"Adjustments - Embedded generation","MW","Non-Coincident"]
[null,null,null,null,"Coincident"]
[null,null,"Weather Corrected MD 10% POE","MW","Non-Coincident"]
[null,null,null,null,"Coincident"]
[null,null,"Weather Corrected MD 10% POE","MVA","Non-Coincident"]
[null,null,null,null,"Coincident"]
[null,null,"Weather Corrected MD 50% POE","MW","Non-Coincident"]
[null,null,null,null,"Coincident"]
[null,null,"Weather Corrected MD 50% POE","MVA","Non-Coincident"]
[null,null,null,null,"Coincident"]
[null,"<Enter connection point name>","Connection Point Rating","MVA","Non-Coincident"]
[null,null,null,null,"Coincident"]
[null,null,"Raw Adjusted MD","MW","Non-Coincident"]
[null,null,null,null,"Coincident"]
[null,null,"Raw Adjusted MD","MVA","Non-Coincident"]
[null,null,null,null,"Coincident"]
[null,null,"Date MD occurred",null,"Non-Coincident"]
[null,null,null,null,"Coincident"]
[null,null,"Half hour time period MD occurred",null,"Non-Coincident"]
[null,null,null,null,"Coincident"]
[null,null,"Winter/Summer Peaking",null,"Non-Coincident"]
[null,null,null,null,"Coincident"]
[null,null,"Adjustments - Embedded generation","MW","Non-Coincident"]
[null,null,null,null,"Coincident"]
[null,null,"Weather Corrected MD 10% POE","MW","Non-Coincident"]
[null,null,null,null,"Coincident"]
[null,null,"Weather Corrected MD 10% POE","MVA","Non-Coincident"]
[null,null,null,null,"Coincident"]
[null,null,"Weather Corrected MD 50% POE","MW","Non-Coincident"]
[null,null,null,null,"Coincident"]
[null,null,"Weather Corrected MD 50% POE","MVA","Non-Coincident"]
[null,null,null,null,"Coincident"]
[null,"<Enter connection point name>","Connection Point Rating","MVA","Non-Coincident"]
[null,null,null,null,"Coincident"]
[null,null,"Raw Adjusted MD","MW","Non-Coincident"]
[null,null,null,null,"Coincident"]
[null,null,"Raw Adjusted MD","MVA","Non-Coincident"]
[null,null,null,null,"Coincident"]
[null,null,"Date MD occurred",null,"Non-Coincident"]
[null,null,null,null,"Coincident"]
[null,null,"Half hour time period MD occurred",null,"Non-Coincident"]
[null,null,null,null,"Coincident"]
[null,null,"Winter/Summer Peaking",null,"Non-Coincident"]
[null,null,null,null,"Coincident"]
[null,null,"Adjustments - Embedded generation","MW","Non-Coincident"]
[null,null,null,null,"Coincident"]
[null,null,"Weather Corrected MD 10% POE","MW","Non-Coincident"]
[null,null,null,null,"Coincident"]
[null,null,"Weather Corrected MD 10% POE","MVA","Non-Coincident"]
[null,null,null,null,"Coincident"]
[null,null,"Weather Corrected MD 50% POE","MW","Non-Coincident"]
[null,null,null,null,"Coincident"]
[null,null,"Weather Corrected MD 50% POE","MVA","Non-Coincident"]
[null,null,null,null,"Coincident"]
[null,"<Enter connection point name>","Connection Point Rating","MVA","Non-Coincident"]
[null,null,null,null,"Coincident"]
[null,null,"Raw Adjusted MD","MW","Non-Coincident"]
[null,null,null,null,"Coincident"]
[null,null,"Raw Adjusted MD","MVA","Non-Coincident"]
[null,null,null,null,"Coincident"]
[null,null,"Date MD occurred",null,"Non-Coincident"]
[null,null,null,null,"Coincident"]
[null,null,"Half hour time period MD occurred",null,"Non-Coincident"]
[null,null,null,null,"Coincident"]
[null,null,"Winter/Summer Peaking",null,"Non-Coincident"]
[null,null,null,null,"Coincident"]
[null,null,"Adjustments - Embedded generation","MW","Non-Coincident"]
[null,null,null,null,"Coincident"]
[null,null,"Weather Corrected MD 10% POE","MW","Non-Coincident"]
[null,null,null,null,"Coincident"]
[null,null,"Weather Corrected MD 10% POE","MVA","Non-Coincident"]
[null,null,null,null,"Coincident"]
[null,null,"Weather Corrected MD 50% POE","MW","Non-Coincident"]
[null,null,null,null,"Coincident"]
[null,null,"Weather Corrected MD 50% POE","MVA","Non-Coincident"]
[null,null,null,null,"Coincident"]
[null,"<Enter connection point name>","Connection Point Rating","MVA","Non-Coincident"]
[null,null,null,null,"Coincident"]
[null,null,"Raw Adjusted MD","MW","Non-Coincident"]
[null,null,null,null,"Coincident"]
[null,null,"Raw Adjusted MD","MVA","Non-Coincident"]
[null,null,null,null,"Coincident"]
[null,null,"Date MD occurred",null,"Non-Coincident"]
[null,null,null,null,"Coincident"]
[null,null,"Half hour time period MD occurred",null,"Non-Coincident"]
[null,null,null,null,"Coincident"]
[null,null,"Winter/Summer Peaking",null,"Non-Coincident"]
[null,null,null,null,"Coincident"]
[null,null,"Adjustments - Embedded generation","MW","Non-Coincident"]
[null,null,null,null,"Coincident"]
[null,null,"Weather Corrected MD 10% POE","MW","Non-Coincident"]
[null,null,null,null,"Coincident"]
[null,null,"Weather Corrected MD 10% POE","MVA","Non-Coincident"]
[null,null,null,null,"Coincident"]
[null,null,"Weather Corrected MD 50% POE","MW","Non-Coincident"]
[null,null,null,null,"Coincident"]
[null,null,"Weather Corrected MD 50% POE","MVA","Non-Coincident"]
[null,null,null,null,"Coincident"]
[null,"<Enter connection point name>","Connection Point Rating","MVA","Non-Coincident"]
[null,null,null,null,"Coincident"]
[null,null,"Raw Adjusted MD","MW","Non-Coincident"]
[null,null,null,null,"Coincident"]
[null,null,"Raw Adjusted MD","MVA","Non-Coincident"]
[null,null,null,null,"Coincident"]
[null,null,"Date MD occurred",null,"Non-Coincident"]
[null,null,null,null,"Coincident"]
[null,null,"Half hour time period MD occurred",null,"Non-Coincident"]
[null,null,null,null,"Coincident"]
[null,null,"Winter/Summer Peaking",null,"Non-Coincident"]
[null,null,null,null,"Coincident"]
[null,null,"Adjustments - Embedded generation","MW","Non-Coincident"]
[null,null,null,null,"Coincident"]
[null,null,"Weather Corrected MD 10% POE","MW","Non-Coincident"]
[null,null,null,null,"Coincident"]
[null,null,"Weather Corrected MD 10% POE","MVA","Non-Coincident"]
[null,null,null,null,"Coincident"]
[null,null,"Weather Corrected MD 50% POE","MW","Non-Coincident"]
[null,null,null,null,"Coincident"]
[null,null,"Weather Corrected MD 50% POE","MVA","Non-Coincident"]
[null,null,null,null,"Coincident"]
[null,"<Enter connection point name>","Connection Point Rating","MVA","Non-Coincident"]
[null,null,null,null,"Coincident"]
[null,null,"Raw Adjusted MD","MW","Non-Coincident"]
[null,null,null,null,"Coincident"]
[null,null,"Raw Adjusted MD","MVA","Non-Coincident"]
[null,null,null,null,"Coincident"]
[null,null,"Date MD occurred",null,"Non-Coincident"]
[null,null,null,null,"Coincident"]
[null,null,"Half hour time period MD occurred",null,"Non-Coincident"]
[null,null,null,null,"Coincident"]
[null,null,"Winter/Summer Peaking",null,"Non-Coincident"]
[null,null,null,null,"Coincident"]
[null,null,"Adjustments - Embedded generation","MW","Non-Coincident"]
[null,null,null,null,"Coincident"]
[null,null,"Weather Corrected MD 10% POE","MW","Non-Coincident"]
[null,null,null,null,"Coincident"]
[null,null,"Weather Corrected MD 10% POE","MVA","Non-Coincident"]
[null,null,null,null,"Coincident"]
[null,null,"Weather Corrected MD 50% POE","MW","Non-Coincident"]
[null,null,null,null,"Coincident"]
[null,null,"Weather Corrected MD 50% POE","MVA","Non-Coincident"]
[null,null,null,null,"Coincident"]
[null,"<Enter connection point name>","Connection Point Rating","MVA","Non-Coincident"]
[null,null,null,null,"Coincident"]
[null,null,"Raw Adjusted MD","MW","Non-Coincident"]
[null,null,null,null,"Coincident"]
[null,null,"Raw Adjusted MD","MVA","Non-Coincident"]
[null,null,null,null,"Coincident"]
[null,null,"Date MD occurred",null,"Non-Coincident"]
[null,null,null,null,"Coincident"]
[null,null,"Half hour time period MD occurred",null,"Non-Coincident"]
[null,null,null,null,"Coincident"]
[null,null,"Winter/Summer Peaking",null,"Non-Coincident"]
[null,null,null,null,"Coincident"]
[null,null,"Adjustments - Embedded generation","MW","Non-Coincident"]
[null,null,null,null,"Coincident"]
[null,null,"Weather Corrected MD 10% POE","MW","Non-Coincident"]
[null,null,null,null,"Coincident"]
[null,null,"Weather Corrected MD 10% POE","MVA","Non-Coincident"]
[null,null,null,null,"Coincident"]
[null,null,"Weather Corrected MD 50% POE","MW","Non-Coincident"]
[null,null,null,null,"Coincident"]
[null,null,"Weather Corrected MD 50% POE","MVA","Non-Coincident"]
[null,null,null,null,"Coincident"]
[null,"<Enter connection point name>","Connection Point Rating","MVA","Non-Coincident"]
[null,null,null,null,"Coincident"]
[null,null,"Raw Adjusted MD","MW","Non-Coincident"]
[null,null,null,null,"Coincident"]
[null,null,"Raw Adjusted MD","MVA","Non-Coincident"]
[null,null,null,null,"Coincident"]
[null,null,"Date MD occurred",null,"Non-Coincident"]
[null,null,null,null,"Coincident"]
[null,null,"Half hour time period MD occurred",null,"Non-Coincident"]
[null,null,null,null,"Coincident"]
[null,null,"Winter/Summer Peaking",null,"Non-Coincident"]
[null,null,null,null,"Coincident"]
[null,null,"Adjustments - Embedded generation","MW","Non-Coincident"]
[null,null,null,null,"Coincident"]
[null,null,"Weather Corrected MD 10% POE","MW","Non-Coincident"]
[null,null,null,null,"Coincident"]
[null,null,"Weather Corrected MD 10% POE","MVA","Non-Coincident"]
[null,null,null,null,"Coincident"]
[null,null,"Weather Corrected MD 50% POE","MW","Non-Coincident"]
[null,null,null,null,"Coincident"]
[null,null,"Weather Corrected MD 50% POE","MVA","Non-Coincident"]
[null,null,null,null,"Coincident"]
[null,"<Enter connection point name>","Connection Point Rating","MVA","Non-Coincident"]
[null,null,null,null,"Coincident"]
[null,null,"Raw Adjusted MD","MW","Non-Coincident"]
[null,null,null,null,"Coincident"]
[null,null,"Raw Adjusted MD","MVA","Non-Coincident"]
[null,null,null,null,"Coincident"]
[null,null,"Date MD occurred",null,"Non-Coincident"]
[null,null,null,null,"Coincident"]
[null,null,"Half hour time period MD occurred",null,"Non-Coincident"]
[null,null,null,null,"Coincident"]
[null,null,"Winter/Summer Peaking",null,"Non-Coincident"]
[null,null,null,null,"Coincident"]
[null,null,"Adjustments - Embedded generation","MW","Non-Coincident"]
[null,null,null,null,"Coincident"]
[null,null,"Weather Corrected MD 10% POE","MW","Non-Coincident"]
[null,null,null,null,"Coincident"]
[null,null,"Weather Corrected MD 10% POE","MVA","Non-Coincident"]
[null,null,null,null,"Coincident"]
[null,null,"Weather Corrected MD 50% POE","MW","Non-Coincident"]
[null,null,null,null,"Coincident"]
[null,null,"Weather Corrected MD 50% POE","MVA","Non-Coincident"]
[null,null,null,null,"Coincident"]
[null,"<Enter connection point name>","Connection Point Rating","MVA","Non-Coincident"]
[null,null,null,null,"Coincident"]
[null,null,"Raw Adjusted MD","MW","Non-Coincident"]
[null,null,null,null,"Coincident"]
[null,null,"Raw Adjusted MD","MVA","Non-Coincident"]
[null,null,null,null,"Coincident"]
[null,null,"Date MD occurred",null,"Non-Coincident"]
[null,null,null,null,"Coincident"]
[null,null,"Half hour time period MD occurred",null,"Non-Coincident"]
[null,null,null,null,"Coincident"]
[null,null,"Winter/Summer Peaking",null,"Non-Coincident"]
[null,null,null,null,"Coincident"]
[null,null,"Adjustments - Embedded generation","MW","Non-Coincident"]
[null,null,null,null,"Coincident"]
[null,null,"Weather Corrected MD 10% POE","MW","Non-Coincident"]
[null,null,null,null,"Coincident"]
[null,null,"Weather Corrected MD 10% POE","MVA","Non-Coincident"]
[null,null,null,null,"Coincident"]
[null,null,"Weather Corrected MD 50% POE","MW","Non-Coincident"]
[null,null,null,null,"Coincident"]
[null,null,"Weather Corrected MD 50% POE","MVA","Non-Coincident"]
[null,null,null,null,"Coincident"]
[null,"<Enter connection point name>","Connection Point Rating","MVA","Non-Coincident"]
[null,null,null,null,"Coincident"]
[null,null,"Raw Adjusted MD","MW","Non-Coincident"]
[null,null,null,null,"Coincident"]
[null,null,"Raw Adjusted MD","MVA","Non-Coincident"]
[null,null,null,null,"Coincident"]
[null,null,"Date MD occurred",null,"Non-Coincident"]
[null,null,null,null,"Coincident"]
[null,null,"Half hour time period MD occurred",null,"Non-Coincident"]
[null,null,null,null,"Coincident"]
[null,null,"Winter/Summer Peaking",null,"Non-Coincident"]
[null,null,null,null,"Coincident"]
[null,null,"Adjustments - Embedded generation","MW","Non-Coincident"]
[null,null,null,null,"Coincident"]
[null,null,"Weather Corrected MD 10% POE","MW","Non-Coincident"]
[null,null,null,null,"Coincident"]
[null,null,"Weather Corrected MD 10% POE","MVA","Non-Coincident"]
[null,null,null,null,"Coincident"]
[null,null,"Weather Corrected MD 50% POE","MW","Non-Coincident"]
[null,null,null,null,"Coincident"]
[null,null,"Weather Corrected MD 50% POE","MVA","Non-Coincident"]
[null,null,null,null,"Coincident"]
[null,"<Enter connection point name>","Connection Point Rating","MVA","Non-Coincident"]
[null,null,null,null,"Coincident"]
[null,null,"Raw Adjusted MD","MW","Non-Coincident"]
[null,null,null,null,"Coincident"]
[null,null,"Raw Adjusted MD","MVA","Non-Coincident"]
[null,null,null,null,"Coincident"]
[null,null,"Date MD occurred",null,"Non-Coincident"]
[null,null,null,null,"Coincident"]
[null,null,"Half hour time period MD occurred",null,"Non-Coincident"]
[null,null,null,null,"Coincident"]
[null,null,"Winter/Summer Peaking",null,"Non-Coincident"]
[null,null,null,null,"Coincident"]
[null,null,"Adjustments - Embedded generation","MW","Non-Coincident"]
[null,null,null,null,"Coincident"]
[null,null,"Weather Corrected MD 10% POE","MW","Non-Coincident"]
[null,null,null,null,"Coincident"]
[null,null,"Weather Corrected MD 10% POE","MVA","Non-Coincident"]
[null,null,null,null,"Coincident"]
[null,null,"Weather Corrected MD 50% POE","MW","Non-Coincident"]
[null,null,null,null,"Coincident"]
[null,null,"Weather Corrected MD 50% POE","MVA","Non-Coincident"]
[null,null,null,null,"Coincident"]
[null,"<Enter connection point name>","Connection Point Rating","MVA","Non-Coincident"]
[null,null,null,null,"Coincident"]
[null,null,"Raw Adjusted MD","MW","Non-Coincident"]
[null,null,null,null,"Coincident"]
[null,null,"Raw Adjusted MD","MVA","Non-Coincident"]
[null,null,null,null,"Coincident"]
[null,null,"Date MD occurred",null,"Non-Coincident"]
[null,null,null,null,"Coincident"]
[null,null,"Half hour time period MD occurred",null,"Non-Coincident"]
[null,null,null,null,"Coincident"]
[null,null,"Winter/Summer Peaking",null,"Non-Coincident"]
[null,null,null,null,"Coincident"]
[null,null,"Adjustments - Embedded generation","MW","Non-Coincident"]
[null,null,null,null,"Coincident"]
[null,null,"Weather Corrected MD 10% POE","MW","Non-Coincident"]
[null,null,null,null,"Coincident"]
[null,null,"Weather Corrected MD 10% POE","MVA","Non-Coincident"]
[null,null,null,null,"Coincident"]
[null,null,"Weather Corrected MD 50% POE","MW","Non-Coincident"]
[null,null,null,null,"Coincident"]
[null,null,"Weather Corrected MD 50% POE","MVA","Non-Coincident"]
[null,null,null,null,"Coincident"]
[null,"<Enter connection point name>","Connection Point Rating","MVA","Non-Coincident"]
[null,null,null,null,"Coincident"]
[null,null,"Raw Adjusted MD","MW","Non-Coincident"]
[null,null,null,null,"Coincident"]
[null,null,"Raw Adjusted MD","MVA","Non-Coincident"]
[null,null,null,null,"Coincident"]
[null,null,"Date MD occurred",null,"Non-Coincident"]
[null,null,null,null,"Coincident"]
[null,null,"Half hour time period MD occurred",null,"Non-Coincident"]
[null,null,null,null,"Coincident"]
[null,null,"Winter/Summer Peaking",null,"Non-Coincident"]
[null,null,null,null,"Coincident"]
[null,null,"Adjustments - Embedded generation","MW","Non-Coincident"]
[null,null,null,null,"Coincident"]
[null,null,"Weather Corrected MD 10% POE","MW","Non-Coincident"]
[null,null,null,null,"Coincident"]
[null,null,"Weather Corrected MD 10% POE","MVA","Non-Coincident"]
[null,null,null,null,"Coincident"]
[null,null,"Weather Corrected MD 50% POE","MW","Non-Coincident"]
[null,null,null,null,"Coincident"]
[null,null,"Weather Corrected MD 50% POE","MVA","Non-Coincident"]
[null,null,null,null,"Coincident"]
[null,"<Enter connection point name>","Connection Point Rating","MVA","Non-Coincident"]
[null,null,null,null,"Coincident"]
[null,null,"Raw Adjusted MD","MW","Non-Coincident"]
[null,null,null,null,"Coincident"]
[null,null,"Raw Adjusted MD","MVA","Non-Coincident"]
[null,null,null,null,"Coincident"]
[null,null,"Date MD occurred",null,"Non-Coincident"]
[null,null,null,null,"Coincident"]
[null,null,"Half hour time period MD occurred",null,"Non-Coincident"]
[null,null,null,null,"Coincident"]
[null,null,"Winter/Summer Peaking",null,"Non-Coincident"]
[null,null,null,null,"Coincident"]
[null,null,"Adjustments - Embedded generation","MW","Non-Coincident"]
[null,null,null,null,"Coincident"]
[null,null,"Weather Corrected MD 10% POE","MW","Non-Coincident"]
[null,null,null,null,"Coincident"]
[null,null,"Weather Corrected MD 10% POE","MVA","Non-Coincident"]
[null,null,null,null,"Coincident"]
[null,null,"Weather Corrected MD 50% POE","MW","Non-Coincident"]
[null,null,null,null,"Coincident"]
[null,null,"Weather Corrected MD 50% POE","MVA","Non-Coincident"]
[null,null,null,null,"Coincident"]
[null,"<Enter connection point name>","Connection Point Rating","MVA","Non-Coincident"]
[null,null,null,null,"Coincident"]
[null,null,"Raw Adjusted MD","MW","Non-Coincident"]
[null,null,null,null,"Coincident"]
[null,null,"Raw Adjusted MD","MVA","Non-Coincident"]
[null,null,null,null,"Coincident"]
[null,null,"Date MD occurred",null,"Non-Coincident"]
[null,null,null,null,"Coincident"]
[null,null,"Half hour time period MD occurred",null,"Non-Coincident"]
[null,null,null,null,"Coincident"]
[null,null,"Winter/Summer Peaking",null,"Non-Coincident"]
[null,null,null,null,"Coincident"]
[null,null,"Adjustments - Embedded generation","MW","Non-Coincident"]
[null,null,null,null,"Coincident"]
[null,null,"Weather Corrected MD 10% POE","MW","Non-Coincident"]
[null,null,null,null,"Coincident"]
[null,null,"Weather Corrected MD 10% POE","MVA","Non-Coincident"]
[null,null,null,null,"Coincident"]
[null,null,"Weather Corrected MD 50% POE","MW","Non-Coincident"]
[null,null,null,null,"Coincident"]
[null,null,"Weather Corrected MD 50% POE","MVA","Non-Coincident"]
[null,null,null,null,"Coincident"]
[null,"<Enter connection point name>","Connection Point Rating","MVA","Non-Coincident"]
[null,null,null,null,"Coincident"]
[null,null,"Raw Adjusted MD","MW","Non-Coincident"]
[null,null,null,null,"Coincident"]
[null,null,"Raw Adjusted MD","MVA","Non-Coincident"]
[null,null,null,null,"Coincident"]
[null,null,"Date MD occurred",null,"Non-Coincident"]
[null,null,null,null,"Coincident"]
[null,null,"Half hour time period MD occurred",null,"Non-Coincident"]
[null,null,null,null,"Coincident"]
[null,null,"Winter/Summer Peaking",null,"Non-Coincident"]
[null,null,null,null,"Coincident"]
[null,null,"Adjustments - Embedded generation","MW","Non-Coincident"]
[null,null,null,null,"Coincident"]
[null,null,"Weather Corrected MD 10% POE","MW","Non-Coincident"]
[null,null,null,null,"Coincident"]
[null,null,"Weather Corrected MD 10% POE","MVA","Non-Coincident"]
[null,null,null,null,"Coincident"]
[null,null,"Weather Corrected MD 50% POE","MW","Non-Coincident"]
[null,null,null,null,"Coincident"]
[null,null,"Weather Corrected MD 50% POE","MVA","Non-Coincident"]
[null,null,null,null,"Coincident"]
[null,"<Enter connection point name>","Connection Point Rating","MVA","Non-Coincident"]
[null,null,null,null,"Coincident"]
[null,null,"Raw Adjusted MD","MW","Non-Coincident"]
[null,null,null,null,"Coincident"]
[null,null,"Raw Adjusted MD","MVA","Non-Coincident"]
[null,null,null,null,"Coincident"]
[null,null,"Date MD occurred",null,"Non-Coincident"]
[null,null,null,null,"Coincident"]
[null,null,"Half hour time period MD occurred",null,"Non-Coincident"]
[null,null,null,null,"Coincident"]
[null,null,"Winter/Summer Peaking",null,"Non-Coincident"]
[null,null,null,null,"Coincident"]
[null,null,"Adjustments - Embedded generation","MW","Non-Coincident"]
[null,null,null,null,"Coincident"]
[null,null,"Weather Corrected MD 10% POE","MW","Non-Coincident"]
[null,null,null,null,"Coincident"]
[null,null,"Weather Corrected MD 10% POE","MVA","Non-Coincident"]
[null,null,null,null,"Coincident"]
[null,null,"Weather Corrected MD 50% POE","MW","Non-Coincident"]
[null,null,null,null,"Coincident"]
[null,null,"Weather Corrected MD 50% POE","MVA","Non-Coincident"]
[null,null,null,null,"Coincident"]
[null,"<Enter connection point name>","Connection Point Rating","MVA","Non-Coincident"]
[null,null,null,null,"Coincident"]
[null,null,"Raw Adjusted MD","MW","Non-Coincident"]
[null,null,null,null,"Coincident"]
[null,null,"Raw Adjusted MD","MVA","Non-Coincident"]
[null,null,null,null,"Coincident"]
[null,null,"Date MD occurred",null,"Non-Coincident"]
[null,null,null,null,"Coincident"]
[null,null,"Half hour time period MD occurred",null,"Non-Coincident"]
[null,null,null,null,"Coincident"]
[null,null,"Winter/Summer Peaking",null,"Non-Coincident"]
[null,null,null,null,"Coincident"]
[null,null,"Adjustments - Embedded generation","MW","Non-Coincident"]
[null,null,null,null,"Coincident"]
[null,null,"Weather Corrected MD 10% POE","MW","Non-Coincident"]
[null,null,null,null,"Coincident"]
[null,null,"Weather Corrected MD 10% POE","MVA","Non-Coincident"]
[null,null,null,null,"Coincident"]
[null,null,"Weather Corrected MD 50% POE","MW","Non-Coincident"]
[null,null,null,null,"Coincident"]
[null,null,"Weather Corrected MD 50% POE","MVA","Non-Coincident"]
[null,null,null,null,"Coincident"]
[null,"<Enter connection point name>","Connection Point Rating","MVA","Non-Coincident"]
[null,null,null,null,"Coincident"]
[null,null,"Raw Adjusted MD","MW","Non-Coincident"]
[null,null,null,null,"Coincident"]
[null,null,"Raw Adjusted MD","MVA","Non-Coincident"]
[null,null,null,null,"Coincident"]
[null,null,"Date MD occurred",null,"Non-Coincident"]
[null,null,null,null,"Coincident"]
[null,null,"Half hour time period MD occurred",null,"Non-Coincident"]
[null,null,null,null,"Coincident"]
[null,null,"Winter/Summer Peaking",null,"Non-Coincident"]
[null,null,null,null,"Coincident"]
[null,null,"Adjustments - Embedded generation","MW","Non-Coincident"]
[null,null,null,null,"Coincident"]
[null,null,"Weather Corrected MD 10% POE","MW","Non-Coincident"]
[null,null,null,null,"Coincident"]
[null,null,"Weather Corrected MD 10% POE","MVA","Non-Coincident"]
[null,null,null,null,"Coincident"]
[null,null,"Weather Corrected MD 50% POE","MW","Non-Coincident"]
[null,null,null,null,"Coincident"]
[null,null,"Weather Corrected MD 50% POE","MVA","Non-Coincident"]
[null,null,null,null,"Coincident"]
[null,"<Enter connection point name>","Connection Point Rating","MVA","Non-Coincident"]
[null,null,null,null,"Coincident"]
[null,null,"Raw Adjusted MD","MW","Non-Coincident"]
[null,null,null,null,"Coincident"]
[null,null,"Raw Adjusted MD","MVA","Non-Coincident"]
[null,null,null,null,"Coincident"]
[null,null,"Date MD occurred",null,"Non-Coincident"]
[null,null,null,null,"Coincident"]
[null,null,"Half hour time period MD occurred",null,"Non-Coincident"]
[null,null,null,null,"Coincident"]
[null,null,"Winter/Summer Peaking",null,"Non-Coincident"]
[null,null,null,null,"Coincident"]
[null,null,"Adjustments - Embedded generation","MW","Non-Coincident"]
[null,null,null,null,"Coincident"]
[null,null,"Weather Corrected MD 10% POE","MW","Non-Coincident"]
[null,null,null,null,"Coincident"]
[null,null,"Weather Corrected MD 10% POE","MVA","Non-Coincident"]
[null,null,null,null,"Coincident"]
[null,null,"Weather Corrected MD 50% POE","MW","Non-Coincident"]
[null,null,null,null,"Coincident"]
[null,null,"Weather Corrected MD 50% POE","MVA","Non-Coincident"]
[null,null,null,null,"Coincident"]
[null,"<Enter connection point name>","Connection Point Rating","MVA","Non-Coincident"]
[null,null,null,null,"Coincident"]
[null,null,"Raw Adjusted MD","MW","Non-Coincident"]
[null,null,null,null,"Coincident"]
[null,null,"Raw Adjusted MD","MVA","Non-Coincident"]
[null,null,null,null,"Coincident"]
[null,null,"Date MD occurred",null,"Non-Coincident"]
[null,null,null,null,"Coincident"]
[null,null,"Half hour time period MD occurred",null,"Non-Coincident"]
[null,null,null,null,"Coincident"]
[null,null,"Winter/Summer Peaking",null,"Non-Coincident"]
[null,null,null,null,"Coincident"]
[null,null,"Adjustments - Embedded generation","MW","Non-Coincident"]
[null,null,null,null,"Coincident"]
[null,null,"Weather Corrected MD 10% POE","MW","Non-Coincident"]
[null,null,null,null,"Coincident"]
[null,null,"Weather Corrected MD 10% POE","MVA","Non-Coincident"]
[null,null,null,null,"Coincident"]
[null,null,"Weather Corrected MD 50% POE","MW","Non-Coincident"]
[null,null,null,null,"Coincident"]
[null,null,"Weather Corrected MD 50% POE","MVA","Non-Coincident"]
[null,null,null,null,"Coincident"]
[null,"<Enter connection point name>","Connection Point Rating","MVA","Non-Coincident"]
[null,null,null,null,"Coincident"]
[null,null,"Raw Adjusted MD","MW","Non-Coincident"]
[null,null,null,null,"Coincident"]
[null,null,"Raw Adjusted MD","MVA","Non-Coincident"]
[null,null,null,null,"Coincident"]
[null,null,"Date MD occurred",null,"Non-Coincident"]
[null,null,null,null,"Coincident"]
[null,null,"Half hour time period MD occurred",null,"Non-Coincident"]
[null,null,null,null,"Coincident"]
[null,null,"Winter/Summer Peaking",null,"Non-Coincident"]
[null,null,null,null,"Coincident"]
[null,null,"Adjustments - Embedded generation","MW","Non-Coincident"]
[null,null,null,null,"Coincident"]
[null,null,"Weather Corrected MD 10% POE","MW","Non-Coincident"]
[null,null,null,null,"Coincident"]
[null,null,"Weather Corrected MD 10% POE","MVA","Non-Coincident"]
[null,null,null,null,"Coincident"]
[null,null,"Weather Corrected MD 50% POE","MW","Non-Coincident"]
[null,null,null,null,"Coincident"]
[null,null,"Weather Corrected MD 50% POE","MVA","Non-Coincident"]
[null,null,null,null,"Coincident"]
[null,"<Enter connection point name>","Connection Point Rating","MVA","Non-Coincident"]
[null,null,null,null,"Coincident"]
[null,null,"Raw Adjusted MD","MW","Non-Coincident"]
[null,null,null,null,"Coincident"]
[null,null,"Raw Adjusted MD","MVA","Non-Coincident"]
[null,null,null,null,"Coincident"]
[null,null,"Date MD occurred",null,"Non-Coincident"]
[null,null,null,null,"Coincident"]
[null,null,"Half hour time period MD occurred",null,"Non-Coincident"]
[null,null,null,null,"Coincident"]
[null,null,"Winter/Summer Peaking",null,"Non-Coincident"]
[null,null,null,null,"Coincident"]
[null,null,"Adjustments - Embedded generation","MW","Non-Coincident"]
[null,null,null,null,"Coincident"]
[null,null,"Weather Corrected MD 10% POE","MW","Non-Coincident"]
[null,null,null,null,"Coincident"]
[null,null,"Weather Corrected MD 10% POE","MVA","Non-Coincident"]
[null,null,null,null,"Coincident"]
[null,null,"Weather Corrected MD 50% POE","MW","Non-Coincident"]
[null,null,null,null,"Coincident"]
[null,null,"Weather Corrected MD 50% POE","MVA","Non-Coincident"]
[null,null,null,null,"Coincident"]
[null,"<Enter connection point name>","Connection Point Rating","MVA","Non-Coincident"]
[null,null,null,null,"Coincident"]
[null,null,"Raw Adjusted MD","MW","Non-Coincident"]
[null,null,null,null,"Coincident"]
[null,null,"Raw Adjusted MD","MVA","Non-Coincident"]
[null,null,null,null,"Coincident"]
[null,null,"Date MD occurred",null,"Non-Coincident"]
[null,null,null,null,"Coincident"]
[null,null,"Half hour time period MD occurred",null,"Non-Coincident"]
[null,null,null,null,"Coincident"]
[null,null,"Winter/Summer Peaking",null,"Non-Coincident"]
[null,null,null,null,"Coincident"]
[null,null,"Adjustments - Embedded generation","MW","Non-Coincident"]
[null,null,null,null,"Coincident"]
[null,null,"Weather Corrected MD 10% POE","MW","Non-Coincident"]
[null,null,null,null,"Coincident"]
[null,null,"Weather Corrected MD 10% POE","MVA","Non-Coincident"]
[null,null,null,null,"Coincident"]
[null,null,"Weather Corrected MD 50% POE","MW","Non-Coincident"]
[null,null,null,null,"Coincident"]
[null,null,"Weather Corrected MD 50% POE","MVA","Non-Coincident"]
[null,null,null,null,"Coincident"]
[null,"<Enter connection point name>","Connection Point Rating","MVA","Non-Coincident"]
[null,null,null,null,"Coincident"]
[null,null,"Raw Adjusted MD","MW","Non-Coincident"]
[null,null,null,null,"Coincident"]
[null,null,"Raw Adjusted MD","MVA","Non-Coincident"]
[null,null,null,null,"Coincident"]
[null,null,"Date MD occurred",null,"Non-Coincident"]
[null,null,null,null,"Coincident"]
[null,null,"Half hour time period MD occurred",null,"Non-Coincident"]
[null,null,null,null,"Coincident"]
[null,null,"Winter/Summer Peaking",null,"Non-Coincident"]
[null,null,null,null,"Coincident"]
[null,null,"Adjustments - Embedded generation","MW","Non-Coincident"]
[null,null,null,null,"Coincident"]
[null,null,"Weather Corrected MD 10% POE","MW","Non-Coincident"]
[null,null,null,null,"Coincident"]
[null,null,"Weather Corrected MD 10% POE","MVA","Non-Coincident"]
[null,null,null,null,"Coincident"]
[null,null,"Weather Corrected MD 50% POE","MW","Non-Coincident"]
[null,null,null,null,"Coincident"]
[null,null,"Weather Corrected MD 50% POE","MVA","Non-Coincident"]
[null,null,null,null,"Coincident"]
[null,"<Enter connection point name>","Connection Point Rating","MVA","Non-Coincident"]
[null,null,null,null,"Coincident"]
[null,null,"Raw Adjusted MD","MW","Non-Coincident"]
[null,null,null,null,"Coincident"]
[null,null,"Raw Adjusted MD","MVA","Non-Coincident"]
[null,null,null,null,"Coincident"]
[null,null,"Date MD occurred",null,"Non-Coincident"]
[null,null,null,null,"Coincident"]
[null,null,"Half hour time period MD occurred",null,"Non-Coincident"]
[null,null,null,null,"Coincident"]
[null,null,"Winter/Summer Peaking",null,"Non-Coincident"]
[null,null,null,null,"Coincident"]
[null,null,"Adjustments - Embedded generation","MW","Non-Coincident"]
[null,null,null,null,"Coincident"]
[null,null,"Weather Corrected MD 10% POE","MW","Non-Coincident"]
[null,null,null,null,"Coincident"]
[null,null,"Weather Corrected MD 10% POE","MVA","Non-Coincident"]
[null,null,null,null,"Coincident"]
[null,null,"Weather Corrected MD 50% POE","MW","Non-Coincident"]
[null,null,null,null,"Coincident"]
[null,null,"Weather Corrected MD 50% POE","MVA","Non-Coincident"]
[null,null,null,null,"Coincident"]
[null,"<Enter connection point name>","Connection Point Rating","MVA","Non-Coincident"]
[null,null,null,null,"Coincident"]
[null,null,"Raw Adjusted MD","MW","Non-Coincident"]
[null,null,null,null,"Coincident"]
[null,null,"Raw Adjusted MD","MVA","Non-Coincident"]
[null,null,null,null,"Coincident"]
[null,null,"Date MD occurred",null,"Non-Coincident"]
[null,null,null,null,"Coincident"]
[null,null,"Half hour time period MD occurred",null,"Non-Coincident"]
[null,null,null,null,"Coincident"]
[null,null,"Winter/Summer Peaking",null,"Non-Coincident"]
[null,null,null,null,"Coincident"]
[null,null,"Adjustments - Embedded generation","MW","Non-Coincident"]
[null,null,null,null,"Coincident"]
[null,null,"Weather Corrected MD 10% POE","MW","Non-Coincident"]
[null,null,null,null,"Coincident"]
[null,null,"Weather Corrected MD 10% POE","MVA","Non-Coincident"]
[null,null,null,null,"Coincident"]
[null,null,"Weather Corrected MD 50% POE","MW","Non-Coincident"]
[null,null,null,null,"Coincident"]
[null,null,"Weather Corrected MD 50% POE","MVA","Non-Coincident"]
[null,null,null,null,"Coincident"]
[null,"<Enter connection point name>","Connection Point Rating","MVA","Non-Coincident"]
[null,null,null,null,"Coincident"]
[null,null,"Raw Adjusted MD","MW","Non-Coincident"]
[null,null,null,null,"Coincident"]
[null,null,"Raw Adjusted MD","MVA","Non-Coincident"]
[null,null,null,null,"Coincident"]
[null,null,"Date MD occurred",null,"Non-Coincident"]
[null,null,null,null,"Coincident"]
[null,null,"Half hour time period MD occurred",null,"Non-Coincident"]
[null,null,null,null,"Coincident"]
[null,null,"Winter/Summer Peaking",null,"Non-Coincident"]
[null,null,null,null,"Coincident"]
[null,null,"Adjustments - Embedded generation","MW","Non-Coincident"]
[null,null,null,null,"Coincident"]
[null,null,"Weather Corrected MD 10% POE","MW","Non-Coincident"]
[null,null,null,null,"Coincident"]
[null,null,"Weather Corrected MD 10% POE","MVA","Non-Coincident"]
[null,null,null,null,"Coincident"]
[null,null,"Weather Corrected MD 50% POE","MW","Non-Coincident"]
[null,null,null,null,"Coincident"]
[null,null,"Weather Corrected MD 50% POE","MVA","Non-Coincident"]
[null,null,null,null,"Coincident"]
[null,"<Enter connection point name>","Connection Point Rating","MVA","Non-Coincident"]
[null,null,null,null,"Coincident"]
[null,null,"Raw Adjusted MD","MW","Non-Coincident"]
[null,null,null,null,"Coincident"]
[null,null,"Raw Adjusted MD","MVA","Non-Coincident"]
[null,null,null,null,"Coincident"]
[null,null,"Date MD occurred",null,"Non-Coincident"]
[null,null,null,null,"Coincident"]
[null,null,"Half hour time period MD occurred",null,"Non-Coincident"]
[null,null,null,null,"Coincident"]
[null,null,"Winter/Summer Peaking",null,"Non-Coincident"]
[null,null,null,null,"Coincident"]
[null,null,"Adjustments - Embedded generation","MW","Non-Coincident"]
[null,null,null,null,"Coincident"]
[null,null,"Weather Corrected MD 10% POE","MW","Non-Coincident"]
[null,null,null,null,"Coincident"]
[null,null,"Weather Corrected MD 10% POE","MVA","Non-Coincident"]
[null,null,null,null,"Coincident"]
[null,null,"Weather Corrected MD 50% POE","MW","Non-Coincident"]
[null,null,null,null,"Coincident"]
[null,null,"Weather Corrected MD 50% POE","MVA","Non-Coincident"]
[null,null,null,null,"Coincident"]
[null,"<Enter connection point name>","Connection Point Rating","MVA","Non-Coincident"]
[null,null,null,null,"Coincident"]
[null,null,"Raw Adjusted MD","MW","Non-Coincident"]
[null,null,null,null,"Coincident"]
[null,null,"Raw Adjusted MD","MVA","Non-Coincident"]
[null,null,null,null,"Coincident"]
[null,null,"Date MD occurred",null,"Non-Coincident"]
[null,null,null,null,"Coincident"]
[null,null,"Half hour time period MD occurred",null,"Non-Coincident"]
[null,null,null,null,"Coincident"]
[null,null,"Winter/Summer Peaking",null,"Non-Coincident"]
[null,null,null,null,"Coincident"]
[null,null,"Adjustments - Embedded generation","MW","Non-Coincident"]
[null,null,null,null,"Coincident"]
[null,null,"Weather Corrected MD 10% POE","MW","Non-Coincident"]
[null,null,null,null,"Coincident"]
[null,null,"Weather Corrected MD 10% POE","MVA","Non-Coincident"]
[null,null,null,null,"Coincident"]
[null,null,"Weather Corrected MD 50% POE","MW","Non-Coincident"]
[null,null,null,null,"Coincident"]
[null,null,"Weather Corrected MD 50% POE","MVA","Non-Coincident"]
[null,null,null,null,"Coincident"]
[null,"<Enter connection point name>","Connection Point Rating","MVA","Non-Coincident"]
[null,null,null,null,"Coincident"]
[null,null,"Raw Adjusted MD","MW","Non-Coincident"]
[null,null,null,null,"Coincident"]
[null,null,"Raw Adjusted MD","MVA","Non-Coincident"]
[null,null,null,null,"Coincident"]
[null,null,"Date MD occurred",null,"Non-Coincident"]
[null,null,null,null,"Coincident"]
[null,null,"Half hour time period MD occurred",null,"Non-Coincident"]
[null,null,null,null,"Coincident"]
[null,null,"Winter/Summer Peaking",null,"Non-Coincident"]
[null,null,null,null,"Coincident"]
[null,null,"Adjustments - Embedded generation","MW","Non-Coincident"]
[null,null,null,null,"Coincident"]
[null,null,"Weather Corrected MD 10% POE","MW","Non-Coincident"]
[null,null,null,null,"Coincident"]
[null,null,"Weather Corrected MD 10% POE","MVA","Non-Coincident"]
[null,null,null,null,"Coincident"]
[null,null,"Weather Corrected MD 50% POE","MW","Non-Coincident"]
[null,null,null,null,"Coincident"]
[null,null,"Weather Corrected MD 50% POE","MVA","Non-Coincident"]
[null,null,null,null,"Coincident"]
[null,"<Enter connection point name>","Connection Point Rating","MVA","Non-Coincident"]
[null,null,null,null,"Coincident"]
[null,null,"Raw Adjusted MD","MW","Non-Coincident"]
[null,null,null,null,"Coincident"]
[null,null,"Raw Adjusted MD","MVA","Non-Coincident"]
[null,null,null,null,"Coincident"]
[null,null,"Date MD occurred",null,"Non-Coincident"]
[null,null,null,null,"Coincident"]
[null,null,"Half hour time period MD occurred",null,"Non-Coincident"]
[null,null,null,null,"Coincident"]
[null,null,"Winter/Summer Peaking",null,"Non-Coincident"]
[null,null,null,null,"Coincident"]
[null,null,"Adjustments - Embedded generation","MW","Non-Coincident"]
[null,null,null,null,"Coincident"]
[null,null,"Weather Corrected MD 10% POE","MW","Non-Coincident"]
[null,null,null,null,"Coincident"]
[null,null,"Weather Corrected MD 10% POE","MVA","Non-Coincident"]
[null,null,null,null,"Coincident"]
[null,null,"Weather Corrected MD 50% POE","MW","Non-Coincident"]
[null,null,null,null,"Coincident"]
[null,null,"Weather Corrected MD 50% POE","MVA","Non-Coincident"]
[null,null,null,null,"Coincident"]
[null,"<Enter connection point name>","Connection Point Rating","MVA","Non-Coincident"]
[null,null,null,null,"Coincident"]
[null,null,"Raw Adjusted MD","MW","Non-Coincident"]
[null,null,null,null,"Coincident"]
[null,null,"Raw Adjusted MD","MVA","Non-Coincident"]
[null,null,null,null,"Coincident"]
[null,null,"Date MD occurred",null,"Non-Coincident"]
[null,null,null,null,"Coincident"]
[null,null,"Half hour time period MD occurred",null,"Non-Coincident"]
[null,null,null,null,"Coincident"]
[null,null,"Winter/Summer Peaking",null,"Non-Coincident"]
[null,null,null,null,"Coincident"]
[null,null,"Adjustments - Embedded generation","MW","Non-Coincident"]
[null,null,null,null,"Coincident"]
[null,null,"Weather Corrected MD 10% POE","MW","Non-Coincident"]
[null,null,null,null,"Coincident"]
[null,null,"Weather Corrected MD 10% POE","MVA","Non-Coincident"]
[null,null,null,null,"Coincident"]
[null,null,"Weather Corrected MD 50% POE","MW","Non-Coincident"]
[null,null,null,null,"Coincident"]
[null,null,"Weather Corrected MD 50% POE","MVA","Non-Coincident"]
[null,null,null,null,"Coincident"]
[null,"<Enter connection point name>","Connection Point Rating","MVA","Non-Coincident"]
[null,null,null,null,"Coincident"]
[null,null,"Raw Adjusted MD","MW","Non-Coincident"]
[null,null,null,null,"Coincident"]
[null,null,"Raw Adjusted MD","MVA","Non-Coincident"]
[null,null,null,null,"Coincident"]
[null,null,"Date MD occurred",null,"Non-Coincident"]
[null,null,null,null,"Coincident"]
[null,null,"Half hour time period MD occurred",null,"Non-Coincident"]
[null,null,null,null,"Coincident"]
[null,null,"Winter/Summer Peaking",null,"Non-Coincident"]
[null,null,null,null,"Coincident"]
[null,null,"Adjustments - Embedded generation","MW","Non-Coincident"]
[null,null,null,null,"Coincident"]
[null,null,"Weather Corrected MD 10% POE","MW","Non-Coincident"]
[null,null,null,null,"Coincident"]
[null,null,"Weather Corrected MD 10% POE","MVA","Non-Coincident"]
[null,null,null,null,"Coincident"]
[null,null,"Weather Corrected MD 50% POE","MW","Non-Coincident"]
[null,null,null,null,"Coincident"]
[null,null,"Weather Corrected MD 50% POE","MVA","Non-Coincident"]
[null,null,null,null,"Coincident"]
[null,"<Enter connection point name>","Connection Point Rating","MVA","Non-Coincident"]
[null,null,null,null,"Coincident"]
[null,null,"Raw Adjusted MD","MW","Non-Coincident"]
[null,null,null,null,"Coincident"]
[null,null,"Raw Adjusted MD","MVA","Non-Coincident"]
[null,null,null,null,"Coincident"]
[null,null,"Date MD occurred",null,"Non-Coincident"]
[null,null,null,null,"Coincident"]
[null,null,"Half hour time period MD occurred",null,"Non-Coincident"]
[null,null,null,null,"Coincident"]
[null,null,"Winter/Summer Peaking",null,"Non-Coincident"]
[null,null,null,null,"Coincident"]
[null,null,"Adjustments - Embedded generation","MW","Non-Coincident"]
[null,null,null,null,"Coincident"]
[null,null,"Weather Corrected MD 10% POE","MW","Non-Coincident"]
[null,null,null,null,"Coincident"]
[null,null,"Weather Corrected MD 10% POE","MVA","Non-Coincident"]
[null,null,null,null,"Coincident"]
[null,null,"Weather Corrected MD 50% POE","MW","Non-Coincident"]
[null,null,null,null,"Coincident"]
[null,null,"Weather Corrected MD 50% POE","MVA","Non-Coincident"]
[null,null,null,null,"Coincident"]
[null,"<Enter connection point name>","Connection Point Rating","MVA","Non-Coincident"]
[null,null,null,null,"Coincident"]
[null,null,"Raw Adjusted MD","MW","Non-Coincident"]
[null,null,null,null,"Coincident"]
[null,null,"Raw Adjusted MD","MVA","Non-Coincident"]
[null,null,null,null,"Coincident"]
[null,null,"Date MD occurred",null,"Non-Coincident"]
[null,null,null,null,"Coincident"]
[null,null,"Half hour time period MD occurred",null,"Non-Coincident"]
[null,null,null,null,"Coincident"]
[null,null,"Winter/Summer Peaking",null,"Non-Coincident"]
[null,null,null,null,"Coincident"]
[null,null,"Adjustments - Embedded generation","MW","Non-Coincident"]
[null,null,null,null,"Coincident"]
[null,null,"Weather Corrected MD 10% POE","MW","Non-Coincident"]
[null,null,null,null,"Coincident"]
[null,null,"Weather Corrected MD 10% POE","MVA","Non-Coincident"]
[null,null,null,null,"Coincident"]
[null,null,"Weather Corrected MD 50% POE","MW","Non-Coincident"]
[null,null,null,null,"Coincident"]
[null,null,"Weather Corrected MD 50% POE","MVA","Non-Coincident"]
[null,null,null,null,"Coincident"]
[null,"<Enter connection point name>","Connection Point Rating","MVA","Non-Coincident"]
[null,null,null,null,"Coincident"]
[null,null,"Raw Adjusted MD","MW","Non-Coincident"]
[null,null,null,null,"Coincident"]
[null,null,"Raw Adjusted MD","MVA","Non-Coincident"]
[null,null,null,null,"Coincident"]
[null,null,"Date MD occurred",null,"Non-Coincident"]
[null,null,null,null,"Coincident"]
[null,null,"Half hour time period MD occurred",null,"Non-Coincident"]
[null,null,null,null,"Coincident"]
[null,null,"Winter/Summer Peaking",null,"Non-Coincident"]
[null,null,null,null,"Coincident"]
[null,null,"Adjustments - Embedded generation","MW","Non-Coincident"]
[null,null,null,null,"Coincident"]
[null,null,"Weather Corrected MD 10% POE","MW","Non-Coincident"]
[null,null,null,null,"Coincident"]
[null,null,"Weather Corrected MD 10% POE","MVA","Non-Coincident"]
[null,null,null,null,"Coincident"]
[null,null,"Weather Corrected MD 50% POE","MW","Non-Coincident"]
[null,null,null,null,"Coincident"]
[null,null,"Weather Corrected MD 50% POE","MVA","Non-Coincident"]
[null,null,null,null,"Coincident"]
[null,"<Enter connection point name>","Connection Point Rating","MVA","Non-Coincident"]
[null,null,null,null,"Coincident"]
[null,null,"Raw Adjusted MD","MW","Non-Coincident"]
[null,null,null,null,"Coincident"]
[null,null,"Raw Adjusted MD","MVA","Non-Coincident"]
[null,null,null,null,"Coincident"]
[null,null,"Date MD occurred",null,"Non-Coincident"]
[null,null,null,null,"Coincident"]
[null,null,"Half hour time period MD occurred",null,"Non-Coincident"]
[null,null,null,null,"Coincident"]
[null,null,"Winter/Summer Peaking",null,"Non-Coincident"]
[null,null,null,null,"Coincident"]
[null,null,"Adjustments - Embedded generation","MW","Non-Coincident"]
[null,null,null,null,"Coincident"]
[null,null,"Weather Corrected MD 10% POE","MW","Non-Coincident"]
[null,null,null,null,"Coincident"]
[null,null,"Weather Corrected MD 10% POE","MVA","Non-Coincident"]
[null,null,null,null,"Coincident"]
[null,null,"Weather Corrected MD 50% POE","MW","Non-Coincident"]
[null,null,null,null,"Coincident"]
[null,null,"Weather Corrected MD 50% POE","MVA","Non-Coincident"]
[null,null,null,null,"Coincident"]
[null,"<Enter connection point name>","Connection Point Rating","MVA","Non-Coincident"]
[null,null,null,null,"Coincident"]
[null,null,"Raw Adjusted MD","MW","Non-Coincident"]
[null,null,null,null,"Coincident"]
[null,null,"Raw Adjusted MD","MVA","Non-Coincident"]
[null,null,null,null,"Coincident"]
[null,null,"Date MD occurred",null,"Non-Coincident"]
[null,null,null,null,"Coincident"]
[null,null,"Half hour time period MD occurred",null,"Non-Coincident"]
[null,null,null,null,"Coincident"]
[null,null,"Winter/Summer Peaking",null,"Non-Coincident"]
[null,null,null,null,"Coincident"]
[null,null,"Adjustments - Embedded generation","MW","Non-Coincident"]
[null,null,null,null,"Coincident"]
[null,null,"Weather Corrected MD 10% POE","MW","Non-Coincident"]
[null,null,null,null,"Coincident"]
[null,null,"Weather Corrected MD 10% POE","MVA","Non-Coincident"]
[null,null,null,null,"Coincident"]
[null,null,"Weather Corrected MD 50% POE","MW","Non-Coincident"]
[null,null,null,null,"Coincident"]
[null,null,"Weather Corrected MD 50% POE","MVA","Non-Coincident"]
[null,null,null,null,"Coincident"]
[null,"<Enter connection point name>","Connection Point Rating","MVA","Non-Coincident"]
[null,null,null,null,"Coincident"]
[null,null,"Raw Adjusted MD","MW","Non-Coincident"]
[null,null,null,null,"Coincident"]
[null,null,"Raw Adjusted MD","MVA","Non-Coincident"]
[null,null,null,null,"Coincident"]
[null,null,"Date MD occurred",null,"Non-Coincident"]
[null,null,null,null,"Coincident"]
[null,null,"Half hour time period MD occurred",null,"Non-Coincident"]
[null,null,null,null,"Coincident"]
[null,null,"Winter/Summer Peaking",null,"Non-Coincident"]
[null,null,null,null,"Coincident"]
[null,null,"Adjustments - Embedded generation","MW","Non-Coincident"]
[null,null,null,null,"Coincident"]
[null,null,"Weather Corrected MD 10% POE","MW","Non-Coincident"]
[null,null,null,null,"Coincident"]
[null,null,"Weather Corrected MD 10% POE","MVA","Non-Coincident"]
[null,null,null,null,"Coincident"]
[null,null,"Weather Corrected MD 50% POE","MW","Non-Coincident"]
[null,null,null,null,"Coincident"]
[null,null,"Weather Corrected MD 50% POE","MVA","Non-Coincident"]
[null,null,null,null,"Coincident"]
[null,"<Enter connection point name>","Connection Point Rating","MVA","Non-Coincident"]
[null,null,null,null,"Coincident"]
[null,null,"Raw Adjusted MD","MW","Non-Coincident"]
[null,null,null,null,"Coincident"]
[null,null,"Raw Adjusted MD","MVA","Non-Coincident"]
[null,null,null,null,"Coincident"]
[null,null,"Date MD occurred",null,"Non-Coincident"]
[null,null,null,null,"Coincident"]
[null,null,"Half hour time period MD occurred",null,"Non-Coincident"]
[null,null,null,null,"Coincident"]
[null,null,"Winter/Summer Peaking",null,"Non-Coincident"]
[null,null,null,null,"Coincident"]
[null,null,"Adjustments - Embedded generation","MW","Non-Coincident"]
[null,null,null,null,"Coincident"]
[null,null,"Weather Corrected MD 10% POE","MW","Non-Coincident"]
[null,null,null,null,"Coincident"]
[null,null,"Weather Corrected MD 10% POE","MVA","Non-Coincident"]
[null,null,null,null,"Coincident"]
[null,null,"Weather Corrected MD 50% POE","MW","Non-Coincident"]
[null,null,null,null,"Coincident"]
[null,null,"Weather Corrected MD 50% POE","MVA","Non-Coincident"]
[null,null,null,null,"Coincident"]
[null,"<Enter connection point name>","Connection Point Rating","MVA","Non-Coincident"]
[null,null,null,null,"Coincident"]
[null,null,"Raw Adjusted MD","MW","Non-Coincident"]
[null,null,null,null,"Coincident"]
[null,null,"Raw Adjusted MD","MVA","Non-Coincident"]
[null,null,null,null,"Coincident"]
[null,null,"Date MD occurred",null,"Non-Coincident"]
[null,null,null,null,"Coincident"]
[null,null,"Half hour time period MD occurred",null,"Non-Coincident"]
[null,null,null,null,"Coincident"]
[null,null,"Winter/Summer Peaking",null,"Non-Coincident"]
[null,null,null,null,"Coincident"]
[null,null,"Adjustments - Embedded generation","MW","Non-Coincident"]
[null,null,null,null,"Coincident"]
[null,null,"Weather Corrected MD 10% POE","MW","Non-Coincident"]
[null,null,null,null,"Coincident"]
[null,null,"Weather Corrected MD 10% POE","MVA","Non-Coincident"]
[null,null,null,null,"Coincident"]
[null,null,"Weather Corrected MD 50% POE","MW","Non-Coincident"]
[null,null,null,null,"Coincident"]
[null,null,"Weather Corrected MD 50% POE","MVA","Non-Coincident"]
[null,null,null,null,"Coincident"]
[null,"<Enter connection point name>","Connection Point Rating","MVA","Non-Coincident"]
[null,null,null,null,"Coincident"]
[null,null,"Raw Adjusted MD","MW","Non-Coincident"]
[null,null,null,null,"Coincident"]
[null,null,"Raw Adjusted MD","MVA","Non-Coincident"]
[null,null,null,null,"Coincident"]
[null,null,"Date MD occurred",null,"Non-Coincident"]
[null,null,null,null,"Coincident"]
[null,null,"Half hour time period MD occurred",null,"Non-Coincident"]
[null,null,null,null,"Coincident"]
[null,null,"Winter/Summer Peaking",null,"Non-Coincident"]
[null,null,null,null,"Coincident"]
[null,null,"Adjustments - Embedded generation","MW","Non-Coincident"]
[null,null,null,null,"Coincident"]
[null,null,"Weather Corrected MD 10% POE","MW","Non-Coincident"]
[null,null,null,null,"Coincident"]
[null,null,"Weather Corrected MD 10% POE","MVA","Non-Coincident"]
[null,null,null,null,"Coincident"]
[null,null,"Weather Corrected MD 50% POE","MW","Non-Coincident"]
[null,null,null,null,"Coincident"]
[null,null,"Weather Corrected MD 50% POE","MVA","Non-Coincident"]
[null,null,null,null,"Coincident"]
[null,"<Enter connection point name>","Connection Point Rating","MVA","Non-Coincident"]
[null,null,null,null,"Coincident"]
[null,null,"Raw Adjusted MD","MW","Non-Coincident"]
[null,null,null,null,"Coincident"]
[null,null,"Raw Adjusted MD","MVA","Non-Coincident"]
[null,null,null,null,"Coincident"]
[null,null,"Date MD occurred",null,"Non-Coincident"]
[null,null,null,null,"Coincident"]
[null,null,"Half hour time period MD occurred",null,"Non-Coincident"]
[null,null,null,null,"Coincident"]
[null,null,"Winter/Summer Peaking",null,"Non-Coincident"]
[null,null,null,null,"Coincident"]
[null,null,"Adjustments - Embedded generation","MW","Non-Coincident"]
[null,null,null,null,"Coincident"]
[null,null,"Weather Corrected MD 10% POE","MW","Non-Coincident"]
[null,null,null,null,"Coincident"]
[null,null,"Weather Corrected MD 10% POE","MVA","Non-Coincident"]
[null,null,null,null,"Coincident"]
[null,null,"Weather Corrected MD 50% POE","MW","Non-Coincident"]
[null,null,null,null,"Coincident"]
[null,null,"Weather Corrected MD 50% POE","MVA","Non-Coincident"]
[null,null,null,null,"Coincident"]
[null,"<Enter connection point name>","Connection Point Rating","MVA","Non-Coincident"]
[null,null,null,null,"Coincident"]
[null,null,"Raw Adjusted MD","MW","Non-Coincident"]
[null,null,null,null,"Coincident"]
[null,null,"Raw Adjusted MD","MVA","Non-Coincident"]
[null,null,null,null,"Coincident"]
[null,null,"Date MD occurred",null,"Non-Coincident"]
[null,null,null,null,"Coincident"]
[null,null,"Half hour time period MD occurred",null,"Non-Coincident"]
[null,null,null,null,"Coincident"]
[null,null,"Winter/Summer Peaking",null,"Non-Coincident"]
[null,null,null,null,"Coincident"]
[null,null,"Adjustments - Embedded generation","MW","Non-Coincident"]
[null,null,null,null,"Coincident"]
[null,null,"Weather Corrected MD 10% POE","MW","Non-Coincident"]
[null,null,null,null,"Coincident"]
[null,null,"Weather Corrected MD 10% POE","MVA","Non-Coincident"]
[null,null,null,null,"Coincident"]
[null,null,"Weather Corrected MD 50% POE","MW","Non-Coincident"]
[null,null,null,null,"Coincident"]
[null,null,"Weather Corrected MD 50% POE","MVA","Non-Coincident"]
[null,null,null,null,"Coincident"]
[null,"<Enter connection point name>","Connection Point Rating","MVA","Non-Coincident"]
[null,null,null,null,"Coincident"]
[null,null,"Raw Adjusted MD","MW","Non-Coincident"]
[null,null,null,null,"Coincident"]
[null,null,"Raw Adjusted MD","MVA","Non-Coincident"]
[null,null,null,null,"Coincident"]
[null,null,"Date MD occurred",null,"Non-Coincident"]
[null,null,null,null,"Coincident"]
[null,null,"Half hour time period MD occurred",null,"Non-Coincident"]
[null,null,null,null,"Coincident"]
[null,null,"Winter/Summer Peaking",null,"Non-Coincident"]
[null,null,null,null,"Coincident"]
[null,null,"Adjustments - Embedded generation","MW","Non-Coincident"]
[null,null,null,null,"Coincident"]
[null,null,"Weather Corrected MD 10% POE","MW","Non-Coincident"]
[null,null,null,null,"Coincident"]
[null,null,"Weather Corrected MD 10% POE","MVA","Non-Coincident"]
[null,null,null,null,"Coincident"]
[null,null,"Weather Corrected MD 50% POE","MW","Non-Coincident"]
[null,null,null,null,"Coincident"]
[null,null,"Weather Corrected MD 50% POE","MVA","Non-Coincident"]
[null,null,null,null,"Coincident"]
[null,"<Enter connection point name>","Connection Point Rating","MVA","Non-Coincident"]
[null,null,null,null,"Coincident"]
[null,null,"Raw Adjusted MD","MW","Non-Coincident"]
[null,null,null,null,"Coincident"]
[null,null,"Raw Adjusted MD","MVA","Non-Coincident"]
[null,null,null,null,"Coincident"]
[null,null,"Date MD occurred",null,"Non-Coincident"]
[null,null,null,null,"Coincident"]
[null,null,"Half hour time period MD occurred",null,"Non-Coincident"]
[null,null,null,null,"Coincident"]
[null,null,"Winter/Summer Peaking",null,"Non-Coincident"]
[null,null,null,null,"Coincident"]
[null,null,"Adjustments - Embedded generation","MW","Non-Coincident"]
[null,null,null,null,"Coincident"]
[null,null,"Weather Corrected MD 10% POE","MW","Non-Coincident"]
[null,null,null,null,"Coincident"]
[null,null,"Weather Corrected MD 10% POE","MVA","Non-Coincident"]
[null,null,null,null,"Coincident"]
[null,null,"Weather Corrected MD 50% POE","MW","Non-Coincident"]
[null,null,null,null,"Coincident"]
[null,null,"Weather Corrected MD 50% POE","MVA","Non-Coincident"]
[null,null,null,null,"Coincident"]
[null,"<Enter connection point name>","Connection Point Rating","MVA","Non-Coincident"]
[null,null,null,null,"Coincident"]
[null,null,"Raw Adjusted MD","MW","Non-Coincident"]
[null,null,null,null,"Coincident"]
[null,null,"Raw Adjusted MD","MVA","Non-Coincident"]
[null,null,null,null,"Coincident"]
[null,null,"Date MD occurred",null,"Non-Coincident"]
[null,null,null,null,"Coincident"]
[null,null,"Half hour time period MD occurred",null,"Non-Coincident"]
[null,null,null,null,"Coincident"]
[null,null,"Winter/Summer Peaking",null,"Non-Coincident"]
[null,null,null,null,"Coincident"]
[null,null,"Adjustments - Embedded generation","MW","Non-Coincident"]
[null,null,null,null,"Coincident"]
[null,null,"Weather Corrected MD 10% POE","MW","Non-Coincident"]
[null,null,null,null,"Coincident"]
[null,null,"Weather Corrected MD 10% POE","MVA","Non-Coincident"]
[null,null,null,null,"Coincident"]
[null,null,"Weather Corrected MD 50% POE","MW","Non-Coincident"]
[null,null,null,null,"Coincident"]
[null,null,"Weather Corrected MD 50% POE","MVA","Non-Coincident"]
[null,null,null,null,"Coincident"]
[null,"<Enter connection point name>","Connection Point Rating","MVA","Non-Coincident"]
[null,null,null,null,"Coincident"]
[null,null,"Raw Adjusted MD","MW","Non-Coincident"]
[null,null,null,null,"Coincident"]
[null,null,"Raw Adjusted MD","MVA","Non-Coincident"]
[null,null,null,null,"Coincident"]
[null,null,"Date MD occurred",null,"Non-Coincident"]
[null,null,null,null,"Coincident"]
[null,null,"Half hour time period MD occurred",null,"Non-Coincident"]
[null,null,null,null,"Coincident"]
[null,null,"Winter/Summer Peaking",null,"Non-Coincident"]
[null,null,null,null,"Coincident"]
[null,null,"Adjustments - Embedded generation","MW","Non-Coincident"]
[null,null,null,null,"Coincident"]
[null,null,"Weather Corrected MD 10% POE","MW","Non-Coincident"]
[null,null,null,null,"Coincident"]
[null,null,"Weather Corrected MD 10% POE","MVA","Non-Coincident"]
[null,null,null,null,"Coincident"]
[null,null,"Weather Corrected MD 50% POE","MW","Non-Coincident"]
[null,null,null,null,"Coincident"]
[null,null,"Weather Corrected MD 50% POE","MVA","Non-Coincident"]
[null,null,null,null,"Coincident"]
[null,"<Enter connection point name>","Connection Point Rating","MVA","Non-Coincident"]
[null,null,null,null,"Coincident"]
[null,null,"Raw Adjusted MD","MW","Non-Coincident"]
[null,null,null,null,"Coincident"]
[null,null,"Raw Adjusted MD","MVA","Non-Coincident"]
[null,null,null,null,"Coincident"]
[null,null,"Date MD occurred",null,"Non-Coincident"]
[null,null,null,null,"Coincident"]
[null,null,"Half hour time period MD occurred",null,"Non-Coincident"]
[null,null,null,null,"Coincident"]
[null,null,"Winter/Summer Peaking",null,"Non-Coincident"]
[null,null,null,null,"Coincident"]
[null,null,"Adjustments - Embedded generation","MW","Non-Coincident"]
[null,null,null,null,"Coincident"]
[null,null,"Weather Corrected MD 10% POE","MW","Non-Coincident"]
[null,null,null,null,"Coincident"]
[null,null,"Weather Corrected MD 10% POE","MVA","Non-Coincident"]
[null,null,null,null,"Coincident"]
[null,null,"Weather Corrected MD 50% POE","MW","Non-Coincident"]
[null,null,null,null,"Coincident"]
[null,null,"Weather Corrected MD 50% POE","MVA","Non-Coincident"]
[null,null,null,null,"Coincident"]
[null,"<Enter connection point name>","Connection Point Rating","MVA","Non-Coincident"]
[null,null,null,null,"Coincident"]
[null,null,"Raw Adjusted MD","MW","Non-Coincident"]
[null,null,null,null,"Coincident"]
[null,null,"Raw Adjusted MD","MVA","Non-Coincident"]
[null,null,null,null,"Coincident"]
[null,null,"Date MD occurred",null,"Non-Coincident"]
[null,null,null,null,"Coincident"]
[null,null,"Half hour time period MD occurred",null,"Non-Coincident"]
[null,null,null,null,"Coincident"]
[null,null,"Winter/Summer Peaking",null,"Non-Coincident"]
[null,null,null,null,"Coincident"]
[null,null,"Adjustments - Embedded generation","MW","Non-Coincident"]
[null,null,null,null,"Coincident"]
[null,null,"Weather Corrected MD 10% POE","MW","Non-Coincident"]
[null,null,null,null,"Coincident"]
[null,null,"Weather Corrected MD 10% POE","MVA","Non-Coincident"]
[null,null,null,null,"Coincident"]
[null,null,"Weather Corrected MD 50% POE","MW","Non-Coincident"]
[null,null,null,null,"Coincident"]
[null,null,"Weather Corrected MD 50% POE","MVA","Non-Coincident"]
[null,null,null,null,"Coincident"]
[null,"<Enter connection point name>","Connection Point Rating","MVA","Non-Coincident"]
[null,null,null,null,"Coincident"]
[null,null,"Raw Adjusted MD","MW","Non-Coincident"]
[null,null,null,null,"Coincident"]
[null,null,"Raw Adjusted MD","MVA","Non-Coincident"]
[null,null,null,null,"Coincident"]
[null,null,"Date MD occurred",null,"Non-Coincident"]
[null,null,null,null,"Coincident"]
[null,null,"Half hour time period MD occurred",null,"Non-Coincident"]
[null,null,null,null,"Coincident"]
[null,null,"Winter/Summer Peaking",null,"Non-Coincident"]
[null,null,null,null,"Coincident"]
[null,null,"Adjustments - Embedded generation","MW","Non-Coincident"]
[null,null,null,null,"Coincident"]
[null,null,"Weather Corrected MD 10% POE","MW","Non-Coincident"]
[null,null,null,null,"Coincident"]
[null,null,"Weather Corrected MD 10% POE","MVA","Non-Coincident"]
[null,null,null,null,"Coincident"]
[null,null,"Weather Corrected MD 50% POE","MW","Non-Coincident"]
[null,null,null,null,"Coincident"]
[null,null,"Weather Corrected MD 50% POE","MVA","Non-Coincident"]
[null,null,null,null,"Coincident"]
[null,"<Enter connection point name>","Connection Point Rating","MVA","Non-Coincident"]
[null,null,null,null,"Coincident"]
[null,null,"Raw Adjusted MD","MW","Non-Coincident"]
[null,null,null,null,"Coincident"]
[null,null,"Raw Adjusted MD","MVA","Non-Coincident"]
[null,null,null,null,"Coincident"]
[null,null,"Date MD occurred",null,"Non-Coincident"]
[null,null,null,null,"Coincident"]
[null,null,"Half hour time period MD occurred",null,"Non-Coincident"]
[null,null,null,null,"Coincident"]
[null,null,"Winter/Summer Peaking",null,"Non-Coincident"]
[null,null,null,null,"Coincident"]
[null,null,"Adjustments - Embedded generation","MW","Non-Coincident"]
[null,null,null,null,"Coincident"]
[null,null,"Weather Corrected MD 10% POE","MW","Non-Coincident"]
[null,null,null,null,"Coincident"]
[null,null,"Weather Corrected MD 10% POE","MVA","Non-Coincident"]
[null,null,null,null,"Coincident"]
[null,null,"Weather Corrected MD 50% POE","MW","Non-Coincident"]
[null,null,null,null,"Coincident"]
[null,null,"Weather Corrected MD 50% POE","MVA","Non-Coincident"]
[null,null,null,null,"Coincident"]
[null,"<Enter connection point name>","Connection Point Rating","MVA","Non-Coincident"]
[null,null,null,null,"Coincident"]
[null,null,"Raw Adjusted MD","MW","Non-Coincident"]
[null,null,null,null,"Coincident"]
[null,null,"Raw Adjusted MD","MVA","Non-Coincident"]
[null,null,null,null,"Coincident"]
[null,null,"Date MD occurred",null,"Non-Coincident"]
[null,null,null,null,"Coincident"]
[null,null,"Half hour time period MD occurred",null,"Non-Coincident"]
[null,null,null,null,"Coincident"]
[null,null,"Winter/Summer Peaking",null,"Non-Coincident"]
[null,null,null,null,"Coincident"]
[null,null,"Adjustments - Embedded generation","MW","Non-Coincident"]
[null,null,null,null,"Coincident"]
[null,null,"Weather Corrected MD 10% POE","MW","Non-Coincident"]
[null,null,null,null,"Coincident"]
[null,null,"Weather Corrected MD 10% POE","MVA","Non-Coincident"]
[null,null,null,null,"Coincident"]
[null,null,"Weather Corrected MD 50% POE","MW","Non-Coincident"]
[null,null,null,null,"Coincident"]
[null,null,"Weather Corrected MD 50% POE","MVA","Non-Coincident"]
[null,null,null,null,"Coincident"]
[null,"<Enter connection point name>","Connection Point Rating","MVA","Non-Coincident"]
[null,null,null,null,"Coincident"]
[null,null,"Raw Adjusted MD","MW","Non-Coincident"]
[null,null,null,null,"Coincident"]
[null,null,"Raw Adjusted MD","MVA","Non-Coincident"]
[null,null,null,null,"Coincident"]
[null,null,"Date MD occurred",null,"Non-Coincident"]
[null,null,null,null,"Coincident"]
[null,null,"Half hour time period MD occurred",null,"Non-Coincident"]
[null,null,null,null,"Coincident"]
[null,null,"Winter/Summer Peaking",null,"Non-Coincident"]
[null,null,null,null,"Coincident"]
[null,null,"Adjustments - Embedded generation","MW","Non-Coincident"]
[null,null,null,null,"Coincident"]
[null,null,"Weather Corrected MD 10% POE","MW","Non-Coincident"]
[null,null,null,null,"Coincident"]
[null,null,"Weather Corrected MD 10% POE","MVA","Non-Coincident"]
[null,null,null,null,"Coincident"]
[null,null,"Weather Corrected MD 50% POE","MW","Non-Coincident"]
[null,null,null,null,"Coincident"]
[null,null,"Weather Corrected MD 50% POE","MVA","Non-Coincident"]
[null,null,null,null,"Coincident"]
[null,"<Enter connection point name>","Connection Point Rating","MVA","Non-Coincident"]
[null,null,null,null,"Coincident"]
[null,null,"Raw Adjusted MD","MW","Non-Coincident"]
[null,null,null,null,"Coincident"]
[null,null,"Raw Adjusted MD","MVA","Non-Coincident"]
[null,null,null,null,"Coincident"]
[null,null,"Date MD occurred",null,"Non-Coincident"]
[null,null,null,null,"Coincident"]
[null,null,"Half hour time period MD occurred",null,"Non-Coincident"]
[null,null,null,null,"Coincident"]
[null,null,"Winter/Summer Peaking",null,"Non-Coincident"]
[null,null,null,null,"Coincident"]
[null,null,"Adjustments - Embedded generation","MW","Non-Coincident"]
[null,null,null,null,"Coincident"]
[null,null,"Weather Corrected MD 10% POE","MW","Non-Coincident"]
[null,null,null,null,"Coincident"]
[null,null,"Weather Corrected MD 10% POE","MVA","Non-Coincident"]
[null,null,null,null,"Coincident"]
[null,null,"Weather Corrected MD 50% POE","MW","Non-Coincident"]
[null,null,null,null,"Coincident"]
[null,null,"Weather Corrected MD 50% POE","MVA","Non-Coincident"]
[null,null,null,null,"Coincident"]
[null,"<Enter connection point name>","Connection Point Rating","MVA","Non-Coincident"]
[null,null,null,null,"Coincident"]
[null,null,"Raw Adjusted MD","MW","Non-Coincident"]
[null,null,null,null,"Coincident"]
[null,null,"Raw Adjusted MD","MVA","Non-Coincident"]
[null,null,null,null,"Coincident"]
[null,null,"Date MD occurred",null,"Non-Coincident"]
[null,null,null,null,"Coincident"]
[null,null,"Half hour time period MD occurred",null,"Non-Coincident"]
[null,null,null,null,"Coincident"]
[null,null,"Winter/Summer Peaking",null,"Non-Coincident"]
[null,null,null,null,"Coincident"]
[null,null,"Adjustments - Embedded generation","MW","Non-Coincident"]
[null,null,null,null,"Coincident"]
[null,null,"Weather Corrected MD 10% POE","MW","Non-Coincident"]
[null,null,null,null,"Coincident"]
[null,null,"Weather Corrected MD 10% POE","MVA","Non-Coincident"]
[null,null,null,null,"Coincident"]
[null,null,"Weather Corrected MD 50% POE","MW","Non-Coincident"]
[null,null,null,null,"Coincident"]
[null,null,"Weather Corrected MD 50% POE","MVA","Non-Coincident"]
[null,null,null,null,"Coincident"]
[null,"<Enter connection point name>","Connection Point Rating","MVA","Non-Coincident"]
[null,null,null,null,"Coincident"]
[null,null,"Raw Adjusted MD","MW","Non-Coincident"]
[null,null,null,null,"Coincident"]
[null,null,"Raw Adjusted MD","MVA","Non-Coincident"]
[null,null,null,null,"Coincident"]
[null,null,"Date MD occurred",null,"Non-Coincident"]
[null,null,null,null,"Coincident"]
[null,null,"Half hour time period MD occurred",null,"Non-Coincident"]
[null,null,null,null,"Coincident"]
[null,null,"Winter/Summer Peaking",null,"Non-Coincident"]
[null,null,null,null,"Coincident"]
[null,null,"Adjustments - Embedded generation","MW","Non-Coincident"]
[null,null,null,null,"Coincident"]
[null,null,"Weather Corrected MD 10% POE","MW","Non-Coincident"]
[null,null,null,null,"Coincident"]
[null,null,"Weather Corrected MD 10% POE","MVA","Non-Coincident"]
[null,null,null,null,"Coincident"]
[null,null,"Weather Corrected MD 50% POE","MW","Non-Coincident"]
[null,null,null,null,"Coincident"]
[null,null,"Weather Corrected MD 50% POE","MVA","Non-Coincident"]
[null,null,null,null,"Coincident"]
[null,"<Enter connection point name>","Connection Point Rating","MVA","Non-Coincident"]
[null,null,null,null,"Coincident"]
[null,null,"Raw Adjusted MD","MW","Non-Coincident"]
[null,null,null,null,"Coincident"]
[null,null,"Raw Adjusted MD","MVA","Non-Coincident"]
[null,null,null,null,"Coincident"]
[null,null,"Date MD occurred",null,"Non-Coincident"]
[null,null,null,null,"Coincident"]
[null,null,"Half hour time period MD occurred",null,"Non-Coincident"]
[null,null,null,null,"Coincident"]
[null,null,"Winter/Summer Peaking",null,"Non-Coincident"]
[null,null,null,null,"Coincident"]
[null,null,"Adjustments - Embedded generation","MW","Non-Coincident"]
[null,null,null,null,"Coincident"]
[null,null,"Weather Corrected MD 10% POE","MW","Non-Coincident"]
[null,null,null,null,"Coincident"]
[null,null,"Weather Corrected MD 10% POE","MVA","Non-Coincident"]
[null,null,null,null,"Coincident"]
[null,null,"Weather Corrected MD 50% POE","MW","Non-Coincident"]
[null,null,null,null,"Coincident"]
[null,null,"Weather Corrected MD 50% POE","MVA","Non-Coincident"]
[null,null,null,null,"Coincident"]
[null,"<Enter connection point name>","Connection Point Rating","MVA","Non-Coincident"]
[null,null,null,null,"Coincident"]
[null,null,"Raw Adjusted MD","MW","Non-Coincident"]
[null,null,null,null,"Coincident"]
[null,null,"Raw Adjusted MD","MVA","Non-Coincident"]
[null,null,null,null,"Coincident"]
[null,null,"Date MD occurred",null,"Non-Coincident"]
[null,null,null,null,"Coincident"]
[null,null,"Half hour time period MD occurred",null,"Non-Coincident"]
[null,null,null,null,"Coincident"]
[null,null,"Winter/Summer Peaking",null,"Non-Coincident"]
[null,null,null,null,"Coincident"]
[null,null,"Adjustments - Embedded generation","MW","Non-Coincident"]
[null,null,null,null,"Coincident"]
[null,null,"Weather Corrected MD 10% POE","MW","Non-Coincident"]
[null,null,null,null,"Coincident"]
[null,null,"Weather Corrected MD 10% POE","MVA","Non-Coincident"]
[null,null,null,null,"Coincident"]
[null,null,"Weather Corrected MD 50% POE","MW","Non-Coincident"]
[null,null,null,null,"Coincident"]
[null,null,"Weather Corrected MD 50% POE","MVA","Non-Coincident"]
[null,null,null,null,"Coincident"]
[null,"<Enter connection point name>","Connection Point Rating","MVA","Non-Coincident"]
[null,null,null,null,"Coincident"]
[null,null,"Raw Adjusted MD","MW","Non-Coincident"]
[null,null,null,null,"Coincident"]
[null,null,"Raw Adjusted MD","MVA","Non-Coincident"]
[null,null,null,null,"Coincident"]
[null,null,"Date MD occurred",null,"Non-Coincident"]
[null,null,null,null,"Coincident"]
[null,null,"Half hour time period MD occurred",null,"Non-Coincident"]
[null,null,null,null,"Coincident"]
[null,null,"Winter/Summer Peaking",null,"Non-Coincident"]
[null,null,null,null,"Coincident"]
[null,null,"Adjustments - Embedded generation","MW","Non-Coincident"]
[null,null,null,null,"Coincident"]
[null,null,"Weather Corrected MD 10% POE","MW","Non-Coincident"]
[null,null,null,null,"Coincident"]
[null,null,"Weather Corrected MD 10% POE","MVA","Non-Coincident"]
[null,null,null,null,"Coincident"]
[null,null,"Weather Corrected MD 50% POE","MW","Non-Coincident"]
[null,null,null,null,"Coincident"]
[null,null,"Weather Corrected MD 50% POE","MVA","Non-Coincident"]
[null,null,null,null,"Coincident"]
[null,"<Enter connection point name>","Connection Point Rating","MVA","Non-Coincident"]
[null,null,null,null,"Coincident"]
[null,null,"Raw Adjusted MD","MW","Non-Coincident"]
[null,null,null,null,"Coincident"]
[null,null,"Raw Adjusted MD","MVA","Non-Coincident"]
[null,null,null,null,"Coincident"]
[null,null,"Date MD occurred",null,"Non-Coincident"]
[null,null,null,null,"Coincident"]
[null,null,"Half hour time period MD occurred",null,"Non-Coincident"]
[null,null,null,null,"Coincident"]
[null,null,"Winter/Summer Peaking",null,"Non-Coincident"]
[null,null,null,null,"Coincident"]
[null,null,"Adjustments - Embedded generation","MW","Non-Coincident"]
[null,null,null,null,"Coincident"]
[null,null,"Weather Corrected MD 10% POE","MW","Non-Coincident"]
[null,null,null,null,"Coincident"]
[null,null,"Weather Corrected MD 10% POE","MVA","Non-Coincident"]
[null,null,null,null,"Coincident"]
[null,null,"Weather Corrected MD 50% POE","MW","Non-Coincident"]
[null,null,null,null,"Coincident"]
[null,null,"Weather Corrected MD 50% POE","MVA","Non-Coincident"]
[null,null,null,null,"Coincident"]
[null,"<Enter connection point name>","Connection Point Rating","MVA","Non-Coincident"]
[null,null,null,null,"Coincident"]
[null,null,"Raw Adjusted MD","MW","Non-Coincident"]
[null,null,null,null,"Coincident"]
[null,null,"Raw Adjusted MD","MVA","Non-Coincident"]
[null,null,null,null,"Coincident"]
[null,null,"Date MD occurred",null,"Non-Coincident"]
[null,null,null,null,"Coincident"]
[null,null,"Half hour time period MD occurred",null,"Non-Coincident"]
[null,null,null,null,"Coincident"]
[null,null,"Winter/Summer Peaking",null,"Non-Coincident"]
[null,null,null,null,"Coincident"]
[null,null,"Adjustments - Embedded generation","MW","Non-Coincident"]
[null,null,null,null,"Coincident"]
[null,null,"Weather Corrected MD 10% POE","MW","Non-Coincident"]
[null,null,null,null,"Coincident"]
[null,null,"Weather Corrected MD 10% POE","MVA","Non-Coincident"]
[null,null,null,null,"Coincident"]
[null,null,"Weather Corrected MD 50% POE","MW","Non-Coincident"]
[null,null,null,null,"Coincident"]
[null,null,"Weather Corrected MD 50% POE","MVA","Non-Coincident"]
[null,null,null,null,"Coincident"]
[null,"<Enter connection point name>","Connection Point Rating","MVA","Non-Coincident"]
[null,null,null,null,"Coincident"]
[null,null,"Raw Adjusted MD","MW","Non-Coincident"]
[null,null,null,null,"Coincident"]
[null,null,"Raw Adjusted MD","MVA","Non-Coincident"]
[null,null,null,null,"Coincident"]
[null,null,"Date MD occurred",null,"Non-Coincident"]
[null,null,null,null,"Coincident"]
[null,null,"Half hour time period MD occurred",null,"Non-Coincident"]
[null,null,null,null,"Coincident"]
[null,null,"Winter/Summer Peaking",null,"Non-Coincident"]
[null,null,null,null,"Coincident"]
[null,null,"Adjustments - Embedded generation","MW","Non-Coincident"]
[null,null,null,null,"Coincident"]
[null,null,"Weather Corrected MD 10% POE","MW","Non-Coincident"]
[null,null,null,null,"Coincident"]
[null,null,"Weather Corrected MD 10% POE","MVA","Non-Coincident"]
[null,null,null,null,"Coincident"]
[null,null,"Weather Corrected MD 50% POE","MW","Non-Coincident"]
[null,null,null,null,"Coincident"]
[null,null,"Weather Corrected MD 50% POE","MVA","Non-Coincident"]
[null,null,null,null,"Coincident"]
[null,"<Enter connection point name>","Connection Point Rating","MVA","Non-Coincident"]
[null,null,null,null,"Coincident"]
[null,null,"Raw Adjusted MD","MW","Non-Coincident"]
[null,null,null,null,"Coincident"]
[null,null,"Raw Adjusted MD","MVA","Non-Coincident"]
[null,null,null,null,"Coincident"]
[null,null,"Date MD occurred",null,"Non-Coincident"]
[null,null,null,null,"Coincident"]
[null,null,"Half hour time period MD occurred",null,"Non-Coincident"]
[null,null,null,null,"Coincident"]
[null,null,"Winter/Summer Peaking",null,"Non-Coincident"]
[null,null,null,null,"Coincident"]
[null,null,"Adjustments - Embedded generation","MW","Non-Coincident"]
[null,null,null,null,"Coincident"]
[null,null,"Weather Corrected MD 10% POE","MW","Non-Coincident"]
[null,null,null,null,"Coincident"]
[null,null,"Weather Corrected MD 10% POE","MVA","Non-Coincident"]
[null,null,null,null,"Coincident"]
[null,null,"Weather Corrected MD 50% POE","MW","Non-Coincident"]
[null,null,null,null,"Coincident"]
[null,null,"Weather Corrected MD 50% POE","MVA","Non-Coincident"]
[null,null,null,null,"Coincident"]
[null,"<Enter connection point name>","Connection Point Rating","MVA","Non-Coincident"]
[null,null,null,null,"Coincident"]
[null,null,"Raw Adjusted MD","MW","Non-Coincident"]
[null,null,null,null,"Coincident"]
[null,null,"Raw Adjusted MD","MVA","Non-Coincident"]
[null,null,null,null,"Coincident"]
[null,null,"Date MD occurred",null,"Non-Coincident"]
[null,null,null,null,"Coincident"]
[null,null,"Half hour time period MD occurred",null,"Non-Coincident"]
[null,null,null,null,"Coincident"]
[null,null,"Winter/Summer Peaking",null,"Non-Coincident"]
[null,null,null,null,"Coincident"]
[null,null,"Adjustments - Embedded generation","MW","Non-Coincident"]
[null,null,null,null,"Coincident"]
[null,null,"Weather Corrected MD 10% POE","MW","Non-Coincident"]
[null,null,null,null,"Coincident"]
[null,null,"Weather Corrected MD 10% POE","MVA","Non-Coincident"]
[null,null,null,null,"Coincident"]
[null,null,"Weather Corrected MD 50% POE","MW","Non-Coincident"]
[null,null,null,null,"Coincident"]
[null,null,"Weather Corrected MD 50% POE","MVA","Non-Coincident"]
[null,null,null,null,"Coincident"]
[null,"<Enter connection point name>","Connection Point Rating","MVA","Non-Coincident"]
[null,null,null,null,"Coincident"]
[null,null,"Raw Adjusted MD","MW","Non-Coincident"]
[null,null,null,null,"Coincident"]
[null,null,"Raw Adjusted MD","MVA","Non-Coincident"]
[null,null,null,null,"Coincident"]
[null,null,"Date MD occurred",null,"Non-Coincident"]
[null,null,null,null,"Coincident"]
[null,null,"Half hour time period MD occurred",null,"Non-Coincident"]
[null,null,null,null,"Coincident"]
[null,null,"Winter/Summer Peaking",null,"Non-Coincident"]
[null,null,null,null,"Coincident"]
[null,null,"Adjustments - Embedded generation","MW","Non-Coincident"]
[null,null,null,null,"Coincident"]
[null,null,"Weather Corrected MD 10% POE","MW","Non-Coincident"]
[null,null,null,null,"Coincident"]
[null,null,"Weather Corrected MD 10% POE","MVA","Non-Coincident"]
[null,null,null,null,"Coincident"]
[null,null,"Weather Corrected MD 50% POE","MW","Non-Coincident"]
[null,null,null,null,"Coincident"]
[null,null,"Weather Corrected MD 50% POE","MVA","Non-Coincident"]
[null,null,null,null,"Coincident"]
[null,"<Enter connection point name>","Connection Point Rating","MVA","Non-Coincident"]
[null,null,null,null,"Coincident"]
[null,null,"Raw Adjusted MD","MW","Non-Coincident"]
[null,null,null,null,"Coincident"]
[null,null,"Raw Adjusted MD","MVA","Non-Coincident"]
[null,null,null,null,"Coincident"]
[null,null,"Date MD occurred",null,"Non-Coincident"]
[null,null,null,null,"Coincident"]
[null,null,"Half hour time period MD occurred",null,"Non-Coincident"]
[null,null,null,null,"Coincident"]
[null,null,"Winter/Summer Peaking",null,"Non-Coincident"]
[null,null,null,null,"Coincident"]
[null,null,"Adjustments - Embedded generation","MW","Non-Coincident"]
[null,null,null,null,"Coincident"]
[null,null,"Weather Corrected MD 10% POE","MW","Non-Coincident"]
[null,null,null,null,"Coincident"]
[null,null,"Weather Corrected MD 10% POE","MVA","Non-Coincident"]
[null,null,null,null,"Coincident"]
[null,null,"Weather Corrected MD 50% POE","MW","Non-Coincident"]
[null,null,null,null,"Coincident"]
[null,null,"Weather Corrected MD 50% POE","MVA","Non-Coincident"]
[null,null,null,null,"Coincident"]
[null,"<Enter connection point name>","Connection Point Rating","MVA","Non-Coincident"]
[null,null,null,null,"Coincident"]
[null,null,"Raw Adjusted MD","MW","Non-Coincident"]
[null,null,null,null,"Coincident"]
[null,null,"Raw Adjusted MD","MVA","Non-Coincident"]
[null,null,null,null,"Coincident"]
[null,null,"Date MD occurred",null,"Non-Coincident"]
[null,null,null,null,"Coincident"]
[null,null,"Half hour time period MD occurred",null,"Non-Coincident"]
[null,null,null,null,"Coincident"]
[null,null,"Winter/Summer Peaking",null,"Non-Coincident"]
[null,null,null,null,"Coincident"]
[null,null,"Adjustments - Embedded generation","MW","Non-Coincident"]
[null,null,null,null,"Coincident"]
[null,null,"Weather Corrected MD 10% POE","MW","Non-Coincident"]
[null,null,null,null,"Coincident"]
[null,null,"Weather Corrected MD 10% POE","MVA","Non-Coincident"]
[null,null,null,null,"Coincident"]
[null,null,"Weather Corrected MD 50% POE","MW","Non-Coincident"]
[null,null,null,null,"Coincident"]
[null,null,"Weather Corrected MD 50% POE","MVA","Non-Coincident"]
[null,null,null,null,"Coincident"]
[null,"<Enter connection point name>","Connection Point Rating","MVA","Non-Coincident"]
[null,null,null,null,"Coincident"]
[null,null,"Raw Adjusted MD","MW","Non-Coincident"]
[null,null,null,null,"Coincident"]
[null,null,"Raw Adjusted MD","MVA","Non-Coincident"]
[null,null,null,null,"Coincident"]
[null,null,"Date MD occurred",null,"Non-Coincident"]
[null,null,null,null,"Coincident"]
[null,null,"Half hour time period MD occurred",null,"Non-Coincident"]
[null,null,null,null,"Coincident"]
[null,null,"Winter/Summer Peaking",null,"Non-Coincident"]
[null,null,null,null,"Coincident"]
[null,null,"Adjustments - Embedded generation","MW","Non-Coincident"]
[null,null,null,null,"Coincident"]
[null,null,"Weather Corrected MD 10% POE","MW","Non-Coincident"]
[null,null,null,null,"Coincident"]
[null,null,"Weather Corrected MD 10% POE","MVA","Non-Coincident"]
[null,null,null,null,"Coincident"]
[null,null,"Weather Corrected MD 50% POE","MW","Non-Coincident"]
[null,null,null,null,"Coincident"]
[null,null,"Weather Corrected MD 50% POE","MVA","Non-Coincident"]
[null,null,null,null,"Coincident"]
[null,"<Enter connection point name>","Connection Point Rating","MVA","Non-Coincident"]
[null,null,null,null,"Coincident"]
[null,null,"Raw Adjusted MD","MW","Non-Coincident"]
[null,null,null,null,"Coincident"]
[null,null,"Raw Adjusted MD","MVA","Non-Coincident"]
[null,null,null,null,"Coincident"]
[null,null,"Date MD occurred",null,"Non-Coincident"]
[null,null,null,null,"Coincident"]
[null,null,"Half hour time period MD occurred",null,"Non-Coincident"]
[null,null,null,null,"Coincident"]
[null,null,"Winter/Summer Peaking",null,"Non-Coincident"]
[null,null,null,null,"Coincident"]
[null,null,"Adjustments - Embedded generation","MW","Non-Coincident"]
[null,null,null,null,"Coincident"]
[null,null,"Weather Corrected MD 10% POE","MW","Non-Coincident"]
[null,null,null,null,"Coincident"]
[null,null,"Weather Corrected MD 10% POE","MVA","Non-Coincident"]
[null,null,null,null,"Coincident"]
[null,null,"Weather Corrected MD 50% POE","MW","Non-Coincident"]
[null,null,null,null,"Coincident"]
[null,null,"Weather Corrected MD 50% POE","MVA","Non-Coincident"]
[null,null,null,null,"Coincident"]
[null,"<Enter connection point name>","Connection Point Rating","MVA","Non-Coincident"]
[null,null,null,null,"Coincident"]
[null,null,"Raw Adjusted MD","MW","Non-Coincident"]
[null,null,null,null,"Coincident"]
[null,null,"Raw Adjusted MD","MVA","Non-Coincident"]
[null,null,null,null,"Coincident"]
[null,null,"Date MD occurred",null,"Non-Coincident"]
[null,null,null,null,"Coincident"]
[null,null,"Half hour time period MD occurred",null,"Non-Coincident"]
[null,null,null,null,"Coincident"]
[null,null,"Winter/Summer Peaking",null,"Non-Coincident"]
[null,null,null,null,"Coincident"]
[null,null,"Adjustments - Embedded generation","MW","Non-Coincident"]
[null,null,null,null,"Coincident"]
[null,null,"Weather Corrected MD 10% POE","MW","Non-Coincident"]
[null,null,null,null,"Coincident"]
[null,null,"Weather Corrected MD 10% POE","MVA","Non-Coincident"]
[null,null,null,null,"Coincident"]
[null,null,"Weather Corrected MD 50% POE","MW","Non-Coincident"]
[null,null,null,null,"Coincident"]
[null,null,"Weather Corrected MD 50% POE","MVA","Non-Coincident"]
[null,null,null,null,"Coincident"]
[null,"<Enter connection point name>","Connection Point Rating","MVA","Non-Coincident"]
[null,null,null,null,"Coincident"]
[null,null,"Raw Adjusted MD","MW","Non-Coincident"]
[null,null,null,null,"Coincident"]
[null,null,"Raw Adjusted MD","MVA","Non-Coincident"]
[null,null,null,null,"Coincident"]
[null,null,"Date MD occurred",null,"Non-Coincident"]
[null,null,null,null,"Coincident"]
[null,null,"Half hour time period MD occurred",null,"Non-Coincident"]
[null,null,null,null,"Coincident"]
[null,null,"Winter/Summer Peaking",null,"Non-Coincident"]
[null,null,null,null,"Coincident"]
[null,null,"Adjustments - Embedded generation","MW","Non-Coincident"]
[null,null,null,null,"Coincident"]
[null,null,"Weather Corrected MD 10% POE","MW","Non-Coincident"]
[null,null,null,null,"Coincident"]
[null,null,"Weather Corrected MD 10% POE","MVA","Non-Coincident"]
[null,null,null,null,"Coincident"]
[null,null,"Weather Corrected MD 50% POE","MW","Non-Coincident"]
[null,null,null,null,"Coincident"]
[null,null,"Weather Corrected MD 50% POE","MVA","Non-Coincident"]
[null,null,null,null,"Coincident"]
[null,"<Enter connection point name>","Connection Point Rating","MVA","Non-Coincident"]
[null,null,null,null,"Coincident"]
[null,null,"Raw Adjusted MD","MW","Non-Coincident"]
[null,null,null,null,"Coincident"]
[null,null,"Raw Adjusted MD","MVA","Non-Coincident"]
[null,null,null,null,"Coincident"]
[null,null,"Date MD occurred",null,"Non-Coincident"]
[null,null,null,null,"Coincident"]
[null,null,"Half hour time period MD occurred",null,"Non-Coincident"]
[null,null,null,null,"Coincident"]
[null,null,"Winter/Summer Peaking",null,"Non-Coincident"]
[null,null,null,null,"Coincident"]
[null,null,"Adjustments - Embedded generation","MW","Non-Coincident"]
[null,null,null,null,"Coincident"]
[null,null,"Weather Corrected MD 10% POE","MW","Non-Coincident"]
[null,null,null,null,"Coincident"]
[null,null,"Weather Corrected MD 10% POE","MVA","Non-Coincident"]
[null,null,null,null,"Coincident"]
[null,null,"Weather Corrected MD 50% POE","MW","Non-Coincident"]
[null,null,null,null,"Coincident"]
[null,null,"Weather Corrected MD 50% POE","MVA","Non-Coincident"]
[null,null,null,null,"Coincident"]
[null,"<Enter connection point name>","Connection Point Rating","MVA","Non-Coincident"]
[null,null,null,null,"Coincident"]
[null,null,"Raw Adjusted MD","MW","Non-Coincident"]
[null,null,null,null,"Coincident"]
[null,null,"Raw Adjusted MD","MVA","Non-Coincident"]
[null,null,null,null,"Coincident"]
[null,null,"Date MD occurred",null,"Non-Coincident"]
[null,null,null,null,"Coincident"]
[null,null,"Half hour time period MD occurred",null,"Non-Coincident"]
[null,null,null,null,"Coincident"]
[null,null,"Winter/Summer Peaking",null,"Non-Coincident"]
[null,null,null,null,"Coincident"]
[null,null,"Adjustments - Embedded generation","MW","Non-Coincident"]
[null,null,null,null,"Coincident"]
[null,null,"Weather Corrected MD 10% POE","MW","Non-Coincident"]
[null,null,null,null,"Coincident"]
[null,null,"Weather Corrected MD 10% POE","MVA","Non-Coincident"]
[null,null,null,null,"Coincident"]
[null,null,"Weather Corrected MD 50% POE","MW","Non-Coincident"]
[null,null,null,null,"Coincident"]
[null,null,"Weather Corrected MD 50% POE","MVA","Non-Coincident"]
[null,null,null,null,"Coincident"]
[null,"<Enter connection point name>","Connection Point Rating","MVA","Non-Coincident"]
[null,null,null,null,"Coincident"]
[null,null,"Raw Adjusted MD","MW","Non-Coincident"]
[null,null,null,null,"Coincident"]
[null,null,"Raw Adjusted MD","MVA","Non-Coincident"]
[null,null,null,null,"Coincident"]
[null,null,"Date MD occurred",null,"Non-Coincident"]
[null,null,null,null,"Coincident"]
[null,null,"Half hour time period MD occurred",null,"Non-Coincident"]
[null,null,null,null,"Coincident"]
[null,null,"Winter/Summer Peaking",null,"Non-Coincident"]
[null,null,null,null,"Coincident"]
[null,null,"Adjustments - Embedded generation","MW","Non-Coincident"]
[null,null,null,null,"Coincident"]
[null,null,"Weather Corrected MD 10% POE","MW","Non-Coincident"]
[null,null,null,null,"Coincident"]
[null,null,"Weather Corrected MD 10% POE","MVA","Non-Coincident"]
[null,null,null,null,"Coincident"]
[null,null,"Weather Corrected MD 50% POE","MW","Non-Coincident"]
[null,null,null,null,"Coincident"]
[null,null,"Weather Corrected MD 50% POE","MVA","Non-Coincident"]
[null,null,null,null,"Coincident"]
[null,"<Enter connection point name>","Connection Point Rating","MVA","Non-Coincident"]
[null,null,null,null,"Coincident"]
[null,null,"Raw Adjusted MD","MW","Non-Coincident"]
[null,null,null,null,"Coincident"]
[null,null,"Raw Adjusted MD","MVA","Non-Coincident"]
[null,null,null,null,"Coincident"]
[null,null,"Date MD occurred",null,"Non-Coincident"]
[null,null,null,null,"Coincident"]
[null,null,"Half hour time period MD occurred",null,"Non-Coincident"]
[null,null,null,null,"Coincident"]
[null,null,"Winter/Summer Peaking",null,"Non-Coincident"]
[null,null,null,null,"Coincident"]
[null,null,"Adjustments - Embedded generation","MW","Non-Coincident"]
[null,null,null,null,"Coincident"]
[null,null,"Weather Corrected MD 10% POE","MW","Non-Coincident"]
[null,null,null,null,"Coincident"]
[null,null,"Weather Corrected MD 10% POE","MVA","Non-Coincident"]
[null,null,null,null,"Coincident"]
[null,null,"Weather Corrected MD 50% POE","MW","Non-Coincident"]
[null,null,null,null,"Coincident"]
[null,null,"Weather Corrected MD 50% POE","MVA","Non-Coincident"]
[null,null,null,null,"Coincident"]
[null,"<Enter connection point name>","Connection Point Rating","MVA","Non-Coincident"]
[null,null,null,null,"Coincident"]
[null,null,"Raw Adjusted MD","MW","Non-Coincident"]
[null,null,null,null,"Coincident"]
[null,null,"Raw Adjusted MD","MVA","Non-Coincident"]
[null,null,null,null,"Coincident"]
[null,null,"Date MD occurred",null,"Non-Coincident"]
[null,null,null,null,"Coincident"]
[null,null,"Half hour time period MD occurred",null,"Non-Coincident"]
[null,null,null,null,"Coincident"]
[null,null,"Winter/Summer Peaking",null,"Non-Coincident"]
[null,null,null,null,"Coincident"]
[null,null,"Adjustments - Embedded generation","MW","Non-Coincident"]
[null,null,null,null,"Coincident"]
[null,null,"Weather Corrected MD 10% POE","MW","Non-Coincident"]
[null,null,null,null,"Coincident"]
[null,null,"Weather Corrected MD 10% POE","MVA","Non-Coincident"]
[null,null,null,null,"Coincident"]
[null,null,"Weather Corrected MD 50% POE","MW","Non-Coincident"]
[null,null,null,null,"Coincident"]
[null,null,"Weather Corrected MD 50% POE","MVA","Non-Coincident"]
[null,null,null,null,"Coincident"]
[null,"<Enter connection point name>","Connection Point Rating","MVA","Non-Coincident"]
[null,null,null,null,"Coincident"]
[null,null,"Raw Adjusted MD","MW","Non-Coincident"]
[null,null,null,null,"Coincident"]
[null,null,"Raw Adjusted MD","MVA","Non-Coincident"]
[null,null,null,null,"Coincident"]
[null,null,"Date MD occurred",null,"Non-Coincident"]
[null,null,null,null,"Coincident"]
[null,null,"Half hour time period MD occurred",null,"Non-Coincident"]
[null,null,null,null,"Coincident"]
[null,null,"Winter/Summer Peaking",null,"Non-Coincident"]
[null,null,null,null,"Coincident"]
[null,null,"Adjustments - Embedded generation","MW","Non-Coincident"]
[null,null,null,null,"Coincident"]
[null,null,"Weather Corrected MD 10% POE","MW","Non-Coincident"]
[null,null,null,null,"Coincident"]
[null,null,"Weather Corrected MD 10% POE","MVA","Non-Coincident"]
[null,null,null,null,"Coincident"]
[null,null,"Weather Corrected MD 50% POE","MW","Non-Coincident"]
[null,null,null,null,"Coincident"]
[null,null,"Weather Corrected MD 50% POE","MVA","Non-Coincident"]
[null,null,null,null,"Coincident"]
[null,"<Enter connection point name>","Connection Point Rating","MVA","Non-Coincident"]
[null,null,null,null,"Coincident"]
[null,null,"Raw Adjusted MD","MW","Non-Coincident"]
[null,null,null,null,"Coincident"]
[null,null,"Raw Adjusted MD","MVA","Non-Coincident"]
[null,null,null,null,"Coincident"]
[null,null,"Date MD occurred",null,"Non-Coincident"]
[null,null,null,null,"Coincident"]
[null,null,"Half hour time period MD occurred",null,"Non-Coincident"]
[null,null,null,null,"Coincident"]
[null,null,"Winter/Summer Peaking",null,"Non-Coincident"]
[null,null,null,null,"Coincident"]
[null,null,"Adjustments - Embedded generation","MW","Non-Coincident"]
[null,null,null,null,"Coincident"]
[null,null,"Weather Corrected MD 10% POE","MW","Non-Coincident"]
[null,null,null,null,"Coincident"]
[null,null,"Weather Corrected MD 10% POE","MVA","Non-Coincident"]
[null,null,null,null,"Coincident"]
[null,null,"Weather Corrected MD 50% POE","MW","Non-Coincident"]
[null,null,null,null,"Coincident"]
[null,null,"Weather Corrected MD 50% POE","MVA","Non-Coincident"]
[null,null,null,null,"Coincident"]
[null,"<Enter connection point name>","Connection Point Rating","MVA","Non-Coincident"]
[null,null,null,null,"Coincident"]
[null,null,"Raw Adjusted MD","MW","Non-Coincident"]
[null,null,null,null,"Coincident"]
[null,null,"Raw Adjusted MD","MVA","Non-Coincident"]
[null,null,null,null,"Coincident"]
[null,null,"Date MD occurred",null,"Non-Coincident"]
[null,null,null,null,"Coincident"]
[null,null,"Half hour time period MD occurred",null,"Non-Coincident"]
[null,null,null,null,"Coincident"]
[null,null,"Winter/Summer Peaking",null,"Non-Coincident"]
[null,null,null,null,"Coincident"]
[null,null,"Adjustments - Embedded generation","MW","Non-Coincident"]
[null,null,null,null,"Coincident"]
[null,null,"Weather Corrected MD 10% POE","MW","Non-Coincident"]
[null,null,null,null,"Coincident"]
[null,null,"Weather Corrected MD 10% POE","MVA","Non-Coincident"]
[null,null,null,null,"Coincident"]
[null,null,"Weather Corrected MD 50% POE","MW","Non-Coincident"]
[null,null,null,null,"Coincident"]
[null,null,"Weather Corrected MD 50% POE","MVA","Non-Coincident"]
[null,null,null,null,"Coincident"]
[null,"<Enter connection point name>","Connection Point Rating","MVA","Non-Coincident"]
[null,null,null,null,"Coincident"]
[null,null,"Raw Adjusted MD","MW","Non-Coincident"]
[null,null,null,null,"Coincident"]
[null,null,"Raw Adjusted MD","MVA","Non-Coincident"]
[null,null,null,null,"Coincident"]
[null,null,"Date MD occurred",null,"Non-Coincident"]
[null,null,null,null,"Coincident"]
[null,null,"Half hour time period MD occurred",null,"Non-Coincident"]
[null,null,null,null,"Coincident"]
[null,null,"Winter/Summer Peaking",null,"Non-Coincident"]
[null,null,null,null,"Coincident"]
[null,null,"Adjustments - Embedded generation","MW","Non-Coincident"]
[null,null,null,null,"Coincident"]
[null,null,"Weather Corrected MD 10% POE","MW","Non-Coincident"]
[null,null,null,null,"Coincident"]
[null,null,"Weather Corrected MD 10% POE","MVA","Non-Coincident"]
[null,null,null,null,"Coincident"]
[null,null,"Weather Corrected MD 50% POE","MW","Non-Coincident"]
[null,null,null,null,"Coincident"]
[null,null,"Weather Corrected MD 50% POE","MVA","Non-Coincident"]
[null,null,null,null,"Coincident"]
[null,"<Enter connection point name>","Connection Point Rating","MVA","Non-Coincident"]
[null,null,null,null,"Coincident"]
[null,null,"Raw Adjusted MD","MW","Non-Coincident"]
[null,null,null,null,"Coincident"]
[null,null,"Raw Adjusted MD","MVA","Non-Coincident"]
[null,null,null,null,"Coincident"]
[null,null,"Date MD occurred",null,"Non-Coincident"]
[null,null,null,null,"Coincident"]
[null,null,"Half hour time period MD occurred",null,"Non-Coincident"]
[null,null,null,null,"Coincident"]
[null,null,"Winter/Summer Peaking",null,"Non-Coincident"]
[null,null,null,null,"Coincident"]
[null,null,"Adjustments - Embedded generation","MW","Non-Coincident"]
[null,null,null,null,"Coincident"]
[null,null,"Weather Corrected MD 10% POE","MW","Non-Coincident"]
[null,null,null,null,"Coincident"]
[null,null,"Weather Corrected MD 10% POE","MVA","Non-Coincident"]
[null,null,null,null,"Coincident"]
[null,null,"Weather Corrected MD 50% POE","MW","Non-Coincident"]
[null,null,null,null,"Coincident"]
[null,null,"Weather Corrected MD 50% POE","MVA","Non-Coincident"]
[null,null,null,null,"Coincident"]
[null,"<Enter connection point name>","Connection Point Rating","MVA","Non-Coincident"]
[null,null,null,null,"Coincident"]
[null,null,"Raw Adjusted MD","MW","Non-Coincident"]
[null,null,null,null,"Coincident"]
[null,null,"Raw Adjusted MD","MVA","Non-Coincident"]
[null,null,null,null,"Coincident"]
[null,null,"Date MD occurred",null,"Non-Coincident"]
[null,null,null,null,"Coincident"]
[null,null,"Half hour time period MD occurred",null,"Non-Coincident"]
[null,null,null,null,"Coincident"]
[null,null,"Winter/Summer Peaking",null,"Non-Coincident"]
[null,null,null,null,"Coincident"]
[null,null,"Adjustments - Embedded generation","MW","Non-Coincident"]
[null,null,null,null,"Coincident"]
[null,null,"Weather Corrected MD 10% POE","MW","Non-Coincident"]
[null,null,null,null,"Coincident"]
[null,null,"Weather Corrected MD 10% POE","MVA","Non-Coincident"]
[null,null,null,null,"Coincident"]
[null,null,"Weather Corrected MD 50% POE","MW","Non-Coincident"]
[null,null,null,null,"Coincident"]
[null,null,"Weather Corrected MD 50% POE","MVA","Non-Coincident"]
[null,null,null,null,"Coincident"]
[null,"<Enter connection point name>","Connection Point Rating","MVA","Non-Coincident"]
[null,null,null,null,"Coincident"]
[null,null,"Raw Adjusted MD","MW","Non-Coincident"]
[null,null,null,null,"Coincident"]
[null,null,"Raw Adjusted MD","MVA","Non-Coincident"]
[null,null,null,null,"Coincident"]
[null,null,"Date MD occurred",null,"Non-Coincident"]
[null,null,null,null,"Coincident"]
[null,null,"Half hour time period MD occurred",null,"Non-Coincident"]
[null,null,null,null,"Coincident"]
[null,null,"Winter/Summer Peaking",null,"Non-Coincident"]
[null,null,null,null,"Coincident"]
[null,null,"Adjustments - Embedded generation","MW","Non-Coincident"]
[null,null,null,null,"Coincident"]
[null,null,"Weather Corrected MD 10% POE","MW","Non-Coincident"]
[null,null,null,null,"Coincident"]
[null,null,"Weather Corrected MD 10% POE","MVA","Non-Coincident"]
[null,null,null,null,"Coincident"]
[null,null,"Weather Corrected MD 50% POE","MW","Non-Coincident"]
[null,null,null,null,"Coincident"]
[null,null,"Weather Corrected MD 50% POE","MVA","Non-Coincident"]
[null,null,null,null,"Coincident"]
[null,"<Enter connection point name>","Connection Point Rating","MVA","Non-Coincident"]
[null,null,null,null,"Coincident"]
[null,null,"Raw Adjusted MD","MW","Non-Coincident"]
[null,null,null,null,"Coincident"]
[null,null,"Raw Adjusted MD","MVA","Non-Coincident"]
[null,null,null,null,"Coincident"]
[null,null,"Date MD occurred",null,"Non-Coincident"]
[null,null,null,null,"Coincident"]
[null,null,"Half hour time period MD occurred",null,"Non-Coincident"]
[null,null,null,null,"Coincident"]
[null,null,"Winter/Summer Peaking",null,"Non-Coincident"]
[null,null,null,null,"Coincident"]
[null,null,"Adjustments - Embedded generation","MW","Non-Coincident"]
[null,null,null,null,"Coincident"]
[null,null,"Weather Corrected MD 10% POE","MW","Non-Coincident"]
[null,null,null,null,"Coincident"]
[null,null,"Weather Corrected MD 10% POE","MVA","Non-Coincident"]
[null,null,null,null,"Coincident"]
[null,null,"Weather Corrected MD 50% POE","MW","Non-Coincident"]
[null,null,null,null,"Coincident"]
[null,null,"Weather Corrected MD 50% POE","MVA","Non-Coincident"]
[null,null,null,null,"Coincident"]
[null,"<Enter connection point name>","Connection Point Rating","MVA","Non-Coincident"]
[null,null,null,null,"Coincident"]
[null,null,"Raw Adjusted MD","MW","Non-Coincident"]
[null,null,null,null,"Coincident"]
[null,null,"Raw Adjusted MD","MVA","Non-Coincident"]
[null,null,null,null,"Coincident"]
[null,null,"Date MD occurred",null,"Non-Coincident"]
[null,null,null,null,"Coincident"]
[null,null,"Half hour time period MD occurred",null,"Non-Coincident"]
[null,null,null,null,"Coincident"]
[null,null,"Winter/Summer Peaking",null,"Non-Coincident"]
[null,null,null,null,"Coincident"]
[null,null,"Adjustments - Embedded generation","MW","Non-Coincident"]
[null,null,null,null,"Coincident"]
[null,null,"Weather Corrected MD 10% POE","MW","Non-Coincident"]
[null,null,null,null,"Coincident"]
[null,null,"Weather Corrected MD 10% POE","MVA","Non-Coincident"]
[null,null,null,null,"Coincident"]
[null,null,"Weather Corrected MD 50% POE","MW","Non-Coincident"]
[null,null,null,null,"Coincident"]
[null,null,"Weather Corrected MD 50% POE","MVA","Non-Coincident"]
[null,null,null,null,"Coincident"]
[null,"<Enter connection point name>","Connection Point Rating","MVA","Non-Coincident"]
[null,null,null,null,"Coincident"]
[null,null,"Raw Adjusted MD","MW","Non-Coincident"]
[null,null,null,null,"Coincident"]
[null,null,"Raw Adjusted MD","MVA","Non-Coincident"]
[null,null,null,null,"Coincident"]
[null,null,"Date MD occurred",null,"Non-Coincident"]
[null,null,null,null,"Coincident"]
[null,null,"Half hour time period MD occurred",null,"Non-Coincident"]
[null,null,null,null,"Coincident"]
[null,null,"Winter/Summer Peaking",null,"Non-Coincident"]
[null,null,null,null,"Coincident"]
[null,null,"Adjustments - Embedded generation","MW","Non-Coincident"]
[null,null,null,null,"Coincident"]
[null,null,"Weather Corrected MD 10% POE","MW","Non-Coincident"]
[null,null,null,null,"Coincident"]
[null,null,"Weather Corrected MD 10% POE","MVA","Non-Coincident"]
[null,null,null,null,"Coincident"]
[null,null,"Weather Corrected MD 50% POE","MW","Non-Coincident"]
[null,null,null,null,"Coincident"]
[null,null,"Weather Corrected MD 50% POE","MVA","Non-Coincident"]
[null,null,null,null,"Coincident"]
[null,"<Enter connection point name>","Connection Point Rating","MVA","Non-Coincident"]
[null,null,null,null,"Coincident"]
[null,null,"Raw Adjusted MD","MW","Non-Coincident"]
[null,null,null,null,"Coincident"]
[null,null,"Raw Adjusted MD","MVA","Non-Coincident"]
[null,null,null,null,"Coincident"]
[null,null,"Date MD occurred",null,"Non-Coincident"]
[null,null,null,null,"Coincident"]
[null,null,"Half hour time period MD occurred",null,"Non-Coincident"]
[null,null,null,null,"Coincident"]
[null,null,"Winter/Summer Peaking",null,"Non-Coincident"]
[null,null,null,null,"Coincident"]
[null,null,"Adjustments - Embedded generation","MW","Non-Coincident"]
[null,null,null,null,"Coincident"]
[null,null,"Weather Corrected MD 10% POE","MW","Non-Coincident"]
[null,null,null,null,"Coincident"]
[null,null,"Weather Corrected MD 10% POE","MVA","Non-Coincident"]
[null,null,null,null,"Coincident"]
[null,null,"Weather Corrected MD 50% POE","MW","Non-Coincident"]
[null,null,null,null,"Coincident"]
[null,null,"Weather Corrected MD 50% POE","MVA","Non-Coincident"]
[null,null,null,null,"Coincident"]
[null,"<Enter connection point name>","Connection Point Rating","MVA","Non-Coincident"]
[null,null,null,null,"Coincident"]
[null,null,"Raw Adjusted MD","MW","Non-Coincident"]
[null,null,null,null,"Coincident"]
[null,null,"Raw Adjusted MD","MVA","Non-Coincident"]
[null,null,null,null,"Coincident"]
[null,null,"Date MD occurred",null,"Non-Coincident"]
[null,null,null,null,"Coincident"]
[null,null,"Half hour time period MD occurred",null,"Non-Coincident"]
[null,null,null,null,"Coincident"]
[null,null,"Winter/Summer Peaking",null,"Non-Coincident"]
[null,null,null,null,"Coincident"]
[null,null,"Adjustments - Embedded generation","MW","Non-Coincident"]
[null,null,null,null,"Coincident"]
[null,null,"Weather Corrected MD 10% POE","MW","Non-Coincident"]
[null,null,null,null,"Coincident"]
[null,null,"Weather Corrected MD 10% POE","MVA","Non-Coincident"]
[null,null,null,null,"Coincident"]
[null,null,"Weather Corrected MD 50% POE","MW","Non-Coincident"]
[null,null,null,null,"Coincident"]
[null,null,"Weather Corrected MD 50% POE","MVA","Non-Coincident"]
[null,null,null,null,"Coincident"]
[null,"<Enter connection point name>","Connection Point Rating","MVA","Non-Coincident"]
[null,null,null,null,"Coincident"]
[null,null,"Raw Adjusted MD","MW","Non-Coincident"]
[null,null,null,null,"Coincident"]
[null,null,"Raw Adjusted MD","MVA","Non-Coincident"]
[null,null,null,null,"Coincident"]
[null,null,"Date MD occurred",null,"Non-Coincident"]
[null,null,null,null,"Coincident"]
[null,null,"Half hour time period MD occurred",null,"Non-Coincident"]
[null,null,null,null,"Coincident"]
[null,null,"Winter/Summer Peaking",null,"Non-Coincident"]
[null,null,null,null,"Coincident"]
[null,null,"Adjustments - Embedded generation","MW","Non-Coincident"]
[null,null,null,null,"Coincident"]
[null,null,"Weather Corrected MD 10% POE","MW","Non-Coincident"]
[null,null,null,null,"Coincident"]
[null,null,"Weather Corrected MD 10% POE","MVA","Non-Coincident"]
[null,null,null,null,"Coincident"]
[null,null,"Weather Corrected MD 50% POE","MW","Non-Coincident"]
[null,null,null,null,"Coincident"]
[null,null,"Weather Corrected MD 50% POE","MVA","Non-Coincident"]
[null,null,null,null,"Coincident"]
[null,"<Enter connection point name>","Connection Point Rating","MVA","Non-Coincident"]
[null,null,null,null,"Coincident"]
[null,null,"Raw Adjusted MD","MW","Non-Coincident"]
[null,null,null,null,"Coincident"]
[null,null,"Raw Adjusted MD","MVA","Non-Coincident"]
[null,null,null,null,"Coincident"]
[null,null,"Date MD occurred",null,"Non-Coincident"]
[null,null,null,null,"Coincident"]
[null,null,"Half hour time period MD occurred",null,"Non-Coincident"]
[null,null,null,null,"Coincident"]
[null,null,"Winter/Summer Peaking",null,"Non-Coincident"]
[null,null,null,null,"Coincident"]
[null,null,"Adjustments - Embedded generation","MW","Non-Coincident"]
[null,null,null,null,"Coincident"]
[null,null,"Weather Corrected MD 10% POE","MW","Non-Coincident"]
[null,null,null,null,"Coincident"]
[null,null,"Weather Corrected MD 10% POE","MVA","Non-Coincident"]
[null,null,null,null,"Coincident"]
[null,null,"Weather Corrected MD 50% POE","MW","Non-Coincident"]
[null,null,null,null,"Coincident"]
[null,null,"Weather Corrected MD 50% POE","MVA","Non-Coincident"]
[null,null,null,null,"Coincident"]
[null,"<Enter connection point name>","Connection Point Rating","MVA","Non-Coincident"]
[null,null,null,null,"Coincident"]
[null,null,"Raw Adjusted MD","MW","Non-Coincident"]
[null,null,null,null,"Coincident"]
[null,null,"Raw Adjusted MD","MVA","Non-Coincident"]
[null,null,null,null,"Coincident"]
[null,null,"Date MD occurred",null,"Non-Coincident"]
[null,null,null,null,"Coincident"]
[null,null,"Half hour time period MD occurred",null,"Non-Coincident"]
[null,null,null,null,"Coincident"]
[null,null,"Winter/Summer Peaking",null,"Non-Coincident"]
[null,null,null,null,"Coincident"]
[null,null,"Adjustments - Embedded generation","MW","Non-Coincident"]
[null,null,null,null,"Coincident"]
[null,null,"Weather Corrected MD 10% POE","MW","Non-Coincident"]
[null,null,null,null,"Coincident"]
[null,null,"Weather Corrected MD 10% POE","MVA","Non-Coincident"]
[null,null,null,null,"Coincident"]
[null,null,"Weather Corrected MD 50% POE","MW","Non-Coincident"]
[null,null,null,null,"Coincident"]
[null,null,"Weather Corrected MD 50% POE","MVA","Non-Coincident"]
[null,null,null,null,"Coincident"]
[null,"<Enter connection point name>","Connection Point Rating","MVA","Non-Coincident"]
[null,null,null,null,"Coincident"]
[null,null,"Raw Adjusted MD","MW","Non-Coincident"]
[null,null,null,null,"Coincident"]
[null,null,"Raw Adjusted MD","MVA","Non-Coincident"]
[null,null,null,null,"Coincident"]
[null,null,"Date MD occurred",null,"Non-Coincident"]
[null,null,null,null,"Coincident"]
[null,null,"Half hour time period MD occurred",null,"Non-Coincident"]
[null,null,null,null,"Coincident"]
[null,null,"Winter/Summer Peaking",null,"Non-Coincident"]
[null,null,null,null,"Coincident"]
[null,null,"Adjustments - Embedded generation","MW","Non-Coincident"]
[null,null,null,null,"Coincident"]
[null,null,"Weather Corrected MD 10% POE","MW","Non-Coincident"]
[null,null,null,null,"Coincident"]
[null,null,"Weather Corrected MD 10% POE","MVA","Non-Coincident"]
[null,null,null,null,"Coincident"]
[null,null,"Weather Corrected MD 50% POE","MW","Non-Coincident"]
[null,null,null,null,"Coincident"]
[null,null,"Weather Corrected MD 50% POE","MVA","Non-Coincident"]
[null,null,null,null,"Coincident"]
[null,"<Enter connection point name>","Connection Point Rating","MVA","Non-Coincident"]
[null,null,null,null,"Coincident"]
[null,null,"Raw Adjusted MD","MW","Non-Coincident"]
[null,null,null,null,"Coincident"]
[null,null,"Raw Adjusted MD","MVA","Non-Coincident"]
[null,null,null,null,"Coincident"]
[null,null,"Date MD occurred",null,"Non-Coincident"]
[null,null,null,null,"Coincident"]
[null,null,"Half hour time period MD occurred",null,"Non-Coincident"]
[null,null,null,null,"Coincident"]
[null,null,"Winter/Summer Peaking",null,"Non-Coincident"]
[null,null,null,null,"Coincident"]
[null,null,"Adjustments - Embedded generation","MW","Non-Coincident"]
[null,null,null,null,"Coincident"]
[null,null,"Weather Corrected MD 10% POE","MW","Non-Coincident"]
[null,null,null,null,"Coincident"]
[null,null,"Weather Corrected MD 10% POE","MVA","Non-Coincident"]
[null,null,null,null,"Coincident"]
[null,null,"Weather Corrected MD 50% POE","MW","Non-Coincident"]
[null,null,null,null,"Coincident"]
[null,null,"Weather Corrected MD 50% POE","MVA","Non-Coincident"]
[null,null,null,null,"Coincident"]
[null,"<Enter connection point name>","Connection Point Rating","MVA","Non-Coincident"]
[null,null,null,null,"Coincident"]
[null,null,"Raw Adjusted MD","MW","Non-Coincident"]
[null,null,null,null,"Coincident"]
[null,null,"Raw Adjusted MD","MVA","Non-Coincident"]
[null,null,null,null,"Coincident"]
[null,null,"Date MD occurred",null,"Non-Coincident"]
[null,null,null,null,"Coincident"]
[null,null,"Half hour time period MD occurred",null,"Non-Coincident"]
[null,null,null,null,"Coincident"]
[null,null,"Winter/Summer Peaking",null,"Non-Coincident"]
[null,null,null,null,"Coincident"]
[null,null,"Adjustments - Embedded generation","MW","Non-Coincident"]
[null,null,null,null,"Coincident"]
[null,null,"Weather Corrected MD 10% POE","MW","Non-Coincident"]
[null,null,null,null,"Coincident"]
[null,null,"Weather Corrected MD 10% POE","MVA","Non-Coincident"]
[null,null,null,null,"Coincident"]
[null,null,"Weather Corrected MD 50% POE","MW","Non-Coincident"]
[null,null,null,null,"Coincident"]
[null,null,"Weather Corrected MD 50% POE","MVA","Non-Coincident"]
[null,null,null,null,"Coincident"]
[null,"<Enter connection point name>","Connection Point Rating","MVA","Non-Coincident"]
[null,null,null,null,"Coincident"]
[null,null,"Raw Adjusted MD","MW","Non-Coincident"]
[null,null,null,null,"Coincident"]
[null,null,"Raw Adjusted MD","MVA","Non-Coincident"]
[null,null,null,null,"Coincident"]
[null,null,"Date MD occurred",null,"Non-Coincident"]
[null,null,null,null,"Coincident"]
[null,null,"Half hour time period MD occurred",null,"Non-Coincident"]
[null,null,null,null,"Coincident"]
[null,null,"Winter/Summer Peaking",null,"Non-Coincident"]
[null,null,null,null,"Coincident"]
[null,null,"Adjustments - Embedded generation","MW","Non-Coincident"]
[null,null,null,null,"Coincident"]
[null,null,"Weather Corrected MD 10% POE","MW","Non-Coincident"]
[null,null,null,null,"Coincident"]
[null,null,"Weather Corrected MD 10% POE","MVA","Non-Coincident"]
[null,null,null,null,"Coincident"]
[null,null,"Weather Corrected MD 50% POE","MW","Non-Coincident"]
[null,null,null,null,"Coincident"]
[null,null,"Weather Corrected MD 50% POE","MVA","Non-Coincident"]
[null,null,null,null,"Coincident"]
[null,"<Enter connection point name>","Connection Point Rating","MVA","Non-Coincident"]
[null,null,null,null,"Coincident"]
[null,null,"Raw Adjusted MD","MW","Non-Coincident"]
[null,null,null,null,"Coincident"]
[null,null,"Raw Adjusted MD","MVA","Non-Coincident"]
[null,null,null,null,"Coincident"]
[null,null,"Date MD occurred",null,"Non-Coincident"]
[null,null,null,null,"Coincident"]
[null,null,"Half hour time period MD occurred",null,"Non-Coincident"]
[null,null,null,null,"Coincident"]
[null,null,"Winter/Summer Peaking",null,"Non-Coincident"]
[null,null,null,null,"Coincident"]
[null,null,"Adjustments - Embedded generation","MW","Non-Coincident"]
[null,null,null,null,"Coincident"]
[null,null,"Weather Corrected MD 10% POE","MW","Non-Coincident"]
[null,null,null,null,"Coincident"]
[null,null,"Weather Corrected MD 10% POE","MVA","Non-Coincident"]
[null,null,null,null,"Coincident"]
[null,null,"Weather Corrected MD 50% POE","MW","Non-Coincident"]
[null,null,null,null,"Coincident"]
[null,null,"Weather Corrected MD 50% POE","MVA","Non-Coincident"]
[null,null,null,null,"Coincident"]
[null,"<Enter connection point name>","Connection Point Rating","MVA","Non-Coincident"]
[null,null,null,null,"Coincident"]
[null,null,"Raw Adjusted MD","MW","Non-Coincident"]
[null,null,null,null,"Coincident"]
[null,null,"Raw Adjusted MD","MVA","Non-Coincident"]
[null,null,null,null,"Coincident"]
[null,null,"Date MD occurred",null,"Non-Coincident"]
[null,null,null,null,"Coincident"]
[null,null,"Half hour time period MD occurred",null,"Non-Coincident"]
[null,null,null,null,"Coincident"]
[null,null,"Winter/Summer Peaking",null,"Non-Coincident"]
[null,null,null,null,"Coincident"]
[null,null,"Adjustments - Embedded generation","MW","Non-Coincident"]
[null,null,null,null,"Coincident"]
[null,null,"Weather Corrected MD 10% POE","MW","Non-Coincident"]
[null,null,null,null,"Coincident"]
[null,null,"Weather Corrected MD 10% POE","MVA","Non-Coincident"]
[null,null,null,null,"Coincident"]
[null,null,"Weather Corrected MD 50% POE","MW","Non-Coincident"]
[null,null,null,null,"Coincident"]
[null,null,"Weather Corrected MD 50% POE","MVA","Non-Coincident"]
[null,null,null,null,"Coincident"]
[null,"<Enter connection point name>","Connection Point Rating","MVA","Non-Coincident"]
[null,null,null,null,"Coincident"]
[null,null,"Raw Adjusted MD","MW","Non-Coincident"]
[null,null,null,null,"Coincident"]
[null,null,"Raw Adjusted MD","MVA","Non-Coincident"]
[null,null,null,null,"Coincident"]
[null,null,"Date MD occurred",null,"Non-Coincident"]
[null,null,null,null,"Coincident"]
[null,null,"Half hour time period MD occurred",null,"Non-Coincident"]
[null,null,null,null,"Coincident"]
[null,null,"Winter/Summer Peaking",null,"Non-Coincident"]
[null,null,null,null,"Coincident"]
[null,null,"Adjustments - Embedded generation","MW","Non-Coincident"]
[null,null,null,null,"Coincident"]
[null,null,"Weather Corrected MD 10% POE","MW","Non-Coincident"]
[null,null,null,null,"Coincident"]
[null,null,"Weather Corrected MD 10% POE","MVA","Non-Coincident"]
[null,null,null,null,"Coincident"]
[null,null,"Weather Corrected MD 50% POE","MW","Non-Coincident"]
[null,null,null,null,"Coincident"]
[null,null,"Weather Corrected MD 50% POE","MVA","Non-Coincident"]
[null,null,null,null,"Coincident"]
[null,"<Enter connection point name>","Connection Point Rating","MVA","Non-Coincident"]
[null,null,null,null,"Coincident"]
[null,null,"Raw Adjusted MD","MW","Non-Coincident"]
[null,null,null,null,"Coincident"]
[null,null,"Raw Adjusted MD","MVA","Non-Coincident"]
[null,null,null,null,"Coincident"]
[null,null,"Date MD occurred",null,"Non-Coincident"]
[null,null,null,null,"Coincident"]
[null,null,"Half hour time period MD occurred",null,"Non-Coincident"]
[null,null,null,null,"Coincident"]
[null,null,"Winter/Summer Peaking",null,"Non-Coincident"]
[null,null,null,null,"Coincident"]
[null,null,"Adjustments - Embedded generation","MW","Non-Coincident"]
[null,null,null,null,"Coincident"]
[null,null,"Weather Corrected MD 10% POE","MW","Non-Coincident"]
[null,null,null,null,"Coincident"]
[null,null,"Weather Corrected MD 10% POE","MVA","Non-Coincident"]
[null,null,null,null,"Coincident"]
[null,null,"Weather Corrected MD 50% POE","MW","Non-Coincident"]
[null,null,null,null,"Coincident"]
[null,null,"Weather Corrected MD 50% POE","MVA","Non-Coincident"]
[null,null,null,null,"Coincident"]
[null,"<Enter connection point name>","Connection Point Rating","MVA","Non-Coincident"]
[null,null,null,null,"Coincident"]
[null,null,"Raw Adjusted MD","MW","Non-Coincident"]
[null,null,null,null,"Coincident"]
[null,null,"Raw Adjusted MD","MVA","Non-Coincident"]
[null,null,null,null,"Coincident"]
[null,null,"Date MD occurred",null,"Non-Coincident"]
[null,null,null,null,"Coincident"]
[null,null,"Half hour time period MD occurred",null,"Non-Coincident"]
[null,null,null,null,"Coincident"]
[null,null,"Winter/Summer Peaking",null,"Non-Coincident"]
[null,null,null,null,"Coincident"]
[null,null,"Adjustments - Embedded generation","MW","Non-Coincident"]
[null,null,null,null,"Coincident"]
[null,null,"Weather Corrected MD 10% POE","MW","Non-Coincident"]
[null,null,null,null,"Coincident"]
[null,null,"Weather Corrected MD 10% POE","MVA","Non-Coincident"]
[null,null,null,null,"Coincident"]
[null,null,"Weather Corrected MD 50% POE","MW","Non-Coincident"]
[null,null,null,null,"Coincident"]
[null,null,"Weather Corrected MD 50% POE","MVA","Non-Coincident"]
[null,null,null,null,"Coincident"]
[null,"<Enter connection point name>","Connection Point Rating","MVA","Non-Coincident"]
[null,null,null,null,"Coincident"]
[null,null,"Raw Adjusted MD","MW","Non-Coincident"]
[null,null,null,null,"Coincident"]
[null,null,"Raw Adjusted MD","MVA","Non-Coincident"]
[null,null,null,null,"Coincident"]
[null,null,"Date MD occurred",null,"Non-Coincident"]
[null,null,null,null,"Coincident"]
[null,null,"Half hour time period MD occurred",null,"Non-Coincident"]
[null,null,null,null,"Coincident"]
[null,null,"Winter/Summer Peaking",null,"Non-Coincident"]
[null,null,null,null,"Coincident"]
[null,null,"Adjustments - Embedded generation","MW","Non-Coincident"]
[null,null,null,null,"Coincident"]
[null,null,"Weather Corrected MD 10% POE","MW","Non-Coincident"]
[null,null,null,null,"Coincident"]
[null,null,"Weather Corrected MD 10% POE","MVA","Non-Coincident"]
[null,null,null,null,"Coincident"]
[null,null,"Weather Corrected MD 50% POE","MW","Non-Coincident"]
[null,null,null,null,"Coincident"]
[null,null,"Weather Corrected MD 50% POE","MVA","Non-Coincident"]
[null,null,null,null,"Coincident"]
[null,"<Enter connection point name>","Connection Point Rating","MVA","Non-Coincident"]
[null,null,null,null,"Coincident"]
[null,null,"Raw Adjusted MD","MW","Non-Coincident"]
[null,null,null,null,"Coincident"]
[null,null,"Raw Adjusted MD","MVA","Non-Coincident"]
[null,null,null,null,"Coincident"]
[null,null,"Date MD occurred",null,"Non-Coincident"]
[null,null,null,null,"Coincident"]
[null,null,"Half hour time period MD occurred",null,"Non-Coincident"]
[null,null,null,null,"Coincident"]
[null,null,"Winter/Summer Peaking",null,"Non-Coincident"]
[null,null,null,null,"Coincident"]
[null,null,"Adjustments - Embedded generation","MW","Non-Coincident"]
[null,null,null,null,"Coincident"]
[null,null,"Weather Corrected MD 10% POE","MW","Non-Coincident"]
[null,null,null,null,"Coincident"]
[null,null,"Weather Corrected MD 10% POE","MVA","Non-Coincident"]
[null,null,null,null,"Coincident"]
[null,null,"Weather Corrected MD 50% POE","MW","Non-Coincident"]
[null,null,null,null,"Coincident"]
[null,null,"Weather Corrected MD 50% POE","MVA","Non-Coincident"]
[null,null,null,null,"Coincident"]
[null,"<Enter connection point name>","Connection Point Rating","MVA","Non-Coincident"]
[null,null,null,null,"Coincident"]
[null,null,"Raw Adjusted MD","MW","Non-Coincident"]
[null,null,null,null,"Coincident"]
[null,null,"Raw Adjusted MD","MVA","Non-Coincident"]
[null,null,null,null,"Coincident"]
[null,null,"Date MD occurred",null,"Non-Coincident"]
[null,null,null,null,"Coincident"]
[null,null,"Half hour time period MD occurred",null,"Non-Coincident"]
[null,null,null,null,"Coincident"]
[null,null,"Winter/Summer Peaking",null,"Non-Coincident"]
[null,null,null,null,"Coincident"]
[null,null,"Adjustments - Embedded generation","MW","Non-Coincident"]
[null,null,null,null,"Coincident"]
[null,null,"Weather Corrected MD 10% POE","MW","Non-Coincident"]
[null,null,null,null,"Coincident"]
[null,null,"Weather Corrected MD 10% POE","MVA","Non-Coincident"]
[null,null,null,null,"Coincident"]
[null,null,"Weather Corrected MD 50% POE","MW","Non-Coincident"]
[null,null,null,null,"Coincident"]
[null,null,"Weather Corrected MD 50% POE","MVA","Non-Coincident"]
[null,null,null,null,"Coincident"]
[null,"<Enter connection point name>","Connection Point Rating","MVA","Non-Coincident"]
[null,null,null,null,"Coincident"]
[null,null,"Raw Adjusted MD","MW","Non-Coincident"]
[null,null,null,null,"Coincident"]
[null,null,"Raw Adjusted MD","MVA","Non-Coincident"]
[null,null,null,null,"Coincident"]
[null,null,"Date MD occurred",null,"Non-Coincident"]
[null,null,null,null,"Coincident"]
[null,null,"Half hour time period MD occurred",null,"Non-Coincident"]
[null,null,null,null,"Coincident"]
[null,null,"Winter/Summer Peaking",null,"Non-Coincident"]
[null,null,null,null,"Coincident"]
[null,null,"Adjustments - Embedded generation","MW","Non-Coincident"]
[null,null,null,null,"Coincident"]
[null,null,"Weather Corrected MD 10% POE","MW","Non-Coincident"]
[null,null,null,null,"Coincident"]
[null,null,"Weather Corrected MD 10% POE","MVA","Non-Coincident"]
[null,null,null,null,"Coincident"]
[null,null,"Weather Corrected MD 50% POE","MW","Non-Coincident"]
[null,null,null,null,"Coincident"]
[null,null,"Weather Corrected MD 50% POE","MVA","Non-Coincident"]
[null,null,null,null,"Coincident"]
[null,"<Enter connection point name>","Connection Point Rating","MVA","Non-Coincident"]
[null,null,null,null,"Coincident"]
[null,null,"Raw Adjusted MD","MW","Non-Coincident"]
[null,null,null,null,"Coincident"]
[null,null,"Raw Adjusted MD","MVA","Non-Coincident"]
[null,null,null,null,"Coincident"]
[null,null,"Date MD occurred",null,"Non-Coincident"]
[null,null,null,null,"Coincident"]
[null,null,"Half hour time period MD occurred",null,"Non-Coincident"]
[null,null,null,null,"Coincident"]
[null,null,"Winter/Summer Peaking",null,"Non-Coincident"]
[null,null,null,null,"Coincident"]
[null,null,"Adjustments - Embedded generation","MW","Non-Coincident"]
[null,null,null,null,"Coincident"]
[null,null,"Weather Corrected MD 10% POE","MW","Non-Coincident"]
[null,null,null,null,"Coincident"]
[null,null,"Weather Corrected MD 10% POE","MVA","Non-Coincident"]
[null,null,null,null,"Coincident"]
[null,null,"Weather Corrected MD 50% POE","MW","Non-Coincident"]
[null,null,null,null,"Coincident"]
[null,null,"Weather Corrected MD 50% POE","MVA","Non-Coincident"]
[null,null,null,null,"Coincident"]
[null,"<Enter connection point name>","Connection Point Rating","MVA","Non-Coincident"]
[null,null,null,null,"Coincident"]
[null,null,"Raw Adjusted MD","MW","Non-Coincident"]
[null,null,null,null,"Coincident"]
[null,null,"Raw Adjusted MD","MVA","Non-Coincident"]
[null,null,null,null,"Coincident"]
[null,null,"Date MD occurred",null,"Non-Coincident"]
[null,null,null,null,"Coincident"]
[null,null,"Half hour time period MD occurred",null,"Non-Coincident"]
[null,null,null,null,"Coincident"]
[null,null,"Winter/Summer Peaking",null,"Non-Coincident"]
[null,null,null,null,"Coincident"]
[null,null,"Adjustments - Embedded generation","MW","Non-Coincident"]
[null,null,null,null,"Coincident"]
[null,null,"Weather Corrected MD 10% POE","MW","Non-Coincident"]
[null,null,null,null,"Coincident"]
[null,null,"Weather Corrected MD 10% POE","MVA","Non-Coincident"]
[null,null,null,null,"Coincident"]
[null,null,"Weather Corrected MD 50% POE","MW","Non-Coincident"]
[null,null,null,null,"Coincident"]
[null,null,"Weather Corrected MD 50% POE","MVA","Non-Coincident"]
[null,null,null,null,"Coincident"]
[null,"<Enter connection point name>","Connection Point Rating","MVA","Non-Coincident"]
[null,null,null,null,"Coincident"]
[null,null,"Raw Adjusted MD","MW","Non-Coincident"]
[null,null,null,null,"Coincident"]
[null,null,"Raw Adjusted MD","MVA","Non-Coincident"]
[null,null,null,null,"Coincident"]
[null,null,"Date MD occurred",null,"Non-Coincident"]
[null,null,null,null,"Coincident"]
[null,null,"Half hour time period MD occurred",null,"Non-Coincident"]
[null,null,null,null,"Coincident"]
[null,null,"Winter/Summer Peaking",null,"Non-Coincident"]
[null,null,null,null,"Coincident"]
[null,null,"Adjustments - Embedded generation","MW","Non-Coincident"]
[null,null,null,null,"Coincident"]
[null,null,"Weather Corrected MD 10% POE","MW","Non-Coincident"]
[null,null,null,null,"Coincident"]
[null,null,"Weather Corrected MD 10% POE","MVA","Non-Coincident"]
[null,null,null,null,"Coincident"]
[null,null,"Weather Corrected MD 50% POE","MW","Non-Coincident"]
[null,null,null,null,"Coincident"]
[null,null,"Weather Corrected MD 50% POE","MVA","Non-Coincident"]
[null,null,null,null,"Coincident"]
[null,"<Enter connection point name>","Connection Point Rating","MVA","Non-Coincident"]
[null,null,null,null,"Coincident"]
[null,null,"Raw Adjusted MD","MW","Non-Coincident"]
[null,null,null,null,"Coincident"]
[null,null,"Raw Adjusted MD","MVA","Non-Coincident"]
[null,null,null,null,"Coincident"]
[null,null,"Date MD occurred",null,"Non-Coincident"]
[null,null,null,null,"Coincident"]
[null,null,"Half hour time period MD occurred",null,"Non-Coincident"]
[null,null,null,null,"Coincident"]
[null,null,"Winter/Summer Peaking",null,"Non-Coincident"]
[null,null,null,null,"Coincident"]
[null,null,"Adjustments - Embedded generation","MW","Non-Coincident"]
[null,null,null,null,"Coincident"]
[null,null,"Weather Corrected MD 10% POE","MW","Non-Coincident"]
[null,null,null,null,"Coincident"]
[null,null,"Weather Corrected MD 10% POE","MVA","Non-Coincident"]
[null,null,null,null,"Coincident"]
[null,null,"Weather Corrected MD 50% POE","MW","Non-Coincident"]
[null,null,null,null,"Coincident"]
[null,null,"Weather Corrected MD 50% POE","MVA","Non-Coincident"]
[null,null,null,null,"Coincident"]
[null,"<Enter connection point name>","Connection Point Rating","MVA","Non-Coincident"]
[null,null,null,null,"Coincident"]
[null,null,"Raw Adjusted MD","MW","Non-Coincident"]
[null,null,null,null,"Coincident"]
[null,null,"Raw Adjusted MD","MVA","Non-Coincident"]
[null,null,null,null,"Coincident"]
[null,null,"Date MD occurred",null,"Non-Coincident"]
[null,null,null,null,"Coincident"]
[null,null,"Half hour time period MD occurred",null,"Non-Coincident"]
[null,null,null,null,"Coincident"]
[null,null,"Winter/Summer Peaking",null,"Non-Coincident"]
[null,null,null,null,"Coincident"]
[null,null,"Adjustments - Embedded generation","MW","Non-Coincident"]
[null,null,null,null,"Coincident"]
[null,null,"Weather Corrected MD 10% POE","MW","Non-Coincident"]
[null,null,null,null,"Coincident"]
[null,null,"Weather Corrected MD 10% POE","MVA","Non-Coincident"]
[null,null,null,null,"Coincident"]
[null,null,"Weather Corrected MD 50% POE","MW","Non-Coincident"]
[null,null,null,null,"Coincident"]
[null,null,"Weather Corrected MD 50% POE","MVA","Non-Coincident"]
[null,null,null,null,"Coincident"]
[null,"<Enter connection point name>","Connection Point Rating","MVA","Non-Coincident"]
[null,null,null,null,"Coincident"]
[null,null,"Raw Adjusted MD","MW","Non-Coincident"]
[null,null,null,null,"Coincident"]
[null,null,"Raw Adjusted MD","MVA","Non-Coincident"]
[null,null,null,null,"Coincident"]
[null,null,"Date MD occurred",null,"Non-Coincident"]
[null,null,null,null,"Coincident"]
[null,null,"Half hour time period MD occurred",null,"Non-Coincident"]
[null,null,null,null,"Coincident"]
[null,null,"Winter/Summer Peaking",null,"Non-Coincident"]
[null,null,null,null,"Coincident"]
[null,null,"Adjustments - Embedded generation","MW","Non-Coincident"]
[null,null,null,null,"Coincident"]
[null,null,"Weather Corrected MD 10% POE","MW","Non-Coincident"]
[null,null,null,null,"Coincident"]
[null,null,"Weather Corrected MD 10% POE","MVA","Non-Coincident"]
[null,null,null,null,"Coincident"]
[null,null,"Weather Corrected MD 50% POE","MW","Non-Coincident"]
[null,null,null,null,"Coincident"]
[null,null,"Weather Corrected MD 50% POE","MVA","Non-Coincident"]
[null,null,null,null,"Coincident"]
[null,"<Enter connection point name>","Connection Point Rating","MVA","Non-Coincident"]
[null,null,null,null,"Coincident"]
[null,null,"Raw Adjusted MD","MW","Non-Coincident"]
[null,null,null,null,"Coincident"]
[null,null,"Raw Adjusted MD","MVA","Non-Coincident"]
[null,null,null,null,"Coincident"]
[null,null,"Date MD occurred",null,"Non-Coincident"]
[null,null,null,null,"Coincident"]
[null,null,"Half hour time period MD occurred",null,"Non-Coincident"]
[null,null,null,null,"Coincident"]
[null,null,"Winter/Summer Peaking",null,"Non-Coincident"]
[null,null,null,null,"Coincident"]
[null,null,"Adjustments - Embedded generation","MW","Non-Coincident"]
[null,null,null,null,"Coincident"]
[null,null,"Weather Corrected MD 10% POE","MW","Non-Coincident"]
[null,null,null,null,"Coincident"]
[null,null,"Weather Corrected MD 10% POE","MVA","Non-Coincident"]
[null,null,null,null,"Coincident"]
[null,null,"Weather Corrected MD 50% POE","MW","Non-Coincident"]
[null,null,null,null,"Coincident"]
[null,null,"Weather Corrected MD 50% POE","MVA","Non-Coincident"]
[null,null,null,null,"Coincident"]
[null,"<Enter connection point name>","Connection Point Rating","MVA","Non-Coincident"]
[null,null,null,null,"Coincident"]
[null,null,"Raw Adjusted MD","MW","Non-Coincident"]
[null,null,null,null,"Coincident"]
[null,null,"Raw Adjusted MD","MVA","Non-Coincident"]
[null,null,null,null,"Coincident"]
[null,null,"Date MD occurred",null,"Non-Coincident"]
[null,null,null,null,"Coincident"]
[null,null,"Half hour time period MD occurred",null,"Non-Coincident"]
[null,null,null,null,"Coincident"]
[null,null,"Winter/Summer Peaking",null,"Non-Coincident"]
[null,null,null,null,"Coincident"]
[null,null,"Adjustments - Embedded generation","MW","Non-Coincident"]
[null,null,null,null,"Coincident"]
[null,null,"Weather Corrected MD 10% POE","MW","Non-Coincident"]
[null,null,null,null,"Coincident"]
[null,null,"Weather Corrected MD 10% POE","MVA","Non-Coincident"]
[null,null,null,null,"Coincident"]
[null,null,"Weather Corrected MD 50% POE","MW","Non-Coincident"]
[null,null,null,null,"Coincident"]
[null,null,"Weather Corrected MD 50% POE","MVA","Non-Coincident"]
[null,null,null,null,"Coincident"]
[null,"<Enter connection point name>","Connection Point Rating","MVA","Non-Coincident"]
[null,null,null,null,"Coincident"]
[null,null,"Raw Adjusted MD","MW","Non-Coincident"]
[null,null,null,null,"Coincident"]
[null,null,"Raw Adjusted MD","MVA","Non-Coincident"]
[null,null,null,null,"Coincident"]
[null,null,"Date MD occurred",null,"Non-Coincident"]
[null,null,null,null,"Coincident"]
[null,null,"Half hour time period MD occurred",null,"Non-Coincident"]
[null,null,null,null,"Coincident"]
[null,null,"Winter/Summer Peaking",null,"Non-Coincident"]
[null,null,null,null,"Coincident"]
[null,null,"Adjustments - Embedded generation","MW","Non-Coincident"]
[null,null,null,null,"Coincident"]
[null,null,"Weather Corrected MD 10% POE","MW","Non-Coincident"]
[null,null,null,null,"Coincident"]
[null,null,"Weather Corrected MD 10% POE","MVA","Non-Coincident"]
[null,null,null,null,"Coincident"]
[null,null,"Weather Corrected MD 50% POE","MW","Non-Coincident"]
[null,null,null,null,"Coincident"]
[null,null,"Weather Corrected MD 50% POE","MVA","Non-Coincident"]
[null,null,null,null,"Coincident"]
[null,"<Enter connection point name>","Connection Point Rating","MVA","Non-Coincident"]
[null,null,null,null,"Coincident"]
[null,null,"Raw Adjusted MD","MW","Non-Coincident"]
[null,null,null,null,"Coincident"]
[null,null,"Raw Adjusted MD","MVA","Non-Coincident"]
[null,null,null,null,"Coincident"]
[null,null,"Date MD occurred",null,"Non-Coincident"]
[null,null,null,null,"Coincident"]
[null,null,"Half hour time period MD occurred",null,"Non-Coincident"]
[null,null,null,null,"Coincident"]
[null,null,"Winter/Summer Peaking",null,"Non-Coincident"]
[null,null,null,null,"Coincident"]
[null,null,"Adjustments - Embedded generation","MW","Non-Coincident"]
[null,null,null,null,"Coincident"]
[null,null,"Weather Corrected MD 10% POE","MW","Non-Coincident"]
[null,null,null,null,"Coincident"]
[null,null,"Weather Corrected MD 10% POE","MVA","Non-Coincident"]
[null,null,null,null,"Coincident"]
[null,null,"Weather Corrected MD 50% POE","MW","Non-Coincident"]
[null,null,null,null,"Coincident"]
[null,null,"Weather Corrected MD 50% POE","MVA","Non-Coincident"]
[null,null,null,null,"Coincident"]
[null,"<Enter connection point name>","Connection Point Rating","MVA","Non-Coincident"]
[null,null,null,null,"Coincident"]
[null,null,"Raw Adjusted MD","MW","Non-Coincident"]
[null,null,null,null,"Coincident"]
[null,null,"Raw Adjusted MD","MVA","Non-Coincident"]
[null,null,null,null,"Coincident"]
[null,null,"Date MD occurred",null,"Non-Coincident"]
[null,null,null,null,"Coincident"]
[null,null,"Half hour time period MD occurred",null,"Non-Coincident"]
[null,null,null,null,"Coincident"]
[null,null,"Winter/Summer Peaking",null,"Non-Coincident"]
[null,null,null,null,"Coincident"]
[null,null,"Adjustments - Embedded generation","MW","Non-Coincident"]
[null,null,null,null,"Coincident"]
[null,null,"Weather Corrected MD 10% POE","MW","Non-Coincident"]
[null,null,null,null,"Coincident"]
[null,null,"Weather Corrected MD 10% POE","MVA","Non-Coincident"]
[null,null,null,null,"Coincident"]
[null,null,"Weather Corrected MD 50% POE","MW","Non-Coincident"]
[null,null,null,null,"Coincident"]
[null,null,"Weather Corrected MD 50% POE","MVA","Non-Coincident"]
[null,null,null,null,"Coincident"]
[null,"<Enter connection point name>","Connection Point Rating","MVA","Non-Coincident"]
[null,null,null,null,"Coincident"]
[null,null,"Raw Adjusted MD","MW","Non-Coincident"]
[null,null,null,null,"Coincident"]
[null,null,"Raw Adjusted MD","MVA","Non-Coincident"]
[null,null,null,null,"Coincident"]
[null,null,"Date MD occurred",null,"Non-Coincident"]
[null,null,null,null,"Coincident"]
[null,null,"Half hour time period MD occurred",null,"Non-Coincident"]
[null,null,null,null,"Coincident"]
[null,null,"Winter/Summer Peaking",null,"Non-Coincident"]
[null,null,null,null,"Coincident"]
[null,null,"Adjustments - Embedded generation","MW","Non-Coincident"]
[null,null,null,null,"Coincident"]
[null,null,"Weather Corrected MD 10% POE","MW","Non-Coincident"]
[null,null,null,null,"Coincident"]
[null,null,"Weather Corrected MD 10% POE","MVA","Non-Coincident"]
[null,null,null,null,"Coincident"]
[null,null,"Weather Corrected MD 50% POE","MW","Non-Coincident"]
[null,null,null,null,"Coincident"]
[null,null,"Weather Corrected MD 50% POE","MVA","Non-Coincident"]
[null,null,null,null,"Coincident"]
[null,"<Enter connection point name>","Connection Point Rating","MVA","Non-Coincident"]
[null,null,null,null,"Coincident"]
[null,null,"Raw Adjusted MD","MW","Non-Coincident"]
[null,null,null,null,"Coincident"]
[null,null,"Raw Adjusted MD","MVA","Non-Coincident"]
[null,null,null,null,"Coincident"]
[null,null,"Date MD occurred",null,"Non-Coincident"]
[null,null,null,null,"Coincident"]
[null,null,"Half hour time period MD occurred",null,"Non-Coincident"]
[null,null,null,null,"Coincident"]
[null,null,"Winter/Summer Peaking",null,"Non-Coincident"]
[null,null,null,null,"Coincident"]
[null,null,"Adjustments - Embedded generation","MW","Non-Coincident"]
[null,null,null,null,"Coincident"]
[null,null,"Weather Corrected MD 10% POE","MW","Non-Coincident"]
[null,null,null,null,"Coincident"]
[null,null,"Weather Corrected MD 10% POE","MVA","Non-Coincident"]
[null,null,null,null,"Coincident"]
[null,null,"Weather Corrected MD 50% POE","MW","Non-Coincident"]
[null,null,null,null,"Coincident"]
[null,null,"Weather Corrected MD 50% POE","MVA","Non-Coincident"]
[null,null,null,null,"Coincident"]

{"sheet":"Amendments","index":17,"n_rows":2,"n_cols":4,"rows_kept":2,"cut":false,"hidden":false,"merged":[[0,1,0,3]]}
[null,"NSP data amendments"]
[null,{"$f":"INDEX(dms_TradingNameFull_List,MATCH(dms_TradingName,dms_TradingName_List))","v":"ElectraNet"},"Table","Comments"]